Workbook

Sheet Disclaimer

Sheet Start
A2: Tool zur Nachweispflicht 4.7
A4: Das hier verwendete Werkzeug soll dem Netzbetreiber im Dialog mit dem jeweiligen Marktgebietsverantwortlichen als Nachweis dienen,
A5: dass die tägliche Allokationsmeldungen des Netzbetreibers nach Maßgabe des BDEW-Leitfaden erstellt wurde.

Sheet Kontaktdaten
B2: Netzkontonummer
B3: Name Netzbetreiber | C3: Testnetzbetreiber
B4: Straße, Nr.
B5: PLZ, Ort
B6: Ansprechpartner:
B7: E-mail:
B8: Tel.-Nr.
B9: liegt das Netzgebiet in einer Marktgebietsüberlappung
B10: H-Gas-Gebiet
B11: L-Gas-Gebiet
B13: Bilanzierungsjahr | C13: =YEAR(Tageswerte!A2) -> 2012
B14: von | C14: =MIN(Tageswerte!A2:A367) -> 2012-01-01
B15: bis | C15: =MAX(Tageswerte!A2:A367) -> 2012-12-31
B16: SLP- Allokationsmenge | C16: =IF(SUM(Tageswerte!C2:C367)=0,"",SUM(Tageswerte!C2:C367)) -> 1960148372
B17: Restlast | C17: =IF(SUM(Tageswerte!D2:D367)=0,"",SUM(Tageswerte!D2:D367)) -> 2153361632
B18: Menge Als-Ob-Allokation 03 | C18: =IF(GETPIVOTDATA("Summe von Als-Ob Allokation Basis Ist-Temperatur mit KW 03 [kWh]",Auswertung!$A$3)=0,"",GETPIVOTDATA("Summe von Als-Ob Allokation Basis Ist-Temperatur mit KW 03 [kWh]",Auswertung!$A$3)) -> 1987483736
B19: Menge Als-Ob-Allokation 04 | C19: =IF(GETPIVOTDATA("Summe von Als-Ob Allokation Basis Ist-Temperatur mit KW 04 [kWh]",Auswertung!$A$3)=0,"",GETPIVOTDATA("Summe von Als-Ob Allokation Basis Ist-Temperatur mit KW 04 [kWh]",Auswertung!$A$3)) -> 1993432748
B22: Legende:
B24: Eingabefelder
B25: Auswertungsfelder | C25: Benutzereingaben

Sheet HH-Profile
A1: Schwelle +5% | B1: Schwelle -5% | C1: Schwelle +10% | D1: Schwelle -10% | G1: Lastprofil | I1: A | J1: B | K1: C | L1: D
A2: 0.05 | B2: -0.05 | C2: 0.1 | D2: -0.1 | G2: D13 | H2: 11 | I2: 3.04696946 | J2: -37.18331413 | K2: 5.672784662 | L2: 0.0961930604
A3: 0.05 | B3: -0.05 | C3: 0.1 | D3: -0.1 | G3: D14 | H3: 12 | I3: 3.18501913 | J3: -37.41241549 | K3: 6.172317872 | L3: 0.0761095935
A4: 0.05 | B4: -0.05 | C4: 0.1 | D4: -0.1 | G4: D23 | H4: 13 | I4: 2.387761791 | J4: -34.72136051 | K4: 5.816430401 | L4: 0.1208193679
A5: 0.05 | B5: -0.05 | C5: 0.1 | D5: -0.1 | G5: D24 | H5: 14 | I5: 2.518777519 | J5: -35.03337542 | K5: 6.224063396 | L5: 0.1010781719
A6: 0.05 | B6: -0.05 | C6: 0.1 | D6: -0.1 | G6: KH3 | H6: 15 | I6: 0.4040932149 | J6: -24.43929682 | K6: 6.571817517 | L6: 0.7107710452
A7: 0.05 | B7: -0.05 | C7: 0.1 | D7: -0.1 | G7: M13 | H7: 21 | I7: 3.089072056 | J7: -37.18494968 | K7: 5.713795913 | L7: 0.0815255446
A8: 0.05 | B8: -0.05 | C8: 0.1 | D8: -0.1 | G8: M14 | H8: 22 | I8: 3.227944593 | J8: -37.42147999 | K8: 6.222228817 | L8: 0.06304434
A9: 0.05 | B9: -0.05 | C9: 0.1 | D9: -0.1 | G9: M23 | H9: 23 | I9: 2.442807213 | J9: -34.73214376 | K9: 5.734734725 | L9: 0.0940970067
A10: 0.05 | B10: -0.05 | C10: 0.1 | D10: -0.1 | G10: M24 | H10: 24 | I10: 2.573665212 | J10: -35.01694418 | K10: 6.131813978 | L10: 0.0758603549
A11: 0.05 | B11: -0.05 | C11: 0.1 | D11: -0.1 | G11: H13 | H11: 31 | I11: 3.07222145 | J11: -37.18428443 | K11: 5.697523357 | L11: 0.0904188489
A12: 0.05 | B12: -0.05 | C12: 0.1 | D12: -0.1 | G12: H14 | H12: 32 | I12: 3.210765924 | J12: -37.41788008 | K12: 6.202399971 | L12: 0.0706017008
A13: 0.05 | B13: -0.05 | C13: 0.1 | D13: -0.1 | G13: H23 | H13: 33 | I13: 2.420768371 | J13: -34.72779173 | K13: 5.766825222 | L13: 0.1082275312
G14: H24 | H14: 34 | I14: 2.551688228 | J14: -35.02342194 | K14: 6.168069942 | L14: 0.0887057624
A15: Vorlage Profilauswahl | G15: A13 | H15: 41 | I15: 3.07222145 | J15: -37.18428443 | K15: 5.697523357 | L15: 0.0935214565
A16: Bundesweite Lastprofilparameter | G16: A14 | H16: 42 | I16: 3.210765924 | J16: -37.41788008 | K16: 6.202399971 | L16: 0.0730243081
A17: Bremen | G17: A23 | H17: 43 | I17: 2.420768371 | J17: -34.72779173 | K17: 5.766825222 | L17: 0.111941221
A18: Hamburg | G18: A24 | H18: 44 | I18: 2.551688228 | J18: -35.02342194 | K18: 6.168069942 | L18: 0.0917495876
A19: Saarland | G19: B13 | H19: 51 | I19: 3.055384245 | J19: -37.18363742 | K19: 5.68108246 | L19: 0.1001699849
A20: Berlin | G20: B14 | H20: 52 | I20: 3.193597811 | J20: -37.41424783 | K20: 6.182402147 | L20: 0.0789212714
A21: Hessen | G21: B23 | H21: 53 | I21: 2.398755232 | J21: -34.72348777 | K21: 5.799644639 | L21: 0.1239073203
A22: Niedersachsen | G22: B24 | H22: 54 | I22: 2.529738018 | J22: -35.03001451 | K22: 6.205110889 | L22: 0.1030064403
A23: Nordrhein-Westfalen | G23: F13 | H23: 61 | I23: 3.055384245 | J23: -37.18363742 | K23: 5.68108246 | L23: 0.0950183856
A24: Baden-Württemberg | G24: F14 | H24: 62 | I24: 3.193597811 | J24: -37.41424783 | K24: 6.182402147 | L24: 0.0748624631
A25: Rheinland-Pfalz | G25: F23 | H25: 63 | I25: 2.398755232 | J25: -34.72348777 | K25: 5.799644639 | L25: 0.1175349439
A26: Schleswig-Holstein | G26: F24 | H26: 64 | I26: 2.529738018 | J26: -35.03001451 | K26: 6.205110889 | L26: 0.0977089662
A27: Sachsen | G27: I13 | H27: 71 | I27: 3.055384245 | J27: -37.18363742 | K27: 5.68108246 | L27: 0.1029175044
A28: Brandenburg | G28: I14 | H28: 72 | I28: 3.193597811 | J28: -37.41424783 | K28: 6.182402147 | L28: 0.0810859691
A29: Bayern | G29: I23 | H29: 73 | I29: 2.398755232 | J29: -34.72348777 | K29: 5.799644639 | L29: 0.1273059211
A30: Mecklenburg-Vorpommern | G30: I24 | H30: 74 | I30: 2.529738018 | J30: -35.03001451 | K30: 6.205110889 | L30: 0.1058317598
A31: Sachsen-Anhalt | G31: N13 | H31: 81 | I31: 3.055384245 | J31: -37.18363742 | K31: 5.68108246 | L31: 0.0821966276
A32: Thüringen | G32: N14 | H32: 82 | I32: 3.193597811 | J32: -37.41424783 | K32: 6.182402147 | L32: 0.0647605404
A33: Eigene Parameter | G33: N23 | H33: 83 | I33: 2.398755232 | J33: -34.72348777 | K33: 5.799644639 | L33: 0.1016748069
G34: N24 | H34: 84 | I34: 2.529738018 | J34: -35.03001451 | K34: 6.205110889 | L34: 0.0845241418
G35: W13 | H35: 91 | I35: 3.038554675 | J35: -37.18299084 | K35: 5.664486865 | L35: 0.0955844507
G36: W14 | H36: 92 | I36: 3.176440449 | J36: -37.41058315 | K36: 6.162233598 | L36: 0.0759377204
G37: W23 | H37: 93 | I37: 2.37676835 | J37: -34.71923325 | K37: 5.833216164 | L37: 0.1218181998
G38: W24 | H38: 94 | I38: 2.507817019 | J38: -35.03673633 | K38: 6.243015903 | L38: 0.102519515
G39: P13 | H39: 101 | I39: 3.038554675 | J39: -37.18299084 | K39: 5.664486865 | L39: 0.0933395749
G40: P14 | H40: 102 | I40: 3.176440449 | J40: -37.41058315 | K40: 6.162233598 | L40: 0.0741542634
G41: P23 | H41: 103 | I41: 2.37676835 | J41: -34.71923325 | K41: 5.833216164 | L41: 0.1189572037
G42: P24 | H42: 104 | I42: 2.507817019 | J42: -35.03673633 | K42: 6.243015903 | L42: 0.1001117638
G43: L13 | H43: 111 | I43: 3.038554675 | J43: -37.18299084 | K43: 5.664486865 | L43: 0.1064543759
G44: L14 | H44: 112 | I44: 3.176440449 | J44: -37.41058315 | K44: 6.162233598 | L44: 0.0845734067
G45: L23 | H45: 113 | I45: 2.37676835 | J45: -34.71923325 | K45: 5.833216164 | L45: 0.1356714437
G46: L24 | H46: 114 | I46: 2.507817019 | J46: -35.03673633 | K46: 6.243015903 | L46: 0.1141781002
G47: S13 | H47: 121 | I47: 3.038554675 | J47: -37.18299084 | K47: 5.664486865 | L47: 0.1124800953
G48: S14 | H48: 122 | I48: 3.176440449 | J48: -37.41058315 | K48: 6.162233598 | L48: 0.0893605807
G49: S23 | H49: 123 | I49: 2.37676835 | J49: -34.71923325 | K49: 5.833216164 | L49: 0.1433509594
G50: S24 | H50: 124 | I50: 2.507817019 | J50: -35.03673633 | K50: 6.243015903 | L50: 0.1206410115
G51: R13 | H51: 131 | I51: 3.02173986 | J51: -37.18235995 | K51: 5.647716955 | L51: 0.1152387564
G52: R14 | H52: 132 | I52: 3.159294041 | J52: -37.406886 | K52: 6.14189256 | L52: 0.0922661106
G53: R23 | H53: 133 | I53: 2.354808279 | J53: -34.71502985 | K53: 5.867563927 | L53: 0.1509274266
G54: R24 | H54: 134 | I54: 2.485916058 | J54: -35.04359777 | K54: 6.281821421 | L54: 0.1283904218
G55: G13 | H55: 141 | I55: 3.02173986 | J55: -37.18235995 | K55: 5.647716955 | L55: 0.0956262408
G56: G14 | H56: 142 | I56: 3.159294041 | J56: -37.406886 | K56: 6.14189256 | L56: 0.0765633159
G57: G23 | H57: 143 | I57: 2.354808279 | J57: -34.71502985 | K57: 5.867563927 | L57: 0.1252410464
G58: G24 | H58: 144 | I58: 2.485916058 | J58: -35.04359777 | K58: 6.281821421 | L58: 0.1065396206
G59: V13 | H59: 151 | I59: 3.02173986 | J59: -37.18235995 | K59: 5.647716955 | L59: 0.1151169395
G60: V14 | H60: 152 | I60: 3.159294041 | J60: -37.406886 | K60: 6.14189256 | L60: 0.0921685777
G61: V23 | H61: 153 | I61: 2.354808279 | J61: -34.71502985 | K61: 5.867563927 | L61: 0.1507678839
G62: V24 | H62: 154 | I62: 2.485916058 | J62: -35.04359777 | K62: 6.281821421 | L62: 0.1282547025
G63: C13 | H63: 161 | I63: 3.02173986 | J63: -37.18235995 | K63: 5.647716955 | L63: 0.1182841781
G64: C14 | H64: 162 | I64: 3.159294041 | J64: -37.406886 | K64: 6.14189256 | L64: 0.0947044328
G65: C23 | H65: 163 | I65: 2.354808279 | J65: -34.71502985 | K65: 5.867563927 | L65: 0.154915995
G66: C24 | H66: 164 | I66: 2.485916058 | J66: -35.04359777 | K66: 6.281821421 | L66: 0.1317834033
G67: T13 | H67: 171 | I67: 3.02173986 | J67: -37.18235995 | K67: 5.647716955 | L67: 0.1170660094
G68: T14 | H68: 172 | I68: 3.159294041 | J68: -37.406886 | K68: 6.14189256 | L68: 0.0937291039
G69: T23 | H69: 173 | I69: 2.354808279 | J69: -34.71502985 | K69: 5.867563927 | L69: 0.1533205677
G70: T24 | H70: 174 | I70: 2.485916058 | J70: -35.04359777 | K70: 6.281821421 | L70: 0.1304262107
G71: Z1 | H71: 181
G72: Z2 | H72: 182
G73: Z3 | H73: 183
G74: Z4 | H74: 184

Sheet Berechnungsblatt
A1: Datum | B1: Temperatur | C1: Wochentag | D1: Tages h-Werte und Tagesfaktoren entsprechend dem Wochentag (keine Berücksichtigung des Feiertagskalenders!) | O1: Lastprofil | P1: A | Q1: B | R1: C | S1: D
A2: 2012-12-31 | B2: 4.7 | C2: =IF(A2="","",WEEKDAY(A2,2)) -> 1 | D2: Haushalt
K3: Profilzuweisung Bundesland
D4: HEF3 | E4: =(P4 / (1 + (Q4 / (B2 - 40)) ^R4)) +S4 -> 1.396687323 | H4: MHF3 | I4: =(P6 / (1 + (Q6 / ($B$2 - 40)) ^R6)) +S6 -> 1.372041976 | K4: 1 | L4: 1 | M4: =$K$4*10+L4 -> 11 | O4: EF3 | P4: =VLOOKUP(M4,'HH-Profile'!$H$2:$L$74,2,FALSE) -> 3.04696946 | Q4: =VLOOKUP(M4,'HH-Profile'!$H$2:$L$74,3,FALSE) -> -37.18331413 | R4: =VLOOKUP(M4,'HH-Profile'!$H$2:$L$74,4,FALSE) -> 5.672784662 | S4: =VLOOKUP(M4,'HH-Profile'!$H$2:$L$74,5,FALSE) -> 0.0961930604
D5: HEF4 | E5: =(P5 / (1 + (Q5 / (B2 - 40)) ^R5)) +S5 -> 1.386000678 | H5: MHF4 | I5: =(P7 / (1 + (Q7 / ($B$2 - 40)) ^R7)) +S7 -> 1.390176342 | L5: 2 | M5: =$K$4*10+L5 -> 12 | O5: EF4 | P5: =VLOOKUP(M5,'HH-Profile'!$H$2:$L$74,2,FALSE) -> 3.18501913 | Q5: =VLOOKUP(M5,'HH-Profile'!$H$2:$L$74,3,FALSE) -> -37.41241549 | R5: =VLOOKUP(M5,'HH-Profile'!$H$2:$L$74,4,FALSE) -> 6.172317872 | S5: =VLOOKUP(M5,'HH-Profile'!$H$2:$L$74,5,FALSE) -> 0.0761095935
D6: =IF(A6="","",WEEKDAY(A6,2)) ->  | L6: 3 | M6: =$K$4*10+L6 -> 13 | O6: MF3 | P6: =VLOOKUP(M6,'HH-Profile'!$H$2:$L$74,2,FALSE) -> 2.387761791 | Q6: =VLOOKUP(M6,'HH-Profile'!$H$2:$L$74,3,FALSE) -> -34.72136051 | R6: =VLOOKUP(M6,'HH-Profile'!$H$2:$L$74,4,FALSE) -> 5.816430401 | S6: =VLOOKUP(M6,'HH-Profile'!$H$2:$L$74,5,FALSE) -> 0.1208193679
D7: Kochgas | L7: 4 | M7: =$K$4*10+L7 -> 14 | O7: MF4 | P7: =VLOOKUP(M7,'HH-Profile'!$H$2:$L$74,2,FALSE) -> 2.518777519 | Q7: =VLOOKUP(M7,'HH-Profile'!$H$2:$L$74,3,FALSE) -> -35.03337542 | R7: =VLOOKUP(M7,'HH-Profile'!$H$2:$L$74,4,FALSE) -> 6.224063396 | S7: =VLOOKUP(M7,'HH-Profile'!$H$2:$L$74,5,FALSE) -> 0.1010781719
D8: =IF(A8="","",WEEKDAY(A8,2)) -> 
D9: HK3 | E9: =(P9/ (1 + (Q9 / ($B$2 - 40)) ^R9) +S9) -> 1.081756511 | O9: KH3 | P9: 0.4040932149 | Q9: -24.43929682 | R9: 6.571817517 | S9: 0.7107710452
D11: Bäckereien | L11: Tagesfaktoren
L12: 1 | M12: 1.0848
E13: Montag | F13: Dienstag | G13: Mittwoch | H13: Donnerstag | I13: Freitag | J13: Samstag | K13: Sonntag | L13: 2 | M13: 1.1211
D14: =O14 -> BA1 | E14: =IF($C$2=1,(P14/(1+(Q14/(B$2-40))^R14)+S14)*VLOOKUP($C$2,$L$12:$M$18,2),1) -> 1.164562622 | F14: =IF($C$2=2,(P14/(1+(Q14/(B$2-40))^R14)+S14)*VLOOKUP($C$2,$L$12:$M$18,2),1) -> 1 | G14: =IF($C$2=3,(P14/(1+(Q14/(B$2-40))^R14)+S14)*VLOOKUP($C$2,$L$12:$M$18,2),1) -> 1 | H14: =IF($C$2=4,(P14/(1+(Q14/(B$2-40))^R14)+S14)*VLOOKUP($C$2,$L$12:$M$18,2),1) -> 1 | I14: =IF($C$2=5,(P14/(1+(Q14/(B$2-40))^R14)+S14)*VLOOKUP($C$2,$L$12:$M$18,2),1) -> 1 | J14: =IF($C$2=6,(P14/(1+(Q14/(B$2-40))^R14)+S14)*VLOOKUP($C$2,$L$12:$M$18,2),1) -> 1 | K14: =IF($C$2=7,(P14/(1+(Q14/(B$2-40))^R14)+S14)*VLOOKUP($C$2,$L$12:$M$18,2),1) -> 1 | L14: 3 | M14: 1.0769 | O14: BA1 | P14: 0.15 | Q14: -36 | R14: 2 | S14: 1
D15: =O15 -> BA2 | E15: =IF($C$2=1,(P15/(1+(Q15/(B$2-40))^R15)+S15)*VLOOKUP($C$2,$L$12:$M$18,2),1) -> 1.190296262 | F15: =IF($C$2=2,(P15/(1+(Q15/(B$2-40))^R15)+S15)*VLOOKUP($C$2,$L$12:$M$18,2),1) -> 1 | G15: =IF($C$2=3,(P15/(1+(Q15/(B$2-40))^R15)+S15)*VLOOKUP($C$2,$L$12:$M$18,2),1) -> 1 | H15: =IF($C$2=4,(P15/(1+(Q15/(B$2-40))^R15)+S15)*VLOOKUP($C$2,$L$12:$M$18,2),1) -> 1 | I15: =IF($C$2=5,(P15/(1+(Q15/(B$2-40))^R15)+S15)*VLOOKUP($C$2,$L$12:$M$18,2),1) -> 1 | J15: =IF($C$2=6,(P15/(1+(Q15/(B$2-40))^R15)+S15)*VLOOKUP($C$2,$L$12:$M$18,2),1) -> 1 | K15: =IF($C$2=7,(P15/(1+(Q15/(B$2-40))^R15)+S15)*VLOOKUP($C$2,$L$12:$M$18,2),1) -> 1 | L15: 4 | M15: 1.1353 | O15: BA2 | P15: 0.3879191 | Q15: -35.5 | R15: 4 | S15: 0.9054815
D16: =O16 -> BA3 | E16: =IF($C$2=1,(P16/(1+(Q16/(B$2-40))^R16)+S16)*VLOOKUP($C$2,$L$12:$M$18,2),1) -> 1.256493816 | F16: =IF($C$2=2,(P16/(1+(Q16/(B$2-40))^R16)+S16)*VLOOKUP($C$2,$L$12:$M$18,2),1) -> 1 | G16: =IF($C$2=3,(P16/(1+(Q16/(B$2-40))^R16)+S16)*VLOOKUP($C$2,$L$12:$M$18,2),1) -> 1 | H16: =IF($C$2=4,(P16/(1+(Q16/(B$2-40))^R16)+S16)*VLOOKUP($C$2,$L$12:$M$18,2),1) -> 1 | I16: =IF($C$2=5,(P16/(1+(Q16/(B$2-40))^R16)+S16)*VLOOKUP($C$2,$L$12:$M$18,2),1) -> 1 | J16: =IF($C$2=6,(P16/(1+(Q16/(B$2-40))^R16)+S16)*VLOOKUP($C$2,$L$12:$M$18,2),1) -> 1 | K16: =IF($C$2=7,(P16/(1+(Q16/(B$2-40))^R16)+S16)*VLOOKUP($C$2,$L$12:$M$18,2),1) -> 1 | L16: 5 | M16: 1.1402 | O16: BA3 | P16: 0.6261962 | Q16: -33 | R16: 5.7212303 | S16: 0.7855655
D17: =O17 -> BA4 | E17: =IF($C$2=1,(P17/(1+(Q17/(B$2-40))^R17)+S17)*VLOOKUP($C$2,$L$12:$M$18,2),1) -> 1.308812418 | F17: =IF($C$2=2,(P17/(1+(Q17/(B$2-40))^R17)+S17)*VLOOKUP($C$2,$L$12:$M$18,2),1) -> 1 | G17: =IF($C$2=3,(P17/(1+(Q17/(B$2-40))^R17)+S17)*VLOOKUP($C$2,$L$12:$M$18,2),1) -> 1 | H17: =IF($C$2=4,(P17/(1+(Q17/(B$2-40))^R17)+S17)*VLOOKUP($C$2,$L$12:$M$18,2),1) -> 1 | I17: =IF($C$2=5,(P17/(1+(Q17/(B$2-40))^R17)+S17)*VLOOKUP($C$2,$L$12:$M$18,2),1) -> 1 | J17: =IF($C$2=6,(P17/(1+(Q17/(B$2-40))^R17)+S17)*VLOOKUP($C$2,$L$12:$M$18,2),1) -> 1 | K17: =IF($C$2=7,(P17/(1+(Q17/(B$2-40))^R17)+S17)*VLOOKUP($C$2,$L$12:$M$18,2),1) -> 1 | L17: 6 | M17: 0.4852 | O17: BA4 | P17: 0.9315889 | Q17: -33.35 | R17: 5.7212303 | S17: 0.6656494
D18: =O18 -> BA5 | E18: =IF($C$2=1,(P18/(1+(Q18/(B$2-40))^R18)+S18)*VLOOKUP($C$2,$L$12:$M$18,2),1) -> 1.329569704 | F18: =IF($C$2=2,(P18/(1+(Q18/(B$2-40))^R18)+S18)*VLOOKUP($C$2,$L$12:$M$18,2),1) -> 1 | G18: =IF($C$2=3,(P18/(1+(Q18/(B$2-40))^R18)+S18)*VLOOKUP($C$2,$L$12:$M$18,2),1) -> 1 | H18: =IF($C$2=4,(P18/(1+(Q18/(B$2-40))^R18)+S18)*VLOOKUP($C$2,$L$12:$M$18,2),1) -> 1 | I18: =IF($C$2=5,(P18/(1+(Q18/(B$2-40))^R18)+S18)*VLOOKUP($C$2,$L$12:$M$18,2),1) -> 1 | J18: =IF($C$2=6,(P18/(1+(Q18/(B$2-40))^R18)+S18)*VLOOKUP($C$2,$L$12:$M$18,2),1) -> 1 | K18: =IF($C$2=7,(P18/(1+(Q18/(B$2-40))^R18)+S18)*VLOOKUP($C$2,$L$12:$M$18,2),1) -> 1 | L18: 7 | M18: 0.9565 | O18: BA5 | P18: 1.2779567 | Q18: -34.517392 | R18: 5.7212303 | S18: 0.5457333
D20: Beherbergung | L20: Tagesfaktoren
L21: 1 | M21: 0.9767
E22: Montag | F22: Dienstag | G22: Mittwoch | H22: Donnerstag | I22: Freitag | J22: Samstag | K22: Sonntag | L22: 2 | M22: 1.0389
D23: =O23 -> BH1 | E23: =IF($C$2=1,(P23 / (1 + (Q23 / (B$2- 40)) ^ R23) + S23)*VLOOKUP($C$2,$L$21:$M$27,2),1) -> 1.196764251 | F23: =IF($C$2=2,(P23 / (1 + (Q23 / (B$2- 40)) ^ R23) + S23)*VLOOKUP($C$2,$L$21:$M$27,2),1) -> 1 | G23: =IF($C$2=3,(P23 / (1 + (Q23 / (B$2- 40)) ^ R23) + S23)*VLOOKUP($C$2,$L$21:$M$27,2),1) -> 1 | H23: =IF($C$2=4,(P23 / (1 + (Q23 / (B$2- 40)) ^ R23) + S23)*VLOOKUP($C$2,$L$21:$M$27,2),1) -> 1 | I23: =IF($C$2=5,(P23 / (1 + (Q23 / (B$2- 40)) ^ R23) + S23)*VLOOKUP($C$2,$L$21:$M$27,2),1) -> 1 | J23: =IF($C$2=6,(P23 / (1 + (Q23 / (B$2- 40)) ^ R23) + S23)*VLOOKUP($C$2,$L$21:$M$27,2),1) -> 1 | K23: =IF($C$2=7,(P23 / (1 + (Q23 / (B$2- 40)) ^ R23) + S23)*VLOOKUP($C$2,$L$21:$M$27,2),1) -> 1 | L23: 3 | M23: 1.0028 | O23: BH1 | P23: 1.477178569 | Q23: -35.08344471 | R23: 5.412342465 | S23: 0.4744264076
D24: =O24 -> BH2 | E24: =IF($C$2=1,(P24 / (1 + (Q24 / (B$2- 40)) ^ R24) + S24)*VLOOKUP($C$2,$L$21:$M$27,2),1) -> 1.261161094 | F24: =IF($C$2=2,(P24 / (1 + (Q24 / (B$2- 40)) ^ R24) + S24)*VLOOKUP($C$2,$L$21:$M$27,2),1) -> 1 | G24: =IF($C$2=3,(P24 / (1 + (Q24 / (B$2- 40)) ^ R24) + S24)*VLOOKUP($C$2,$L$21:$M$27,2),1) -> 1 | H24: =IF($C$2=4,(P24 / (1 + (Q24 / (B$2- 40)) ^ R24) + S24)*VLOOKUP($C$2,$L$21:$M$27,2),1) -> 1 | I24: =IF($C$2=5,(P24 / (1 + (Q24 / (B$2- 40)) ^ R24) + S24)*VLOOKUP($C$2,$L$21:$M$27,2),1) -> 1 | J24: =IF($C$2=6,(P24 / (1 + (Q24 / (B$2- 40)) ^ R24) + S24)*VLOOKUP($C$2,$L$21:$M$27,2),1) -> 1 | K24: =IF($C$2=7,(P24 / (1 + (Q24 / (B$2- 40)) ^ R24) + S24)*VLOOKUP($C$2,$L$21:$M$27,2),1) -> 1 | L24: 4 | M24: 1.0162 | O24: BH2 | P24: 1.70052794 | Q24: -35.15 | R24: 6.163273851 | S24: 0.4298260851
D25: =O25 -> BH3 | E25: =IF($C$2=1,(P25 / (1 + (Q25 / (B$2- 40)) ^ R25) + S25)*VLOOKUP($C$2,$L$21:$M$27,2),1) -> 1.307508207 | F25: =IF($C$2=2,(P25 / (1 + (Q25 / (B$2- 40)) ^ R25) + S25)*VLOOKUP($C$2,$L$21:$M$27,2),1) -> 1 | G25: =IF($C$2=3,(P25 / (1 + (Q25 / (B$2- 40)) ^ R25) + S25)*VLOOKUP($C$2,$L$21:$M$27,2),1) -> 1 | H25: =IF($C$2=4,(P25 / (1 + (Q25 / (B$2- 40)) ^ R25) + S25)*VLOOKUP($C$2,$L$21:$M$27,2),1) -> 1 | I25: =IF($C$2=5,(P25 / (1 + (Q25 / (B$2- 40)) ^ R25) + S25)*VLOOKUP($C$2,$L$21:$M$27,2),1) -> 1 | J25: =IF($C$2=6,(P25 / (1 + (Q25 / (B$2- 40)) ^ R25) + S25)*VLOOKUP($C$2,$L$21:$M$27,2),1) -> 1 | K25: =IF($C$2=7,(P25 / (1 + (Q25 / (B$2- 40)) ^ R25) + S25)*VLOOKUP($C$2,$L$21:$M$27,2),1) -> 1 | L25: 5 | M25: 1.0024 | O25: BH3 | P25: 2.010247172 | Q25: -35.25321235 | R25: 6.154440641 | S25: 0.3294740974
D26: =O26 -> BH4 | E26: =IF($C$2=1,(P26 / (1 + (Q26 / (B$2- 40)) ^ R26) + S26)*VLOOKUP($C$2,$L$21:$M$27,2),1) -> 1.36683016 | F26: =IF($C$2=2,(P26 / (1 + (Q26 / (B$2- 40)) ^ R26) + S26)*VLOOKUP($C$2,$L$21:$M$27,2),1) -> 1 | G26: =IF($C$2=3,(P26 / (1 + (Q26 / (B$2- 40)) ^ R26) + S26)*VLOOKUP($C$2,$L$21:$M$27,2),1) -> 1 | H26: =IF($C$2=4,(P26 / (1 + (Q26 / (B$2- 40)) ^ R26) + S26)*VLOOKUP($C$2,$L$21:$M$27,2),1) -> 1 | I26: =IF($C$2=5,(P26 / (1 + (Q26 / (B$2- 40)) ^ R26) + S26)*VLOOKUP($C$2,$L$21:$M$27,2),1) -> 1 | J26: =IF($C$2=6,(P26 / (1 + (Q26 / (B$2- 40)) ^ R26) + S26)*VLOOKUP($C$2,$L$21:$M$27,2),1) -> 1 | K26: =IF($C$2=7,(P26 / (1 + (Q26 / (B$2- 40)) ^ R26) + S26)*VLOOKUP($C$2,$L$21:$M$27,2),1) -> 1 | L26: 6 | M26: 1.0043 | O26: BH4 | P26: 2.459518061 | Q26: -35.25321235 | R26: 6.058700072 | S26: 0.1647370487
D27: =O27 -> BH5 | E27: =IF($C$2=1,(P27 / (1 + (Q27 / (B$2- 40)) ^ R27) + S27)*VLOOKUP($C$2,$L$21:$M$27,2),1) -> 1.397652928 | F27: =IF($C$2=2,(P27 / (1 + (Q27 / (B$2- 40)) ^ R27) + S27)*VLOOKUP($C$2,$L$21:$M$27,2),1) -> 1 | G27: =IF($C$2=3,(P27 / (1 + (Q27 / (B$2- 40)) ^ R27) + S27)*VLOOKUP($C$2,$L$21:$M$27,2),1) -> 1 | H27: =IF($C$2=4,(P27 / (1 + (Q27 / (B$2- 40)) ^ R27) + S27)*VLOOKUP($C$2,$L$21:$M$27,2),1) -> 1 | I27: =IF($C$2=5,(P27 / (1 + (Q27 / (B$2- 40)) ^ R27) + S27)*VLOOKUP($C$2,$L$21:$M$27,2),1) -> 1 | J27: =IF($C$2=6,(P27 / (1 + (Q27 / (B$2- 40)) ^ R27) + S27)*VLOOKUP($C$2,$L$21:$M$27,2),1) -> 1 | K27: =IF($C$2=7,(P27 / (1 + (Q27 / (B$2- 40)) ^ R27) + S27)*VLOOKUP($C$2,$L$21:$M$27,2),1) -> 1 | L27: 7 | M27: 0.9587 | O27: BH5 | P27: 2.98 | Q27: -35.8 | R27: 5.634058062 | S27: 0
D28: =IF(A28="","",WEEKDAY(A28,2)) -> 
D29: Gartenbau | L29: Tagesfaktoren
D30: =IF(A30="","",WEEKDAY(A30,2)) ->  | L30: 1 | M30: 0.9897
E31: Montag | F31: Dienstag | G31: Mittwoch | H31: Donnerstag | I31: Freitag | J31: Samstag | K31: Sonntag | L31: 2 | M31: 0.9627
D32: =O32 -> GB1 | E32: =IF($C$2=1,(P32 / (1 + (Q32 / (B$2- 40)) ^ R32) + S32)*VLOOKUP($C$2,$L$30:$M$36,2),1) -> 1.309014092 | F32: =IF($C$2=2,(P32 / (1 + (Q32 / (B$2- 40)) ^ R32) + S32)*VLOOKUP($C$2,$L$30:$M$36,2),1) -> 1 | G32: =IF($C$2=3,(P32 / (1 + (Q32 / (B$2- 40)) ^ R32) + S32)*VLOOKUP($C$2,$L$30:$M$36,2),1) -> 1 | H32: =IF($C$2=4,(P32 / (1 + (Q32 / (B$2- 40)) ^ R32) + S32)*VLOOKUP($C$2,$L$30:$M$36,2),1) -> 1 | I32: =IF($C$2=5,(P32 / (1 + (Q32 / (B$2- 40)) ^ R32) + S32)*VLOOKUP($C$2,$L$30:$M$36,2),1) -> 1 | J32: =IF($C$2=6,(P32 / (1 + (Q32 / (B$2- 40)) ^ R32) + S32)*VLOOKUP($C$2,$L$30:$M$36,2),1) -> 1 | K32: =IF($C$2=7,(P32 / (1 + (Q32 / (B$2- 40)) ^ R32) + S32)*VLOOKUP($C$2,$L$30:$M$36,2),1) -> 1 | L32: 3 | M32: 1.0507 | O32: GB1 | P32: 3.176194476 | Q32: -40.83666086 | R32: 3.678589174 | S32: 0.1502155761
D33: =O33 -> GB2 | E33: =IF($C$2=1,(P33 / (1 + (Q33 / (B$2- 40)) ^ R33) + S33)*VLOOKUP($C$2,$L$30:$M$36,2),1) -> 1.364807118 | F33: =IF($C$2=2,(P33 / (1 + (Q33 / (B$2- 40)) ^ R33) + S33)*VLOOKUP($C$2,$L$30:$M$36,2),1) -> 1 | G33: =IF($C$2=3,(P33 / (1 + (Q33 / (B$2- 40)) ^ R33) + S33)*VLOOKUP($C$2,$L$30:$M$36,2),1) -> 1 | H33: =IF($C$2=4,(P33 / (1 + (Q33 / (B$2- 40)) ^ R33) + S33)*VLOOKUP($C$2,$L$30:$M$36,2),1) -> 1 | I33: =IF($C$2=5,(P33 / (1 + (Q33 / (B$2- 40)) ^ R33) + S33)*VLOOKUP($C$2,$L$30:$M$36,2),1) -> 1 | J33: =IF($C$2=6,(P33 / (1 + (Q33 / (B$2- 40)) ^ R33) + S33)*VLOOKUP($C$2,$L$30:$M$36,2),1) -> 1 | K33: =IF($C$2=7,(P33 / (1 + (Q33 / (B$2- 40)) ^ R33) + S33)*VLOOKUP($C$2,$L$30:$M$36,2),1) -> 1 | L33: 4 | M33: 1.0552 | O33: GB2 | P33: 3.390464506 | Q33: -39.28752164 | R33: 4.490574046 | S33: 0.08347831668
D34: =O34 -> GB3 | E34: =IF($C$2=1,(P34 / (1 + (Q34 / (B$2- 40)) ^ R34) + S34)*VLOOKUP($C$2,$L$30:$M$36,2),1) -> 1.392111862 | F34: =IF($C$2=2,(P34 / (1 + (Q34 / (B$2- 40)) ^ R34) + S34)*VLOOKUP($C$2,$L$30:$M$36,2),1) -> 1 | G34: =IF($C$2=3,(P34 / (1 + (Q34 / (B$2- 40)) ^ R34) + S34)*VLOOKUP($C$2,$L$30:$M$36,2),1) -> 1 | H34: =IF($C$2=4,(P34 / (1 + (Q34 / (B$2- 40)) ^ R34) + S34)*VLOOKUP($C$2,$L$30:$M$36,2),1) -> 1 | I34: =IF($C$2=5,(P34 / (1 + (Q34 / (B$2- 40)) ^ R34) + S34)*VLOOKUP($C$2,$L$30:$M$36,2),1) -> 1 | J34: =IF($C$2=6,(P34 / (1 + (Q34 / (B$2- 40)) ^ R34) + S34)*VLOOKUP($C$2,$L$30:$M$36,2),1) -> 1 | K34: =IF($C$2=7,(P34 / (1 + (Q34 / (B$2- 40)) ^ R34) + S34)*VLOOKUP($C$2,$L$30:$M$36,2),1) -> 1 | L34: 5 | M34: 1.0297 | O34: GB3 | P34: 3.257274213 | Q34: -37.5 | R34: 6.346214795 | S34: 0.08662264954
D35: =O35 -> GB4 | E35: =IF($C$2=1,(P35 / (1 + (Q35 / (B$2- 40)) ^ R35) + S35)*VLOOKUP($C$2,$L$30:$M$36,2),1) -> 1.405861949 | F35: =IF($C$2=2,(P35 / (1 + (Q35 / (B$2- 40)) ^ R35) + S35)*VLOOKUP($C$2,$L$30:$M$36,2),1) -> 1 | G35: =IF($C$2=3,(P35 / (1 + (Q35 / (B$2- 40)) ^ R35) + S35)*VLOOKUP($C$2,$L$30:$M$36,2),1) -> 1 | H35: =IF($C$2=4,(P35 / (1 + (Q35 / (B$2- 40)) ^ R35) + S35)*VLOOKUP($C$2,$L$30:$M$36,2),1) -> 1 | I35: =IF($C$2=5,(P35 / (1 + (Q35 / (B$2- 40)) ^ R35) + S35)*VLOOKUP($C$2,$L$30:$M$36,2),1) -> 1 | J35: =IF($C$2=6,(P35 / (1 + (Q35 / (B$2- 40)) ^ R35) + S35)*VLOOKUP($C$2,$L$30:$M$36,2),1) -> 1 | K35: =IF($C$2=7,(P35 / (1 + (Q35 / (B$2- 40)) ^ R35) + S35)*VLOOKUP($C$2,$L$30:$M$36,2),1) -> 1 | L35: 6 | M35: 0.9767 | O35: GB4 | P35: 3.601773562 | Q35: -37.88253684 | R35: 6.983607029 | S35: 0.05482618627
D36: =O36 -> GB5 | E36: =IF($C$2=1,(P36 / (1 + (Q36 / (B$2- 40)) ^ R36) + S36)*VLOOKUP($C$2,$L$30:$M$36,2),1) -> 1.410481672 | F36: =IF($C$2=2,(P36 / (1 + (Q36 / (B$2- 40)) ^ R36) + S36)*VLOOKUP($C$2,$L$30:$M$36,2),1) -> 1 | G36: =IF($C$2=3,(P36 / (1 + (Q36 / (B$2- 40)) ^ R36) + S36)*VLOOKUP($C$2,$L$30:$M$36,2),1) -> 1 | H36: =IF($C$2=4,(P36 / (1 + (Q36 / (B$2- 40)) ^ R36) + S36)*VLOOKUP($C$2,$L$30:$M$36,2),1) -> 1 | I36: =IF($C$2=5,(P36 / (1 + (Q36 / (B$2- 40)) ^ R36) + S36)*VLOOKUP($C$2,$L$30:$M$36,2),1) -> 1 | J36: =IF($C$2=6,(P36 / (1 + (Q36 / (B$2- 40)) ^ R36) + S36)*VLOOKUP($C$2,$L$30:$M$36,2),1) -> 1 | K36: =IF($C$2=7,(P36 / (1 + (Q36 / (B$2- 40)) ^ R36) + S36)*VLOOKUP($C$2,$L$30:$M$36,2),1) -> 1 | L36: 7 | M36: 0.9353 | O36: GB5 | P36: 3.932053248 | Q36: -38.14332482 | R36: 7.618587098 | S36: 0.023029723
D38: Gebietskörpersch., Kreditinst. u. Versich., Org. o. Erwerbszw. & öff. Einr. | L38: Tagesfaktoren
D39: =IF(A39="","",WEEKDAY(A39,2)) ->  | L39: 1 | M39: 1.0354
E40: Montag | F40: Dienstag | G40: Mittwoch | H40: Donnerstag | I40: Freitag | J40: Samstag | K40: Sonntag | L40: 2 | M40: 1.0523
D41: =O41 -> KO1 | E41: =IF($C$2=1,(P41 / (1 + (Q41 / (B$2- 40)) ^ R41) + S41)*VLOOKUP($C$2,$L$39:$M$45,2),1) -> 1.324382392 | F41: =IF($C$2=2,(P41 / (1 + (Q41 / (B$2- 40)) ^ R41) + S41)*VLOOKUP($C$2,$L$39:$M$45,2),1) -> 1 | G41: =IF($C$2=3,(P41 / (1 + (Q41 / (B$2- 40)) ^ R41) + S41)*VLOOKUP($C$2,$L$39:$M$45,2),1) -> 1 | H41: =IF($C$2=4,(P41 / (1 + (Q41 / (B$2- 40)) ^ R41) + S41)*VLOOKUP($C$2,$L$39:$M$45,2),1) -> 1 | I41: =IF($C$2=5,(P41 / (1 + (Q41 / (B$2- 40)) ^ R41) + S41)*VLOOKUP($C$2,$L$39:$M$45,2),1) -> 1 | J41: =IF($C$2=6,(P41 / (1 + (Q41 / (B$2- 40)) ^ R41) + S41)*VLOOKUP($C$2,$L$39:$M$45,2),1) -> 1 | K41: =IF($C$2=7,(P41 / (1 + (Q41 / (B$2- 40)) ^ R41) + S41)*VLOOKUP($C$2,$L$39:$M$45,2),1) -> 1 | L41: 3 | M41: 1.0449 | O41: KO1 | P41: 1.4159571 | Q41: -30.8425192 | R41: 6.409122891 | S41: 0.2826401117
D42: =O42 -> KO2 | E42: =IF($C$2=1,(P42 / (1 + (Q42 / (B$2- 40)) ^ R42) + S42)*VLOOKUP($C$2,$L$39:$M$45,2),1) -> 1.483135576 | F42: =IF($C$2=2,(P42 / (1 + (Q42 / (B$2- 40)) ^ R42) + S42)*VLOOKUP($C$2,$L$39:$M$45,2),1) -> 1 | G42: =IF($C$2=3,(P42 / (1 + (Q42 / (B$2- 40)) ^ R42) + S42)*VLOOKUP($C$2,$L$39:$M$45,2),1) -> 1 | H42: =IF($C$2=4,(P42 / (1 + (Q42 / (B$2- 40)) ^ R42) + S42)*VLOOKUP($C$2,$L$39:$M$45,2),1) -> 1 | I42: =IF($C$2=5,(P42 / (1 + (Q42 / (B$2- 40)) ^ R42) + S42)*VLOOKUP($C$2,$L$39:$M$45,2),1) -> 1 | J42: =IF($C$2=6,(P42 / (1 + (Q42 / (B$2- 40)) ^ R42) + S42)*VLOOKUP($C$2,$L$39:$M$45,2),1) -> 1 | K42: =IF($C$2=7,(P42 / (1 + (Q42 / (B$2- 40)) ^ R42) + S42)*VLOOKUP($C$2,$L$39:$M$45,2),1) -> 1 | L42: 4 | M42: 1.0494 | O42: KO2 | P42: 2.0660501 | Q42: -33.601652 | R42: 6.675361 | S42: 0.2309125
D43: =O43 -> KO3 | E43: =IF($C$2=1,(P43 / (1 + (Q43 / (B$2- 40)) ^ R43) + S43)*VLOOKUP($C$2,$L$39:$M$45,2),1) -> 1.576179965 | F43: =IF($C$2=2,(P43 / (1 + (Q43 / (B$2- 40)) ^ R43) + S43)*VLOOKUP($C$2,$L$39:$M$45,2),1) -> 1 | G43: =IF($C$2=3,(P43 / (1 + (Q43 / (B$2- 40)) ^ R43) + S43)*VLOOKUP($C$2,$L$39:$M$45,2),1) -> 1 | H43: =IF($C$2=4,(P43 / (1 + (Q43 / (B$2- 40)) ^ R43) + S43)*VLOOKUP($C$2,$L$39:$M$45,2),1) -> 1 | I43: =IF($C$2=5,(P43 / (1 + (Q43 / (B$2- 40)) ^ R43) + S43)*VLOOKUP($C$2,$L$39:$M$45,2),1) -> 1 | J43: =IF($C$2=6,(P43 / (1 + (Q43 / (B$2- 40)) ^ R43) + S43)*VLOOKUP($C$2,$L$39:$M$45,2),1) -> 1 | K43: =IF($C$2=7,(P43 / (1 + (Q43 / (B$2- 40)) ^ R43) + S43)*VLOOKUP($C$2,$L$39:$M$45,2),1) -> 1 | L43: 5 | M43: 0.9885 | O43: KO3 | P43: 2.7172288 | Q43: -35.1412563 | R43: 7.1303395 | S43: 0.1418472
D44: =O44 -> KO4 | E44: =IF($C$2=1,(P44 / (1 + (Q44 / (B$2- 40)) ^ R44) + S44)*VLOOKUP($C$2,$L$39:$M$45,2),1) -> 1.605315252 | F44: =IF($C$2=2,(P44 / (1 + (Q44 / (B$2- 40)) ^ R44) + S44)*VLOOKUP($C$2,$L$39:$M$45,2),1) -> 1 | G44: =IF($C$2=3,(P44 / (1 + (Q44 / (B$2- 40)) ^ R44) + S44)*VLOOKUP($C$2,$L$39:$M$45,2),1) -> 1 | H44: =IF($C$2=4,(P44 / (1 + (Q44 / (B$2- 40)) ^ R44) + S44)*VLOOKUP($C$2,$L$39:$M$45,2),1) -> 1 | I44: =IF($C$2=5,(P44 / (1 + (Q44 / (B$2- 40)) ^ R44) + S44)*VLOOKUP($C$2,$L$39:$M$45,2),1) -> 1 | J44: =IF($C$2=6,(P44 / (1 + (Q44 / (B$2- 40)) ^ R44) + S44)*VLOOKUP($C$2,$L$39:$M$45,2),1) -> 1 | K44: =IF($C$2=7,(P44 / (1 + (Q44 / (B$2- 40)) ^ R44) + S44)*VLOOKUP($C$2,$L$39:$M$45,2),1) -> 1 | L44: 6 | M44: 0.886 | O44: KO4 | P44: 3.4428943 | Q44: -36.6590504 | R44: 7.6083226 | S44: 0.074685
D45: =O45 -> KO5 | E45: =IF($C$2=1,(P45 / (1 + (Q45 / (B$2- 40)) ^ R45) + S45)*VLOOKUP($C$2,$L$39:$M$45,2),1) -> 1.5159645 | F45: =IF($C$2=2,(P45 / (1 + (Q45 / (B$2- 40)) ^ R45) + S45)*VLOOKUP($C$2,$L$39:$M$45,2),1) -> 1 | G45: =IF($C$2=3,(P45 / (1 + (Q45 / (B$2- 40)) ^ R45) + S45)*VLOOKUP($C$2,$L$39:$M$45,2),1) -> 1 | H45: =IF($C$2=4,(P45 / (1 + (Q45 / (B$2- 40)) ^ R45) + S45)*VLOOKUP($C$2,$L$39:$M$45,2),1) -> 1 | I45: =IF($C$2=5,(P45 / (1 + (Q45 / (B$2- 40)) ^ R45) + S45)*VLOOKUP($C$2,$L$39:$M$45,2),1) -> 1 | J45: =IF($C$2=6,(P45 / (1 + (Q45 / (B$2- 40)) ^ R45) + S45)*VLOOKUP($C$2,$L$39:$M$45,2),1) -> 1 | K45: =IF($C$2=7,(P45 / (1 + (Q45 / (B$2- 40)) ^ R45) + S45)*VLOOKUP($C$2,$L$39:$M$45,2),1) -> 1 | L45: 7 | M45: 0.9435 | O45: KO5 | P45: 4.3624833 | Q45: -38.6634022 | R45: 7.5974644 | S45: 0.0083264
D47: Einzelhandel, Großhandel | L47: Tagesfaktoren
D48: =IF(A48="","",WEEKDAY(A48,2)) ->  | L48: 1 | M48: 1.0358
E49: Montag | F49: Dienstag | G49: Mittwoch | H49: Donnerstag | I49: Freitag | J49: Samstag | K49: Sonntag | L49: 2 | M49: 1.0232
D50: =O50 -> HA1 | E50: =IF($C$2=1,(P50 / (1 + (Q50 / (B$2- 40)) ^ R50) + S50)*VLOOKUP($C$2,$L$48:$M$54,2),1) -> 1.441294219 | F50: =IF($C$2=2,(P50 / (1 + (Q50 / (B$2- 40)) ^ R50) + S50)*VLOOKUP($C$2,$L$48:$M$54,2),1) -> 1 | G50: =IF($C$2=3,(P50 / (1 + (Q50 / (B$2- 40)) ^ R50) + S50)*VLOOKUP($C$2,$L$48:$M$54,2),1) -> 1 | H50: =IF($C$2=4,(P50 / (1 + (Q50 / (B$2- 40)) ^ R50) + S50)*VLOOKUP($C$2,$L$48:$M$54,2),1) -> 1 | I50: =IF($C$2=5,(P50 / (1 + (Q50 / (B$2- 40)) ^ R50) + S50)*VLOOKUP($C$2,$L$48:$M$54,2),1) -> 1 | J50: =IF($C$2=6,(P50 / (1 + (Q50 / (B$2- 40)) ^ R50) + S50)*VLOOKUP($C$2,$L$48:$M$54,2),1) -> 1 | K50: =IF($C$2=7,(P50 / (1 + (Q50 / (B$2- 40)) ^ R50) + S50)*VLOOKUP($C$2,$L$48:$M$54,2),1) -> 1 | L50: 3 | M50: 1.0252 | O50: HA1 | P50: 2.3742828 | Q50: -34.7595501 | R50: 5.9987037 | S50: 0.1494411
D51: =O51 -> HA2 | E51: =IF($C$2=1,(P51 / (1 + (Q51 / (B$2- 40)) ^ R51) + S51)*VLOOKUP($C$2,$L$48:$M$54,2),1) -> 1.5508947 | F51: =IF($C$2=2,(P51 / (1 + (Q51 / (B$2- 40)) ^ R51) + S51)*VLOOKUP($C$2,$L$48:$M$54,2),1) -> 1 | G51: =IF($C$2=3,(P51 / (1 + (Q51 / (B$2- 40)) ^ R51) + S51)*VLOOKUP($C$2,$L$48:$M$54,2),1) -> 1 | H51: =IF($C$2=4,(P51 / (1 + (Q51 / (B$2- 40)) ^ R51) + S51)*VLOOKUP($C$2,$L$48:$M$54,2),1) -> 1 | I51: =IF($C$2=5,(P51 / (1 + (Q51 / (B$2- 40)) ^ R51) + S51)*VLOOKUP($C$2,$L$48:$M$54,2),1) -> 1 | J51: =IF($C$2=6,(P51 / (1 + (Q51 / (B$2- 40)) ^ R51) + S51)*VLOOKUP($C$2,$L$48:$M$54,2),1) -> 1 | K51: =IF($C$2=7,(P51 / (1 + (Q51 / (B$2- 40)) ^ R51) + S51)*VLOOKUP($C$2,$L$48:$M$54,2),1) -> 1 | L51: 4 | M51: 1.0295 | O51: HA2 | P51: 2.8544749 | Q51: -35.6294231 | R51: 7.0058264 | S51: 0.1164772
D52: =O52 -> HA3 | E52: =IF($C$2=1,(P52 / (1 + (Q52 / (B$2- 40)) ^ R52) + S52)*VLOOKUP($C$2,$L$48:$M$54,2),1) -> 1.595109778 | F52: =IF($C$2=2,(P52 / (1 + (Q52 / (B$2- 40)) ^ R52) + S52)*VLOOKUP($C$2,$L$48:$M$54,2),1) -> 1 | G52: =IF($C$2=3,(P52 / (1 + (Q52 / (B$2- 40)) ^ R52) + S52)*VLOOKUP($C$2,$L$48:$M$54,2),1) -> 1 | H52: =IF($C$2=4,(P52 / (1 + (Q52 / (B$2- 40)) ^ R52) + S52)*VLOOKUP($C$2,$L$48:$M$54,2),1) -> 1 | I52: =IF($C$2=5,(P52 / (1 + (Q52 / (B$2- 40)) ^ R52) + S52)*VLOOKUP($C$2,$L$48:$M$54,2),1) -> 1 | J52: =IF($C$2=6,(P52 / (1 + (Q52 / (B$2- 40)) ^ R52) + S52)*VLOOKUP($C$2,$L$48:$M$54,2),1) -> 1 | K52: =IF($C$2=7,(P52 / (1 + (Q52 / (B$2- 40)) ^ R52) + S52)*VLOOKUP($C$2,$L$48:$M$54,2),1) -> 1 | L52: 5 | M52: 1.0253 | O52: HA3 | P52: 3.5811214 | Q52: -36.9650065 | R52: 7.2256947 | S52: 0.0448416
D53: =O53 -> HA4 | E53: =IF($C$2=1,(P53 / (1 + (Q53 / (B$2- 40)) ^ R53) + S53)*VLOOKUP($C$2,$L$48:$M$54,2),1) -> 1.558407745 | F53: =IF($C$2=2,(P53 / (1 + (Q53 / (B$2- 40)) ^ R53) + S53)*VLOOKUP($C$2,$L$48:$M$54,2),1) -> 1 | G53: =IF($C$2=3,(P53 / (1 + (Q53 / (B$2- 40)) ^ R53) + S53)*VLOOKUP($C$2,$L$48:$M$54,2),1) -> 1 | H53: =IF($C$2=4,(P53 / (1 + (Q53 / (B$2- 40)) ^ R53) + S53)*VLOOKUP($C$2,$L$48:$M$54,2),1) -> 1 | I53: =IF($C$2=5,(P53 / (1 + (Q53 / (B$2- 40)) ^ R53) + S53)*VLOOKUP($C$2,$L$48:$M$54,2),1) -> 1 | J53: =IF($C$2=6,(P53 / (1 + (Q53 / (B$2- 40)) ^ R53) + S53)*VLOOKUP($C$2,$L$48:$M$54,2),1) -> 1 | K53: =IF($C$2=7,(P53 / (1 + (Q53 / (B$2- 40)) ^ R53) + S53)*VLOOKUP($C$2,$L$48:$M$54,2),1) -> 1 | L53: 6 | M53: 0.9675 | O53: HA4 | P53: 4.0196902 | Q53: -37.8282037 | R53: 8.1593369 | S53: 0.0472845
D54: =O54 -> HA5 | E54: =IF($C$2=1,(P54 / (1 + (Q54 / (B$2- 40)) ^ R54) + S54)*VLOOKUP($C$2,$L$48:$M$54,2),1) -> 1.433159237 | F54: =IF($C$2=2,(P54 / (1 + (Q54 / (B$2- 40)) ^ R54) + S54)*VLOOKUP($C$2,$L$48:$M$54,2),1) -> 1 | G54: =IF($C$2=3,(P54 / (1 + (Q54 / (B$2- 40)) ^ R54) + S54)*VLOOKUP($C$2,$L$48:$M$54,2),1) -> 1 | H54: =IF($C$2=4,(P54 / (1 + (Q54 / (B$2- 40)) ^ R54) + S54)*VLOOKUP($C$2,$L$48:$M$54,2),1) -> 1 | I54: =IF($C$2=5,(P54 / (1 + (Q54 / (B$2- 40)) ^ R54) + S54)*VLOOKUP($C$2,$L$48:$M$54,2),1) -> 1 | J54: =IF($C$2=6,(P54 / (1 + (Q54 / (B$2- 40)) ^ R54) + S54)*VLOOKUP($C$2,$L$48:$M$54,2),1) -> 1 | K54: =IF($C$2=7,(P54 / (1 + (Q54 / (B$2- 40)) ^ R54) + S54)*VLOOKUP($C$2,$L$48:$M$54,2),1) -> 1 | L54: 7 | M54: 0.8935 | O54: HA5 | P54: 4.8252376 | Q54: -39.2802564 | R54: 8.6240217 | S54: 0.0099945
D56: Metall, Kfz | L56: Tagesfaktoren
D57: =IF(A57="","",WEEKDAY(A57,2)) ->  | L57: 1 | M57: 1.0699
E58: Montag | F58: Dienstag | G58: Mittwoch | H58: Donnerstag | I58: Freitag | J58: Samstag | K58: Sonntag | L58: 2 | M58: 1.0365
D59: =O59 -> MK1 | E59: =IF($C$2=1,(P59 / (1 + (Q59 / (B$2- 40)) ^ R59) + S59)*VLOOKUP($C$2,$L$57:$M$63,2),1) -> 1.530682962 | F59: =IF($C$2=2,(P59 / (1 + (Q59 / (B$2- 40)) ^ R59) + S59)*VLOOKUP($C$2,$L$57:$M$63,2),1) -> 1 | G59: =IF($C$2=3,(P59 / (1 + (Q59 / (B$2- 40)) ^ R59) + S59)*VLOOKUP($C$2,$L$57:$M$63,2),1) -> 1 | H59: =IF($C$2=4,(P59 / (1 + (Q59 / (B$2- 40)) ^ R59) + S59)*VLOOKUP($C$2,$L$57:$M$63,2),1) -> 1 | I59: =IF($C$2=5,(P59 / (1 + (Q59 / (B$2- 40)) ^ R59) + S59)*VLOOKUP($C$2,$L$57:$M$63,2),1) -> 1 | J59: =IF($C$2=6,(P59 / (1 + (Q59 / (B$2- 40)) ^ R59) + S59)*VLOOKUP($C$2,$L$57:$M$63,2),1) -> 1 | K59: =IF($C$2=7,(P59 / (1 + (Q59 / (B$2- 40)) ^ R59) + S59)*VLOOKUP($C$2,$L$57:$M$63,2),1) -> 1 | L59: 3 | M59: 0.9933 | O59: MK1 | P59: 1.8644534 | Q59: -30.7071632 | R59: 6.4626937 | S59: 0.1048339
D60: =O60 -> MK2 | E60: =IF($C$2=1,(P60 / (1 + (Q60 / (B$2- 40)) ^ R60) + S60)*VLOOKUP($C$2,$L$57:$M$63,2),1) -> 1.554504447 | F60: =IF($C$2=2,(P60 / (1 + (Q60 / (B$2- 40)) ^ R60) + S60)*VLOOKUP($C$2,$L$57:$M$63,2),1) -> 1 | G60: =IF($C$2=3,(P60 / (1 + (Q60 / (B$2- 40)) ^ R60) + S60)*VLOOKUP($C$2,$L$57:$M$63,2),1) -> 1 | H60: =IF($C$2=4,(P60 / (1 + (Q60 / (B$2- 40)) ^ R60) + S60)*VLOOKUP($C$2,$L$57:$M$63,2),1) -> 1 | I60: =IF($C$2=5,(P60 / (1 + (Q60 / (B$2- 40)) ^ R60) + S60)*VLOOKUP($C$2,$L$57:$M$63,2),1) -> 1 | J60: =IF($C$2=6,(P60 / (1 + (Q60 / (B$2- 40)) ^ R60) + S60)*VLOOKUP($C$2,$L$57:$M$63,2),1) -> 1 | K60: =IF($C$2=7,(P60 / (1 + (Q60 / (B$2- 40)) ^ R60) + S60)*VLOOKUP($C$2,$L$57:$M$63,2),1) -> 1 | L60: 4 | M60: 0.9948 | O60: MK2 | P60: 2.2908184 | Q60: -33.1476867 | R60: 6.3714765 | S60: 0.0810023
D61: =O61 -> MK3 | E61: =IF($C$2=1,(P61 / (1 + (Q61 / (B$2- 40)) ^ R61) + S61)*VLOOKUP($C$2,$L$57:$M$63,2),1) -> 1.608135665 | F61: =IF($C$2=2,(P61 / (1 + (Q61 / (B$2- 40)) ^ R61) + S61)*VLOOKUP($C$2,$L$57:$M$63,2),1) -> 1 | G61: =IF($C$2=3,(P61 / (1 + (Q61 / (B$2- 40)) ^ R61) + S61)*VLOOKUP($C$2,$L$57:$M$63,2),1) -> 1 | H61: =IF($C$2=4,(P61 / (1 + (Q61 / (B$2- 40)) ^ R61) + S61)*VLOOKUP($C$2,$L$57:$M$63,2),1) -> 1 | I61: =IF($C$2=5,(P61 / (1 + (Q61 / (B$2- 40)) ^ R61) + S61)*VLOOKUP($C$2,$L$57:$M$63,2),1) -> 1 | J61: =IF($C$2=6,(P61 / (1 + (Q61 / (B$2- 40)) ^ R61) + S61)*VLOOKUP($C$2,$L$57:$M$63,2),1) -> 1 | K61: =IF($C$2=7,(P61 / (1 + (Q61 / (B$2- 40)) ^ R61) + S61)*VLOOKUP($C$2,$L$57:$M$63,2),1) -> 1 | L61: 5 | M61: 1.0659 | O61: MK3 | P61: 2.7882424 | Q61: -34.880613 | R61: 6.5951899 | S61: 0.0540329
D62: =O62 -> MK4 | E62: =IF($C$2=1,(P62 / (1 + (Q62 / (B$2- 40)) ^ R62) + S62)*VLOOKUP($C$2,$L$57:$M$63,2),1) -> 1.603981758 | F62: =IF($C$2=2,(P62 / (1 + (Q62 / (B$2- 40)) ^ R62) + S62)*VLOOKUP($C$2,$L$57:$M$63,2),1) -> 1 | G62: =IF($C$2=3,(P62 / (1 + (Q62 / (B$2- 40)) ^ R62) + S62)*VLOOKUP($C$2,$L$57:$M$63,2),1) -> 1 | H62: =IF($C$2=4,(P62 / (1 + (Q62 / (B$2- 40)) ^ R62) + S62)*VLOOKUP($C$2,$L$57:$M$63,2),1) -> 1 | I62: =IF($C$2=5,(P62 / (1 + (Q62 / (B$2- 40)) ^ R62) + S62)*VLOOKUP($C$2,$L$57:$M$63,2),1) -> 1 | J62: =IF($C$2=6,(P62 / (1 + (Q62 / (B$2- 40)) ^ R62) + S62)*VLOOKUP($C$2,$L$57:$M$63,2),1) -> 1 | K62: =IF($C$2=7,(P62 / (1 + (Q62 / (B$2- 40)) ^ R62) + S62)*VLOOKUP($C$2,$L$57:$M$63,2),1) -> 1 | L62: 6 | M62: 0.9362 | O62: MK4 | P62: 3.1177248 | Q62: -35.8715062 | R62: 7.5186829 | S62: 0.0343301
D63: =O63 -> MK5 | E63: =IF($C$2=1,(P63 / (1 + (Q63 / (B$2- 40)) ^ R63) + S63)*VLOOKUP($C$2,$L$57:$M$63,2),1) -> 1.550324506 | F63: =IF($C$2=2,(P63 / (1 + (Q63 / (B$2- 40)) ^ R63) + S63)*VLOOKUP($C$2,$L$57:$M$63,2),1) -> 1 | G63: =IF($C$2=3,(P63 / (1 + (Q63 / (B$2- 40)) ^ R63) + S63)*VLOOKUP($C$2,$L$57:$M$63,2),1) -> 1 | H63: =IF($C$2=4,(P63 / (1 + (Q63 / (B$2- 40)) ^ R63) + S63)*VLOOKUP($C$2,$L$57:$M$63,2),1) -> 1 | I63: =IF($C$2=5,(P63 / (1 + (Q63 / (B$2- 40)) ^ R63) + S63)*VLOOKUP($C$2,$L$57:$M$63,2),1) -> 1 | J63: =IF($C$2=6,(P63 / (1 + (Q63 / (B$2- 40)) ^ R63) + S63)*VLOOKUP($C$2,$L$57:$M$63,2),1) -> 1 | K63: =IF($C$2=7,(P63 / (1 + (Q63 / (B$2- 40)) ^ R63) + S63)*VLOOKUP($C$2,$L$57:$M$63,2),1) -> 1 | L63: 7 | M63: 0.9034 | O63: MK5 | P63: 3.5862355 | Q63: -37.0802993 | R63: 8.2420572 | S63: 0.0146008
D65: sonst. betr. Dienstleistungen | L65: Tagesfaktoren
D66: =IF(A66="","",WEEKDAY(A66,2)) ->  | L66: 1 | M66: 1.1052
E67: Montag | F67: Dienstag | G67: Mittwoch | H67: Donnerstag | I67: Freitag | J67: Samstag | K67: Sonntag | L67: 2 | M67: 1.0857
D68: =O68 -> BD1 | E68: =IF($C$2=1,(P68 / (1 + (Q68 / (B$2- 40)) ^ R68) + S68)*VLOOKUP($C$2,$L$66:$M$72,2),1) -> 1.218099699 | F68: =IF($C$2=2,(P68 / (1 + (Q68 / (B$2- 40)) ^ R68) + S68)*VLOOKUP($C$2,$L$66:$M$72,2),1) -> 1 | G68: =IF($C$2=3,(P68 / (1 + (Q68 / (B$2- 40)) ^ R68) + S68)*VLOOKUP($C$2,$L$66:$M$72,2),1) -> 1 | H68: =IF($C$2=4,(P68 / (1 + (Q68 / (B$2- 40)) ^ R68) + S68)*VLOOKUP($C$2,$L$66:$M$72,2),1) -> 1 | I68: =IF($C$2=5,(P68 / (1 + (Q68 / (B$2- 40)) ^ R68) + S68)*VLOOKUP($C$2,$L$66:$M$72,2),1) -> 1 | J68: =IF($C$2=6,(P68 / (1 + (Q68 / (B$2- 40)) ^ R68) + S68)*VLOOKUP($C$2,$L$66:$M$72,2),1) -> 1 | K68: =IF($C$2=7,(P68 / (1 + (Q68 / (B$2- 40)) ^ R68) + S68)*VLOOKUP($C$2,$L$66:$M$72,2),1) -> 1 | L68: 3 | M68: 1.0378 | O68: BD1 | P68: 1.290350459 | Q68: -35.23498683 | R68: 2.106424688 | S68: 0.4557253331
D69: =O69 -> BD2 | E69: =IF($C$2=1,(P69 / (1 + (Q69 / (B$2- 40)) ^ R69) + S69)*VLOOKUP($C$2,$L$66:$M$72,2),1) -> 1.434741956 | F69: =IF($C$2=2,(P69 / (1 + (Q69 / (B$2- 40)) ^ R69) + S69)*VLOOKUP($C$2,$L$66:$M$72,2),1) -> 1 | G69: =IF($C$2=3,(P69 / (1 + (Q69 / (B$2- 40)) ^ R69) + S69)*VLOOKUP($C$2,$L$66:$M$72,2),1) -> 1 | H69: =IF($C$2=4,(P69 / (1 + (Q69 / (B$2- 40)) ^ R69) + S69)*VLOOKUP($C$2,$L$66:$M$72,2),1) -> 1 | I69: =IF($C$2=5,(P69 / (1 + (Q69 / (B$2- 40)) ^ R69) + S69)*VLOOKUP($C$2,$L$66:$M$72,2),1) -> 1 | J69: =IF($C$2=6,(P69 / (1 + (Q69 / (B$2- 40)) ^ R69) + S69)*VLOOKUP($C$2,$L$66:$M$72,2),1) -> 1 | K69: =IF($C$2=7,(P69 / (1 + (Q69 / (B$2- 40)) ^ R69) + S69)*VLOOKUP($C$2,$L$66:$M$72,2),1) -> 1 | L69: 4 | M69: 1.0622 | O69: BD2 | P69: 2.109587843 | Q69: -35.84445084 | R69: 5.215467228 | S69: 0.2854582543
D70: =O70 -> BD3 | E70: =IF($C$2=1,(P70 / (1 + (Q70 / (B$2- 40)) ^ R70) + S70)*VLOOKUP($C$2,$L$66:$M$72,2),1) -> 1.622272974 | F70: =IF($C$2=2,(P70 / (1 + (Q70 / (B$2- 40)) ^ R70) + S70)*VLOOKUP($C$2,$L$66:$M$72,2),1) -> 1 | G70: =IF($C$2=3,(P70 / (1 + (Q70 / (B$2- 40)) ^ R70) + S70)*VLOOKUP($C$2,$L$66:$M$72,2),1) -> 1 | H70: =IF($C$2=4,(P70 / (1 + (Q70 / (B$2- 40)) ^ R70) + S70)*VLOOKUP($C$2,$L$66:$M$72,2),1) -> 1 | I70: =IF($C$2=5,(P70 / (1 + (Q70 / (B$2- 40)) ^ R70) + S70)*VLOOKUP($C$2,$L$66:$M$72,2),1) -> 1 | J70: =IF($C$2=6,(P70 / (1 + (Q70 / (B$2- 40)) ^ R70) + S70)*VLOOKUP($C$2,$L$66:$M$72,2),1) -> 1 | K70: =IF($C$2=7,(P70 / (1 + (Q70 / (B$2- 40)) ^ R70) + S70)*VLOOKUP($C$2,$L$66:$M$72,2),1) -> 1 | L70: 5 | M70: 1.0266 | O70: BD3 | P70: 2.917702722 | Q70: -36.17941165 | R70: 5.926516165 | S70: 0.1151911755
D71: =O71 -> BD4 | E71: =IF($C$2=1,(P71 / (1 + (Q71 / (B$2- 40)) ^ R71) + S71)*VLOOKUP($C$2,$L$66:$M$72,2),1) -> 1.719503289 | F71: =IF($C$2=2,(P71 / (1 + (Q71 / (B$2- 40)) ^ R71) + S71)*VLOOKUP($C$2,$L$66:$M$72,2),1) -> 1 | G71: =IF($C$2=3,(P71 / (1 + (Q71 / (B$2- 40)) ^ R71) + S71)*VLOOKUP($C$2,$L$66:$M$72,2),1) -> 1 | H71: =IF($C$2=4,(P71 / (1 + (Q71 / (B$2- 40)) ^ R71) + S71)*VLOOKUP($C$2,$L$66:$M$72,2),1) -> 1 | I71: =IF($C$2=5,(P71 / (1 + (Q71 / (B$2- 40)) ^ R71) + S71)*VLOOKUP($C$2,$L$66:$M$72,2),1) -> 1 | J71: =IF($C$2=6,(P71 / (1 + (Q71 / (B$2- 40)) ^ R71) + S71)*VLOOKUP($C$2,$L$66:$M$72,2),1) -> 1 | K71: =IF($C$2=7,(P71 / (1 + (Q71 / (B$2- 40)) ^ R71) + S71)*VLOOKUP($C$2,$L$66:$M$72,2),1) -> 1 | L71: 6 | M71: 0.7629 | O71: BD4 | P71: 3.75 | Q71: -37.5 | R71: 6.8 | S71: 0.06091126459
D72: =O72 -> BD5 | E72: =IF($C$2=1,(P72 / (1 + (Q72 / (B$2- 40)) ^ R72) + S72)*VLOOKUP($C$2,$L$66:$M$72,2),1) -> 1.721206793 | F72: =IF($C$2=2,(P72 / (1 + (Q72 / (B$2- 40)) ^ R72) + S72)*VLOOKUP($C$2,$L$66:$M$72,2),1) -> 1 | G72: =IF($C$2=3,(P72 / (1 + (Q72 / (B$2- 40)) ^ R72) + S72)*VLOOKUP($C$2,$L$66:$M$72,2),1) -> 1 | H72: =IF($C$2=4,(P72 / (1 + (Q72 / (B$2- 40)) ^ R72) + S72)*VLOOKUP($C$2,$L$66:$M$72,2),1) -> 1 | I72: =IF($C$2=5,(P72 / (1 + (Q72 / (B$2- 40)) ^ R72) + S72)*VLOOKUP($C$2,$L$66:$M$72,2),1) -> 1 | J72: =IF($C$2=6,(P72 / (1 + (Q72 / (B$2- 40)) ^ R72) + S72)*VLOOKUP($C$2,$L$66:$M$72,2),1) -> 1 | K72: =IF($C$2=7,(P72 / (1 + (Q72 / (B$2- 40)) ^ R72) + S72)*VLOOKUP($C$2,$L$66:$M$72,2),1) -> 1 | L72: 7 | M72: 0.9196 | O72: BD5 | P72: 4.5699506 | Q72: -38.53533924 | R72: 7.597699099 | S72: 0.006631353713
D74: Gaststätten | L74: Tagesfaktoren
D75: =IF(A75="","",WEEKDAY(A75,2)) ->  | L75: 1 | M75: 0.9322
E76: Montag | F76: Dienstag | G76: Mittwoch | H76: Donnerstag | I76: Freitag | J76: Samstag | K76: Sonntag | L76: 2 | M76: 0.9894
D77: =O77 -> GA1 | E77: =IF($C$2=1,(P77 / (1 + (Q77 / (B$2- 40)) ^ R77) + S77)*VLOOKUP($C$2,$L$75:$M$81,2),1) -> 1.046404495 | F77: =IF($C$2=2,(P77 / (1 + (Q77 / (B$2- 40)) ^ R77) + S77)*VLOOKUP($C$2,$L$75:$M$81,2),1) -> 1 | G77: =IF($C$2=3,(P77 / (1 + (Q77 / (B$2- 40)) ^ R77) + S77)*VLOOKUP($C$2,$L$75:$M$81,2),1) -> 1 | H77: =IF($C$2=4,(P77 / (1 + (Q77 / (B$2- 40)) ^ R77) + S77)*VLOOKUP($C$2,$L$75:$M$81,2),1) -> 1 | I77: =IF($C$2=5,(P77 / (1 + (Q77 / (B$2- 40)) ^ R77) + S77)*VLOOKUP($C$2,$L$75:$M$81,2),1) -> 1 | J77: =IF($C$2=6,(P77 / (1 + (Q77 / (B$2- 40)) ^ R77) + S77)*VLOOKUP($C$2,$L$75:$M$81,2),1) -> 1 | K77: =IF($C$2=7,(P77 / (1 + (Q77 / (B$2- 40)) ^ R77) + S77)*VLOOKUP($C$2,$L$75:$M$81,2),1) -> 1 | L77: 3 | M77: 1.0033 | O77: GA1 | P77: 1.177034538 | Q77: -39.1599914 | R77: 4.207610964 | S77: 0.6604739318
D78: =O78 -> GA2 | E78: =IF($C$2=1,(P78 / (1 + (Q78 / (B$2- 40)) ^ R78) + S78)*VLOOKUP($C$2,$L$75:$M$81,2),1) -> 1.150170882 | F78: =IF($C$2=2,(P78 / (1 + (Q78 / (B$2- 40)) ^ R78) + S78)*VLOOKUP($C$2,$L$75:$M$81,2),1) -> 1 | G78: =IF($C$2=3,(P78 / (1 + (Q78 / (B$2- 40)) ^ R78) + S78)*VLOOKUP($C$2,$L$75:$M$81,2),1) -> 1 | H78: =IF($C$2=4,(P78 / (1 + (Q78 / (B$2- 40)) ^ R78) + S78)*VLOOKUP($C$2,$L$75:$M$81,2),1) -> 1 | I78: =IF($C$2=5,(P78 / (1 + (Q78 / (B$2- 40)) ^ R78) + S78)*VLOOKUP($C$2,$L$75:$M$81,2),1) -> 1 | J78: =IF($C$2=6,(P78 / (1 + (Q78 / (B$2- 40)) ^ R78) + S78)*VLOOKUP($C$2,$L$75:$M$81,2),1) -> 1 | K78: =IF($C$2=7,(P78 / (1 + (Q78 / (B$2- 40)) ^ R78) + S78)*VLOOKUP($C$2,$L$75:$M$81,2),1) -> 1 | L78: 4 | M78: 1.0109 | O78: GA2 | P78: 1.648762294 | Q78: -36.39927357 | R78: 6.214917209 | S78: 0.4877637327
D79: =O79 -> GA3 | E79: =IF($C$2=1,(P79 / (1 + (Q79 / (B$2- 40)) ^ R79) + S79)*VLOOKUP($C$2,$L$75:$M$81,2),1) -> 1.26216863 | F79: =IF($C$2=2,(P79 / (1 + (Q79 / (B$2- 40)) ^ R79) + S79)*VLOOKUP($C$2,$L$75:$M$81,2),1) -> 1 | G79: =IF($C$2=3,(P79 / (1 + (Q79 / (B$2- 40)) ^ R79) + S79)*VLOOKUP($C$2,$L$75:$M$81,2),1) -> 1 | H79: =IF($C$2=4,(P79 / (1 + (Q79 / (B$2- 40)) ^ R79) + S79)*VLOOKUP($C$2,$L$75:$M$81,2),1) -> 1 | I79: =IF($C$2=5,(P79 / (1 + (Q79 / (B$2- 40)) ^ R79) + S79)*VLOOKUP($C$2,$L$75:$M$81,2),1) -> 1 | J79: =IF($C$2=6,(P79 / (1 + (Q79 / (B$2- 40)) ^ R79) + S79)*VLOOKUP($C$2,$L$75:$M$81,2),1) -> 1 | K79: =IF($C$2=7,(P79 / (1 + (Q79 / (B$2- 40)) ^ R79) + S79)*VLOOKUP($C$2,$L$75:$M$81,2),1) -> 1 | L79: 5 | M79: 1.018 | O79: GA3 | P79: 2.285016474 | Q79: -36.28785839 | R79: 6.588512639 | S79: 0.3150535336
D80: =O80 -> GA4 | E80: =IF($C$2=1,(P80 / (1 + (Q80 / (B$2- 40)) ^ R80) + S80)*VLOOKUP($C$2,$L$75:$M$81,2),1) -> 1.361181413 | F80: =IF($C$2=2,(P80 / (1 + (Q80 / (B$2- 40)) ^ R80) + S80)*VLOOKUP($C$2,$L$75:$M$81,2),1) -> 1 | G80: =IF($C$2=3,(P80 / (1 + (Q80 / (B$2- 40)) ^ R80) + S80)*VLOOKUP($C$2,$L$75:$M$81,2),1) -> 1 | H80: =IF($C$2=4,(P80 / (1 + (Q80 / (B$2- 40)) ^ R80) + S80)*VLOOKUP($C$2,$L$75:$M$81,2),1) -> 1 | I80: =IF($C$2=5,(P80 / (1 + (Q80 / (B$2- 40)) ^ R80) + S80)*VLOOKUP($C$2,$L$75:$M$81,2),1) -> 1 | J80: =IF($C$2=6,(P80 / (1 + (Q80 / (B$2- 40)) ^ R80) + S80)*VLOOKUP($C$2,$L$75:$M$81,2),1) -> 1 | K80: =IF($C$2=7,(P80 / (1 + (Q80 / (B$2- 40)) ^ R80) + S80)*VLOOKUP($C$2,$L$75:$M$81,2),1) -> 1 | L80: 6 | M80: 1.0356 | O80: GA4 | P80: 2.819565615 | Q80: -36 | R80: 7.736851768 | S80: 0.1572809795
D81: =O81 -> GA5 | E81: =IF($C$2=1,(P81 / (1 + (Q81 / (B$2- 40)) ^ R81) + S81)*VLOOKUP($C$2,$L$75:$M$81,2),1) -> 1.415306172 | F81: =IF($C$2=2,(P81 / (1 + (Q81 / (B$2- 40)) ^ R81) + S81)*VLOOKUP($C$2,$L$75:$M$81,2),1) -> 1 | G81: =IF($C$2=3,(P81 / (1 + (Q81 / (B$2- 40)) ^ R81) + S81)*VLOOKUP($C$2,$L$75:$M$81,2),1) -> 1 | H81: =IF($C$2=4,(P81 / (1 + (Q81 / (B$2- 40)) ^ R81) + S81)*VLOOKUP($C$2,$L$75:$M$81,2),1) -> 1 | I81: =IF($C$2=5,(P81 / (1 + (Q81 / (B$2- 40)) ^ R81) + S81)*VLOOKUP($C$2,$L$75:$M$81,2),1) -> 1 | J81: =IF($C$2=6,(P81 / (1 + (Q81 / (B$2- 40)) ^ R81) + S81)*VLOOKUP($C$2,$L$75:$M$81,2),1) -> 1 | K81: =IF($C$2=7,(P81 / (1 + (Q81 / (B$2- 40)) ^ R81) + S81)*VLOOKUP($C$2,$L$75:$M$81,2),1) -> 1 | L81: 7 | M81: 1.0106 | O81: GA5 | P81: 3.329557482 | Q81: -36.01462112 | R81: 8.776746471 | S81: -0.0004915745542
D83: Haushaltsähnliche Gewerbe | L83: Tagesfaktoren
D84: =IF(A57="","",WEEKDAY(A57,2)) ->  | L84: 1 | M84: 1.0354
E85: Montag | F85: Dienstag | G85: Mittwoch | H85: Donnerstag | I85: Freitag | J85: Samstag | K85: Sonntag | L85: 2 | M85: 1.0523
D86: =O86 -> MF1 | E86: =IF($C$2=1,(P86 / (1 + (Q86 / (B$2- 40)) ^ R86) + S86)*VLOOKUP($C$2,$L$84:$M$90,2),1) -> 1.346415314 | F86: =IF($C$2=2,(P86 / (1 + (Q86 / (B$2- 40)) ^ R86) + S86)*VLOOKUP($C$2,$L$84:$M$90,2),1) -> 1 | G86: =IF($C$2=3,(P86 / (1 + (Q86 / (B$2- 40)) ^ R86) + S86)*VLOOKUP($C$2,$L$84:$M$90,2),1) -> 1 | H86: =IF($C$2=4,(P86 / (1 + (Q86 / (B$2- 40)) ^ R86) + S86)*VLOOKUP($C$2,$L$84:$M$90,2),1) -> 1 | I86: =IF($C$2=5,(P86 / (1 + (Q86 / (B$2- 40)) ^ R86) + S86)*VLOOKUP($C$2,$L$84:$M$90,2),1) -> 1 | J86: =IF($C$2=6,(P86 / (1 + (Q86 / (B$2- 40)) ^ R86) + S86)*VLOOKUP($C$2,$L$84:$M$90,2),1) -> 1 | K86: =IF($C$2=7,(P86 / (1 + (Q86 / (B$2- 40)) ^ R86) + S86)*VLOOKUP($C$2,$L$84:$M$90,2),1) -> 1 | L86: 3 | M86: 1.0449 | O86: MF1 | P86: 2.1163531 | Q86: -34.2628623 | R86: 5.1763874 | S86: 0.1606945
D87: =O87 -> MF2 | E87: =IF($C$2=1,(P87 / (1 + (Q87 / (B$2- 40)) ^ R87) + S87)*VLOOKUP($C$2,$L$84:$M$90,2),1) -> 1.379941022 | F87: =IF($C$2=2,(P87 / (1 + (Q87 / (B$2- 40)) ^ R87) + S87)*VLOOKUP($C$2,$L$84:$M$90,2),1) -> 1 | G87: =IF($C$2=3,(P87 / (1 + (Q87 / (B$2- 40)) ^ R87) + S87)*VLOOKUP($C$2,$L$84:$M$90,2),1) -> 1 | H87: =IF($C$2=4,(P87 / (1 + (Q87 / (B$2- 40)) ^ R87) + S87)*VLOOKUP($C$2,$L$84:$M$90,2),1) -> 1 | I87: =IF($C$2=5,(P87 / (1 + (Q87 / (B$2- 40)) ^ R87) + S87)*VLOOKUP($C$2,$L$84:$M$90,2),1) -> 1 | J87: =IF($C$2=6,(P87 / (1 + (Q87 / (B$2- 40)) ^ R87) + S87)*VLOOKUP($C$2,$L$84:$M$90,2),1) -> 1 | K87: =IF($C$2=7,(P87 / (1 + (Q87 / (B$2- 40)) ^ R87) + S87)*VLOOKUP($C$2,$L$84:$M$90,2),1) -> 1 | L87: 4 | M87: 1.0494 | O87: MF2 | P87: 2.2486333 | Q87: -34.5428431 | R87: 5.5545245 | S87: 0.140822
D88: =O88 -> MF3 | E88: =IF($C$2=1,(P88 / (1 + (Q88 / (B$2- 40)) ^ R88) + S88)*VLOOKUP($C$2,$L$84:$M$90,2),1) -> 1.420612302 | F88: =IF($C$2=2,(P88 / (1 + (Q88 / (B$2- 40)) ^ R88) + S88)*VLOOKUP($C$2,$L$84:$M$90,2),1) -> 1 | G88: =IF($C$2=3,(P88 / (1 + (Q88 / (B$2- 40)) ^ R88) + S88)*VLOOKUP($C$2,$L$84:$M$90,2),1) -> 1 | H88: =IF($C$2=4,(P88 / (1 + (Q88 / (B$2- 40)) ^ R88) + S88)*VLOOKUP($C$2,$L$84:$M$90,2),1) -> 1 | I88: =IF($C$2=5,(P88 / (1 + (Q88 / (B$2- 40)) ^ R88) + S88)*VLOOKUP($C$2,$L$84:$M$90,2),1) -> 1 | J88: =IF($C$2=6,(P88 / (1 + (Q88 / (B$2- 40)) ^ R88) + S88)*VLOOKUP($C$2,$L$84:$M$90,2),1) -> 1 | K88: =IF($C$2=7,(P88 / (1 + (Q88 / (B$2- 40)) ^ R88) + S88)*VLOOKUP($C$2,$L$84:$M$90,2),1) -> 1 | L88: 5 | M88: 0.9885 | O88: MF3 | P88: 2.3877618 | Q88: -34.7213605 | R88: 5.8164304 | S88: 0.1208194
D89: =O89 -> MF4 | E89: =IF($C$2=1,(P89 / (1 + (Q89 / (B$2- 40)) ^ R89) + S89)*VLOOKUP($C$2,$L$84:$M$90,2),1) -> 1.439388606 | F89: =IF($C$2=2,(P89 / (1 + (Q89 / (B$2- 40)) ^ R89) + S89)*VLOOKUP($C$2,$L$84:$M$90,2),1) -> 1 | G89: =IF($C$2=3,(P89 / (1 + (Q89 / (B$2- 40)) ^ R89) + S89)*VLOOKUP($C$2,$L$84:$M$90,2),1) -> 1 | H89: =IF($C$2=4,(P89 / (1 + (Q89 / (B$2- 40)) ^ R89) + S89)*VLOOKUP($C$2,$L$84:$M$90,2),1) -> 1 | I89: =IF($C$2=5,(P89 / (1 + (Q89 / (B$2- 40)) ^ R89) + S89)*VLOOKUP($C$2,$L$84:$M$90,2),1) -> 1 | J89: =IF($C$2=6,(P89 / (1 + (Q89 / (B$2- 40)) ^ R89) + S89)*VLOOKUP($C$2,$L$84:$M$90,2),1) -> 1 | K89: =IF($C$2=7,(P89 / (1 + (Q89 / (B$2- 40)) ^ R89) + S89)*VLOOKUP($C$2,$L$84:$M$90,2),1) -> 1 | L89: 6 | M89: 0.886 | O89: MF4 | P89: 2.5187775 | Q89: -35.0333754 | R89: 6.2240634 | S89: 0.1010782
D90: =O90 -> MF5 | E90: =IF($C$2=1,(P90 / (1 + (Q90 / (B$2- 40)) ^ R90) + S90)*VLOOKUP($C$2,$L$84:$M$90,2),1) -> 1.465457689 | F90: =IF($C$2=2,(P90 / (1 + (Q90 / (B$2- 40)) ^ R90) + S90)*VLOOKUP($C$2,$L$84:$M$90,2),1) -> 1 | G90: =IF($C$2=3,(P90 / (1 + (Q90 / (B$2- 40)) ^ R90) + S90)*VLOOKUP($C$2,$L$84:$M$90,2),1) -> 1 | H90: =IF($C$2=4,(P90 / (1 + (Q90 / (B$2- 40)) ^ R90) + S90)*VLOOKUP($C$2,$L$84:$M$90,2),1) -> 1 | I90: =IF($C$2=5,(P90 / (1 + (Q90 / (B$2- 40)) ^ R90) + S90)*VLOOKUP($C$2,$L$84:$M$90,2),1) -> 1 | J90: =IF($C$2=6,(P90 / (1 + (Q90 / (B$2- 40)) ^ R90) + S90)*VLOOKUP($C$2,$L$84:$M$90,2),1) -> 1 | K90: =IF($C$2=7,(P90 / (1 + (Q90 / (B$2- 40)) ^ R90) + S90)*VLOOKUP($C$2,$L$84:$M$90,2),1) -> 1 | L90: 7 | M90: 0.9435 | O90: MF5 | P90: 2.6564406 | Q90: -35.2516927 | R90: 6.5182659 | S90: 0.0812059
D92: Papier und Druck | L92: Tagesfaktoren
D93: =IF(A66="","",WEEKDAY(A66,2)) ->  | L93: 1 | M93: 1.0214
E94: Montag | F94: Dienstag | G94: Mittwoch | H94: Donnerstag | I94: Freitag | J94: Samstag | K94: Sonntag | L94: 2 | M94: 1.0866
D95: =O95 -> PD1 | E95: =IF($C$2=1,(P95 / (1 + (Q95 / (B$2- 40)) ^ R95) + S95)*VLOOKUP($C$2,$L$93:$M$99,2),1) -> 1.413523151 | F95: =IF($C$2=2,(P95 / (1 + (Q95 / (B$2- 40)) ^ R95) + S95)*VLOOKUP($C$2,$L$93:$M$99,2),1) -> 1 | G95: =IF($C$2=3,(P95 / (1 + (Q95 / (B$2- 40)) ^ R95) + S95)*VLOOKUP($C$2,$L$93:$M$99,2),1) -> 1 | H95: =IF($C$2=4,(P95 / (1 + (Q95 / (B$2- 40)) ^ R95) + S95)*VLOOKUP($C$2,$L$93:$M$99,2),1) -> 1 | I95: =IF($C$2=5,(P95 / (1 + (Q95 / (B$2- 40)) ^ R95) + S95)*VLOOKUP($C$2,$L$93:$M$99,2),1) -> 1 | J95: =IF($C$2=6,(P95 / (1 + (Q95 / (B$2- 40)) ^ R95) + S95)*VLOOKUP($C$2,$L$93:$M$99,2),1) -> 1 | K95: =IF($C$2=7,(P95 / (1 + (Q95 / (B$2- 40)) ^ R95) + S95)*VLOOKUP($C$2,$L$93:$M$99,2),1) -> 1 | L95: 3 | M95: 1.072 | O95: PD1 | P95: 1.4894022 | Q95: -32.4252678 | R95: 8.1732612 | S95: 0.3905987
D96: =O96 -> PD2 | E96: =IF($C$2=1,(P96 / (1 + (Q96 / (B$2- 40)) ^ R96) + S96)*VLOOKUP($C$2,$L$93:$M$99,2),1) -> 1.52971726 | F96: =IF($C$2=2,(P96 / (1 + (Q96 / (B$2- 40)) ^ R96) + S96)*VLOOKUP($C$2,$L$93:$M$99,2),1) -> 1 | G96: =IF($C$2=3,(P96 / (1 + (Q96 / (B$2- 40)) ^ R96) + S96)*VLOOKUP($C$2,$L$93:$M$99,2),1) -> 1 | H96: =IF($C$2=4,(P96 / (1 + (Q96 / (B$2- 40)) ^ R96) + S96)*VLOOKUP($C$2,$L$93:$M$99,2),1) -> 1 | I96: =IF($C$2=5,(P96 / (1 + (Q96 / (B$2- 40)) ^ R96) + S96)*VLOOKUP($C$2,$L$93:$M$99,2),1) -> 1 | J96: =IF($C$2=6,(P96 / (1 + (Q96 / (B$2- 40)) ^ R96) + S96)*VLOOKUP($C$2,$L$93:$M$99,2),1) -> 1 | K96: =IF($C$2=7,(P96 / (1 + (Q96 / (B$2- 40)) ^ R96) + S96)*VLOOKUP($C$2,$L$93:$M$99,2),1) -> 1 | L96: 4 | M96: 1.0557 | O96: PD2 | P96: 2.578417254 | Q96: -34.7321261 | R96: 6.480503514 | S96: 0.1407729119
D97: =O97 -> PD3 | E97: =IF($C$2=1,(P97 / (1 + (Q97 / (B$2- 40)) ^ R97) + S97)*VLOOKUP($C$2,$L$93:$M$99,2),1) -> 1.63367013 | F97: =IF($C$2=2,(P97 / (1 + (Q97 / (B$2- 40)) ^ R97) + S97)*VLOOKUP($C$2,$L$93:$M$99,2),1) -> 1 | G97: =IF($C$2=3,(P97 / (1 + (Q97 / (B$2- 40)) ^ R97) + S97)*VLOOKUP($C$2,$L$93:$M$99,2),1) -> 1 | H97: =IF($C$2=4,(P97 / (1 + (Q97 / (B$2- 40)) ^ R97) + S97)*VLOOKUP($C$2,$L$93:$M$99,2),1) -> 1 | I97: =IF($C$2=5,(P97 / (1 + (Q97 / (B$2- 40)) ^ R97) + S97)*VLOOKUP($C$2,$L$93:$M$99,2),1) -> 1 | J97: =IF($C$2=6,(P97 / (1 + (Q97 / (B$2- 40)) ^ R97) + S97)*VLOOKUP($C$2,$L$93:$M$99,2),1) -> 1 | K97: =IF($C$2=7,(P97 / (1 + (Q97 / (B$2- 40)) ^ R97) + S97)*VLOOKUP($C$2,$L$93:$M$99,2),1) -> 1 | L97: 5 | M97: 1.0117 | O97: PD3 | P97: 3.2 | Q97: -35.8 | R97: 8.4 | S97: 0.09384860795
D98: =O98 -> PD4 | E98: =IF($C$2=1,(P98 / (1 + (Q98 / (B$2- 40)) ^ R98) + S98)*VLOOKUP($C$2,$L$93:$M$99,2),1) -> 1.549550399 | F98: =IF($C$2=2,(P98 / (1 + (Q98 / (B$2- 40)) ^ R98) + S98)*VLOOKUP($C$2,$L$93:$M$99,2),1) -> 1 | G98: =IF($C$2=3,(P98 / (1 + (Q98 / (B$2- 40)) ^ R98) + S98)*VLOOKUP($C$2,$L$93:$M$99,2),1) -> 1 | H98: =IF($C$2=4,(P98 / (1 + (Q98 / (B$2- 40)) ^ R98) + S98)*VLOOKUP($C$2,$L$93:$M$99,2),1) -> 1 | I98: =IF($C$2=5,(P98 / (1 + (Q98 / (B$2- 40)) ^ R98) + S98)*VLOOKUP($C$2,$L$93:$M$99,2),1) -> 1 | J98: =IF($C$2=6,(P98 / (1 + (Q98 / (B$2- 40)) ^ R98) + S98)*VLOOKUP($C$2,$L$93:$M$99,2),1) -> 1 | K98: =IF($C$2=7,(P98 / (1 + (Q98 / (B$2- 40)) ^ R98) + S98)*VLOOKUP($C$2,$L$93:$M$99,2),1) -> 1 | L98: 6 | M98: 0.9001 | O98: PD4 | P98: 3.85 | Q98: -37 | R98: 10.2405021 | S98: 0.04692430397
D99: =O99 -> PD5 | E99: =IF($C$2=1,(P99 / (1 + (Q99 / (B$2- 40)) ^ R99) + S99)*VLOOKUP($C$2,$L$93:$M$99,2),1) -> 1.343948155 | F99: =IF($C$2=2,(P99 / (1 + (Q99 / (B$2- 40)) ^ R99) + S99)*VLOOKUP($C$2,$L$93:$M$99,2),1) -> 1 | G99: =IF($C$2=3,(P99 / (1 + (Q99 / (B$2- 40)) ^ R99) + S99)*VLOOKUP($C$2,$L$93:$M$99,2),1) -> 1 | H99: =IF($C$2=4,(P99 / (1 + (Q99 / (B$2- 40)) ^ R99) + S99)*VLOOKUP($C$2,$L$93:$M$99,2),1) -> 1 | I99: =IF($C$2=5,(P99 / (1 + (Q99 / (B$2- 40)) ^ R99) + S99)*VLOOKUP($C$2,$L$93:$M$99,2),1) -> 1 | J99: =IF($C$2=6,(P99 / (1 + (Q99 / (B$2- 40)) ^ R99) + S99)*VLOOKUP($C$2,$L$93:$M$99,2),1) -> 1 | K99: =IF($C$2=7,(P99 / (1 + (Q99 / (B$2- 40)) ^ R99) + S99)*VLOOKUP($C$2,$L$93:$M$99,2),1) -> 1 | L99: 7 | M99: 0.8525 | O99: PD5 | P99: 4.7462814 | Q99: -38.7504294 | R99: 10.27533341 | S99: 0
D101: Wäschereien | L101: Tagesfaktoren
D102: =IF(A75="","",WEEKDAY(A75,2)) ->  | L102: 1 | M102: 1.2457
E103: Montag | F103: Dienstag | G103: Mittwoch | H103: Donnerstag | I103: Freitag | J103: Samstag | K103: Sonntag | L103: 2 | M103: 1.2615
D104: =O104 -> WA1 | E104: =IF($C$2=1,(P104 / (1 + (Q104 / (B$2- 40)) ^ R104) + S104)*VLOOKUP($C$2,$L$102:$M$108,2),1) -> 1.365295015 | F104: =IF($C$2=2,(P104 / (1 + (Q104 / (B$2- 40)) ^ R104) + S104)*VLOOKUP($C$2,$L$102:$M$108,2),1) -> 1 | G104: =IF($C$2=3,(P104 / (1 + (Q104 / (B$2- 40)) ^ R104) + S104)*VLOOKUP($C$2,$L$102:$M$108,2),1) -> 1 | H104: =IF($C$2=4,(P104 / (1 + (Q104 / (B$2- 40)) ^ R104) + S104)*VLOOKUP($C$2,$L$102:$M$108,2),1) -> 1 | I104: =IF($C$2=5,(P104 / (1 + (Q104 / (B$2- 40)) ^ R104) + S104)*VLOOKUP($C$2,$L$102:$M$108,2),1) -> 1 | J104: =IF($C$2=6,(P104 / (1 + (Q104 / (B$2- 40)) ^ R104) + S104)*VLOOKUP($C$2,$L$102:$M$108,2),1) -> 1 | K104: =IF($C$2=7,(P104 / (1 + (Q104 / (B$2- 40)) ^ R104) + S104)*VLOOKUP($C$2,$L$102:$M$108,2),1) -> 1 | L104: 3 | M104: 1.2707 | O104: WA1 | P104: 0.4 | Q104: -40.51494818 | R104: 2.874795695 | S104: 0.9351075841
D105: =O105 -> WA2 | E105: =IF($C$2=1,(P105 / (1 + (Q105 / (B$2- 40)) ^ R105) + S105)*VLOOKUP($C$2,$L$102:$M$108,2),1) -> 1.405837325 | F105: =IF($C$2=2,(P105 / (1 + (Q105 / (B$2- 40)) ^ R105) + S105)*VLOOKUP($C$2,$L$102:$M$108,2),1) -> 1 | G105: =IF($C$2=3,(P105 / (1 + (Q105 / (B$2- 40)) ^ R105) + S105)*VLOOKUP($C$2,$L$102:$M$108,2),1) -> 1 | H105: =IF($C$2=4,(P105 / (1 + (Q105 / (B$2- 40)) ^ R105) + S105)*VLOOKUP($C$2,$L$102:$M$108,2),1) -> 1 | I105: =IF($C$2=5,(P105 / (1 + (Q105 / (B$2- 40)) ^ R105) + S105)*VLOOKUP($C$2,$L$102:$M$108,2),1) -> 1 | J105: =IF($C$2=6,(P105 / (1 + (Q105 / (B$2- 40)) ^ R105) + S105)*VLOOKUP($C$2,$L$102:$M$108,2),1) -> 1 | K105: =IF($C$2=7,(P105 / (1 + (Q105 / (B$2- 40)) ^ R105) + S105)*VLOOKUP($C$2,$L$102:$M$108,2),1) -> 1 | L105: 4 | M105: 1.243 | O105: WA2 | P105: 0.6166228927 | Q105: -38.4 | R105: 3.870535189 | S105: 0.8700250309
D106: =O106 -> WA3 | E106: =IF($C$2=1,(P106 / (1 + (Q106 / (B$2- 40)) ^ R106) + S106)*VLOOKUP($C$2,$L$102:$M$108,2),1) -> 1.456117141 | F106: =IF($C$2=2,(P106 / (1 + (Q106 / (B$2- 40)) ^ R106) + S106)*VLOOKUP($C$2,$L$102:$M$108,2),1) -> 1 | G106: =IF($C$2=3,(P106 / (1 + (Q106 / (B$2- 40)) ^ R106) + S106)*VLOOKUP($C$2,$L$102:$M$108,2),1) -> 1 | H106: =IF($C$2=4,(P106 / (1 + (Q106 / (B$2- 40)) ^ R106) + S106)*VLOOKUP($C$2,$L$102:$M$108,2),1) -> 1 | I106: =IF($C$2=5,(P106 / (1 + (Q106 / (B$2- 40)) ^ R106) + S106)*VLOOKUP($C$2,$L$102:$M$108,2),1) -> 1 | J106: =IF($C$2=6,(P106 / (1 + (Q106 / (B$2- 40)) ^ R106) + S106)*VLOOKUP($C$2,$L$102:$M$108,2),1) -> 1 | K106: =IF($C$2=7,(P106 / (1 + (Q106 / (B$2- 40)) ^ R106) + S106)*VLOOKUP($C$2,$L$102:$M$108,2),1) -> 1 | L106: 5 | M106: 1.1276 | O106: WA3 | P106: 0.7657290119 | Q106: -36.02379115 | R106: 4.866274683 | S106: 0.8049424777
D107: =O107 -> WA4 | E107: =IF($C$2=1,(P107 / (1 + (Q107 / (B$2- 40)) ^ R107) + S107)*VLOOKUP($C$2,$L$102:$M$108,2),1) -> 1.504678501 | F107: =IF($C$2=2,(P107 / (1 + (Q107 / (B$2- 40)) ^ R107) + S107)*VLOOKUP($C$2,$L$102:$M$108,2),1) -> 1 | G107: =IF($C$2=3,(P107 / (1 + (Q107 / (B$2- 40)) ^ R107) + S107)*VLOOKUP($C$2,$L$102:$M$108,2),1) -> 1 | H107: =IF($C$2=4,(P107 / (1 + (Q107 / (B$2- 40)) ^ R107) + S107)*VLOOKUP($C$2,$L$102:$M$108,2),1) -> 1 | I107: =IF($C$2=5,(P107 / (1 + (Q107 / (B$2- 40)) ^ R107) + S107)*VLOOKUP($C$2,$L$102:$M$108,2),1) -> 1 | J107: =IF($C$2=6,(P107 / (1 + (Q107 / (B$2- 40)) ^ R107) + S107)*VLOOKUP($C$2,$L$102:$M$108,2),1) -> 1 | K107: =IF($C$2=7,(P107 / (1 + (Q107 / (B$2- 40)) ^ R107) + S107)*VLOOKUP($C$2,$L$102:$M$108,2),1) -> 1 | L107: 6 | M107: 0.3877 | O107: WA4 | P107: 1.053587472 | Q107: -35.3 | R107: 4.866274683 | S107: 0.6811042337
D108: =O108 -> WA5 | E108: =IF($C$2=1,(P108 / (1 + (Q108 / (B$2- 40)) ^ R108) + S108)*VLOOKUP($C$2,$L$102:$M$108,2),1) -> 1.549004314 | F108: =IF($C$2=2,(P108 / (1 + (Q108 / (B$2- 40)) ^ R108) + S108)*VLOOKUP($C$2,$L$102:$M$108,2),1) -> 1 | G108: =IF($C$2=3,(P108 / (1 + (Q108 / (B$2- 40)) ^ R108) + S108)*VLOOKUP($C$2,$L$102:$M$108,2),1) -> 1 | H108: =IF($C$2=4,(P108 / (1 + (Q108 / (B$2- 40)) ^ R108) + S108)*VLOOKUP($C$2,$L$102:$M$108,2),1) -> 1 | I108: =IF($C$2=5,(P108 / (1 + (Q108 / (B$2- 40)) ^ R108) + S108)*VLOOKUP($C$2,$L$102:$M$108,2),1) -> 1 | J108: =IF($C$2=6,(P108 / (1 + (Q108 / (B$2- 40)) ^ R108) + S108)*VLOOKUP($C$2,$L$102:$M$108,2),1) -> 1 | K108: =IF($C$2=7,(P108 / (1 + (Q108 / (B$2- 40)) ^ R108) + S108)*VLOOKUP($C$2,$L$102:$M$108,2),1) -> 1 | L108: 7 | M108: 0.4638 | O108: WA5 | P108: 1.276885372 | Q108: -34.34243707 | R108: 5.451882242 | S108: 0.5572659896
D109: =IF(A82="","",WEEKDAY(A82,2)) -> 
D110: Summenlastprofil Gewrbe, Handel, und Dienstleistungen | L110: Tagesfaktoren
L111: 1 | M111: 1.03
E112: Montag | F112: Dienstag | G112: Mittwoch | H112: Donnerstag | I112: Freitag | J112: Samstag | K112: Sonntag | L112: 2 | M112: 1.03
D113: =O113 -> GHD03 | E113: =IF($C$2=1,(P113/(1+(Q113/(B$2-40))^R113)+S113)*VLOOKUP($C$2,$L$111:$M$117,2),1) -> 1.486129526 | F113: =IF($C$2=2,(P113/(1+(Q113/(B$2-40))^R113)+S113)*VLOOKUP($C$2,$L$111:$M$117,2),1) -> 1 | G113: =IF($C$2=3,(P113/(1+(Q113/(B$2-40))^R113)+S113)*VLOOKUP($C$2,$L$111:$M$117,2),1) -> 1 | H113: =IF($C$2=4,(P113/(1+(Q113/(B$2-40))^R113)+S113)*VLOOKUP($C$2,$L$111:$M$117,2),1) -> 1 | I113: =IF($C$2=5,(P113/(1+(Q113/(B$2-40))^R113)+S113)*VLOOKUP($C$2,$L$111:$M$117,2),1) -> 1 | J113: =IF($C$2=6,(P113/(1+(Q113/(B$2-40))^R113)+S113)*VLOOKUP($C$2,$L$111:$M$117,2),1) -> 1 | K113: =IF($C$2=7,(P113/(1+(Q113/(B$2-40))^R113)+S113)*VLOOKUP($C$2,$L$111:$M$117,2),1) -> 1 | L113: 3 | M113: 1.02 | O113: GHD03 | P113: 2.579251 | Q113: -35.6816144 | R113: 6.6857976 | S113: 0.1995541
D114: =O114 -> GHD04 | E114: =IF($C$2=1,(P114/(1+(Q114/(B$2-40))^R114)+S114)*VLOOKUP($C$2,$L$111:$M$117,2),1) -> 1.503842327 | F114: =IF($C$2=2,(P114/(1+(Q114/(B$2-40))^R114)+S114)*VLOOKUP($C$2,$L$111:$M$117,2),1) -> 1 | G114: =IF($C$2=3,(P114/(1+(Q114/(B$2-40))^R114)+S114)*VLOOKUP($C$2,$L$111:$M$117,2),1) -> 1 | H114: =IF($C$2=4,(P114/(1+(Q114/(B$2-40))^R114)+S114)*VLOOKUP($C$2,$L$111:$M$117,2),1) -> 1 | I114: =IF($C$2=5,(P114/(1+(Q114/(B$2-40))^R114)+S114)*VLOOKUP($C$2,$L$111:$M$117,2),1) -> 1 | J114: =IF($C$2=6,(P114/(1+(Q114/(B$2-40))^R114)+S114)*VLOOKUP($C$2,$L$111:$M$117,2),1) -> 1 | K114: =IF($C$2=7,(P114/(1+(Q114/(B$2-40))^R114)+S114)*VLOOKUP($C$2,$L$111:$M$117,2),1) -> 1 | L114: 4 | M114: 1.03 | O114: GHD04 | P114: 3.0084346 | Q114: -36.6078453 | R114: 7.321187 | S114: 0.154966
L115: 5 | M115: 1.01
L116: 6 | M116: 0.93
L117: 7 | M117: 0.95
D141: =IF(A114="","",WEEKDAY(A114,2)) -> 
D205: =IF(A178="","",WEEKDAY(A178,2)) -> 
D269: =IF(A242="","",WEEKDAY(A242,2)) -> 
D333: =IF(A306="","",WEEKDAY(A306,2)) -> 
D397: =IF(A370="","",WEEKDAY(A370,2)) -> 
D461: =IF(A434="","",WEEKDAY(A434,2)) -> 
D462: =IF(A435="","",WEEKDAY(A435,2)) -> 
D463: =IF(A436="","",WEEKDAY(A436,2)) -> 

Sheet Tageswerte
A1: Zeitraum | B1: Monat | C1: SLP-Allokation [kWh] | D1: Restlast [kWh] | E1: Netzkontosaldo 0 [kWh] | F1: Delta Allokation vs. Restlast [%] | G1: Als-Ob Allokation Basis Ist-Temperatur mit KW 03 [kWh] | H1: Als-Ob-Allokation 03 vs. Restlast [kWh] | I1: Delta Als-Ob Allokation 03 vs. Restlast [%] | J1: Als-Ob Allokation Basis Ist-Temperatur mit KW 04 [kWh] | K1: Als-Ob-Allokation 04 vs. Restlast [kWh] | L1: Delta Als-Ob Allokation 04 vs. Restlast [%] | M1: Ist-Temperatur [°C]
A2: 2012-01-01 | B2: =IF(A2<>"",MONTH(A2),"") -> 1 | C2: 5055383.475 | D2: 6087408.365 | E2: =D2-C2 -> 1032024.89 | F2: =IF(E2<>0,E2/D2,"") -> 0.1695343615 | G2: ='Tagesmengenallokation 03'!C2 -> 4530224.629 | H2: =IF(G2<>0,D2-G2,"") -> 1557183.736 | I2: =IF(H2<>"",H2/D2,"") -> 0.2558040537 | J2: ='Tagesmengenallokation 04'!C2 -> 4356578.181 | K2: =IF(J2<>0,D2-J2,"") -> 1730830.183 | L2: =IF(K2<>"",K2/D2,"") -> 0.2843295668 | M2: 10.2
A3: 2012-01-02 | B3: =IF(A3<>"",MONTH(A3),"") -> 1 | C3: 5960366.5 | D3: 6670258.226 | E3: =D3-C3 -> 709891.7261 | F3: =IF(E3<>0,E3/D3,"") -> 0.1064264234 | G3: ='Tagesmengenallokation 03'!C3 -> 5461083.584 | H3: =IF(G3<>0,D3-G3,"") -> 1209174.643 | I3: =IF(H3<>"",H3/D3,"") -> 0.1812785355 | J3: ='Tagesmengenallokation 04'!C3 -> 5337439.532 | K3: =IF(J3<>0,D3-J3,"") -> 1332818.694 | L3: =IF(K3<>"",K3/D3,"") -> 0.199815157 | M3: 9
A4: 2012-01-03 | B4: 1 | C4: 7463144.191 | D4: 7815652.06 | E4: 352507.8684 | F4: 0.04510280982 | G4: ='Tagesmengenallokation 03'!C4 -> 7621532.49 | H4: 194119.57 | I4: 0.02483728402 | J4: ='Tagesmengenallokation 04'!C4 -> 7692926.43 | K4: 122725.6298 | L4: 0.0157025452 | M4: 5.9
A5: 2012-01-04 | B5: 1 | C5: 7407305.809 | D5: 8828342.839 | E5: 1421037.03 | F5: 0.1609630545 | G5: ='Tagesmengenallokation 03'!C5 -> 7851012.83 | H5: 977330.0093 | I5: 0.1107036765 | J5: ='Tagesmengenallokation 04'!C5 -> 7952895.473 | K5: 875447.3665 | L5: 0.09916327248 | M5: 5.5
A6: 2012-01-05 | B6: 1 | C6: 8204822.767 | D6: 8760840.046 | E6: 556017.2794 | F6: 0.06346620603 | G6: ='Tagesmengenallokation 03'!C6 -> 8593911.816 | H6: 166928.2302 | I6: 0.01905390685 | J6: ='Tagesmengenallokation 04'!C6 -> 8775157.244 | K6: -14317.19767 | L6: -0.001634226581 | M6: 4.5
A7: 2012-01-06 | B7: 1 | C7: 10381857.47 | D7: 10558487.1 | E7: 176629.6292 | F7: 0.01672868731 | G7: ='Tagesmengenallokation 03'!C7 -> 9640733.59 | H7: 917753.5098 | I7: 0.08692092921 | J7: ='Tagesmengenallokation 04'!C7 -> 9953421.109 | K7: 605065.991 | L7: 0.05730612589 | M7: 2.9
A8: 2012-01-07 | B8: 1 | C8: 9226962.923 | D8: 10009539.68 | E8: 782576.7566 | F8: 0.07818309149 | G8: ='Tagesmengenallokation 03'!C8 -> 8684003.752 | H8: 1325535.928 | I8: 0.1324272614 | J8: ='Tagesmengenallokation 04'!C8 -> 8930729.901 | K8: 1078809.779 | L8: 0.107778161 | M8: 3.7
A9: 2012-01-08 | B9: 1 | C9: 9410769.023 | D9: 11845099.74 | E9: 2434330.717 | F9: 0.2055137373 | G9: ='Tagesmengenallokation 03'!C9 -> 8723694.384 | H9: 3121405.355 | I9: 0.263518706 | J9: ='Tagesmengenallokation 04'!C9 -> 8953959.691 | K9: 2891140.049 | L9: 0.2440789957 | M9: 3.9
A10: 2012-01-09 | B10: 1 | C10: 9013105.914 | D10: 10742204.71 | E10: 1729098.792 | F10: 0.1609631206 | G10: ='Tagesmengenallokation 03'!C10 -> 8846779.665 | H10: 1895425.04 | I10: 0.1764465575 | J10: ='Tagesmengenallokation 04'!C10 -> 9052449.561 | K10: 1689755.145 | L10: 0.1573005906 | M10: 4.2
A11: 2012-01-10 | B11: 1 | C11: 8236517.087 | D11: 9736057.084 | E11: 1499539.997 | F11: 0.1540192281 | G11: ='Tagesmengenallokation 03'!C11 -> 8412449.851 | H11: 1323607.232 | I11: 0.1359490008 | J11: ='Tagesmengenallokation 04'!C11 -> 8569505.327 | K11: 1166551.757 | L11: 0.1198176784 | M11: 4.8
A12: 2012-01-11 | B12: 1 | C12: 9692171.088 | D12: 11130036.96 | E12: 1437865.877 | F12: 0.1291878797 | G12: ='Tagesmengenallokation 03'!C12 -> 9945796.364 | H12: 1184240.601 | I12: 0.1064004194 | J12: ='Tagesmengenallokation 04'!C12 -> 10291291.59 | K12: 838745.3782 | L12: 0.0753587235 | M12: 2.5
A13: 2012-01-12 | B13: 1 | C13: 8972674.7 | D13: 10704446.04 | E13: 1731771.343 | F13: 0.1617805664 | G13: ='Tagesmengenallokation 03'!C13 -> 9297534.42 | H13: 1406911.623 | I13: 0.131432455 | J13: ='Tagesmengenallokation 04'!C13 -> 9560751.097 | K13: 1143694.946 | L13: 0.1068429829 | M13: 3.5
A14: 2012-01-13 | B14: 1 | C14: 9657037.884 | D14: 11112139.76 | E14: 1455101.88 | F14: 0.1309470463 | G14: ='Tagesmengenallokation 03'!C14 -> 9842548.389 | H14: 1269591.375 | I14: 0.1142526464 | J14: ='Tagesmengenallokation 04'!C14 -> 10179864 | K14: 932275.7617 | L14: 0.08389705147 | M14: 2.6
A15: 2012-01-14 | B15: 1 | C15: 11804665.39 | D15: 14337998.99 | E15: 2533333.606 | F15: 0.1766866916 | G15: ='Tagesmengenallokation 03'!C15 -> 10504410.48 | H15: 3833588.511 | I15: 0.2673726308 | J15: ='Tagesmengenallokation 04'!C15 -> 10984698.18 | K15: 3353300.815 | L15: 0.2338750907 | M15: 0.8
A16: 2012-01-15 | B16: 1 | C16: 12588717.21 | D16: 15012306.01 | E16: 2423588.799 | F16: 0.161440141 | G16: ='Tagesmengenallokation 03'!C16 -> 12140602.62 | H16: 2871703.388 | I16: 0.1912899582 | J16: ='Tagesmengenallokation 04'!C16 -> 12800089.29 | K16: 2212216.72 | L16: 0.1473602203 | M16: -1.8
A17: 2012-01-16 | B17: 1 | C17: 13590746.21 | D17: 15065946.21 | E17: 1475200.004 | F17: 0.09791618685 | G17: ='Tagesmengenallokation 03'!C17 -> 13011617.34 | H17: 2054328.874 | I17: 0.1363557818 | J17: ='Tagesmengenallokation 04'!C17 -> 13717694.1 | K17: 1348252.106 | L17: 0.08949003848 | M17: -2.6
A18: 2012-01-17 | B18: 1 | C18: 13581009.19 | D18: 16350855.81 | E18: 2769846.617 | F18: 0.1694007121 | G18: ='Tagesmengenallokation 03'!C18 -> 13192260.2 | H18: 3158595.608 | I18: 0.1931761643 | J18: ='Tagesmengenallokation 04'!C18 -> 13920019.24 | K18: 2430836.565 | L18: 0.1486672376 | M18: -3 | O18: Legende:
A19: 2012-01-18 | B19: 1 | C19: 12388739.1 | D19: 14917821.91 | E19: 2529082.808 | F19: 0.169534321 | G19: ='Tagesmengenallokation 03'!C19 -> 12300085.85 | H19: 2617736.06 | I19: 0.1754770955 | J19: ='Tagesmengenallokation 04'!C19 -> 12934684.62 | K19: 1983137.291 | L19: 0.1329374558 | M19: -1.4
A20: 2012-01-19 | B20: 1 | C20: 8204822.767 | D20: 9178855.455 | E20: 974032.688 | F20: 0.1061170091 | G20: ='Tagesmengenallokation 03'!C20 -> 7163108.77 | H20: 2015746.685 | I20: 0.2196076292 | J20: ='Tagesmengenallokation 04'!C20 -> 7190570.741 | K20: 1988284.714 | L20: 0.2166157561 | M20: 6.5 | O20: Eingabefelder
A21: 2012-01-20 | B21: 1 | C21: 9657037.884 | D21: 10014020.9 | E21: 356983.018 | F21: 0.03564831964 | G21: ='Tagesmengenallokation 03'!C21 -> 9436730.34 | H21: 577290.5617 | I21: 0.05764822815 | J21: ='Tagesmengenallokation 04'!C21 -> 9724699.061 | K21: 289321.8404 | L21: 0.0288916753 | M21: 3.2 | O21: Berechnung
A22: 2012-01-21 | B22: 1 | C22: 7779274.063 | D22: 7993001.765 | E22: 213727.7019 | F22: 0.02673935377 | G22: ='Tagesmengenallokation 03'!C22 -> 8149509.685 | H22: -156507.9205 | I22: -0.01958061878 | J22: ='Tagesmengenallokation 04'!C22 -> 8330755.113 | K22: -337753.3483 | L22: -0.04225613333 | M22: 4.5
A23: 2012-01-22 | B23: 1 | C23: 7937416.867 | D23: 8718255.504 | E23: 780838.6366 | F23: 0.08956363303 | G23: ='Tagesmengenallokation 03'!C23 -> 7831727.608 | H23: 886527.8957 | I23: 0.1016863861 | J23: ='Tagesmengenallokation 04'!C23 -> 7957004.99 | K23: 761250.514 | L23: 0.08731683921 | M23: 5.2
A24: 2012-01-23 | B24: 1 | C24: 9013105.914 | D24: 11143782.45 | E24: 2130676.538 | F24: 0.1911986839 | G24: ='Tagesmengenallokation 03'!C24 -> 8846779.665 | H24: 2297002.786 | I24: 0.206124159 | J24: ='Tagesmengenallokation 04'!C24 -> 9052449.561 | K24: 2091332.891 | L24: 0.1876681369 | M24: 4.2
A25: 2012-01-24 | B25: 1 | C25: 10495734.62 | D25: 12400488.02 | E25: 1904753.399 | F25: 0.1536030998 | G25: ='Tagesmengenallokation 03'!C25 -> 10418521.06 | H25: 1981966.962 | I25: 0.159829755 | J25: ='Tagesmengenallokation 04'!C25 -> 10812644.82 | K25: 1587843.203 | L25: 0.1280468317 | M25: 1.9
A26: 2012-01-25 | B26: 1 | C26: 11773155.69 | D26: 12811597.44 | E26: 1038441.751 | F26: 0.08105482205 | G26: ='Tagesmengenallokation 03'!C26 -> 11692921.92 | H26: 1118675.522 | I26: 0.08731741119 | J26: ='Tagesmengenallokation 04'!C26 -> 12253842.13 | K26: 557755.3093 | L26: 0.04353518849 | M26: -0.3
A27: 2012-01-26 | B27: 1 | C27: 12431600.94 | D27: 13401689.76 | E27: 970088.8248 | F27: 0.07238556048 | G27: ='Tagesmengenallokation 03'!C27 -> 11791808.83 | H27: 1609880.929 | I27: 0.1201252199 | J27: ='Tagesmengenallokation 04'!C27 -> 12359731.06 | K27: 1041958.7 | L27: 0.07774830776 | M27: -0.4
A28: 2012-01-27 | B28: 1 | C28: 10381857.47 | D28: 11362943.26 | E28: 981085.7892 | F28: 0.08634081565 | G28: ='Tagesmengenallokation 03'!C28 -> 10560983.31 | H28: 801959.9482 | I28: 0.07057678014 | J28: ='Tagesmengenallokation 04'!C28 -> 10986964.21 | K28: 375979.0545 | L28: 0.03308817495 | M28: 1.5
A29: 2012-01-28 | B29: 1 | C29: 10586822.08 | D29: 11279649.7 | E29: 692827.6244 | F29: 0.06142279617 | G29: ='Tagesmengenallokation 03'!C29 -> 9964441.086 | H29: 1315208.614 | I29: 0.1166001293 | J29: ='Tagesmengenallokation 04'!C29 -> 10374558.91 | K29: 905090.7872 | L29: 0.08024103685 | M29: 1.7
A30: 2012-01-29 | B30: 1 | C30: 11433925.35 | D30: 13130185.66 | E30: 1696260.31 | F30: 0.1291878389 | G30: ='Tagesmengenallokation 03'!C30 -> 11513765.4 | H30: 1616420.262 | I30: 0.1231071901 | J30: ='Tagesmengenallokation 04'!C30 -> 12095514.8 | K30: 1034670.863 | L30: 0.07880093164 | M30: -0.6
A31: 2012-01-30 | B31: 1 | C31: 13061296.71 | D31: 14735842.87 | E31: 1674546.153 | F31: 0.1136376228 | G31: ='Tagesmengenallokation 03'!C31 -> 12346163.75 | H31: 2389679.118 | I31: 0.1621677932 | J31: ='Tagesmengenallokation 04'!C31 -> 12974377.76 | K31: 1761465.105 | L31: 0.1195360945 | M31: -1.3
A32: 2012-01-31 | B32: 1 | C32: 13581009.19 | D32: 15485299.64 | E32: 1904290.452 | F32: 0.1229740784 | G32: ='Tagesmengenallokation 03'!C32 -> 13285237.55 | H32: 2200062.091 | I32: 0.1420742344 | J32: ='Tagesmengenallokation 04'!C32 -> 14023433.83 | K32: 1461865.812 | L32: 0.09440345653 | M32: -3.2
A33: 2012-02-01 | B33: 2 | C33: 14799106.18 | D33: 14477520.79 | E33: -321585.3922 | F33: -0.0222127391 | G33: ='Tagesmengenallokation 03'!C33 -> 14391058.09 | H33: 86462.69814 | I33: 0.005972203349 | J33: ='Tagesmengenallokation 04'!C33 -> 15254772.74 | K33: -777251.9548 | L33: -0.05368681324 | M33: -6.2
A34: 2012-02-02 | B34: 2 | C34: 15817744.29 | D34: 16393272.05 | E34: 575527.7582 | F34: 0.03510755854 | G34: ='Tagesmengenallokation 03'!C34 -> 15155636 | H34: 1237636.05 | I34: 0.07549658459 | J34: ='Tagesmengenallokation 04'!C34 -> 16080926.92 | K34: 312345.1273 | L34: 0.01905325101 | M34: -8.5
A35: 2012-02-03 | B35: 2 | C35: 16194880.01 | D35: 17882157.42 | E35: 1687277.405 | F35: 0.09435536023 | G35: ='Tagesmengenallokation 03'!C35 -> 15650050.56 | H35: 2232106.859 | I35: 0.1248231299 | J35: ='Tagesmengenallokation 04'!C35 -> 16616580.19 | K35: 1265577.23 | L35: 0.07077318472 | M35: -11
A36: 2012-02-04 | B36: 2 | C36: 15507475.04 | D36: 15170495.93 | E36: -336979.1108 | F36: -0.02221279465 | G36: ='Tagesmengenallokation 03'!C36 -> 15060841.71 | H36: 109654.2169 | I36: 0.007228123416 | J36: ='Tagesmengenallokation 04'!C36 -> 16033122.02 | K36: -862626.0943 | L36: -0.0568620893 | M36: -11.5
A37: 2012-02-05 | B37: 2 | C37: 15798166.14 | D37: 15454870.52 | E37: -343295.6197 | F37: -0.02221277876 | G37: ='Tagesmengenallokation 03'!C37 -> 15429704.64 | H37: 25165.87621 | I37: 0.001628345976 | J37: ='Tagesmengenallokation 04'!C37 -> 16406085.97 | K37: -951215.4514 | L37: -0.06154794051 | M37: -11.9
A38: 2012-02-06 | B38: 2 | C38: 16584255.6 | D38: 17990835.52 | E38: 1406579.923 | F38: 0.07818313504 | G38: ='Tagesmengenallokation 03'!C38 -> 16091481.86 | H38: 1899353.658 | I38: 0.1055733991 | J38: ='Tagesmengenallokation 04'!C38 -> 17071551.04 | K38: 919284.4781 | L38: 0.0510973755 | M38: -12.3
A39: 2012-02-07 | B39: 2 | C39: 16571348.03 | D39: 16532266.32 | E39: -39081.70817 | F39: -0.002363965558 | G39: ='Tagesmengenallokation 03'!C39 -> 16096186.87 | H39: 436079.4503 | I39: 0.02637747553 | J39: ='Tagesmengenallokation 04'!C39 -> 17077116.67 | K39: -544850.3461 | L39: -0.03295678496 | M39: -12.4
A40: 2012-02-08 | B40: 2 | C40: 15476716.89 | D40: 15290311.02 | E40: -186405.865 | F40: -0.01219111009 | G40: ='Tagesmengenallokation 03'!C40 -> 14961801.62 | H40: 328509.3971 | I40: 0.02148480804 | J40: ='Tagesmengenallokation 04'!C40 -> 15875885.68 | K40: -585574.6619 | L40: -0.038297106 | M40: -8
A41: 2012-02-09 | B41: 2 | C41: 15529194.78 | D41: 16094224.17 | E41: 565029.3908 | F41: 0.03510758797 | G41: ='Tagesmengenallokation 03'!C41 -> 15466441.05 | H41: 627783.1218 | I41: 0.03900673404 | J41: ='Tagesmengenallokation 04'!C41 -> 16414363.5 | K41: -320139.3253 | L41: -0.01989156618 | M41: -9.7
A42: 2012-02-10 | B42: 2 | C42: 15421770.01 | D42: 15236026.62 | E42: -185743.3914 | F42: -0.01219106504 | G42: ='Tagesmengenallokation 03'!C42 -> 15154828.94 | H42: 81197.67827 | I42: 0.005329321108 | J42: ='Tagesmengenallokation 04'!C42 -> 16088305.86 | K42: -852279.2357 | L42: -0.05593841865 | M42: -8.9
A43: 2012-02-11 | B43: 2 | C43: 15286546.89 | D43: 15398558.24 | E43: 112011.3462 | F43: 0.007274145047 | G43: ='Tagesmengenallokation 03'!C43 -> 14900440.71 | H43: 498117.5252 | I43: 0.03234832232 | J43: ='Tagesmengenallokation 04'!C43 -> 15863164.62 | K43: -464606.378 | L43: -0.03017207006 | M43: -10.7
A44: 2012-02-12 | B44: 2 | C44: 15573489 | D44: 16441813.97 | E44: 868324.9698 | F44: 0.05281199333 | G44: ='Tagesmengenallokation 03'!C44 -> 15252758.4 | H44: 1189055.567 | I44: 0.07231900139 | J44: ='Tagesmengenallokation 04'!C44 -> 16219288.03 | K44: 222525.9391 | L44: 0.01353414772 | M44: -11
A45: 2012-02-13 | B45: 2 | C45: 14913807.57 | D45: 14445276 | E45: -468531.567 | F45: -0.03243493354 | G45: ='Tagesmengenallokation 03'!C45 -> 14610256.21 | H45: -164980.215 | I45: -0.01142104969 | J45: ='Tagesmengenallokation 04'!C45 -> 15483540.3 | K45: -1038264.299 | L45: -0.07187569827 | M45: -6.5
A46: 2012-02-14 | B46: 2 | C46: 12477388.02 | D46: 12931376.93 | E46: 453988.9057 | F46: 0.03510754563 | G46: ='Tagesmengenallokation 03'!C46 -> 12282726.14 | H46: 648650.7862 | I46: 0.05016099908 | J46: ='Tagesmengenallokation 04'!C46 -> 12904491.1 | K46: 26885.82575 | L46: 0.002079115464 | M46: -1.2
A47: 2012-02-15 | B47: 2 | C47: 11115428.81 | D47: 11950511.97 | E47: 835083.1598 | F47: 0.06987844219 | G47: ='Tagesmengenallokation 03'!C47 -> 10600120.68 | H47: 1350391.291 | I47: 0.1129986142 | J47: ='Tagesmengenallokation 04'!C47 -> 11026101.57 | K47: 924410.3976 | L47: 0.07735320461 | M47: 1.5
A48: 2012-02-16 | B48: 2 | C48: 11154272.39 | D48: 11344043.55 | E48: 189771.1563 | F48: 0.01672870485 | G48: ='Tagesmengenallokation 03'!C48 -> 10313358.7 | H48: 1030684.852 | I48: 0.0908569195 | J48: ='Tagesmengenallokation 04'!C48 -> 10699440.54 | K48: 644603.005 | L48: 0.05682303688 | M48: 2
A49: 2012-02-17 | B49: 2 | C49: 9657037.884 | D49: 10008408.71 | E49: 351370.8262 | F49: 0.03510756169 | G49: ='Tagesmengenallokation 03'!C49 -> 9436730.34 | H49: 571678.3699 | I49: 0.0571198066 | J49: ='Tagesmengenallokation 04'!C49 -> 9724699.061 | K49: 283709.6486 | L49: 0.02834712858 | M49: 3.2
A50: 2012-02-18 | B50: 2 | C50: 7779274.063 | D50: 8213020.29 | E50: 433746.2271 | F50: 0.05281202429 | G50: ='Tagesmengenallokation 03'!C50 -> 7676216.184 | H50: 536804.1062 | I50: 0.06536013394 | J50: ='Tagesmengenallokation 04'!C50 -> 7801493.566 | K50: 411526.7245 | L50: 0.0501066246 | M50: 5.2
A51: 2012-02-19 | B51: 2 | C51: 9410769.023 | D51: 9935481.89 | E51: 524712.8671 | F51: 0.05281201988 | G51: ='Tagesmengenallokation 03'!C51 -> 9653993.509 | H51: 281488.381 | I51: 0.02833162841 | J51: ='Tagesmengenallokation 04'!C51 -> 9999488.732 | K51: -64006.84165 | L51: -0.006442248334 | M51: 2.5
A52: 2012-02-20 | B52: 2 | C52: 12486144.85 | D52: 12335758.62 | E52: -150386.2321 | F52: -0.01219108097 | G52: ='Tagesmengenallokation 03'!C52 -> 11373667.42 | H52: 962091.1975 | I52: 0.07799205766 | J52: ='Tagesmengenallokation 04'!C52 -> 11884003.97 | K52: 451754.6451 | L52: 0.03662155357 | M52: 0.4
A53: 2012-02-21 | B53: 2 | C53: 13052039.74 | D53: 14411877.72 | E53: 1359837.982 | F53: 0.09435536492 | G53: ='Tagesmengenallokation 03'!C53 -> 11950429.83 | H53: 2461447.892 | I53: 0.1707930042 | J53: ='Tagesmengenallokation 04'!C53 -> 12532179.23 | K53: 1879698.493 | L53: 0.1304270359 | M53: -0.6
A54: 2012-02-22 | B54: 2 | C54: 11115428.81 | D54: 12165836.51 | E54: 1050407.7 | F54: 0.08634077064 | G54: ='Tagesmengenallokation 03'!C54 -> 10663835.8 | H54: 1502000.706 | I54: 0.1234605368 | J54: ='Tagesmengenallokation 04'!C54 -> 11097695.01 | K54: 1068141.502 | L54: 0.08779844287 | M54: 1.4
A55: 2012-02-23 | B55: 2 | C55: 8972674.7 | D55: 9386053.2 | E55: 413378.5004 | F55: 0.0440417811 | G55: ='Tagesmengenallokation 03'!C55 -> 7950846.783 | H55: 1435206.417 | I55: 0.1529084042 | J55: ='Tagesmengenallokation 04'!C55 -> 8060481.202 | K55: 1325571.998 | L55: 0.1412278377 | M55: 5.4
A56: 2012-02-24 | B56: 2 | C56: 6625084.435 | D56: 7186985.12 | E56: 561900.6851 | F56: 0.07818308731 | G56: ='Tagesmengenallokation 03'!C56 -> 6135648.839 | H56: 1051336.281 | I56: 0.146283353 | J56: ='Tagesmengenallokation 04'!C56 -> 6071293.765 | K56: 1115691.355 | L56: 0.1552377439 | M56: 7.9
A57: 2012-02-25 | B57: 2 | C57: 6323186.502 | D57: 6553255.66 | E57: 230069.1584 | F57: 0.0351076122 | G57: ='Tagesmengenallokation 03'!C57 -> 6191661.517 | H57: 361594.1432 | I57: 0.05517778673 | J57: ='Tagesmengenallokation 04'!C57 -> 6158171.139 | K57: 395084.5213 | L57: 0.06028828139 | M57: 7.4
A58: 2012-02-26 | B58: 2 | C58: 8680780.823 | D58: 8828469.3 | E58: 147688.4772 | F58: 0.01672866181 | G58: ='Tagesmengenallokation 03'!C58 -> 8038945.071 | H58: 789524.2287 | I58: 0.08942934521 | J58: ='Tagesmengenallokation 04'!C58 -> 8188000.383 | K58: 640468.917 | L58: 0.07254586217 | M58: 4.9
A59: 2012-02-27 | B59: 2 | C59: 9770023.412 | D59: 10220136.12 | E59: 450112.7081 | F59: 0.04404175276 | G59: ='Tagesmengenallokation 03'!C59 -> 8846779.665 | H59: 1373356.455 | I59: 0.1343775111 | J59: ='Tagesmengenallokation 04'!C59 -> 9052449.561 | K59: 1167686.559 | L59: 0.1142535232 | M59: 4.2
A60: 2012-02-28 | B60: 2 | C60: 7463144.191 | D60: 8023838.13 | E60: 560693.9388 | F60: 0.0698785207 | G60: ='Tagesmengenallokation 03'!C60 -> 7405840.482 | H60: 617997.6479 | I60: 0.07702020379 | J60: ='Tagesmengenallokation 04'!C60 -> 7454975.318 | K60: 568862.8118 | L60: 0.07089659619 | M60: 6.2
A61: 2012-02-29 | B61: 2 | C61: 5206813.317 | D61: 5345830.16 | E61: 139016.8434 | F61: 0.02600472503 | G61: ='Tagesmengenallokation 03'!C61 -> 6572841.16 | H61: -1227011 | I61: -0.2295267457 | J61: ='Tagesmengenallokation 04'!C61 -> 6545794.262 | K61: -1199964.102 | L61: -0.2244673074 | M61: 7.3
A62: 2012-03-01 | B62: 3 | C62: 4562933.977 | D62: 4949935.2 | E62: 387001.2234 | F62: 0.07818308882 | G62: ='Tagesmengenallokation 03'!C62 -> 6317058.31 | H62: -1367123.11 | I62: -0.2761901024 | J62: ='Tagesmengenallokation 04'!C62 -> 6264772.389 | K62: -1314837.189 | L62: -0.2656271518 | M62: 7.7
A63: 2012-03-02 | B63: 3 | C63: 5188929.721 | D63: 5327469.9 | E63: 138540.1787 | F63: 0.02600487311 | G63: ='Tagesmengenallokation 03'!C63 -> 7183444.234 | H63: -1855974.334 | I63: -0.3483781925 | J63: ='Tagesmengenallokation 04'!C63 -> 7218061.819 | K63: -1890591.919 | L63: -0.3548761334 | M63: 6.4
A64: 2012-03-03 | B64: 3 | C64: 4319805.891 | D64: 4811709.25 | E64: 491903.3593 | F64: 0.1022304827 | G64: ='Tagesmengenallokation 03'!C64 -> 5927898.106 | H64: -1116188.856 | I64: -0.2319734626 | J64: ='Tagesmengenallokation 04'!C64 -> 5869530.502 | K64: -1057821.252 | L64: -0.2198431363 | M64: 7.8
A65: 2012-03-04 | B65: 3 | C65: 5739059.246 | D65: 5781111.44 | E65: 42052.19353 | F65: 0.007274067274 | G65: ='Tagesmengenallokation 03'!C65 -> 6658283.081 | H65: -877171.6408 | I65: -0.1517306231 | J65: ='Tagesmengenallokation 04'!C65 -> 6657856.884 | K65: -876745.4436 | L65: -0.1516569007 | M65: 6.9
A66: 2012-03-05 | B66: 3 | C66: 9013105.914 | D66: 10039443.65 | E66: 1026337.736 | F66: 0.1022305391 | G66: ='Tagesmengenallokation 03'!C66 -> 9129637.48 | H66: 909806.1702 | I66: 0.09062316617 | J66: ='Tagesmengenallokation 04'!C66 -> 9368128.356 | K66: 671315.2938 | L66: 0.06686777845 | M66: 3.8
A67: 2012-03-06 | B67: =IF(A67<>"",MONTH(A67),"") -> 3 | C67: 9763400.103 | D67: 9740374.22 | E67: =D67-C67 -> -23025.88272 | F67: =IF(E67<>0,E67/D67,"") -> -0.002363962841 | G67: ='Tagesmengenallokation 03'!C67 -> 9541538.145 | H67: =IF(G67<>0,D67-G67,"") -> 198836.0745 | I67: =IF(H67<>"",H67/D67,"") -> 0.02041359706 | J67: ='Tagesmengenallokation 04'!C67 -> 9829506.867 | K67: =IF(J67<>0,D67-J67,"") -> -89132.64677 | L67: =IF(K67<>"",K67/D67,"") -> -0.009150844183 | M67: 3.2
A68: 2012-03-07 | B68: 3 | C68: 8940797.423 | D68: 9006310.56 | E68: 65513.13653 | F68: 0.007274136961 | G68: ='Tagesmengenallokation 03'!C68 -> 8492391.333 | H68: 513919.2269 | I68: 0.05706212588 | J68: ='Tagesmengenallokation 04'!C68 -> 8665544.234 | K68: 340766.3261 | L68: 0.03783639525 | M68: 4.6
A69: 2012-03-08 | B69: 3 | C69: 9726471.837 | D69: 10174578.48 | E69: 448106.6432 | F69: 0.04404178945 | G69: ='Tagesmengenallokation 03'!C69 -> 8806592.138 | H69: 1367986.342 | I69: 0.1344514021 | J69: ='Tagesmengenallokation 04'!C69 -> 9012262.033 | K69: 1162316.447 | L69: 0.1142373072 | M69: 4.2
A70: 2012-03-09 | B70: 3 | C70: 9657037.884 | D70: 10382554.83 | E70: 725516.9462 | F70: 0.06987846037 | G70: ='Tagesmengenallokation 03'!C70 -> 9436730.34 | H70: 945824.4899 | I70: 0.09109747123 | J70: ='Tagesmengenallokation 04'!C70 -> 9724699.061 | K70: 657855.7686 | L70: 0.06336164647 | M70: 3.2
A71: 2012-03-10 | B71: 3 | C71: 8509613.956 | D71: 8242277 | E71: -267336.9563 | F71: -0.03243484249 | G71: ='Tagesmengenallokation 03'!C71 -> 7676216.184 | H71: 566060.8162 | I71: 0.06867772294 | J71: ='Tagesmengenallokation 04'!C71 -> 7801493.566 | K71: 440783.4345 | L71: 0.05347835731 | M71: 5.2
A72: 2012-03-11 | B72: 3 | C72: 6454831.287 | D72: 6689690.29 | E72: 234859.0034 | F72: 0.03510760486 | G72: ='Tagesmengenallokation 03'!C72 -> 6318055.71 | H72: 371634.5802 | I72: 0.05555333118 | J72: ='Tagesmengenallokation 04'!C72 -> 6284565.332 | K72: 405124.9582 | L72: 0.06055959853 | M72: 7.4
A73: 2012-03-12 | B73: 3 | C73: 5960366.5 | D73: 6350427.6 | E73: 390061.0997 | F73: 0.06142280871 | G73: ='Tagesmengenallokation 03'!C73 -> 5999802.535 | H73: 350625.0655 | I73: 0.05521282779 | J73: ='Tagesmengenallokation 04'!C73 -> 5918063.952 | K73: 432363.6481 | L73: 0.06808417879 | M73: 8.2
A74: 2012-03-13 | B74: 3 | C74: 5956530.839 | D74: 6057871.05 | E74: 101340.2111 | F74: 0.0167286841 | G74: ='Tagesmengenallokation 03'!C74 -> 5927475.669 | H74: 130395.3806 | I74: 0.0215249515 | J74: ='Tagesmengenallokation 04'!C74 -> 5840139.8 | K74: 217731.2502 | L74: 0.03594187601 | M74: 8.3
A75: 2012-03-14 | B75: 3 | C75: 5911129.059 | D75: 5725425 | E75: -185704.0592 | F75: -0.03243498242 | G75: ='Tagesmengenallokation 03'!C75 -> 6433241.552 | H75: -707816.5521 | I75: -0.1236269014 | J75: ='Tagesmengenallokation 04'!C75 -> 6393395.777 | K75: -667970.777 | L75: -0.1166674574 | M75: 7.5
A76: 2012-03-15 | B76: 3 | C76: 4562933.977 | D76: 4861543.5 | E76: 298609.5234 | F76: 0.06142278134 | G76: ='Tagesmengenallokation 03'!C76 -> 6247735.124 | H76: -1386191.624 | I76: -0.2851340575 | J76: ='Tagesmengenallokation 04'!C76 -> 6189367.521 | K76: -1327824.021 | L76: -0.2731280756 | M76: 7.8
A77: 2012-03-16 | B77: 3 | C77: 3372029.618 | D77: 3625364.34 | E77: 253334.7223 | F77: 0.06987841732 | G77: ='Tagesmengenallokation 03'!C77 -> 4230990.98 | H77: -605626.6404 | I77: -0.167052628 | J77: ='Tagesmengenallokation 04'!C77 -> 4035470.434 | K77: -410106.0935 | L77: -0.1131213459 | M77: 10.9
A78: 2012-03-17 | B78: 3 | C78: 3213044.085 | D78: 3423313.3 | E78: 210269.2151 | F78: 0.06142272023 | G78: ='Tagesmengenallokation 03'!C78 -> 3882888.501 | H78: -459575.2015 | I78: -0.1342486536 | J78: ='Tagesmengenallokation 04'!C78 -> 3679615.915 | K78: -256302.6154 | L78: -0.07486975129 | M78: 11.2
A79: 2012-03-18 | B79: 3 | C79: 5055383.475 | D79: 5484151.68 | E79: 428768.2055 | F79: 0.07818314126 | G79: ='Tagesmengenallokation 03'!C79 -> 6318055.71 | H79: -833904.0298 | I79: -0.1520570689 | J79: ='Tagesmengenallokation 04'!C79 -> 6284565.332 | K79: -800413.6518 | L79: -0.1459503125 | M79: 7.4
A80: 2012-03-19 | B80: 3 | C80: 7468103.224 | D80: 7884499.74 | E80: 416396.5163 | F80: 0.05281204009 | G80: ='Tagesmengenallokation 03'!C80 -> 7052589.151 | H80: 831910.5893 | I80: 0.1055121589 | J80: ='Tagesmengenallokation 04'!C80 -> 7065956.198 | K80: 818543.5416 | L80: 0.1038168011 | M80: 6.7
A81: 2012-03-20 | B81: 3 | C81: 7463144.191 | D81: 8168411.79 | E81: 705267.5988 | F81: 0.08634084776 | G81: ='Tagesmengenallokation 03'!C81 -> 7334049.899 | H81: 834361.8909 | I81: 0.1021449349 | J81: ='Tagesmengenallokation 04'!C81 -> 7375892.469 | K81: 792519.3211 | L81: 0.09702244959 | M81: 6.3
A82: 2012-03-21 | B82: 3 | C82: 5911129.059 | D82: 6469730.25 | E82: 558601.1908 | F82: 0.08634072353 | G82: ='Tagesmengenallokation 03'!C82 -> 6019544.299 | H82: 450185.9512 | I82: 0.06958341906 | J82: ='Tagesmengenallokation 04'!C82 -> 5943502.431 | K82: 526227.8194 | L82: 0.08133690263 | M82: 8.1
A83: 2012-03-22 | B83: 3 | C83: 3951057.455 | D83: 4171354.79 | E83: 220297.3353 | F83: 0.05281193913 | G83: ='Tagesmengenallokation 03'!C83 -> 4435097.642 | H83: -263742.8517 | I83: -0.06322714441 | J83: ='Tagesmengenallokation 04'!C83 -> 4248297.184 | K83: -76942.39428 | L83: -0.01844542077 | M83: 10.6
A84: 2012-03-23 | B84: 3 | C84: 3922706.317 | D84: 4027439.26 | E84: 104732.943 | F84: 0.02600484731 | G84: ='Tagesmengenallokation 03'!C84 -> 4117352.041 | H84: -89912.78112 | I84: -0.02232504957 | J84: ='Tagesmengenallokation 04'!C84 -> 3916556.893 | K84: 110882.3672 | L84: 0.02753172923 | M84: 11.1
A85: 2012-03-24 | B85: 3 | C85: 3739171.335 | D85: 3875221.14 | E85: 136049.8054 | F85: 0.03510762366 | G85: ='Tagesmengenallokation 03'!C85 -> 4211059.416 | H85: -335838.276 | I85: -0.08666299648 | J85: ='Tagesmengenallokation 04'!C85 -> 4024258.959 | K85: -149037.8186 | L85: -0.03845917774 | M85: 10.6
A86: 2012-03-25 | B86: 3 | C86: 3285127.299 | D86: 3181922 | E86: -103205.2985 | F86: -0.03243489266 | G86: ='Tagesmengenallokation 03'!C86 -> 3855449.702 | H86: -673527.7022 | I86: -0.2116732284 | J86: ='Tagesmengenallokation 04'!C86 -> 3647538.441 | K86: -465616.4413 | L86: -0.1463318212 | M86: 11.4
A87: 2012-03-26 | B87: 3 | C87: 3969216.952 | D87: 4344307.6 | E87: 375090.648 | F87: 0.08634072044 | G87: ='Tagesmengenallokation 03'!C87 -> 4106602.859 | H87: 237704.741 | I87: 0.05471636977 | J87: ='Tagesmengenallokation 04'!C87 -> 3903330.273 | K87: 440977.3272 | L87: 0.1015069299 | M87: 11.2
A88: 2012-03-27 | B88: 3 | C88: 3967049.932 | D88: 3842421 | E88: -124628.9319 | F88: -0.03243500175 | G88: ='Tagesmengenallokation 03'!C88 -> 4451996.64 | H88: -609575.6401 | I88: -0.1586436364 | J88: ='Tagesmengenallokation 04'!C88 -> 4265196.183 | K88: -422775.1827 | L88: -0.1100283344 | M88: 10.6
A89: 2012-03-28 | B89: 3 | C89: 3383292.54 | D89: 3440853.15 | E89: 57560.60994 | F89: 0.01672858661 | G89: ='Tagesmengenallokation 03'!C89 -> 3694273.777 | H89: -253420.6267 | I89: -0.07365052085 | J89: ='Tagesmengenallokation 04'!C89 -> 3476571.196 | K89: -35718.04638 | L89: -0.01038057854 | M89: 11.9
A90: 2012-03-29 | B90: 3 | C90: 3951057.455 | D90: 4171354.79 | E90: 220297.3353 | F90: 0.05281193913 | G90: ='Tagesmengenallokation 03'!C90 -> 4259782.692 | H90: -88427.90193 | I90: -0.02119884459 | J90: ='Tagesmengenallokation 04'!C90 -> 4064262.145 | K90: 107092.6449 | L90: 0.02567334842 | M90: 10.9
A91: 2012-03-30 | B91: 3 | C91: 5188929.721 | D91: 5226951.6 | E91: 38021.87873 | F91: 0.00727419759 | G91: ='Tagesmengenallokation 03'!C91 -> 4951521.87 | H91: 275429.7302 | I91: 0.05269414207 | J91: ='Tagesmengenallokation 04'!C91 -> 4796792.698 | K91: 430158.902 | L91: 0.08229632392 | M91: 9.7
A92: 2012-03-31 | B92: 3 | C92: 5620486.537 | D92: 5770548.84 | E92: 150062.3031 | F92: 0.02600485799 | G92: ='Tagesmengenallokation 03'!C92 -> 5159899.626 | H92: 610649.2136 | I92: 0.1058216871 | J92: ='Tagesmengenallokation 04'!C92 -> 5036255.575 | K92: 734293.2654 | L92: 0.1272484274 | M92: 9
A93: 2012-04-01 | B93: 4 | C93: 7937416.867 | D93: 8303100.48 | E93: 365683.6126 | F93: 0.04404181468 | G93: ='Tagesmengenallokation 03'!C93 -> 7831727.608 | H93: 471372.8717 | I93: 0.05677070546 | J93: ='Tagesmengenallokation 04'!C93 -> 7957004.99 | K93: 346095.49 | L93: 0.04168268117 | M93: 5.2
A94: 2012-04-02 | B94: 4 | C94: 6703455.361 | D94: 7401860.4 | E94: 698405.0389 | F94: 0.09435533787 | G94: ='Tagesmengenallokation 03'!C94 -> 6697019.661 | H94: 704840.7394 | I94: 0.09522480854 | J94: ='Tagesmengenallokation 04'!C94 -> 6676502.66 | K94: 725357.7402 | L94: 0.09799667935 | M94: 7.2
A95: 2012-04-03 | B95: 4 | C95: 3967049.932 | D95: 3996117.84 | E95: 29067.90814 | F95: 0.007274036779 | G95: ='Tagesmengenallokation 03'!C95 -> 4632232.636 | H95: -636114.7963 | I95: -0.1591831927 | J95: ='Tagesmengenallokation 04'!C95 -> 4455133.093 | K95: -459015.2532 | L95: -0.1148652947 | M95: 10.3
A96: 2012-04-04 | B96: 4 | C96: 3935916.73 | D96: 3964756.64 | E96: 28839.91027 | F96: 0.007274068219 | G96: ='Tagesmengenallokation 03'!C96 -> 5094222.973 | H96: -1129466.333 | I96: -0.2848765854 | J96: ='Tagesmengenallokation 04'!C96 -> 4947830.631 | K96: -983073.9913 | L96: -0.2479531736 | M96: 9.5
A97: 2012-04-05 | B97: 4 | C97: 5226321.221 | D97: 5517722.79 | E97: 291401.5694 | F97: 0.05281192631 | G97: ='Tagesmengenallokation 03'!C97 -> 6596449.741 | H97: -1078726.951 | I97: -0.1955022012 | J97: ='Tagesmengenallokation 04'!C97 -> 6569402.843 | K97: -1051680.053 | L97: -0.1906003786 | M97: 7.3
A98: 2012-04-06 | B98: 4 | C98: 5890573.86 | D98: 6047846.96 | E98: 157273.1003 | F98: 0.02600480822 | G98: ='Tagesmengenallokation 03'!C98 -> 6971279.144 | H98: -923432.1839 | I98: -0.1526877565 | J98: ='Tagesmengenallokation 04'!C98 -> 6984646.192 | K98: -936799.2316 | L98: -0.1548979724 | M98: 6.7
A99: 2012-04-07 | B99: 4 | C99: 7779274.063 | D99: 8665113.15 | E99: 885839.0871 | F99: 0.1022305274 | G99: ='Tagesmengenallokation 03'!C99 -> 7404677.08 | H99: 1260436.07 | I99: 0.1454610053 | J99: ='Tagesmengenallokation 04'!C99 -> 7498857.502 | K99: 1166255.648 | L99: 0.1345920853 | M99: 5.6
A100: 2012-04-08 | B100: 4 | C100: 10117857.27 | D100: 10093994.85 | E100: -23862.41763 | F100: -0.002364021181 | G100: ='Tagesmengenallokation 03'!C100 -> 9194073.137 | H100: 899921.713 | I100: 0.08915416803 | J100: ='Tagesmengenallokation 04'!C100 -> 9482041.858 | K100: 611952.9917 | L100: 0.06062545115 | M100: 3.2
A101: 2012-04-09 | B101: 4 | C101: 8242034.102 | D101: 8222596.09 | E101: -19438.01206 | F101: -0.002363975057 | G101: ='Tagesmengenallokation 03'!C101 -> 7770959.729 | H101: 451636.361 | I101: 0.05492624909 | J101: ='Tagesmengenallokation 04'!C101 -> 7857489.78 | K101: 365106.3101 | L101: 0.04440280249 | M101: 5.7
A102: 2012-04-10 | B102: 4 | C102: 3410322.648 | D102: 3798661.6 | E102: 388338.9523 | F102: 0.1022304678 | G102: ='Tagesmengenallokation 03'!C102 -> 3414301.229 | H102: 384360.3712 | I102: 0.1011831039 | J102: ='Tagesmengenallokation 04'!C102 -> 3188109.029 | K102: 610552.5715 | L102: 0.1607283395 | M102: 12.5
A103: 2012-04-11 | B103: 4 | C103: 5911129.059 | D103: 6297967.5 | E103: 386838.4408 | F103: 0.06142274326 | G103: ='Tagesmengenallokation 03'!C103 -> 6156510.579 | H103: 141456.9213 | I103: 0.02246072582 | J103: ='Tagesmengenallokation 04'!C103 -> 6092155.505 | K103: 205811.9952 | L103: 0.03267911358 | M103: 7.9
A104: 2012-04-12 | B104: 4 | C104: 6672830.132 | D104: 6850988.82 | E104: 178158.6881 | F104: 0.02600481373 | G104: ='Tagesmengenallokation 03'!C104 -> 6666769.835 | H104: 184218.9847 | I104: 0.02688940086 | J104: ='Tagesmengenallokation 04'!C104 -> 6646252.835 | K104: 204735.9855 | L104: 0.02988415116 | M104: 7.2
A105: 2012-04-13 | B105: 4 | C105: 6625084.435 | D105: 7315324.14 | E105: 690239.7051 | F105: 0.09435531385 | G105: ='Tagesmengenallokation 03'!C105 -> 6342033.511 | H105: 973290.6288 | I105: 0.133048189 | J105: ='Tagesmengenallokation 04'!C105 -> 6295922.035 | K105: 1019402.105 | L105: 0.1393515975 | M105: 7.6
A106: 2012-04-14 | B106: 4 | C106: 5620486.537 | D106: 6260501.1 | E106: 640014.5631 | F106: 0.1022305648 | G106: ='Tagesmengenallokation 03'!C106 -> 4852907.749 | H106: 1407593.351 | I106: 0.2248371702 | J106: ='Tagesmengenallokation 04'!C106 -> 4706515.407 | K106: 1553985.693 | L106: 0.2482206565 | M106: 9.5
A107: 2012-04-15 | B107: 4 | C107: 6454831.287 | D107: 7002292.64 | E107: 547461.3534 | F107: 0.07818315822 | G107: ='Tagesmengenallokation 03'!C107 -> 6318055.71 | H107: 684236.9302 | I107: 0.0977161289 | J107: ='Tagesmengenallokation 04'!C107 -> 6284565.332 | K107: 717727.3082 | L107: 0.1024989022 | M107: 7.4
A108: 2012-04-16 | B108: 4 | C108: 8242034.102 | D108: 7983103 | E108: -258931.1021 | F108: -0.03243489431 | G108: ='Tagesmengenallokation 03'!C108 -> 7915061.843 | H108: 68041.15676 | I108: 0.008523146546 | J108: ='Tagesmengenallokation 04'!C108 -> 8016944.486 | K108: -33841.48601 | L108: -0.004239139343 | M108: 5.5
A109: 2012-04-17 | B109: 4 | C109: 8236517.087 | D109: 9014867.67 | E109: 778350.583 | F109: 0.08634076633 | G109: ='Tagesmengenallokation 03'!C109 -> 7693500.97 | H109: 1321366.7 | I109: 0.1465763834 | J109: ='Tagesmengenallokation 04'!C109 -> 7772434.775 | K109: 1242432.895 | L109: 0.1378204252 | M109: 5.8
A110: 2012-04-18 | B110: 4 | C110: 6648474.297 | D110: 6697190.24 | E110: 48715.94341 | F110: 0.007274086844 | G110: ='Tagesmengenallokation 03'!C110 -> 6019544.299 | H110: 677645.9412 | I110: 0.1011836183 | J110: ='Tagesmengenallokation 04'!C110 -> 5943502.431 | K110: 753687.8094 | L110: 0.1125379125 | M110: 8.1
A111: 2012-04-19 | B111: 4 | C111: 5933018.198 | D111: 6551154.78 | E111: 618136.5815 | F111: 0.09435536211 | G111: ='Tagesmengenallokation 03'!C111 -> 5769498.073 | H111: 781656.7074 | I111: 0.1193158662 | J111: ='Tagesmengenallokation 04'!C111 -> 5671270.46 | K111: 879884.3202 | L111: 0.1343098049 | M111: 8.5
A112: 2012-04-20 | B112: 4 | C112: 5890573.86 | D112: 5990791.8 | E112: 100217.9403 | F112: 0.01672866354 | G112: ='Tagesmengenallokation 03'!C112 -> 5662894.542 | H112: 327897.2578 | I112: 0.05473354253 | J112: ='Tagesmengenallokation 04'!C112 -> 5559374.59 | K112: 431417.2096 | L112: 0.07201338722 | M112: 8.6
A113: 2012-04-21 | B113: 4 | C113: 5620486.537 | D113: 6206061.96 | E113: 585575.4231 | F113: 0.09435539427 | G113: ='Tagesmengenallokation 03'!C113 -> 6191661.517 | H113: 14400.44322 | I113: 0.002320383411 | J113: ='Tagesmengenallokation 04'!C113 -> 6158171.139 | K113: 47890.82126 | L113: 0.00771678104 | M113: 7.4
A114: 2012-04-22 | B114: 4 | C114: 6454831.287 | D114: 6564649.35 | E114: 109818.0634 | F114: 0.0167287021 | G114: ='Tagesmengenallokation 03'!C114 -> 6932869.16 | H114: -368219.8105 | I114: -0.05609131438 | J114: ='Tagesmengenallokation 04'!C114 -> 6960331.132 | K114: -395681.7815 | L114: -0.06027462557 | M114: 6.5
A115: 2012-04-23 | B115: 4 | C115: 5960366.5 | D115: 5773116 | E115: -187250.5003 | F115: -0.03243491041 | G115: ='Tagesmengenallokation 03'!C115 -> 5999802.535 | H115: -226686.5345 | I115: -0.03926588943 | J115: ='Tagesmengenallokation 04'!C115 -> 5918063.952 | K115: -144947.9519 | L115: -0.02510740333 | M115: 8.2
A116: 2012-04-24 | B116: 4 | C116: 5956530.839 | D116: 5827095.01 | E116: -129435.8289 | F116: -0.02221275415 | G116: ='Tagesmengenallokation 03'!C116 -> 5927475.669 | H116: -100380.6594 | I116: -0.01722653557 | J116: ='Tagesmengenallokation 04'!C116 -> 5840139.8 | K116: -13044.78985 | L116: -0.002238643754 | M116: 8.3
A117: 2012-04-25 | B117: 4 | C117: 3935916.73 | D117: 4041001.96 | E117: 105085.2303 | F117: 0.02600474618 | G117: ='Tagesmengenallokation 03'!C117 -> 4244439.399 | H117: -203437.4391 | I117: -0.05034331611 | J117: ='Tagesmengenallokation 04'!C117 -> 4048918.852 | K117: -7916.892232 | L117: -0.001959140904 | M117: 10.9
A118: 2012-04-26 | B118: 4 | C118: 2469963.924 | D118: 2511986.4 | E118: 42022.47588 | F118: 0.0167287832 | G118: ='Tagesmengenallokation 03'!C118 -> 3161304.709 | H118: -649318.309 | I118: -0.2584879874 | J118: ='Tagesmengenallokation 04'!C118 -> 2930577.825 | K118: -418591.4251 | L118: -0.166637616 | M118: 13
A119: 2012-04-27 | B119: 4 | C119: 1768278.505 | D119: 1969634.9 | E119: 201356.3947 | F119: 0.1022303142 | G119: ='Tagesmengenallokation 03'!C119 -> 2358517.728 | H119: -388882.8281 | I119: -0.1974390422 | J119: ='Tagesmengenallokation 04'!C119 -> 2128255.565 | K119: -158620.6652 | L119: -0.08053302937 | M119: 14.9
A120: 2012-04-28 | B120: 4 | C120: 1061695.43 | D120: 1069474.64 | E120: 7779.209956 | F120: 0.007273861076 | G120: ='Tagesmengenallokation 03'!C120 -> 988604.5064 | H120: 80870.13362 | I120: 0.07561669122 | J120: ='Tagesmengenallokation 04'!C120 -> 840028.08 | K120: 229446.56 | L120: 0.2145413752 | M120: 20.8
A121: 2012-04-29 | B121: 4 | C121: 1258133.992 | D121: 1267353.36 | E121: 9219.368267 | F121: 0.007274504932 | G121: ='Tagesmengenallokation 03'!C121 -> 1261923.724 | H121: 5429.635679 | I121: 0.004284231889 | J121: ='Tagesmengenallokation 04'!C121 -> 1085431.829 | K121: 181921.5307 | L121: 0.1435444419 | M121: 19
A122: 2012-04-30 | B122: 4 | C122: 1788905.008 | D122: 1802013.2 | E122: 13108.1921 | F122: 0.007274193163 | G122: ='Tagesmengenallokation 03'!C122 -> 1633813.107 | H122: 168200.0927 | I122: 0.09334010025 | J122: ='Tagesmengenallokation 04'!C122 -> 1432193.842 | K122: 369819.3576 | L122: 0.2052256651 | M122: 17.4
A123: 2012-05-01 | B123: 5 | C123: 1789077.78 | D123: 1906159.2 | E123: 117081.4202 | F123: 0.06142268713 | G123: ='Tagesmengenallokation 03'!C123 -> 1868344.523 | H123: 37814.67665 | I123: 0.01983815237 | J123: ='Tagesmengenallokation 04'!C123 -> 1654097.853 | K123: 252061.3465 | L123: 0.1322352018 | M123: 16.5
A124: 2012-05-02 | B124: 5 | C124: 2088832.201 | D124: 2306459.4 | E124: 217627.199 | F124: 0.09435552993 | G124: ='Tagesmengenallokation 03'!C124 -> 1773072.95 | H124: 533386.4498 | I124: 0.23125768 | J124: ='Tagesmengenallokation 04'!C124 -> 1562831.067 | K124: 743628.3326 | L124: 0.3224111955 | M124: 16.8
A125: 2012-05-03 | B125: 5 | C125: 2902534.294 | D125: 3092482.8 | E125: 189948.5064 | F125: 0.06142265572 | G125: ='Tagesmengenallokation 03'!C125 -> 2722330.86 | H125: 370151.9402 | I125: 0.1196940983 | J125: ='Tagesmengenallokation 04'!C125 -> 2488713.731 | K125: 603769.0688 | L125: 0.1952376481 | M125: 14
A126: 2012-05-04 | B126: 5 | C126: 2081834.152 | D126: 2197909.79 | E126: 116075.6379 | F126: 0.05281182985 | G126: ='Tagesmengenallokation 03'!C126 -> 2431558.729 | H126: -233648.9387 | I126: -0.106305063 | J126: ='Tagesmengenallokation 04'!C126 -> 2200129.251 | K126: -2219.460655 | L126: -0.001009805163 | M126: 14.7
A127: 2012-05-05 | B127: 5 | C127: 2744480.31 | D127: 2658260 | E127: -86220.30983 | F127: -0.03243486711 | G127: ='Tagesmengenallokation 03'!C127 -> 3231150.681 | H127: -572890.6811 | I127: -0.2155134115 | J127: ='Tagesmengenallokation 04'!C127 -> 3004958.481 | K127: -346698.4809 | L127: -0.1304230891 | M127: 12.5
A128: 2012-05-06 | B128: 5 | C128: 3285127.299 | D128: 3372837.32 | E128: 87710.02149 | F128: 0.02600481825 | G128: ='Tagesmengenallokation 03'!C128 -> 3594613.627 | H128: -221776.3071 | I128: -0.06575363295 | J128: ='Tagesmengenallokation 04'!C128 -> 3376911.047 | K128: -4073.726863 | L128: -0.001207804135 | M128: 11.9
A129: 2012-05-07 | B129: 5 | C129: 3969216.952 | D129: 3921410.4 | E129: -47806.55201 | F129: -0.01219116265 | G129: ='Tagesmengenallokation 03'!C129 -> 4050335.591 | H129: -128925.1907 | I129: -0.03287725016 | J129: ='Tagesmengenallokation 04'!C129 -> 3844691.22 | K129: 76719.1796 | L129: 0.01956418017 | M129: 11.3
A130: 2012-05-08 | B130: 5 | C130: 2480086.226 | D130: 2618367.48 | E130: 138281.2544 | F130: 0.05281201185 | G130: ='Tagesmengenallokation 03'!C130 -> 2456900.978 | H130: 161466.5016 | I130: 0.06166686029 | J130: ='Tagesmengenallokation 04'!C130 -> 2225471.5 | K130: 392895.9796 | L130: 0.150053796 | M130: 14.7
A131: 2012-05-09 | B131: =IF(A131<>"",MONTH(A131),"") -> 5 | C131: 2088832.201 | D131: 2185066.8 | E131: =D131-C131 -> 96234.59896 | F131: =IF(E131<>0,E131/D131,"") -> 0.04404194826 | G131: ='Tagesmengenallokation 03'!C131 -> 1746817.846 | H131: =IF(G131<>0,D131-G131,"") -> 438248.9541 | I131: =IF(H131<>"",H131/D131,"") -> 0.200565472 | J131: ='Tagesmengenallokation 04'!C131 -> 1537960.955 | K131: =IF(J131<>0,D131-J131,"") -> 647105.8447 | L131: =IF(K131<>"",K131/D131,"") -> 0.2961492274 | M131: 16.9
A132: 2012-05-10 | B132: 5 | C132: 989083.8658 | D132: 977171.22 | E132: -11912.64578 | F132: -0.0121909503 | G132: ='Tagesmengenallokation 03'!C132 -> 1131026.412 | H132: -153855.1916 | I132: -0.1574495733 | J132: ='Tagesmengenallokation 04'!C132 -> 971909.6321 | K132: 5261.587934 | L132: 0.005384509722 | M132: 20.1
A133: 2012-05-11 | B133: 5 | C133: 872742.3209 | D133: 853777.24 | E133: -18965.08087 | F133: -0.02221314879 | G133: ='Tagesmengenallokation 03'!C133 -> 860869.2372 | H133: -7091.997236 | I133: -0.008306613134 | J133: ='Tagesmengenallokation 04'!C133 -> 737449.232 | K133: 116328.008 | L133: 0.1362510062 | M133: 22.7
A134: 2012-05-12 | B134: 5 | C134: 3213044.085 | D134: 3267708.15 | E134: 54664.06507 | F134: 0.01672856405 | G134: ='Tagesmengenallokation 03'!C134 -> 3673472.122 | H134: -405763.9723 | I134: -0.1241738716 | J134: ='Tagesmengenallokation 04'!C134 -> 3461338.455 | K134: -193630.3047 | L134: -0.05925569109 | M134: 11.6
A135: 2012-05-13 | B135: 5 | C135: 5055383.475 | D135: 4896564 | E135: -158819.4745 | F135: -0.03243488179 | G135: ='Tagesmengenallokation 03'!C135 -> 5076874.46 | H135: -180310.46 | I135: -0.03682387487 | J135: ='Tagesmengenallokation 04'!C135 -> 4939256.319 | K135: -42692.3192 | L135: -0.008718832063 | M135: 9.3
A136: 2012-05-14 | B136: 5 | C136: 3969216.952 | D136: 4036746 | E136: 67529.04799 | F136: 0.01672858485 | G136: ='Tagesmengenallokation 03'!C136 -> 4634990.675 | H136: -598244.675 | I136: -0.1481997319 | J136: ='Tagesmengenallokation 04'!C136 -> 4457891.132 | K136: -421145.1319 | L136: -0.104327875 | M136: 10.3
A137: 2012-05-15 | B137: 5 | C137: 5247194.631 | D137: 5082349 | E137: -164845.6312 | F137: -0.03243492945 | G137: ='Tagesmengenallokation 03'!C137 -> 5523724.818 | H137: -441375.818 | I137: -0.08684484635 | J137: ='Tagesmengenallokation 04'!C137 -> 5404953.337 | K137: -322604.3373 | L137: -0.06347543966 | M137: 8.9
A138: 2012-05-16 | B138: 5 | C138: 6648474.297 | D138: 6890378.42 | E138: 241904.1234 | F138: 0.03510752366 | G138: ='Tagesmengenallokation 03'!C138 -> 7208610.992 | H138: -318232.5723 | I138: -0.04618506457 | J138: ='Tagesmengenallokation 04'!C138 -> 7243228.577 | K138: -352850.1569 | L138: -0.05120911151 | M138: 6.4
A139: 2012-05-17 | B139: 5 | C139: 5933018.198 | D139: 5919025.81 | E139: -13992.38848 | F139: -0.002363968148 | G139: ='Tagesmengenallokation 03'!C139 -> 5436709.413 | H139: 482316.397 | I139: 0.08148577358 | J139: ='Tagesmengenallokation 04'!C139 -> 5313065.361 | K139: 605960.4487 | L139: 0.1023750307 | M139: 9
A140: 2012-05-18 | B140: 5 | C140: 3372029.618 | D140: 3266094 | E140: -105935.6177 | F140: -0.03243495677 | G140: ='Tagesmengenallokation 03'!C140 -> 2915354.025 | H140: 350739.9746 | I140: 0.1073882058 | J140: ='Tagesmengenallokation 04'!C140 -> 2682216.013 | K140: 583877.9867 | L140: 0.1787694986 | M140: 13.5
A141: 2012-05-19 | B141: 5 | C141: 1681598.343 | D141: 1824221.28 | E141: 142622.9366 | F141: 0.07818291464 | G141: ='Tagesmengenallokation 03'!C141 -> 1616799.293 | H141: 207421.9871 | I141: 0.1137044005 | J141: ='Tagesmengenallokation 04'!C141 -> 1410779.006 | K141: 413442.2744 | L141: 0.2266404185 | M141: 17.1
A142: 2012-05-20 | B142: 5 | C142: 1258133.992 | D142: 1230795.09 | E142: -27338.90173 | F142: -0.02221239096 | G142: ='Tagesmengenallokation 03'!C142 -> 1388905.139 | H142: -158110.0489 | I142: -0.1284617157 | J142: ='Tagesmengenallokation 04'!C142 -> 1201220.492 | K142: 29574.59791 | L142: 0.02402885594 | M142: 18.3
A143: 2012-05-21 | B143: 5 | C143: 1524254.824 | D143: 1505896.38 | E143: -18358.44435 | F143: -0.01219104089 | G143: ='Tagesmengenallokation 03'!C143 -> 1519515.514 | H143: -13619.13382 | I143: -0.009043871811 | J143: ='Tagesmengenallokation 04'!C143 -> 1325534.491 | K143: 180361.8886 | L143: 0.119770451 | M143: 17.9
A144: 2012-05-22 | B144: 5 | C144: 1524774.558 | D144: 1609790.48 | E144: 85015.92156 | F144: 0.05281179298 | G144: ='Tagesmengenallokation 03'!C144 -> 1477588.746 | H144: 132201.7344 | I144: 0.08212356582 | J144: ='Tagesmengenallokation 04'!C144 -> 1286740.617 | K144: 323049.8631 | L144: 0.2006782045 | M144: 18.1
A145: 2012-05-23 | B145: 5 | C145: 1122914.944 | D145: 1131143.52 | E145: 8228.575597 | F145: 0.007274563706 | G145: ='Tagesmengenallokation 03'!C145 -> 1349334.52 | H145: -218191.0001 | I145: -0.1928941785 | J145: ='Tagesmengenallokation 04'!C145 -> 1168034.636 | K145: -36891.11588 | L145: -0.03261400099 | M145: 18.7
A146: 2012-05-24 | B146: 5 | C146: 1127930.113 | D146: 1223594.4 | E146: 95664.28742 | F146: 0.07818300527 | G146: ='Tagesmengenallokation 03'!C146 -> 1117552.44 | H146: 106041.9602 | I146: 0.08666430659 | J146: ='Tagesmengenallokation 04'!C146 -> 959973.3114 | K146: 263621.0886 | L146: 0.2154481 | M146: 20.2
A147: 2012-05-25 | B147: 5 | C147: 1292147.431 | D147: 1401739.36 | E147: 109591.9293 | F147: 0.07818281516 | G147: ='Tagesmengenallokation 03'!C147 -> 1441596.438 | H147: -39857.07838 | I147: -0.02843401528 | J147: ='Tagesmengenallokation 04'!C147 -> 1252326.774 | K147: 149412.5858 | L147: 0.1065908471 | M147: 18.2
A148: 2012-05-26 | B148: 5 | C148: 1432027.629 | D148: 1553483.68 | E148: 121456.0515 | F148: 0.07818302377 | G148: ='Tagesmengenallokation 03'!C148 -> 1593043.272 | H148: -39559.5921 | I148: -0.02546508381 | J148: ='Tagesmengenallokation 04'!C148 -> 1388471.849 | K148: 165011.8313 | L148: 0.1062205116 | M148: 17.2
A149: 2012-05-27 | B149: 5 | C149: 1722284.572 | D149: 1818312.93 | E149: 96028.35819 | F149: 0.05281178867 | G149: ='Tagesmengenallokation 03'!C149 -> 2134639.977 | H149: -316327.0471 | I149: -0.1739673309 | J149: ='Tagesmengenallokation 04'!C149 -> 1908213.112 | K149: -89900.18227 | L149: -0.04944153495 | M149: 15.4
A150: 2012-05-28 | B150: 5 | C150: 1524254.824 | D150: 1564951.14 | E150: 40696.31565 | F150: 0.02600484744 | G150: ='Tagesmengenallokation 03'!C150 -> 1586787.539 | H150: -21836.39902 | I150: -0.01395340625 | J150: ='Tagesmengenallokation 04'!C150 -> 1388184.36 | K150: 176766.7799 | L150: 0.1129535456 | M150: 17.6
A151: 2012-05-29 | B151: 5 | C151: 1524774.558 | D151: 1506409.44 | E151: -18365.11844 | F151: -0.01219131927 | G151: ='Tagesmengenallokation 03'!C151 -> 1222835.384 | H151: 283574.0561 | I151: 0.1882450074 | J151: ='Tagesmengenallokation 04'!C151 -> 1054322.015 | K151: 452087.4253 | L151: 0.300109262 | M151: 19.5
A152: 2012-05-30 | B152: 5 | C152: 1512077.295 | D152: 1523156.96 | E152: 11079.66516 | F152: 0.007274145375 | G152: ='Tagesmengenallokation 03'!C152 -> 1367927.229 | H152: 155229.7311 | I152: 0.1019131548 | J152: ='Tagesmengenallokation 04'!C152 -> 1185026.468 | K152: 338130.4922 | L152: 0.221993203 | M152: 18.6
A153: 2012-05-31 | B153: 5 | C153: 1781763.663 | D153: 1950140.44 | E153: 168376.7765 | F153: 0.08634084658 | G153: ='Tagesmengenallokation 03'!C153 -> 1431490.106 | H153: 518650.3343 | I153: 0.2659553762 | J153: ='Tagesmengenallokation 04'!C153 -> 1243805.459 | K153: 706334.9811 | L153: 0.3621969816 | M153: 18.3
A154: 2012-06-01 | B154: 6 | C154: 1768278.505 | D154: 1866871.34 | E154: 98592.83475 | F154: 0.05281179942 | G154: ='Tagesmengenallokation 03'!C154 -> 1767637.175 | H154: 99234.16516 | I154: 0.05315533162 | J154: ='Tagesmengenallokation 04'!C154 -> 1557395.292 | K154: 309476.0479 | L154: 0.1657725636 | M154: 16.8
A155: 2012-06-02 | B155: 6 | C155: 1681598.343 | D155: 1775358.21 | E155: 93759.86661 | F155: 0.0528118022 | G155: ='Tagesmengenallokation 03'!C155 -> 1616799.293 | H155: 158558.9171 | I155: 0.08931094366 | J155: ='Tagesmengenallokation 04'!C155 -> 1410779.006 | K155: 364579.2044 | L155: 0.2053552924 | M155: 17.1
A156: 2012-06-03 | B156: 6 | C156: 1722284.572 | D156: 1851676.47 | E156: 129391.8982 | F156: 0.06987824293 | G156: ='Tagesmengenallokation 03'!C156 -> 2008468.427 | H156: -156791.957 | I156: -0.0846756761 | J156: ='Tagesmengenallokation 04'!C156 -> 1785943.231 | K156: 65733.23918 | L156: 0.03549931116 | M156: 15.8
A157: 2012-06-04 | B157: 6 | C157: 2480741.683 | D157: 2619059.63 | E157: 138317.9473 | F157: 0.05281206494 | G157: ='Tagesmengenallokation 03'!C157 -> 2651642.97 | H157: -32583.33969 | I157: -0.01244085446 | J157: ='Tagesmengenallokation 04'!C157 -> 2418329.994 | K157: 200729.6362 | L157: 0.07664187326 | M157: 14.2
A158: 2012-06-05 | B158: 6 | C158: 3410322.648 | D158: 3699566.08 | E158: 289243.4323 | F158: 0.0781830696 | G158: ='Tagesmengenallokation 03'!C158 -> 4275986.868 | H158: -576420.7877 | I158: -0.1558076745 | J158: ='Tagesmengenallokation 04'!C158 -> 4080466.321 | K158: -380900.2408 | L158: -0.1029580855 | M158: 10.9
A159: 2012-06-06 | B159: 6 | C159: 2460034.497 | D159: 2621025 | E159: 160990.5027 | F159: 0.06142272689 | G159: ='Tagesmengenallokation 03'!C159 -> 2795475.018 | H159: -174450.0182 | I159: -0.06655793751 | J159: ='Tagesmengenallokation 04'!C159 -> 2561830.482 | K159: 59194.51803 | L159: 0.02258449196 | M159: 13.8
A160: 2012-06-07 | B160: 6 | C160: 1302501.735 | D160: 1261582 | E160: -40919.73491 | F160: -0.03243525582 | G160: ='Tagesmengenallokation 03'!C160 -> 1514859.64 | H160: -253277.6397 | I160: -0.200761932 | J160: ='Tagesmengenallokation 04'!C160 -> 1320878.617 | K160: -59296.61723 | L160: -0.04700179397 | M160: 17.9
A161: 2012-06-08 | B161: 6 | C161: 1506794.053 | D161: 1663780.98 | E161: 156986.9266 | F161: 0.09435552427 | G161: ='Tagesmengenallokation 03'!C161 -> 1821415.512 | H161: -157634.5318 | I161: -0.09474476127 | J161: ='Tagesmengenallokation 04'!C161 -> 1608477.3 | K161: 55303.68027 | L161: 0.03323975988 | M161: 16.6
A162: 2012-06-09 | B162: 6 | C162: 1980918.296 | D162: 2052994.02 | E162: 72075.72366 | F162: 0.035107615 | G162: ='Tagesmengenallokation 03'!C162 -> 1850630.176 | H162: 202363.8445 | I162: 0.09857010907 | J162: ='Tagesmengenallokation 04'!C162 -> 1632634.666 | K162: 420359.3544 | L162: 0.2047543005 | M162: 16.2
A163: 2012-06-10 | B163: 6 | C163: 2388505.503 | D163: 2498545.44 | E163: 110039.9366 | F163: 0.04404159912 | G163: ='Tagesmengenallokation 03'!C163 -> 2721638.846 | H163: -223093.4064 | I163: -0.08928931322 | J163: ='Tagesmengenallokation 04'!C163 -> 2487994.31 | K163: 10551.12981 | L163: 0.004222908914 | M163: 13.8
A164: 2012-06-11 | B164: 6 | C164: 2480741.683 | D164: 2619059.63 | E164: 138317.9473 | F164: 0.05281206494 | G164: ='Tagesmengenallokation 03'!C164 -> 2611685.706 | H164: 7373.924115 | I164: 0.002815485387 | J164: ='Tagesmengenallokation 04'!C164 -> 2378624.429 | K164: 240435.2014 | L164: 0.09180211044 | M164: 14.3
A165: 2012-06-12 | B165: 6 | C165: 2914394.527 | D165: 3133347.96 | E165: 218953.4327 | F165: 0.06987842891 | G165: ='Tagesmengenallokation 03'!C165 -> 3514599.497 | H165: -381251.5366 | I165: -0.1216754543 | J165: ='Tagesmengenallokation 04'!C165 -> 3290855.642 | K165: -157507.6817 | L165: -0.05026817441 | M165: 12.3
A166: 2012-06-13 | B166: 6 | C166: 2891064.619 | D166: 2996255.73 | E166: 105191.1112 | F166: 0.03510752108 | G166: ='Tagesmengenallokation 03'!C166 -> 2837838.306 | H166: 158417.4236 | I166: 0.05287179663 | J166: ='Tagesmengenallokation 04'!C166 -> 2604287.967 | K166: 391967.7633 | L166: 0.1308191952 | M166: 13.7
A167: 2012-06-14 | B167: 6 | C167: 2097420.671 | D167: 2031528 | E167: -65892.67141 | F167: -0.03243502989 | G167: ='Tagesmengenallokation 03'!C167 -> 2447871.308 | H167: -416343.3077 | I167: -0.2049409645 | J167: ='Tagesmengenallokation 04'!C167 -> 2216441.83 | K167: -184913.8297 | L167: -0.09102204336 | M167: 14.7
A168: 2012-06-15 | B168: 6 | C168: 1118694.404 | D168: 1235247 | E168: 116552.5955 | F168: 0.09435570015 | G168: ='Tagesmengenallokation 03'!C168 -> 1344974.037 | H168: -109727.0372 | I168: -0.08883003737 | J168: ='Tagesmengenallokation 04'!C168 -> 1163674.153 | K168: 71572.84704 | L168: 0.05794213387 | M168: 18.7
A169: 2012-06-16 | B169: 6 | C169: 827076.262 | D169: 921256.95 | E169: 94180.68799 | F169: 0.1022306404 | G169: ='Tagesmengenallokation 03'!C169 -> 999787.0686 | H169: -78530.11863 | I169: -0.08524236222 | J169: ='Tagesmengenallokation 04'!C169 -> 849739.301 | K169: 71517.64897 | L169: 0.07763051228 | M169: 20.7
A170: 2012-06-17 | B170: 6 | C170: 954466.6281 | D170: 933725.81 | E170: -20740.81808 | F170: -0.0222129643 | G170: ='Tagesmengenallokation 03'!C170 -> 1469893.811 | H170: -536168.0007 | I170: -0.5742242476 | J170: ='Tagesmengenallokation 04'!C170 -> 1275912.788 | K170: -342186.9783 | L170: -0.3664747987 | M170: 17.9
A171: 2012-06-18 | B171: 6 | C171: 798355.5621 | D171: 858334.14 | E171: 59978.57791 | F171: 0.06987788918 | G171: ='Tagesmengenallokation 03'!C171 -> 915708.1647 | H171: -57374.02471 | I171: -0.06684346112 | J171: ='Tagesmengenallokation 04'!C171 -> 784969.1077 | K171: 73365.03232 | L171: 0.08547374374 | M171: 22.1
A172: 2012-06-19 | B172: 6 | C172: 883957.4742 | D172: 967491.31 | E172: 83533.83582 | F172: 0.08634065748 | G172: ='Tagesmengenallokation 03'!C172 -> 971786.219 | H172: -4294.90898 | I172: -0.004439222281 | J172: ='Tagesmengenallokation 04'!C172 -> 833130.9067 | K172: 134360.4033 | L172: 0.1388750492 | M172: 21.5
A173: 2012-06-20 | B173: 6 | C173: 984594.8507 | D173: 1058565.93 | E173: 73971.07925 | F173: 0.06987857549 | G173: ='Tagesmengenallokation 03'!C173 -> 1213827.253 | H173: -155261.3229 | I173: -0.1466713772 | J173: ='Tagesmengenallokation 04'!C173 -> 1045313.884 | K173: 13252.04635 | L173: 0.01251886724 | M173: 19.5
A174: 2012-06-21 | B174: 6 | C174: 880417.7487 | D174: 929507.31 | E174: 49089.56126 | F174: 0.05281245315 | G174: ='Tagesmengenallokation 03'!C174 -> 1117552.44 | H174: -188045.1298 | I174: -0.2023062409 | J174: ='Tagesmengenallokation 04'!C174 -> 959973.3114 | K174: -30466.00141 | L174: -0.03277650545 | M174: 20.2
A175: 2012-06-22 | B175: 6 | C175: 1506794.053 | D175: 1561618.99 | E175: 54824.93664 | F175: 0.03510775483 | G175: ='Tagesmengenallokation 03'!C175 -> 1504365.402 | H175: 57253.58801 | I175: 0.03666296861 | J175: ='Tagesmengenallokation 04'!C175 -> 1310384.38 | K175: 251234.6104 | L175: 0.1608808628 | M175: 17.9
A176: 2012-06-23 | B176: 6 | C176: 1432027.629 | D176: 1400909.39 | E176: -31118.23853 | F176: -0.02221288454 | G176: ='Tagesmengenallokation 03'!C176 -> 1459381.349 | H176: -58471.95925 | I176: -0.04173857329 | J176: ='Tagesmengenallokation 04'!C176 -> 1263848.151 | K176: 137061.2388 | L176: 0.09783733319 | M176: 17.8
A177: 2012-06-24 | B177: 6 | C177: 1258133.992 | D177: 1230795.09 | E177: -27338.90173 | F177: -0.02221239096 | G177: ='Tagesmengenallokation 03'!C177 -> 1469893.811 | H177: -239098.7207 | I177: -0.194263629 | J177: ='Tagesmengenallokation 04'!C177 -> 1275912.788 | K177: -45117.6983 | L177: -0.03665735967 | M177: 17.9
A178: 2012-06-25 | B178: 6 | C178: 1788905.008 | D178: 1853994.35 | E178: 65089.3421 | F178: 0.035107627 | G178: ='Tagesmengenallokation 03'!C178 -> 2141680.519 | H178: -287686.1694 | I178: -0.1551710066 | J178: ='Tagesmengenallokation 04'!C178 -> 1917119.56 | K178: -63125.21039 | L178: -0.03404822156 | M178: 15.6
A179: 2012-06-26 | B179: 6 | C179: 1524774.558 | D179: 1521178.16 | E179: -3596.398436 | F179: -0.002364219084 | G179: ='Tagesmengenallokation 03'!C179 -> 1733717.094 | H179: -212538.9342 | I179: -0.1397199485 | J179: ='Tagesmengenallokation 04'!C179 -> 1526267.864 | K179: -5089.703752 | L179: -0.003345895889 | M179: 17
A180: 2012-06-27 | B180: 6 | C180: 1122914.944 | D180: 1185525.42 | E180: 62610.4756 | F180: 0.05281242776 | G180: ='Tagesmengenallokation 03'!C180 -> 1154374.708 | H180: 31150.71169 | I180: 0.02627586989 | J180: ='Tagesmengenallokation 04'!C180 -> 992155.7209 | K180: 193369.6991 | L180: 0.1631088595 | M180: 19.9
A181: 2012-06-28 | B181: 6 | C181: 796779.2034 | D181: 841205.32 | E181: 44426.11664 | F181: 0.05281245326 | G181: ='Tagesmengenallokation 03'!C181 -> 905915.9407 | H181: -64710.62068 | I181: -0.07692607161 | J181: ='Tagesmengenallokation 04'!C181 -> 776439.2462 | K181: 64766.0738 | L181: 0.07699199264 | M181: 22.2
A182: 2012-06-29 | B182: 6 | C182: 680091.7007 | D182: 744360.38 | E182: 64268.67932 | F182: 0.08634081158 | G182: ='Tagesmengenallokation 03'!C182 -> 769428.1071 | H182: -25067.7271 | I182: -0.03367686913 | J182: ='Tagesmengenallokation 04'!C182 -> 662436.9455 | K182: 81923.43445 | L182: 0.1100588326 | M182: 24.3
A183: 2012-06-30 | B183: 6 | C183: 643377.7298 | D183: 697944.8 | E183: 54567.0702 | F183: 0.07818250126 | G183: ='Tagesmengenallokation 03'!C183 -> 742177.2008 | H183: -44232.40083 | I183: -0.06337521366 | J183: ='Tagesmengenallokation 04'!C183 -> 633379.7324 | K183: 64565.0676 | L183: 0.09250741262 | M183: 24.1
A184: 2012-07-01 | B184: 7 | C184: 1089009.491 | D184: 1054797 | E184: -34212.49079 | F184: -0.0324351423 | G184: ='Tagesmengenallokation 03'!C184 -> 1701481.928 | H184: -646684.9283 | I184: -0.6130894649 | J184: ='Tagesmengenallokation 04'!C184 -> 1492625.038 | K184: -437828.0377 | L184: -0.4150827483 | M184: 16.9
A185: 2012-07-02 | B185: 7 | C185: 1524254.824 | D185: 1609242.21 | E185: 84987.38565 | F185: 0.05281205348 | G185: ='Tagesmengenallokation 03'!C185 -> 1785756.145 | H185: -176513.9353 | I185: -0.1096876121 | J185: ='Tagesmengenallokation 04'!C185 -> 1575514.262 | K185: 33727.94751 | L185: 0.02095890059 | M185: 16.8
A186: 2012-07-03 | B186: 7 | C186: 1307825.142 | D186: 1355410.73 | E186: 47585.58755 | F186: 0.03510787283 | G186: ='Tagesmengenallokation 03'!C186 -> 1564614.716 | H186: -209203.9863 | I186: -0.1543472998 | J186: ='Tagesmengenallokation 04'!C186 -> 1367540.402 | K186: -12129.67235 | L186: -0.008949075056 | M186: 17.7
A187: 2012-07-04 | B187: 7 | C187: 876344.6474 | D187: 933694.3 | E187: 57349.65262 | F187: 0.0614223013 | G187: ='Tagesmengenallokation 03'!C187 -> 1027408.942 | H187: -93714.64211 | I187: -0.1003697271 | J187: ='Tagesmengenallokation 04'!C187 -> 880291.1337 | K187: 53403.16627 | L187: 0.05719555777 | M187: 20.9
A188: 2012-07-05 | B188: 7 | C188: 880417.7487 | D188: 878341.77 | E188: -2075.978738 | F188: -0.002363520453 | G188: ='Tagesmengenallokation 03'!C188 -> 931345.4974 | H188: -53003.72738 | I188: -0.06034522004 | J188: ='Tagesmengenallokation 04'!C188 -> 798031.9958 | K188: 80309.77419 | L188: 0.09143339977 | M188: 21.9
A189: 2012-07-06 | B189: 7 | C189: 980727.5777 | D189: 1092404.55 | E189: 111676.9723 | F189: 0.1022304166 | G189: ='Tagesmengenallokation 03'!C189 -> 1401773.239 | H189: -309368.6894 | I189: -0.2831997445 | J189: ='Tagesmengenallokation 04'!C189 -> 1215679.101 | K189: -123274.5513 | L189: -0.1128469772 | M189: 18.4
A190: 2012-07-07 | B190: 7 | C190: 930076.5735 | D190: 927882.71 | E190: -2193.863452 | F190: -0.002364375829 | G190: ='Tagesmengenallokation 03'!C190 -> 1127089.033 | H190: -199206.3227 | I190: -0.2146891203 | J190: ='Tagesmengenallokation 04'!C190 -> 961736.086 | K190: -33853.37598 | L190: -0.0364845423 | M190: 19.7
A191: 2012-07-08 | B191: 7 | C191: 954466.6281 | D191: 1053908.34 | E191: 99441.71192 | F191: 0.09435518075 | G191: ='Tagesmengenallokation 03'!C191 -> 1245238.818 | H191: -191330.4783 | I191: -0.1815437558 | J191: ='Tagesmengenallokation 04'!C191 -> 1070348.36 | K191: -16440.02049 | L191: -0.01559909896 | M191: 19.1
A192: 2012-07-09 | B192: 7 | C192: 1131443.58 | D192: 1117815.96 | E192: -13627.62003 | F192: -0.01219129134 | G192: ='Tagesmengenallokation 03'!C192 -> 1191033.028 | H192: -73217.06839 | I192: -0.06550011005 | J192: ='Tagesmengenallokation 04'!C192 -> 1025680.082 | K192: 92135.87835 | L192: 0.08242490861 | M192: 19.7
A193: 2012-07-10 | B193: 7 | C193: 1132519.9 | D193: 1096941 | E193: -35578.90007 | F193: -0.03243465243 | G193: ='Tagesmengenallokation 03'!C193 -> 1192233.317 | H193: -95292.31709 | I193: -0.08687095941 | J193: ='Tagesmengenallokation 04'!C193 -> 1026880.37 | K193: 70060.62965 | L193: 0.06386909565 | M193: 19.7
A194: 2012-07-11 | B194: 7 | C194: 1512077.295 | D194: 1596385.66 | E194: 84308.36516 | F194: 0.05281202861 | G194: ='Tagesmengenallokation 03'!C194 -> 1553153.047 | H194: 43232.61279 | I194: 0.02708155922 | J194: ='Tagesmengenallokation 04'!C194 -> 1356078.733 | K194: 240306.9267 | L194: 0.1505318751 | M194: 17.7
A195: 2012-07-12 | B195: =IF(A195<>"",MONTH(A195),"") -> 7 | C195: 2097420.671 | D195: 2275311.36 | E195: =D195-C195 -> 177890.6886 | F195: =IF(E195<>0,E195/D195,"") -> 0.07818300902 | G195: ='Tagesmengenallokation 03'!C195 -> 2166603.386 | H195: =IF(G195<>0,D195-G195,"") -> 108707.9735 | I195: =IF(H195<>"",H195/D195,"") -> 0.04777718577 | J195: ='Tagesmengenallokation 04'!C195 -> 1941087.428 | K195: =IF(J195<>0,D195-J195,"") -> 334223.9323 | L195: =IF(K195<>"",K195/D195,"") -> 0.1468915148 | M195: 15.5
A196: 2012-07-13 | B196: 7 | C196: 2081834.152 | D196: 2298731.34 | E196: 216897.1879 | F196: 0.09435517065 | G196: ='Tagesmengenallokation 03'!C196 -> 2087459.174 | H196: 211272.1656 | I196: 0.09190815904 | J196: ='Tagesmengenallokation 04'!C196 -> 1863895.676 | K196: 434835.6637 | L196: 0.1891633251 | M196: 15.7
A197: 2012-07-14 | B197: 7 | C197: 1432027.629 | D197: 1470261.34 | E197: 38233.71147 | F197: 0.02600470436 | G197: ='Tagesmengenallokation 03'!C197 -> 1524337.009 | H197: -54075.6693 | I197: -0.03677963082 | J197: ='Tagesmengenallokation 04'!C197 -> 1324218.433 | K197: 146042.9072 | L197: 0.0993312571 | M197: 17.5
A198: 2012-07-15 | B198: 7 | C198: 2388505.503 | D198: 2498545.44 | E198: 110039.9366 | F198: 0.04404159912 | G198: ='Tagesmengenallokation 03'!C198 -> 2523768.952 | H198: -25223.51164 | I198: -0.01009527833 | J198: ='Tagesmengenallokation 04'!C198 -> 2290707.674 | K198: 207837.7657 | L198: 0.08318350442 | M198: 14.3
A199: 2012-07-16 | B199: 7 | C199: 2106249.507 | D199: 2203286.4 | E199: 97036.89338 | F199: 0.04404188823 | G199: ='Tagesmengenallokation 03'!C199 -> 2276651.765 | H199: -73365.36459 | I199: -0.03329815161 | J199: ='Tagesmengenallokation 04'!C199 -> 2048541.951 | K199: 154744.4492 | L199: 0.07023346997 | M199: 15.2
A200: 2012-07-17 | B200: 7 | C200: 1789077.78 | D200: 1940816.64 | E200: 151738.8602 | F200: 0.07818299629 | G200: ='Tagesmengenallokation 03'!C200 -> 1564614.716 | H200: 376201.9237 | I200: 0.193836922 | J200: ='Tagesmengenallokation 04'!C200 -> 1367540.402 | K200: 573276.2376 | L200: 0.295378876 | M200: 17.7
... 167 more rows

Sheet Eingabemaske
A1: Dateneingabe | I1: Berechnung
C2: =Berechnungsblatt!K4 -> 1
A3: Auswahl der angewendeten Haushaltskunden Profile: | I3: Als-Ob-Allokation auf Basis der Ist-Temperatur starten.
A11: Eingabe der unternehmenseigenen Kundenwerte (Spalte "B")
B14: "alte" Profile (vor der Umstellung) | E14: "neue" Profile (nach der Umstellung)
A15: Lastprofil | B15: Original- Kundenwerte ("altes Profil") | C15: h-Wert ("altes Profil") | D15: hochgerechnete Jahresmenge | E15: h-Wert ("neues Profil") | F15: Kundenwert ("neues Profil")
A16: Einfamilienhaus 03 | B16: 3327287 | C16: ='h-Wertberechnung'!$F$20 -> 334.1411831 | D16: =B16*C16 -> 1111783615 | E16: ='h-Wertberechnung'!$F$20 -> 334.1411831 | I16: Jetzt kann nun sehr vereinfacht der Kundenwert für verschiedene Ausprägungen berechnet werden.
A17: Einfamilienhaus 04 | C17: ='h-Wertberechnung'!$I$20 -> 324.2991477 | E17: ='h-Wertberechnung'!$I$20 -> 324.2991477 | F17: =D16/E17 -> 3428265.608
A18: Mehrfamilienhaus 03 | B18: 1010447 | C18: ='h-Wertberechnung'!$L$20 -> 329.1658146 | D18: =B18*C18 -> 332604609.9 | E18: ='h-Wertberechnung'!$L$20 -> 329.1658146 | I18: Dies ist von dem Netzbetreiber wie folgt vorzunehmen:
A19: Mehrfamilienhaus 04 | C19: ='h-Wertberechnung'!$O$20 -> 325.2433189 | E19: ='h-Wertberechnung'!$O$20 -> 325.2433189 | F19: =D18/E19 -> 1022633.181 | I19: Der Kundenwert des "alten Profils" (Spalte "B") wird mit dem Jahres h-Wert des "alten Profils" (Spalte "C")
A20: BA1 | C20: ='h-Wertberechnung'!$AH$20 -> 387.8720446 | E20: ='h-Wertberechnung'!$AH$20 -> 387.8720446 | I20: multipliziert (= hochgerechnete Jahrsmenge, Spalte "D"). Danach wird diese "Jahresmenge" durch den Jahres
A21: BA2 | C21: ='h-Wertberechnung'!$AE$20 -> 379.7733549 | E21: ='h-Wertberechnung'!$AE$20 -> 379.7733549 | I21: h-Wert des "neuen Profils" (Spalte "E") dividiert. Anschließend wird der berechnete Kundenwert des "neuen Profills"
A22: BA3 | C22: ='h-Wertberechnung'!$AB$20 -> 373.6418812 | E22: ='h-Wertberechnung'!$AB$20 -> 373.6418812 | I22: in die Spalte "F" eingetragen.
A23: BA4 | B23: 8278 | C23: ='h-Wertberechnung'!$Y$20 -> 368.3167459 | E23: ='h-Wertberechnung'!$Y$20 -> 368.3167459 | F23: 8278
A24: BA5 | C24: ='h-Wertberechnung'!$V$20 -> 355.7389433 | E24: ='h-Wertberechnung'!$V$20 -> 355.7389433 | I24: Falls keine Umstellung gewünscht ist, soll einfach der Kundenwert des "alten Profils" (Spalte "B") als
A25: BH1 | C25: ='h-Wertberechnung'!$BN$20 -> 348.1819103 | E25: ='h-Wertberechnung'!$BN$20 -> 348.1819103 | I25: der Kundenwert des "neuen Profils" (Spalte "F") übernommen werden.
A26: BH2 | C26: ='h-Wertberechnung'!$BK$20 -> 350.8021425 | E26: ='h-Wertberechnung'!$BK$20 -> 350.8021425
A27: BH3 | B27: 69767 | C27: ='h-Wertberechnung'!$BH$20 -> 347.3769017 | E27: ='h-Wertberechnung'!$BH$20 -> 347.3769017 | F27: 69767 | I27: Beispiel 1: | J27: Umstellung der Profilausprägung "03" auf "04" für die Kundengruppe "Einfamilienhaus"
A28: BH4 | C28: ='h-Wertberechnung'!$BE$20 -> 338.8606155 | E28: ='h-Wertberechnung'!$BE$20 -> 338.8606155 | I28: Der Kundenwert der Kundengruppe Einfamilienhaus 03 (Zelle "B16") wird mit dem Jahres h-Wert
A29: BH5 | C29: ='h-Wertberechnung'!$BB$20 -> 328.9893429 | E29: ='h-Wertberechnung'!$BB$20 -> 328.9893429 | I29: des "alten Profils" (Zelle "C16") multipliziert. Die berechnete "Jahresmenge" (Zelle "D16") wird
A30: KO1 | C30: ='h-Wertberechnung'!$DZ$20 -> 330.8198496 | E30: ='h-Wertberechnung'!$DZ$20 -> 330.8198496 | I30: durch den Jahres h-Wert des "neuen Profils" Einfamilienhaus 04 (Zelle "E17") dividiert. Anschließend wird
A31: KO2 | C31: ='h-Wertberechnung'!$DW$20 -> 348.6825451 | E31: ='h-Wertberechnung'!$DW$20 -> 348.6825451 | I31: der neue Kundenwert in die Zelle "F17" eingetragen.
A32: KO3 | B32: 345983 | C32: ='h-Wertberechnung'!$DT$20 -> 350.5106685 | E32: ='h-Wertberechnung'!$DT$20 -> 350.5106685 | F32: 345983
A33: KO4 | B33: 69372 | C33: ='h-Wertberechnung'!$DQ$20 -> 347.3324814 | E33: ='h-Wertberechnung'!$DQ$20 -> 347.3324814 | F33: 69372 | I33: Beispiel 2: | J33: Bei der Kundengruppe BA4 wird keine Umstellung geplant.
A34: KO5 | C34: ='h-Wertberechnung'!$DN$20 -> 331.641196 | E34: ='h-Wertberechnung'!$DN$20 -> 331.641196 | I34: Der Kundenwert des "alten" Profils (Zelle "B23") wird einfach als Kundenwert des "neuen Profils" (Zelle "F23")
A35: HA1 | C35: ='h-Wertberechnung'!$DJ$20 -> 335.1509244 | E35: ='h-Wertberechnung'!$DJ$20 -> 335.1509244 | I35: übernommen.
A36: HA2 | C36: ='h-Wertberechnung'!$DG$20 -> 343.1708419 | E36: ='h-Wertberechnung'!$DG$20 -> 343.1708419
A37: HA3 | B37: 143866 | C37: ='h-Wertberechnung'!$DD$20 -> 344.398371 | E37: ='h-Wertberechnung'!$DD$20 -> 344.398371 | F37: 143866
A38: HA4 | C38: ='h-Wertberechnung'!$DA$20 -> 338.5531342 | E38: ='h-Wertberechnung'!$DA$20 -> 338.5531342
A39: HA5 | C39: ='h-Wertberechnung'!$CX$20 -> 322.0760619 | E39: ='h-Wertberechnung'!$CX$20 -> 322.0760619
A40: GA1 | C40: ='h-Wertberechnung'!$CD$20 -> 355.4303628 | E40: ='h-Wertberechnung'!$CD$20 -> 355.4303628
A41: GA2 | C41: ='h-Wertberechnung'!$CA$20 -> 345.9042039 | E41: ='h-Wertberechnung'!$CA$20 -> 345.9042039
A42: GA3 | B42: 68316 | C42: ='h-Wertberechnung'!$BX$20 -> 345.3211632 | E42: ='h-Wertberechnung'!$BX$20 -> 345.3211632 | F42: 68316
A43: GA4 | C43: ='h-Wertberechnung'!$BU$20 -> 335.9650924 | E43: ='h-Wertberechnung'!$BU$20 -> 335.9650924
A44: GA5 | C44: ='h-Wertberechnung'!$BR$20 -> 317.2139923 | E44: ='h-Wertberechnung'!$BR$20 -> 317.2139923
A45: GB1 | C45: ='h-Wertberechnung'!$CT$20 -> 352.3561655 | E45: ='h-Wertberechnung'!$CT$20 -> 352.3561655 | I45: Anschließend kann nun die 2. Berechnung "Als-Ob-Alllokation 04" gestartet werden.
A46: GB2 | C46: ='h-Wertberechnung'!$CQ$20 -> 344.8894014 | E46: ='h-Wertberechnung'!$CQ$20 -> 344.8894014
A47: GB3 | B47: 12099 | C47: ='h-Wertberechnung'!$CN$20 -> 329.0666849 | E47: ='h-Wertberechnung'!$CN$20 -> 329.0666849 | F47: 12099
A48: GB4 | C48: ='h-Wertberechnung'!$CK$20 -> 324.9213907 | E48: ='h-Wertberechnung'!$CK$20 -> 324.9213907
A49: GB5 | C49: ='h-Wertberechnung'!$CH$20 -> 320.6821214 | E49: ='h-Wertberechnung'!$CH$20 -> 320.6821214
A50: ME1 | C50: ='h-Wertberechnung'!$EP$20 -> 340.6672022 | E50: ='h-Wertberechnung'!$EP$20 -> 340.6672022
A51: ME2 | C51: ='h-Wertberechnung'!$EM$20 -> 335.8367706 | E51: ='h-Wertberechnung'!$EM$20 -> 335.8367706
A52: ME3 | B52: 155033 | C52: ='h-Wertberechnung'!$EJ$20 -> 338.965248 | E52: ='h-Wertberechnung'!$EJ$20 -> 338.965248 | F52: 155033
A53: ME4 | C53: ='h-Wertberechnung'!$EG$20 -> 327.3314816 | E53: ='h-Wertberechnung'!$EG$20 -> 327.3314816
A54: ME5 | C54: ='h-Wertberechnung'!$ED$20 -> 315.5396671 | E54: ='h-Wertberechnung'!$ED$20 -> 315.5396671
A55: PD1 | C55: ='h-Wertberechnung'!$FV$20 -> 349.9573421 | E55: ='h-Wertberechnung'!$FV$20 -> 349.9573421
A56: PD2 | C56: ='h-Wertberechnung'!$FS$20 -> 351.7431373 | E56: ='h-Wertberechnung'!$FS$20 -> 351.7431373
A57: PD3 | B57: 17748 | C57: ='h-Wertberechnung'!$FP$20 -> 350.746129 | E57: ='h-Wertberechnung'!$FP$20 -> 350.746129 | F57: 17748
A58: PD4 | C58: ='h-Wertberechnung'!$FM$20 -> 330.7684746 | E58: ='h-Wertberechnung'!$FM$20 -> 330.7684746
A59: PD5 | C59: ='h-Wertberechnung'!$FJ$20 -> 308.3629434 | E59: ='h-Wertberechnung'!$FJ$20 -> 308.3629434
A60: BD1 | C60: ='h-Wertberechnung'!$AX$20 -> 357.1855344 | E60: ='h-Wertberechnung'!$AX$20 -> 357.1855344
A61: BD2 | C61: ='h-Wertberechnung'!$AU$20 -> 341.9310759 | E61: ='h-Wertberechnung'!$AU$20 -> 341.9310759
A62: BD3 | B62: 666992 | C62: ='h-Wertberechnung'!$AR$20 -> 349.5355585 | E62: ='h-Wertberechnung'!$AR$20 -> 349.5355585 | F62: 666992
A63: BD4 | C63: ='h-Wertberechnung'!$AO$20 -> 356.2038464 | E63: ='h-Wertberechnung'!$AO$20 -> 356.2038464
A64: BD5 | C64: ='h-Wertberechnung'!$AL$20 -> 351.7802351 | E64: ='h-Wertberechnung'!$AL$20 -> 351.7802351
A65: WA1 | C65: ='h-Wertberechnung'!$GL$20 -> 385.332941 | E65: ='h-Wertberechnung'!$GL$20 -> 385.332941
A66: WA2 | C66: ='h-Wertberechnung'!$GI$20 -> 383.2508079 | E66: ='h-Wertberechnung'!$GI$20 -> 383.2508079
A67: WA3 | B67: 1750 | C67: ='h-Wertberechnung'!$GF$20 -> 381.2593734 | E67: ='h-Wertberechnung'!$GF$20 -> 381.2593734 | F67: 1750
A68: WA4 | C68: ='h-Wertberechnung'!$GC$20 -> 375.0396588 | E68: ='h-Wertberechnung'!$GC$20 -> 375.0396588
A69: WA5 | C69: ='h-Wertberechnung'!$FZ$20 -> 363.3836326 | E69: ='h-Wertberechnung'!$FZ$20 -> 363.3836326
A70: HK3 | B70: 2172 | C70: ='h-Wertberechnung'!$R$20 -> 359.2919843 | E70: ='h-Wertberechnung'!$R$20 -> 359.2919843 | F70: 2172
A71: MF1 | C71: ='h-Wertberechnung'!$FF$20 -> 327.4466046 | E71: ='h-Wertberechnung'!$FF$20 -> 327.4466046
A72: MF2 | C72: ='h-Wertberechnung'!$FC$20 -> 326.7436724 | E72: ='h-Wertberechnung'!$FC$20 -> 326.7436724
A73: MF3 | C73: ='h-Wertberechnung'!$EZ$20 -> 329.3719411 | E73: ='h-Wertberechnung'!$EZ$20 -> 329.3719411
A74: MF4 | C74: ='h-Wertberechnung'!$EW$20 -> 325.4832114 | E74: ='h-Wertberechnung'!$EW$20 -> 325.4832114
A75: MF5 | C75: ='h-Wertberechnung'!$ET$20 -> 324.9030642 | E75: ='h-Wertberechnung'!$ET$20 -> 324.9030642
A76: GHD03 | C76: ='h-Wertberechnung'!$GP$20 -> 346.7777902 | E76: ='h-Wertberechnung'!$GP$20 -> 346.7777902
A77: GHD04 | C77: ='h-Wertberechnung'!$GS$20 -> 341.1328192 | E77: ='h-Wertberechnung'!$GS$20 -> 341.1328192

Sheet Auswertung
B3: Werte
A4: Monat | B4: Summe von Restlast [kWh] | C4: Summe von Netzkontosaldo 0 [kWh] | D4: Summe von SLP-Allokation [kWh] | E4: Summe von Als-Ob Allokation Basis Ist-Temperatur mit KW 03 [kWh] | F4: Summe von Als-Ob-Allokation 03 vs. Restlast [kWh] | G4: Summe von Als-Ob Allokation Basis Ist-Temperatur mit KW 04 [kWh] | H4: Summe von Als-Ob-Allokation 04 vs. Restlast [kWh]
A5: 1 | B5: 351341054 | C5: 42367998.5 | D5: 308973055.5 | E5: 301601981.2 | F5: 49739072.75 | G5: 312100701.6 | H5: 39240352.43
A6: 2 | B6: 365648512.5 | C6: 10884521.04 | D6: 354763991.4 | E6: 343315128.8 | F6: 22333383.64 | G6: 359685462 | H6: 5963050.489
A7: 3 | B7: 185248567.2 | C7: 7520690.434 | D7: 177727876.8 | E7: 188177254.7 | F7: -2928687.505 | G7: 186801450.4 | H7: -1552883.177
A8: 4 | B8: 173008339.3 | C8: 7288029.475 | D8: 165720309.8 | E8: 167704132.1 | F8: 5304207.166 | G8: 165948068.4 | H8: 7060270.821
A9: 5 | B9: 79292402.13 | C9: 1533256.527 | D9: 77759145.6 | E9: 79584773.54 | F9: -292371.4063 | G9: 73879705.76 | H9: 5412696.375
A10: 6 | B10: 50632310.84 | C10: 2345347.755 | D10: 48286963.08 | E10: 54351011.87 | F10: -3718701.026 | G10: 48625596.92 | H10: 2006713.916
A11: 7 | B11: 44248288.2 | C11: 2132562.207 | D11: 42115725.99 | E11: 47347603.05 | F11: -3099314.849 | G11: 41671304.19 | H11: 2576984.009
A12: 8 | B12: 34367473.13 | C12: 1066154.953 | D12: 33301318.18 | E12: 37708940.22 | F12: -3341467.092 | G12: 32755994.39 | H12: 1611478.74
A13: 9 | B13: 69444787.43 | C13: 1573822.279 | D13: 67870965.15 | E13: 79058805.32 | F13: -9614017.894 | G13: 72824023.37 | H13: -3379235.94
A14: 10 | B14: 175521789.4 | C14: 17439212.49 | D14: 158082576.9 | E14: 163632224.7 | F14: 11889564.71 | G14: 161126490.1 | H14: 14395299.3
A15: 11 | B15: 249289154.9 | C15: 26031918.65 | D15: 223257236.3 | E15: 226049367.3 | F15: 23239787.6 | G15: 228702794.1 | H15: 20586360.79
A16: 12 | B16: 375318953 | C16: 73029745.65 | D16: 302289207.3 | E16: 298952513.6 | F16: 76366439.39 | G16: 309311156.7 | H16: 66007796.25
A17: Gesamtergebnis | B17: 2153361632 | C17: 193213260 | D17: 1960148372 | E17: 1987483736 | F17: 165877895.5 | G17: 1993432748 | H17: 159928884
A20: Prozentuale Abweichung Netzkontosaldo 0 | B20: Prozentuale Abweichung Also-Ob-Allokation 03 | C20: Prozentuale Abweichung Als-Ob-Allokation 04
A21: =IF($D$5="","",GETPIVOTDATA("Summe von Netzkontosaldo 0 [kWh]",$A$3,"Monat",1)/GETPIVOTDATA("Summe von SLP-Allokation [kWh]",$A$3,"Monat",1)) -> 0.137125221 | B21: =IF($E$5=0,"",GETPIVOTDATA("Summe von Als-Ob-Allokation 03 vs. Restlast [kWh]",$A$3,"Monat",1)/GETPIVOTDATA("Summe von Als-Ob Allokation Basis Ist-Temperatur mit KW 03 [kWh]",$A$3,"Monat",1)) -> 0.1649162666 | C21: =IF($G$5=0,"",GETPIVOTDATA("Summe von Als-Ob-Allokation 04 vs. Restlast [kWh]",$A$3,"Monat",1)/GETPIVOTDATA("Summe von Als-Ob Allokation Basis Ist-Temperatur mit KW 04 [kWh]",$A$3,"Monat",1)) -> 0.1257297796
A22: =IF($D$5="","",GETPIVOTDATA("Summe von Netzkontosaldo 0 [kWh]",$A$3,"Monat",2)/GETPIVOTDATA("Summe von SLP-Allokation [kWh]",$A$3,"Monat",2)) -> 0.03068101979 | B22: =IF($E$5=0,"",GETPIVOTDATA("Summe von Als-Ob-Allokation 03 vs. Restlast [kWh]",$A$3,"Monat",2)/GETPIVOTDATA("Summe von Als-Ob Allokation Basis Ist-Temperatur mit KW 03 [kWh]",$A$3,"Monat",2)) -> 0.06505213946 | C22: =IF($G$5=0,"",GETPIVOTDATA("Summe von Als-Ob-Allokation 04 vs. Restlast [kWh]",$A$3,"Monat",2)/GETPIVOTDATA("Summe von Als-Ob Allokation Basis Ist-Temperatur mit KW 04 [kWh]",$A$3,"Monat",2)) -> 0.01657851406
A23: =IF($D$5="","",GETPIVOTDATA("Summe von Netzkontosaldo 0 [kWh]",$A$3,"Monat",3)/GETPIVOTDATA("Summe von SLP-Allokation [kWh]",$A$3,"Monat",3)) -> 0.04231576143 | B23: =IF($E$5=0,"",GETPIVOTDATA("Summe von Als-Ob-Allokation 03 vs. Restlast [kWh]",$A$3,"Monat",3)/GETPIVOTDATA("Summe von Als-Ob Allokation Basis Ist-Temperatur mit KW 03 [kWh]",$A$3,"Monat",3)) -> -0.01556345111 | C23: =IF($G$5=0,"",GETPIVOTDATA("Summe von Als-Ob-Allokation 04 vs. Restlast [kWh]",$A$3,"Monat",3)/GETPIVOTDATA("Summe von Als-Ob Allokation Basis Ist-Temperatur mit KW 04 [kWh]",$A$3,"Monat",3)) -> -0.008313014558
A24: =IF($D$5="","",GETPIVOTDATA("Summe von Netzkontosaldo 0 [kWh]",$A$3,"Monat",4)/GETPIVOTDATA("Summe von SLP-Allokation [kWh]",$A$3,"Monat",4)) -> 0.04397788951 | B24: =IF($E$5=0,"",GETPIVOTDATA("Summe von Als-Ob-Allokation 03 vs. Restlast [kWh]",$A$3,"Monat",4)/GETPIVOTDATA("Summe von Als-Ob Allokation Basis Ist-Temperatur mit KW 03 [kWh]",$A$3,"Monat",4)) -> 0.03162836299 | C24: =IF($G$5=0,"",GETPIVOTDATA("Summe von Als-Ob-Allokation 04 vs. Restlast [kWh]",$A$3,"Monat",4)/GETPIVOTDATA("Summe von Als-Ob Allokation Basis Ist-Temperatur mit KW 04 [kWh]",$A$3,"Monat",4)) -> 0.04254506176
A25: =IF($D$5="","",GETPIVOTDATA("Summe von Netzkontosaldo 0 [kWh]",$A$3,"Monat",5)/GETPIVOTDATA("Summe von SLP-Allokation [kWh]",$A$3,"Monat",5)) -> 0.01971802179 | B25: =IF($E$5=0,"",GETPIVOTDATA("Summe von Als-Ob-Allokation 03 vs. Restlast [kWh]",$A$3,"Monat",5)/GETPIVOTDATA("Summe von Als-Ob Allokation Basis Ist-Temperatur mit KW 03 [kWh]",$A$3,"Monat",5)) -> -0.003673710351 | C25: =IF($G$5=0,"",GETPIVOTDATA("Summe von Als-Ob-Allokation 04 vs. Restlast [kWh]",$A$3,"Monat",5)/GETPIVOTDATA("Summe von Als-Ob Allokation Basis Ist-Temperatur mit KW 04 [kWh]",$A$3,"Monat",5)) -> 0.07326364283
A26: =IF($D$5="","",GETPIVOTDATA("Summe von Netzkontosaldo 0 [kWh]",$A$3,"Monat",6)/GETPIVOTDATA("Summe von SLP-Allokation [kWh]",$A$3,"Monat",6)) -> 0.04857103461 | B26: =IF($E$5=0,"",GETPIVOTDATA("Summe von Als-Ob-Allokation 03 vs. Restlast [kWh]",$A$3,"Monat",6)/GETPIVOTDATA("Summe von Als-Ob Allokation Basis Ist-Temperatur mit KW 03 [kWh]",$A$3,"Monat",6)) -> -0.0684200882 | C26: =IF($G$5=0,"",GETPIVOTDATA("Summe von Als-Ob-Allokation 04 vs. Restlast [kWh]",$A$3,"Monat",6)/GETPIVOTDATA("Summe von Als-Ob Allokation Basis Ist-Temperatur mit KW 04 [kWh]",$A$3,"Monat",6)) -> 0.04126867416
A27: =IF($D$5="","",GETPIVOTDATA("Summe von Netzkontosaldo 0 [kWh]",$A$3,"Monat",7)/GETPIVOTDATA("Summe von SLP-Allokation [kWh]",$A$3,"Monat",7)) -> 0.05063576982 | B27: =IF($E$5=0,"",GETPIVOTDATA("Summe von Als-Ob-Allokation 03 vs. Restlast [kWh]",$A$3,"Monat",7)/GETPIVOTDATA("Summe von Als-Ob Allokation Basis Ist-Temperatur mit KW 03 [kWh]",$A$3,"Monat",7)) -> -0.06545874868 | C27: =IF($G$5=0,"",GETPIVOTDATA("Summe von Als-Ob-Allokation 04 vs. Restlast [kWh]",$A$3,"Monat",7)/GETPIVOTDATA("Summe von Als-Ob Allokation Basis Ist-Temperatur mit KW 04 [kWh]",$A$3,"Monat",7)) -> 0.06184073331
A28: =IF($D$5="","",GETPIVOTDATA("Summe von Netzkontosaldo 0 [kWh]",$A$3,"Monat",8)/GETPIVOTDATA("Summe von SLP-Allokation [kWh]",$A$3,"Monat",8)) -> 0.03201539794 | B28: =IF($E$5=0,"",GETPIVOTDATA("Summe von Als-Ob-Allokation 03 vs. Restlast [kWh]",$A$3,"Monat",8)/GETPIVOTDATA("Summe von Als-Ob Allokation Basis Ist-Temperatur mit KW 03 [kWh]",$A$3,"Monat",8)) -> -0.0886120658 | C28: =IF($G$5=0,"",GETPIVOTDATA("Summe von Als-Ob-Allokation 04 vs. Restlast [kWh]",$A$3,"Monat",8)/GETPIVOTDATA("Summe von Als-Ob Allokation Basis Ist-Temperatur mit KW 04 [kWh]",$A$3,"Monat",8)) -> 0.04919645306
A29: =IF($D$5="","",GETPIVOTDATA("Summe von Netzkontosaldo 0 [kWh]",$A$3,"Monat",9)/GETPIVOTDATA("Summe von SLP-Allokation [kWh]",$A$3,"Monat",9)) -> 0.02318844701 | B29: =IF($E$5=0,"",GETPIVOTDATA("Summe von Als-Ob-Allokation 03 vs. Restlast [kWh]",$A$3,"Monat",9)/GETPIVOTDATA("Summe von Als-Ob Allokation Basis Ist-Temperatur mit KW 03 [kWh]",$A$3,"Monat",9)) -> -0.1216059091 | C29: =IF($G$5=0,"",GETPIVOTDATA("Summe von Als-Ob-Allokation 04 vs. Restlast [kWh]",$A$3,"Monat",9)/GETPIVOTDATA("Summe von Als-Ob Allokation Basis Ist-Temperatur mit KW 04 [kWh]",$A$3,"Monat",9)) -> -0.04640276359
A30: =IF($D$5="","",GETPIVOTDATA("Summe von Netzkontosaldo 0 [kWh]",$A$3,"Monat",10)/GETPIVOTDATA("Summe von SLP-Allokation [kWh]",$A$3,"Monat",10)) -> 0.1103171066 | B30: =IF($E$5=0,"",GETPIVOTDATA("Summe von Als-Ob-Allokation 03 vs. Restlast [kWh]",$A$3,"Monat",10)/GETPIVOTDATA("Summe von Als-Ob Allokation Basis Ist-Temperatur mit KW 03 [kWh]",$A$3,"Monat",10)) -> 0.07266028885 | C30: =IF($G$5=0,"",GETPIVOTDATA("Summe von Als-Ob-Allokation 04 vs. Restlast [kWh]",$A$3,"Monat",10)/GETPIVOTDATA("Summe von Als-Ob Allokation Basis Ist-Temperatur mit KW 04 [kWh]",$A$3,"Monat",10)) -> 0.08934160542
A31: =IF($D$5="","",GETPIVOTDATA("Summe von Netzkontosaldo 0 [kWh]",$A$3,"Monat",11)/GETPIVOTDATA("Summe von SLP-Allokation [kWh]",$A$3,"Monat",11)) -> 0.1166005594 | B31: =IF($E$5=0,"",GETPIVOTDATA("Summe von Als-Ob-Allokation 03 vs. Restlast [kWh]",$A$3,"Monat",11)/GETPIVOTDATA("Summe von Als-Ob Allokation Basis Ist-Temperatur mit KW 03 [kWh]",$A$3,"Monat",11)) -> 0.1028084612 | C31: =IF($G$5=0,"",GETPIVOTDATA("Summe von Als-Ob-Allokation 04 vs. Restlast [kWh]",$A$3,"Monat",11)/GETPIVOTDATA("Summe von Als-Ob Allokation Basis Ist-Temperatur mit KW 04 [kWh]",$A$3,"Monat",11)) -> 0.09001359546
A32: =IF($D$5="","",GETPIVOTDATA("Summe von Netzkontosaldo 0 [kWh]",$A$3,"Monat",12)/GETPIVOTDATA("Summe von SLP-Allokation [kWh]",$A$3,"Monat",12)) -> 0.2415889945 | B32: =IF($E$5=0,"",GETPIVOTDATA("Summe von Als-Ob-Allokation 03 vs. Restlast [kWh]",$A$3,"Monat",12)/GETPIVOTDATA("Summe von Als-Ob Allokation Basis Ist-Temperatur mit KW 03 [kWh]",$A$3,"Monat",12)) -> 0.2554467212 | C32: =IF($G$5=0,"",GETPIVOTDATA("Summe von Als-Ob-Allokation 04 vs. Restlast [kWh]",$A$3,"Monat",12)/GETPIVOTDATA("Summe von Als-Ob Allokation Basis Ist-Temperatur mit KW 04 [kWh]",$A$3,"Monat",12)) -> 0.2134025715

Sheet Als-Ob-Allokation KW03
A1: Datum | B1: Temperatur | D1: Summe Tagesmengen Abfragezeitraum
A2: =IF(Tageswerte!A2<>0,Tageswerte!A2,"") -> 2012-01-01 | B2: =IF(Tageswerte!M2<>"",Tageswerte!M2,"") -> 10.2 | D2: =SUM('Tagesmengenallokation 03'!C2:C1000) -> 1987483736
A3: =IF(Tageswerte!A3<>0,Tageswerte!A3,"") -> 2012-01-02 | B3: =IF(Tageswerte!M3<>"",Tageswerte!M3,"") -> 9
A4: =IF(Tageswerte!A4<>0,Tageswerte!A4,"") -> 2012-01-03 | B4: =IF(Tageswerte!M4<>"",Tageswerte!M4,"") -> 5.9
A5: =IF(Tageswerte!A5<>0,Tageswerte!A5,"") -> 2012-01-04 | B5: =IF(Tageswerte!M5<>"",Tageswerte!M5,"") -> 5.5
A6: =IF(Tageswerte!A6<>0,Tageswerte!A6,"") -> 2012-01-05 | B6: =IF(Tageswerte!M6<>"",Tageswerte!M6,"") -> 4.5
A7: =IF(Tageswerte!A7<>0,Tageswerte!A7,"") -> 2012-01-06 | B7: =IF(Tageswerte!M7<>"",Tageswerte!M7,"") -> 2.9
A8: =IF(Tageswerte!A8<>0,Tageswerte!A8,"") -> 2012-01-07 | B8: =IF(Tageswerte!M8<>"",Tageswerte!M8,"") -> 3.7
A9: =IF(Tageswerte!A9<>0,Tageswerte!A9,"") -> 2012-01-08 | B9: =IF(Tageswerte!M9<>"",Tageswerte!M9,"") -> 3.9
A10: =IF(Tageswerte!A10<>0,Tageswerte!A10,"") -> 2012-01-09 | B10: =IF(Tageswerte!M10<>"",Tageswerte!M10,"") -> 4.2
A11: =IF(Tageswerte!A11<>0,Tageswerte!A11,"") -> 2012-01-10 | B11: =IF(Tageswerte!M11<>"",Tageswerte!M11,"") -> 4.8
A12: =IF(Tageswerte!A12<>0,Tageswerte!A12,"") -> 2012-01-11 | B12: =IF(Tageswerte!M12<>"",Tageswerte!M12,"") -> 2.5
A13: =IF(Tageswerte!A13<>0,Tageswerte!A13,"") -> 2012-01-12 | B13: =IF(Tageswerte!M13<>"",Tageswerte!M13,"") -> 3.5
A14: =IF(Tageswerte!A14<>0,Tageswerte!A14,"") -> 2012-01-13 | B14: =IF(Tageswerte!M14<>"",Tageswerte!M14,"") -> 2.6
A15: =IF(Tageswerte!A15<>0,Tageswerte!A15,"") -> 2012-01-14 | B15: =IF(Tageswerte!M15<>"",Tageswerte!M15,"") -> 0.8
A16: =IF(Tageswerte!A16<>0,Tageswerte!A16,"") -> 2012-01-15 | B16: =IF(Tageswerte!M16<>"",Tageswerte!M16,"") -> -1.8
A17: =IF(Tageswerte!A17<>0,Tageswerte!A17,"") -> 2012-01-16 | B17: =IF(Tageswerte!M17<>"",Tageswerte!M17,"") -> -2.6
A18: =IF(Tageswerte!A18<>0,Tageswerte!A18,"") -> 2012-01-17 | B18: =IF(Tageswerte!M18<>"",Tageswerte!M18,"") -> -3
A19: =IF(Tageswerte!A19<>0,Tageswerte!A19,"") -> 2012-01-18 | B19: =IF(Tageswerte!M19<>"",Tageswerte!M19,"") -> -1.4
A20: =IF(Tageswerte!A20<>0,Tageswerte!A20,"") -> 2012-01-19 | B20: =IF(Tageswerte!M20<>"",Tageswerte!M20,"") -> 6.5
A21: =IF(Tageswerte!A21<>0,Tageswerte!A21,"") -> 2012-01-20 | B21: =IF(Tageswerte!M21<>"",Tageswerte!M21,"") -> 3.2
A22: =IF(Tageswerte!A22<>0,Tageswerte!A22,"") -> 2012-01-21 | B22: =IF(Tageswerte!M22<>"",Tageswerte!M22,"") -> 4.5
A23: =IF(Tageswerte!A23<>0,Tageswerte!A23,"") -> 2012-01-22 | B23: =IF(Tageswerte!M23<>"",Tageswerte!M23,"") -> 5.2
A24: =IF(Tageswerte!A24<>0,Tageswerte!A24,"") -> 2012-01-23 | B24: =IF(Tageswerte!M24<>"",Tageswerte!M24,"") -> 4.2
A25: =IF(Tageswerte!A25<>0,Tageswerte!A25,"") -> 2012-01-24 | B25: =IF(Tageswerte!M25<>"",Tageswerte!M25,"") -> 1.9
A26: =IF(Tageswerte!A26<>0,Tageswerte!A26,"") -> 2012-01-25 | B26: =IF(Tageswerte!M26<>"",Tageswerte!M26,"") -> -0.3
A27: =IF(Tageswerte!A27<>0,Tageswerte!A27,"") -> 2012-01-26 | B27: =IF(Tageswerte!M27<>"",Tageswerte!M27,"") -> -0.4
A28: =IF(Tageswerte!A28<>0,Tageswerte!A28,"") -> 2012-01-27 | B28: =IF(Tageswerte!M28<>"",Tageswerte!M28,"") -> 1.5
A29: =IF(Tageswerte!A29<>0,Tageswerte!A29,"") -> 2012-01-28 | B29: =IF(Tageswerte!M29<>"",Tageswerte!M29,"") -> 1.7
A30: =IF(Tageswerte!A30<>0,Tageswerte!A30,"") -> 2012-01-29 | B30: =IF(Tageswerte!M30<>"",Tageswerte!M30,"") -> -0.6
A31: =IF(Tageswerte!A31<>0,Tageswerte!A31,"") -> 2012-01-30 | B31: =IF(Tageswerte!M31<>"",Tageswerte!M31,"") -> -1.3
A32: =IF(Tageswerte!A32<>0,Tageswerte!A32,"") -> 2012-01-31 | B32: =IF(Tageswerte!M32<>"",Tageswerte!M32,"") -> -3.2
A33: =IF(Tageswerte!A33<>0,Tageswerte!A33,"") -> 2012-02-01 | B33: =IF(Tageswerte!M33<>"",Tageswerte!M33,"") -> -6.2
A34: =IF(Tageswerte!A34<>0,Tageswerte!A34,"") -> 2012-02-02 | B34: =IF(Tageswerte!M34<>"",Tageswerte!M34,"") -> -8.5
A35: =IF(Tageswerte!A35<>0,Tageswerte!A35,"") -> 2012-02-03 | B35: =IF(Tageswerte!M35<>"",Tageswerte!M35,"") -> -11
A36: =IF(Tageswerte!A36<>0,Tageswerte!A36,"") -> 2012-02-04 | B36: =IF(Tageswerte!M36<>"",Tageswerte!M36,"") -> -11.5
A37: =IF(Tageswerte!A37<>0,Tageswerte!A37,"") -> 2012-02-05 | B37: =IF(Tageswerte!M37<>"",Tageswerte!M37,"") -> -11.9
A38: =IF(Tageswerte!A38<>0,Tageswerte!A38,"") -> 2012-02-06 | B38: =IF(Tageswerte!M38<>"",Tageswerte!M38,"") -> -12.3
A39: =IF(Tageswerte!A39<>0,Tageswerte!A39,"") -> 2012-02-07 | B39: =IF(Tageswerte!M39<>"",Tageswerte!M39,"") -> -12.4
A40: =IF(Tageswerte!A40<>0,Tageswerte!A40,"") -> 2012-02-08 | B40: =IF(Tageswerte!M40<>"",Tageswerte!M40,"") -> -8
A41: =IF(Tageswerte!A41<>0,Tageswerte!A41,"") -> 2012-02-09 | B41: =IF(Tageswerte!M41<>"",Tageswerte!M41,"") -> -9.7
A42: =IF(Tageswerte!A42<>0,Tageswerte!A42,"") -> 2012-02-10 | B42: =IF(Tageswerte!M42<>"",Tageswerte!M42,"") -> -8.9
A43: =IF(Tageswerte!A43<>0,Tageswerte!A43,"") -> 2012-02-11 | B43: =IF(Tageswerte!M43<>"",Tageswerte!M43,"") -> -10.7
A44: =IF(Tageswerte!A44<>0,Tageswerte!A44,"") -> 2012-02-12 | B44: =IF(Tageswerte!M44<>"",Tageswerte!M44,"") -> -11
A45: =IF(Tageswerte!A45<>0,Tageswerte!A45,"") -> 2012-02-13 | B45: =IF(Tageswerte!M45<>"",Tageswerte!M45,"") -> -6.5
A46: =IF(Tageswerte!A46<>0,Tageswerte!A46,"") -> 2012-02-14 | B46: =IF(Tageswerte!M46<>"",Tageswerte!M46,"") -> -1.2
A47: =IF(Tageswerte!A47<>0,Tageswerte!A47,"") -> 2012-02-15 | B47: =IF(Tageswerte!M47<>"",Tageswerte!M47,"") -> 1.5
A48: =IF(Tageswerte!A48<>0,Tageswerte!A48,"") -> 2012-02-16 | B48: =IF(Tageswerte!M48<>"",Tageswerte!M48,"") -> 2
A49: =IF(Tageswerte!A49<>0,Tageswerte!A49,"") -> 2012-02-17 | B49: =IF(Tageswerte!M49<>"",Tageswerte!M49,"") -> 3.2
A50: =IF(Tageswerte!A50<>0,Tageswerte!A50,"") -> 2012-02-18 | B50: =IF(Tageswerte!M50<>"",Tageswerte!M50,"") -> 5.2
A51: =IF(Tageswerte!A51<>0,Tageswerte!A51,"") -> 2012-02-19 | B51: =IF(Tageswerte!M51<>"",Tageswerte!M51,"") -> 2.5
A52: =IF(Tageswerte!A52<>0,Tageswerte!A52,"") -> 2012-02-20 | B52: =IF(Tageswerte!M52<>"",Tageswerte!M52,"") -> 0.4
A53: =IF(Tageswerte!A53<>0,Tageswerte!A53,"") -> 2012-02-21 | B53: =IF(Tageswerte!M53<>"",Tageswerte!M53,"") -> -0.6
A54: =IF(Tageswerte!A54<>0,Tageswerte!A54,"") -> 2012-02-22 | B54: =IF(Tageswerte!M54<>"",Tageswerte!M54,"") -> 1.4
A55: =IF(Tageswerte!A55<>0,Tageswerte!A55,"") -> 2012-02-23 | B55: =IF(Tageswerte!M55<>"",Tageswerte!M55,"") -> 5.4
A56: =IF(Tageswerte!A56<>0,Tageswerte!A56,"") -> 2012-02-24 | B56: =IF(Tageswerte!M56<>"",Tageswerte!M56,"") -> 7.9
A57: =IF(Tageswerte!A57<>0,Tageswerte!A57,"") -> 2012-02-25 | B57: =IF(Tageswerte!M57<>"",Tageswerte!M57,"") -> 7.4
A58: =IF(Tageswerte!A58<>0,Tageswerte!A58,"") -> 2012-02-26 | B58: =IF(Tageswerte!M58<>"",Tageswerte!M58,"") -> 4.9
A59: =IF(Tageswerte!A59<>0,Tageswerte!A59,"") -> 2012-02-27 | B59: =IF(Tageswerte!M59<>"",Tageswerte!M59,"") -> 4.2
A60: =IF(Tageswerte!A60<>0,Tageswerte!A60,"") -> 2012-02-28 | B60: =IF(Tageswerte!M60<>"",Tageswerte!M60,"") -> 6.2
A61: =IF(Tageswerte!A61<>0,Tageswerte!A61,"") -> 2012-02-29 | B61: =IF(Tageswerte!M61<>"",Tageswerte!M61,"") -> 7.3
A62: =IF(Tageswerte!A62<>0,Tageswerte!A62,"") -> 2012-03-01 | B62: =IF(Tageswerte!M62<>"",Tageswerte!M62,"") -> 7.7
A63: =IF(Tageswerte!A63<>0,Tageswerte!A63,"") -> 2012-03-02 | B63: =IF(Tageswerte!M63<>"",Tageswerte!M63,"") -> 6.4
A64: =IF(Tageswerte!A64<>0,Tageswerte!A64,"") -> 2012-03-03 | B64: =IF(Tageswerte!M64<>"",Tageswerte!M64,"") -> 7.8
A65: =IF(Tageswerte!A65<>0,Tageswerte!A65,"") -> 2012-03-04 | B65: =IF(Tageswerte!M65<>"",Tageswerte!M65,"") -> 6.9
A66: =IF(Tageswerte!A66<>0,Tageswerte!A66,"") -> 2012-03-05 | B66: =IF(Tageswerte!M66<>"",Tageswerte!M66,"") -> 3.8
A67: =IF(Tageswerte!A67<>0,Tageswerte!A67,"") -> 2012-03-06 | B67: =IF(Tageswerte!M67<>"",Tageswerte!M67,"") -> 3.2
A68: =IF(Tageswerte!A68<>0,Tageswerte!A68,"") -> 2012-03-07 | B68: =IF(Tageswerte!M68<>"",Tageswerte!M68,"") -> 4.6
A69: =IF(Tageswerte!A69<>0,Tageswerte!A69,"") -> 2012-03-08 | B69: =IF(Tageswerte!M69<>"",Tageswerte!M69,"") -> 4.2
A70: =IF(Tageswerte!A70<>0,Tageswerte!A70,"") -> 2012-03-09 | B70: =IF(Tageswerte!M70<>"",Tageswerte!M70,"") -> 3.2
A71: =IF(Tageswerte!A71<>0,Tageswerte!A71,"") -> 2012-03-10 | B71: =IF(Tageswerte!M71<>"",Tageswerte!M71,"") -> 5.2
A72: =IF(Tageswerte!A72<>0,Tageswerte!A72,"") -> 2012-03-11 | B72: =IF(Tageswerte!M72<>"",Tageswerte!M72,"") -> 7.4
A73: =IF(Tageswerte!A73<>0,Tageswerte!A73,"") -> 2012-03-12 | B73: =IF(Tageswerte!M73<>"",Tageswerte!M73,"") -> 8.2
A74: =IF(Tageswerte!A74<>0,Tageswerte!A74,"") -> 2012-03-13 | B74: =IF(Tageswerte!M74<>"",Tageswerte!M74,"") -> 8.3
A75: =IF(Tageswerte!A75<>0,Tageswerte!A75,"") -> 2012-03-14 | B75: =IF(Tageswerte!M75<>"",Tageswerte!M75,"") -> 7.5
A76: =IF(Tageswerte!A76<>0,Tageswerte!A76,"") -> 2012-03-15 | B76: =IF(Tageswerte!M76<>"",Tageswerte!M76,"") -> 7.8
A77: =IF(Tageswerte!A77<>0,Tageswerte!A77,"") -> 2012-03-16 | B77: =IF(Tageswerte!M77<>"",Tageswerte!M77,"") -> 10.9
A78: =IF(Tageswerte!A78<>0,Tageswerte!A78,"") -> 2012-03-17 | B78: =IF(Tageswerte!M78<>"",Tageswerte!M78,"") -> 11.2
A79: =IF(Tageswerte!A79<>0,Tageswerte!A79,"") -> 2012-03-18 | B79: =IF(Tageswerte!M79<>"",Tageswerte!M79,"") -> 7.4
A80: =IF(Tageswerte!A80<>0,Tageswerte!A80,"") -> 2012-03-19 | B80: =IF(Tageswerte!M80<>"",Tageswerte!M80,"") -> 6.7
A81: =IF(Tageswerte!A81<>0,Tageswerte!A81,"") -> 2012-03-20 | B81: =IF(Tageswerte!M81<>"",Tageswerte!M81,"") -> 6.3
A82: =IF(Tageswerte!A82<>0,Tageswerte!A82,"") -> 2012-03-21 | B82: =IF(Tageswerte!M82<>"",Tageswerte!M82,"") -> 8.1
A83: =IF(Tageswerte!A83<>0,Tageswerte!A83,"") -> 2012-03-22 | B83: =IF(Tageswerte!M83<>"",Tageswerte!M83,"") -> 10.6
A84: =IF(Tageswerte!A84<>0,Tageswerte!A84,"") -> 2012-03-23 | B84: =IF(Tageswerte!M84<>"",Tageswerte!M84,"") -> 11.1
A85: =IF(Tageswerte!A85<>0,Tageswerte!A85,"") -> 2012-03-24 | B85: =IF(Tageswerte!M85<>"",Tageswerte!M85,"") -> 10.6
A86: =IF(Tageswerte!A86<>0,Tageswerte!A86,"") -> 2012-03-25 | B86: =IF(Tageswerte!M86<>"",Tageswerte!M86,"") -> 11.4
A87: =IF(Tageswerte!A87<>0,Tageswerte!A87,"") -> 2012-03-26 | B87: =IF(Tageswerte!M87<>"",Tageswerte!M87,"") -> 11.2
A88: =IF(Tageswerte!A88<>0,Tageswerte!A88,"") -> 2012-03-27 | B88: =IF(Tageswerte!M88<>"",Tageswerte!M88,"") -> 10.6
A89: =IF(Tageswerte!A89<>0,Tageswerte!A89,"") -> 2012-03-28 | B89: =IF(Tageswerte!M89<>"",Tageswerte!M89,"") -> 11.9
A90: =IF(Tageswerte!A90<>0,Tageswerte!A90,"") -> 2012-03-29 | B90: =IF(Tageswerte!M90<>"",Tageswerte!M90,"") -> 10.9
A91: =IF(Tageswerte!A91<>0,Tageswerte!A91,"") -> 2012-03-30 | B91: =IF(Tageswerte!M91<>"",Tageswerte!M91,"") -> 9.7
A92: =IF(Tageswerte!A92<>0,Tageswerte!A92,"") -> 2012-03-31 | B92: =IF(Tageswerte!M92<>"",Tageswerte!M92,"") -> 9
A93: =IF(Tageswerte!A93<>0,Tageswerte!A93,"") -> 2012-04-01 | B93: =IF(Tageswerte!M93<>"",Tageswerte!M93,"") -> 5.2
A94: =IF(Tageswerte!A94<>0,Tageswerte!A94,"") -> 2012-04-02 | B94: =IF(Tageswerte!M94<>"",Tageswerte!M94,"") -> 7.2
A95: =IF(Tageswerte!A95<>0,Tageswerte!A95,"") -> 2012-04-03 | B95: =IF(Tageswerte!M95<>"",Tageswerte!M95,"") -> 10.3
A96: =IF(Tageswerte!A96<>0,Tageswerte!A96,"") -> 2012-04-04 | B96: =IF(Tageswerte!M96<>"",Tageswerte!M96,"") -> 9.5
A97: =IF(Tageswerte!A97<>0,Tageswerte!A97,"") -> 2012-04-05 | B97: =IF(Tageswerte!M97<>"",Tageswerte!M97,"") -> 7.3
A98: =IF(Tageswerte!A98<>0,Tageswerte!A98,"") -> 2012-04-06 | B98: =IF(Tageswerte!M98<>"",Tageswerte!M98,"") -> 6.7
A99: =IF(Tageswerte!A99<>0,Tageswerte!A99,"") -> 2012-04-07 | B99: =IF(Tageswerte!M99<>"",Tageswerte!M99,"") -> 5.6
A100: =IF(Tageswerte!A100<>0,Tageswerte!A100,"") -> 2012-04-08 | B100: =IF(Tageswerte!M100<>"",Tageswerte!M100,"") -> 3.2
A101: =IF(Tageswerte!A101<>0,Tageswerte!A101,"") -> 2012-04-09 | B101: =IF(Tageswerte!M101<>"",Tageswerte!M101,"") -> 5.7
A102: =IF(Tageswerte!A102<>0,Tageswerte!A102,"") -> 2012-04-10 | B102: =IF(Tageswerte!M102<>"",Tageswerte!M102,"") -> 12.5
A103: =IF(Tageswerte!A103<>0,Tageswerte!A103,"") -> 2012-04-11 | B103: =IF(Tageswerte!M103<>"",Tageswerte!M103,"") -> 7.9
A104: =IF(Tageswerte!A104<>0,Tageswerte!A104,"") -> 2012-04-12 | B104: =IF(Tageswerte!M104<>"",Tageswerte!M104,"") -> 7.2
A105: =IF(Tageswerte!A105<>0,Tageswerte!A105,"") -> 2012-04-13 | B105: =IF(Tageswerte!M105<>"",Tageswerte!M105,"") -> 7.6
A106: =IF(Tageswerte!A106<>0,Tageswerte!A106,"") -> 2012-04-14 | B106: =IF(Tageswerte!M106<>"",Tageswerte!M106,"") -> 9.5
A107: =IF(Tageswerte!A107<>0,Tageswerte!A107,"") -> 2012-04-15 | B107: =IF(Tageswerte!M107<>"",Tageswerte!M107,"") -> 7.4
A108: =IF(Tageswerte!A108<>0,Tageswerte!A108,"") -> 2012-04-16 | B108: =IF(Tageswerte!M108<>"",Tageswerte!M108,"") -> 5.5
A109: =IF(Tageswerte!A109<>0,Tageswerte!A109,"") -> 2012-04-17 | B109: =IF(Tageswerte!M109<>"",Tageswerte!M109,"") -> 5.8
A110: =IF(Tageswerte!A110<>0,Tageswerte!A110,"") -> 2012-04-18 | B110: =IF(Tageswerte!M110<>"",Tageswerte!M110,"") -> 8.1
A111: =IF(Tageswerte!A111<>0,Tageswerte!A111,"") -> 2012-04-19 | B111: =IF(Tageswerte!M111<>"",Tageswerte!M111,"") -> 8.5
A112: =IF(Tageswerte!A112<>0,Tageswerte!A112,"") -> 2012-04-20 | B112: =IF(Tageswerte!M112<>"",Tageswerte!M112,"") -> 8.6
A113: =IF(Tageswerte!A113<>0,Tageswerte!A113,"") -> 2012-04-21 | B113: =IF(Tageswerte!M113<>"",Tageswerte!M113,"") -> 7.4
A114: =IF(Tageswerte!A114<>0,Tageswerte!A114,"") -> 2012-04-22 | B114: =IF(Tageswerte!M114<>"",Tageswerte!M114,"") -> 6.5
A115: =IF(Tageswerte!A115<>0,Tageswerte!A115,"") -> 2012-04-23 | B115: =IF(Tageswerte!M115<>"",Tageswerte!M115,"") -> 8.2
A116: =IF(Tageswerte!A116<>0,Tageswerte!A116,"") -> 2012-04-24 | B116: =IF(Tageswerte!M116<>"",Tageswerte!M116,"") -> 8.3
A117: =IF(Tageswerte!A117<>0,Tageswerte!A117,"") -> 2012-04-25 | B117: =IF(Tageswerte!M117<>"",Tageswerte!M117,"") -> 10.9
A118: =IF(Tageswerte!A118<>0,Tageswerte!A118,"") -> 2012-04-26 | B118: =IF(Tageswerte!M118<>"",Tageswerte!M118,"") -> 13
A119: =IF(Tageswerte!A119<>0,Tageswerte!A119,"") -> 2012-04-27 | B119: =IF(Tageswerte!M119<>"",Tageswerte!M119,"") -> 14.9
A120: =IF(Tageswerte!A120<>0,Tageswerte!A120,"") -> 2012-04-28 | B120: =IF(Tageswerte!M120<>"",Tageswerte!M120,"") -> 20.8
A121: =IF(Tageswerte!A121<>0,Tageswerte!A121,"") -> 2012-04-29 | B121: =IF(Tageswerte!M121<>"",Tageswerte!M121,"") -> 19
A122: =IF(Tageswerte!A122<>0,Tageswerte!A122,"") -> 2012-04-30 | B122: =IF(Tageswerte!M122<>"",Tageswerte!M122,"") -> 17.4
A123: =IF(Tageswerte!A123<>0,Tageswerte!A123,"") -> 2012-05-01 | B123: =IF(Tageswerte!M123<>"",Tageswerte!M123,"") -> 16.5
A124: =IF(Tageswerte!A124<>0,Tageswerte!A124,"") -> 2012-05-02 | B124: =IF(Tageswerte!M124<>"",Tageswerte!M124,"") -> 16.8
A125: =IF(Tageswerte!A125<>0,Tageswerte!A125,"") -> 2012-05-03 | B125: =IF(Tageswerte!M125<>"",Tageswerte!M125,"") -> 14
A126: =IF(Tageswerte!A126<>0,Tageswerte!A126,"") -> 2012-05-04 | B126: =IF(Tageswerte!M126<>"",Tageswerte!M126,"") -> 14.7
A127: =IF(Tageswerte!A127<>0,Tageswerte!A127,"") -> 2012-05-05 | B127: =IF(Tageswerte!M127<>"",Tageswerte!M127,"") -> 12.5
A128: =IF(Tageswerte!A128<>0,Tageswerte!A128,"") -> 2012-05-06 | B128: =IF(Tageswerte!M128<>"",Tageswerte!M128,"") -> 11.9
A129: =IF(Tageswerte!A129<>0,Tageswerte!A129,"") -> 2012-05-07 | B129: =IF(Tageswerte!M129<>"",Tageswerte!M129,"") -> 11.3
A130: =IF(Tageswerte!A130<>0,Tageswerte!A130,"") -> 2012-05-08 | B130: =IF(Tageswerte!M130<>"",Tageswerte!M130,"") -> 14.7
A131: =IF(Tageswerte!A131<>0,Tageswerte!A131,"") -> 2012-05-09 | B131: =IF(Tageswerte!M131<>"",Tageswerte!M131,"") -> 16.9
A132: =IF(Tageswerte!A132<>0,Tageswerte!A132,"") -> 2012-05-10 | B132: =IF(Tageswerte!M132<>"",Tageswerte!M132,"") -> 20.1
A133: =IF(Tageswerte!A133<>0,Tageswerte!A133,"") -> 2012-05-11 | B133: =IF(Tageswerte!M133<>"",Tageswerte!M133,"") -> 22.7
A134: =IF(Tageswerte!A134<>0,Tageswerte!A134,"") -> 2012-05-12 | B134: =IF(Tageswerte!M134<>"",Tageswerte!M134,"") -> 11.6
A135: =IF(Tageswerte!A135<>0,Tageswerte!A135,"") -> 2012-05-13 | B135: =IF(Tageswerte!M135<>"",Tageswerte!M135,"") -> 9.3
A136: =IF(Tageswerte!A136<>0,Tageswerte!A136,"") -> 2012-05-14 | B136: =IF(Tageswerte!M136<>"",Tageswerte!M136,"") -> 10.3
A137: =IF(Tageswerte!A137<>0,Tageswerte!A137,"") -> 2012-05-15 | B137: =IF(Tageswerte!M137<>"",Tageswerte!M137,"") -> 8.9
A138: =IF(Tageswerte!A138<>0,Tageswerte!A138,"") -> 2012-05-16 | B138: =IF(Tageswerte!M138<>"",Tageswerte!M138,"") -> 6.4
A139: =IF(Tageswerte!A139<>0,Tageswerte!A139,"") -> 2012-05-17 | B139: =IF(Tageswerte!M139<>"",Tageswerte!M139,"") -> 9
A140: =IF(Tageswerte!A140<>0,Tageswerte!A140,"") -> 2012-05-18 | B140: =IF(Tageswerte!M140<>"",Tageswerte!M140,"") -> 13.5
A141: =IF(Tageswerte!A141<>0,Tageswerte!A141,"") -> 2012-05-19 | B141: =IF(Tageswerte!M141<>"",Tageswerte!M141,"") -> 17.1
A142: =IF(Tageswerte!A142<>0,Tageswerte!A142,"") -> 2012-05-20 | B142: =IF(Tageswerte!M142<>"",Tageswerte!M142,"") -> 18.3
A143: =IF(Tageswerte!A143<>0,Tageswerte!A143,"") -> 2012-05-21 | B143: =IF(Tageswerte!M143<>"",Tageswerte!M143,"") -> 17.9
A144: =IF(Tageswerte!A144<>0,Tageswerte!A144,"") -> 2012-05-22 | B144: =IF(Tageswerte!M144<>"",Tageswerte!M144,"") -> 18.1
A145: =IF(Tageswerte!A145<>0,Tageswerte!A145,"") -> 2012-05-23 | B145: =IF(Tageswerte!M145<>"",Tageswerte!M145,"") -> 18.7
A146: =IF(Tageswerte!A146<>0,Tageswerte!A146,"") -> 2012-05-24 | B146: =IF(Tageswerte!M146<>"",Tageswerte!M146,"") -> 20.2
A147: =IF(Tageswerte!A147<>0,Tageswerte!A147,"") -> 2012-05-25 | B147: =IF(Tageswerte!M147<>"",Tageswerte!M147,"") -> 18.2
A148: =IF(Tageswerte!A148<>0,Tageswerte!A148,"") -> 2012-05-26 | B148: =IF(Tageswerte!M148<>"",Tageswerte!M148,"") -> 17.2
A149: =IF(Tageswerte!A149<>0,Tageswerte!A149,"") -> 2012-05-27 | B149: =IF(Tageswerte!M149<>"",Tageswerte!M149,"") -> 15.4
A150: =IF(Tageswerte!A150<>0,Tageswerte!A150,"") -> 2012-05-28 | B150: =IF(Tageswerte!M150<>"",Tageswerte!M150,"") -> 17.6
A151: =IF(Tageswerte!A151<>0,Tageswerte!A151,"") -> 2012-05-29 | B151: =IF(Tageswerte!M151<>"",Tageswerte!M151,"") -> 19.5
A152: =IF(Tageswerte!A152<>0,Tageswerte!A152,"") -> 2012-05-30 | B152: =IF(Tageswerte!M152<>"",Tageswerte!M152,"") -> 18.6
A153: =IF(Tageswerte!A153<>0,Tageswerte!A153,"") -> 2012-05-31 | B153: =IF(Tageswerte!M153<>"",Tageswerte!M153,"") -> 18.3
A154: =IF(Tageswerte!A154<>0,Tageswerte!A154,"") -> 2012-06-01 | B154: =IF(Tageswerte!M154<>"",Tageswerte!M154,"") -> 16.8
A155: =IF(Tageswerte!A155<>0,Tageswerte!A155,"") -> 2012-06-02 | B155: =IF(Tageswerte!M155<>"",Tageswerte!M155,"") -> 17.1
A156: =IF(Tageswerte!A156<>0,Tageswerte!A156,"") -> 2012-06-03 | B156: =IF(Tageswerte!M156<>"",Tageswerte!M156,"") -> 15.8
A157: =IF(Tageswerte!A157<>0,Tageswerte!A157,"") -> 2012-06-04 | B157: =IF(Tageswerte!M157<>"",Tageswerte!M157,"") -> 14.2
A158: =IF(Tageswerte!A158<>0,Tageswerte!A158,"") -> 2012-06-05 | B158: =IF(Tageswerte!M158<>"",Tageswerte!M158,"") -> 10.9
A159: =IF(Tageswerte!A159<>0,Tageswerte!A159,"") -> 2012-06-06 | B159: =IF(Tageswerte!M159<>"",Tageswerte!M159,"") -> 13.8
A160: =IF(Tageswerte!A160<>0,Tageswerte!A160,"") -> 2012-06-07 | B160: =IF(Tageswerte!M160<>"",Tageswerte!M160,"") -> 17.9
A161: =IF(Tageswerte!A161<>0,Tageswerte!A161,"") -> 2012-06-08 | B161: =IF(Tageswerte!M161<>"",Tageswerte!M161,"") -> 16.6
A162: =IF(Tageswerte!A162<>0,Tageswerte!A162,"") -> 2012-06-09 | B162: =IF(Tageswerte!M162<>"",Tageswerte!M162,"") -> 16.2
A163: =IF(Tageswerte!A163<>0,Tageswerte!A163,"") -> 2012-06-10 | B163: =IF(Tageswerte!M163<>"",Tageswerte!M163,"") -> 13.8
A164: =IF(Tageswerte!A164<>0,Tageswerte!A164,"") -> 2012-06-11 | B164: =IF(Tageswerte!M164<>"",Tageswerte!M164,"") -> 14.3
A165: =IF(Tageswerte!A165<>0,Tageswerte!A165,"") -> 2012-06-12 | B165: =IF(Tageswerte!M165<>"",Tageswerte!M165,"") -> 12.3
A166: =IF(Tageswerte!A166<>0,Tageswerte!A166,"") -> 2012-06-13 | B166: =IF(Tageswerte!M166<>"",Tageswerte!M166,"") -> 13.7
A167: =IF(Tageswerte!A167<>0,Tageswerte!A167,"") -> 2012-06-14 | B167: =IF(Tageswerte!M167<>"",Tageswerte!M167,"") -> 14.7
A168: =IF(Tageswerte!A168<>0,Tageswerte!A168,"") -> 2012-06-15 | B168: =IF(Tageswerte!M168<>"",Tageswerte!M168,"") -> 18.7
A169: =IF(Tageswerte!A169<>0,Tageswerte!A169,"") -> 2012-06-16 | B169: =IF(Tageswerte!M169<>"",Tageswerte!M169,"") -> 20.7
A170: =IF(Tageswerte!A170<>0,Tageswerte!A170,"") -> 2012-06-17 | B170: =IF(Tageswerte!M170<>"",Tageswerte!M170,"") -> 17.9
A171: =IF(Tageswerte!A171<>0,Tageswerte!A171,"") -> 2012-06-18 | B171: =IF(Tageswerte!M171<>"",Tageswerte!M171,"") -> 22.1
A172: =IF(Tageswerte!A172<>0,Tageswerte!A172,"") -> 2012-06-19 | B172: =IF(Tageswerte!M172<>"",Tageswerte!M172,"") -> 21.5
A173: =IF(Tageswerte!A173<>0,Tageswerte!A173,"") -> 2012-06-20 | B173: =IF(Tageswerte!M173<>"",Tageswerte!M173,"") -> 19.5
A174: =IF(Tageswerte!A174<>0,Tageswerte!A174,"") -> 2012-06-21 | B174: =IF(Tageswerte!M174<>"",Tageswerte!M174,"") -> 20.2
A175: =IF(Tageswerte!A175<>0,Tageswerte!A175,"") -> 2012-06-22 | B175: =IF(Tageswerte!M175<>"",Tageswerte!M175,"") -> 17.9
A176: =IF(Tageswerte!A176<>0,Tageswerte!A176,"") -> 2012-06-23 | B176: =IF(Tageswerte!M176<>"",Tageswerte!M176,"") -> 17.8
A177: =IF(Tageswerte!A177<>0,Tageswerte!A177,"") -> 2012-06-24 | B177: =IF(Tageswerte!M177<>"",Tageswerte!M177,"") -> 17.9
A178: =IF(Tageswerte!A178<>0,Tageswerte!A178,"") -> 2012-06-25 | B178: =IF(Tageswerte!M178<>"",Tageswerte!M178,"") -> 15.6
A179: =IF(Tageswerte!A179<>0,Tageswerte!A179,"") -> 2012-06-26 | B179: =IF(Tageswerte!M179<>"",Tageswerte!M179,"") -> 17
A180: =IF(Tageswerte!A180<>0,Tageswerte!A180,"") -> 2012-06-27 | B180: =IF(Tageswerte!M180<>"",Tageswerte!M180,"") -> 19.9
A181: =IF(Tageswerte!A181<>0,Tageswerte!A181,"") -> 2012-06-28 | B181: =IF(Tageswerte!M181<>"",Tageswerte!M181,"") -> 22.2
A182: =IF(Tageswerte!A182<>0,Tageswerte!A182,"") -> 2012-06-29 | B182: =IF(Tageswerte!M182<>"",Tageswerte!M182,"") -> 24.3
A183: =IF(Tageswerte!A183<>0,Tageswerte!A183,"") -> 2012-06-30 | B183: =IF(Tageswerte!M183<>"",Tageswerte!M183,"") -> 24.1
A184: =IF(Tageswerte!A184<>0,Tageswerte!A184,"") -> 2012-07-01 | B184: =IF(Tageswerte!M184<>"",Tageswerte!M184,"") -> 16.9
A185: =IF(Tageswerte!A185<>0,Tageswerte!A185,"") -> 2012-07-02 | B185: =IF(Tageswerte!M185<>"",Tageswerte!M185,"") -> 16.8
A186: =IF(Tageswerte!A186<>0,Tageswerte!A186,"") -> 2012-07-03 | B186: =IF(Tageswerte!M186<>"",Tageswerte!M186,"") -> 17.7
A187: =IF(Tageswerte!A187<>0,Tageswerte!A187,"") -> 2012-07-04 | B187: =IF(Tageswerte!M187<>"",Tageswerte!M187,"") -> 20.9
A188: =IF(Tageswerte!A188<>0,Tageswerte!A188,"") -> 2012-07-05 | B188: =IF(Tageswerte!M188<>"",Tageswerte!M188,"") -> 21.9
A189: =IF(Tageswerte!A189<>0,Tageswerte!A189,"") -> 2012-07-06 | B189: =IF(Tageswerte!M189<>"",Tageswerte!M189,"") -> 18.4
A190: =IF(Tageswerte!A190<>0,Tageswerte!A190,"") -> 2012-07-07 | B190: =IF(Tageswerte!M190<>"",Tageswerte!M190,"") -> 19.7
A191: =IF(Tageswerte!A191<>0,Tageswerte!A191,"") -> 2012-07-08 | B191: =IF(Tageswerte!M191<>"",Tageswerte!M191,"") -> 19.1
A192: =IF(Tageswerte!A192<>0,Tageswerte!A192,"") -> 2012-07-09 | B192: =IF(Tageswerte!M192<>"",Tageswerte!M192,"") -> 19.7
A193: =IF(Tageswerte!A193<>0,Tageswerte!A193,"") -> 2012-07-10 | B193: =IF(Tageswerte!M193<>"",Tageswerte!M193,"") -> 19.7
A194: =IF(Tageswerte!A194<>0,Tageswerte!A194,"") -> 2012-07-11 | B194: =IF(Tageswerte!M194<>"",Tageswerte!M194,"") -> 17.7
A195: =IF(Tageswerte!A195<>0,Tageswerte!A195,"") -> 2012-07-12 | B195: =IF(Tageswerte!M195<>"",Tageswerte!M195,"") -> 15.5
A196: =IF(Tageswerte!A196<>0,Tageswerte!A196,"") -> 2012-07-13 | B196: =IF(Tageswerte!M196<>"",Tageswerte!M196,"") -> 15.7
A197: =IF(Tageswerte!A197<>0,Tageswerte!A197,"") -> 2012-07-14 | B197: =IF(Tageswerte!M197<>"",Tageswerte!M197,"") -> 17.5
A198: =IF(Tageswerte!A198<>0,Tageswerte!A198,"") -> 2012-07-15 | B198: =IF(Tageswerte!M198<>"",Tageswerte!M198,"") -> 14.3
A199: =IF(Tageswerte!A199<>0,Tageswerte!A199,"") -> 2012-07-16 | B199: =IF(Tageswerte!M199<>"",Tageswerte!M199,"") -> 15.2
A200: =IF(Tageswerte!A200<>0,Tageswerte!A200,"") -> 2012-07-17 | B200: =IF(Tageswerte!M200<>"",Tageswerte!M200,"") -> 17.7
... 167 more rows

Sheet Als-Ob-Allokation KW 04
A1: Datum | B1: Temperatur | D1: Summe Tagesmengen Abfragezeitraum
A2: =IF('Als-Ob-Allokation KW03'!A2<>"",'Als-Ob-Allokation KW03'!A2,"") -> 2012-01-01 | B2: =IF('Als-Ob-Allokation KW03'!B2<>"",'Als-Ob-Allokation KW03'!B2,"") -> 10.2 | D2: =SUM('Tagesmengenallokation 04'!C2:C1000) -> 1993432748
A3: =IF('Als-Ob-Allokation KW03'!A3<>"",'Als-Ob-Allokation KW03'!A3,"") -> 2012-01-02 | B3: =IF('Als-Ob-Allokation KW03'!B3<>"",'Als-Ob-Allokation KW03'!B3,"") -> 9
A4: =IF('Als-Ob-Allokation KW03'!A4<>"",'Als-Ob-Allokation KW03'!A4,"") -> 2012-01-03 | B4: =IF('Als-Ob-Allokation KW03'!B4<>"",'Als-Ob-Allokation KW03'!B4,"") -> 5.9
A5: =IF('Als-Ob-Allokation KW03'!A5<>"",'Als-Ob-Allokation KW03'!A5,"") -> 2012-01-04 | B5: =IF('Als-Ob-Allokation KW03'!B5<>"",'Als-Ob-Allokation KW03'!B5,"") -> 5.5
A6: =IF('Als-Ob-Allokation KW03'!A6<>"",'Als-Ob-Allokation KW03'!A6,"") -> 2012-01-05 | B6: =IF('Als-Ob-Allokation KW03'!B6<>"",'Als-Ob-Allokation KW03'!B6,"") -> 4.5
A7: =IF('Als-Ob-Allokation KW03'!A7<>"",'Als-Ob-Allokation KW03'!A7,"") -> 2012-01-06 | B7: =IF('Als-Ob-Allokation KW03'!B7<>"",'Als-Ob-Allokation KW03'!B7,"") -> 2.9
A8: =IF('Als-Ob-Allokation KW03'!A8<>"",'Als-Ob-Allokation KW03'!A8,"") -> 2012-01-07 | B8: =IF('Als-Ob-Allokation KW03'!B8<>"",'Als-Ob-Allokation KW03'!B8,"") -> 3.7
A9: =IF('Als-Ob-Allokation KW03'!A9<>"",'Als-Ob-Allokation KW03'!A9,"") -> 2012-01-08 | B9: =IF('Als-Ob-Allokation KW03'!B9<>"",'Als-Ob-Allokation KW03'!B9,"") -> 3.9
A10: =IF('Als-Ob-Allokation KW03'!A10<>"",'Als-Ob-Allokation KW03'!A10,"") -> 2012-01-09 | B10: =IF('Als-Ob-Allokation KW03'!B10<>"",'Als-Ob-Allokation KW03'!B10,"") -> 4.2
A11: =IF('Als-Ob-Allokation KW03'!A11<>"",'Als-Ob-Allokation KW03'!A11,"") -> 2012-01-10 | B11: =IF('Als-Ob-Allokation KW03'!B11<>"",'Als-Ob-Allokation KW03'!B11,"") -> 4.8
A12: =IF('Als-Ob-Allokation KW03'!A12<>"",'Als-Ob-Allokation KW03'!A12,"") -> 2012-01-11 | B12: =IF('Als-Ob-Allokation KW03'!B12<>"",'Als-Ob-Allokation KW03'!B12,"") -> 2.5
A13: =IF('Als-Ob-Allokation KW03'!A13<>"",'Als-Ob-Allokation KW03'!A13,"") -> 2012-01-12 | B13: =IF('Als-Ob-Allokation KW03'!B13<>"",'Als-Ob-Allokation KW03'!B13,"") -> 3.5
A14: =IF('Als-Ob-Allokation KW03'!A14<>"",'Als-Ob-Allokation KW03'!A14,"") -> 2012-01-13 | B14: =IF('Als-Ob-Allokation KW03'!B14<>"",'Als-Ob-Allokation KW03'!B14,"") -> 2.6
A15: =IF('Als-Ob-Allokation KW03'!A15<>"",'Als-Ob-Allokation KW03'!A15,"") -> 2012-01-14 | B15: =IF('Als-Ob-Allokation KW03'!B15<>"",'Als-Ob-Allokation KW03'!B15,"") -> 0.8
A16: =IF('Als-Ob-Allokation KW03'!A16<>"",'Als-Ob-Allokation KW03'!A16,"") -> 2012-01-15 | B16: =IF('Als-Ob-Allokation KW03'!B16<>"",'Als-Ob-Allokation KW03'!B16,"") -> -1.8
A17: =IF('Als-Ob-Allokation KW03'!A17<>"",'Als-Ob-Allokation KW03'!A17,"") -> 2012-01-16 | B17: =IF('Als-Ob-Allokation KW03'!B17<>"",'Als-Ob-Allokation KW03'!B17,"") -> -2.6
A18: =IF('Als-Ob-Allokation KW03'!A18<>"",'Als-Ob-Allokation KW03'!A18,"") -> 2012-01-17 | B18: =IF('Als-Ob-Allokation KW03'!B18<>"",'Als-Ob-Allokation KW03'!B18,"") -> -3
A19: =IF('Als-Ob-Allokation KW03'!A19<>"",'Als-Ob-Allokation KW03'!A19,"") -> 2012-01-18 | B19: =IF('Als-Ob-Allokation KW03'!B19<>"",'Als-Ob-Allokation KW03'!B19,"") -> -1.4
A20: =IF('Als-Ob-Allokation KW03'!A20<>"",'Als-Ob-Allokation KW03'!A20,"") -> 2012-01-19 | B20: =IF('Als-Ob-Allokation KW03'!B20<>"",'Als-Ob-Allokation KW03'!B20,"") -> 6.5
A21: =IF('Als-Ob-Allokation KW03'!A21<>"",'Als-Ob-Allokation KW03'!A21,"") -> 2012-01-20 | B21: =IF('Als-Ob-Allokation KW03'!B21<>"",'Als-Ob-Allokation KW03'!B21,"") -> 3.2
A22: =IF('Als-Ob-Allokation KW03'!A22<>"",'Als-Ob-Allokation KW03'!A22,"") -> 2012-01-21 | B22: =IF('Als-Ob-Allokation KW03'!B22<>"",'Als-Ob-Allokation KW03'!B22,"") -> 4.5
A23: =IF('Als-Ob-Allokation KW03'!A23<>"",'Als-Ob-Allokation KW03'!A23,"") -> 2012-01-22 | B23: =IF('Als-Ob-Allokation KW03'!B23<>"",'Als-Ob-Allokation KW03'!B23,"") -> 5.2
A24: =IF('Als-Ob-Allokation KW03'!A24<>"",'Als-Ob-Allokation KW03'!A24,"") -> 2012-01-23 | B24: =IF('Als-Ob-Allokation KW03'!B24<>"",'Als-Ob-Allokation KW03'!B24,"") -> 4.2
A25: =IF('Als-Ob-Allokation KW03'!A25<>"",'Als-Ob-Allokation KW03'!A25,"") -> 2012-01-24 | B25: =IF('Als-Ob-Allokation KW03'!B25<>"",'Als-Ob-Allokation KW03'!B25,"") -> 1.9
A26: =IF('Als-Ob-Allokation KW03'!A26<>"",'Als-Ob-Allokation KW03'!A26,"") -> 2012-01-25 | B26: =IF('Als-Ob-Allokation KW03'!B26<>"",'Als-Ob-Allokation KW03'!B26,"") -> -0.3
A27: =IF('Als-Ob-Allokation KW03'!A27<>"",'Als-Ob-Allokation KW03'!A27,"") -> 2012-01-26 | B27: =IF('Als-Ob-Allokation KW03'!B27<>"",'Als-Ob-Allokation KW03'!B27,"") -> -0.4
A28: =IF('Als-Ob-Allokation KW03'!A28<>"",'Als-Ob-Allokation KW03'!A28,"") -> 2012-01-27 | B28: =IF('Als-Ob-Allokation KW03'!B28<>"",'Als-Ob-Allokation KW03'!B28,"") -> 1.5
A29: =IF('Als-Ob-Allokation KW03'!A29<>"",'Als-Ob-Allokation KW03'!A29,"") -> 2012-01-28 | B29: =IF('Als-Ob-Allokation KW03'!B29<>"",'Als-Ob-Allokation KW03'!B29,"") -> 1.7
A30: =IF('Als-Ob-Allokation KW03'!A30<>"",'Als-Ob-Allokation KW03'!A30,"") -> 2012-01-29 | B30: =IF('Als-Ob-Allokation KW03'!B30<>"",'Als-Ob-Allokation KW03'!B30,"") -> -0.6
A31: =IF('Als-Ob-Allokation KW03'!A31<>"",'Als-Ob-Allokation KW03'!A31,"") -> 2012-01-30 | B31: =IF('Als-Ob-Allokation KW03'!B31<>"",'Als-Ob-Allokation KW03'!B31,"") -> -1.3
A32: =IF('Als-Ob-Allokation KW03'!A32<>"",'Als-Ob-Allokation KW03'!A32,"") -> 2012-01-31 | B32: =IF('Als-Ob-Allokation KW03'!B32<>"",'Als-Ob-Allokation KW03'!B32,"") -> -3.2
A33: =IF('Als-Ob-Allokation KW03'!A33<>"",'Als-Ob-Allokation KW03'!A33,"") -> 2012-02-01 | B33: =IF('Als-Ob-Allokation KW03'!B33<>"",'Als-Ob-Allokation KW03'!B33,"") -> -6.2
A34: =IF('Als-Ob-Allokation KW03'!A34<>"",'Als-Ob-Allokation KW03'!A34,"") -> 2012-02-02 | B34: =IF('Als-Ob-Allokation KW03'!B34<>"",'Als-Ob-Allokation KW03'!B34,"") -> -8.5
A35: =IF('Als-Ob-Allokation KW03'!A35<>"",'Als-Ob-Allokation KW03'!A35,"") -> 2012-02-03 | B35: =IF('Als-Ob-Allokation KW03'!B35<>"",'Als-Ob-Allokation KW03'!B35,"") -> -11
A36: =IF('Als-Ob-Allokation KW03'!A36<>"",'Als-Ob-Allokation KW03'!A36,"") -> 2012-02-04 | B36: =IF('Als-Ob-Allokation KW03'!B36<>"",'Als-Ob-Allokation KW03'!B36,"") -> -11.5
A37: =IF('Als-Ob-Allokation KW03'!A37<>"",'Als-Ob-Allokation KW03'!A37,"") -> 2012-02-05 | B37: =IF('Als-Ob-Allokation KW03'!B37<>"",'Als-Ob-Allokation KW03'!B37,"") -> -11.9
A38: =IF('Als-Ob-Allokation KW03'!A38<>"",'Als-Ob-Allokation KW03'!A38,"") -> 2012-02-06 | B38: =IF('Als-Ob-Allokation KW03'!B38<>"",'Als-Ob-Allokation KW03'!B38,"") -> -12.3
A39: =IF('Als-Ob-Allokation KW03'!A39<>"",'Als-Ob-Allokation KW03'!A39,"") -> 2012-02-07 | B39: =IF('Als-Ob-Allokation KW03'!B39<>"",'Als-Ob-Allokation KW03'!B39,"") -> -12.4
A40: =IF('Als-Ob-Allokation KW03'!A40<>"",'Als-Ob-Allokation KW03'!A40,"") -> 2012-02-08 | B40: =IF('Als-Ob-Allokation KW03'!B40<>"",'Als-Ob-Allokation KW03'!B40,"") -> -8
A41: =IF('Als-Ob-Allokation KW03'!A41<>"",'Als-Ob-Allokation KW03'!A41,"") -> 2012-02-09 | B41: =IF('Als-Ob-Allokation KW03'!B41<>"",'Als-Ob-Allokation KW03'!B41,"") -> -9.7
A42: =IF('Als-Ob-Allokation KW03'!A42<>"",'Als-Ob-Allokation KW03'!A42,"") -> 2012-02-10 | B42: =IF('Als-Ob-Allokation KW03'!B42<>"",'Als-Ob-Allokation KW03'!B42,"") -> -8.9
A43: =IF('Als-Ob-Allokation KW03'!A43<>"",'Als-Ob-Allokation KW03'!A43,"") -> 2012-02-11 | B43: =IF('Als-Ob-Allokation KW03'!B43<>"",'Als-Ob-Allokation KW03'!B43,"") -> -10.7
A44: =IF('Als-Ob-Allokation KW03'!A44<>"",'Als-Ob-Allokation KW03'!A44,"") -> 2012-02-12 | B44: =IF('Als-Ob-Allokation KW03'!B44<>"",'Als-Ob-Allokation KW03'!B44,"") -> -11
A45: =IF('Als-Ob-Allokation KW03'!A45<>"",'Als-Ob-Allokation KW03'!A45,"") -> 2012-02-13 | B45: =IF('Als-Ob-Allokation KW03'!B45<>"",'Als-Ob-Allokation KW03'!B45,"") -> -6.5
A46: =IF('Als-Ob-Allokation KW03'!A46<>"",'Als-Ob-Allokation KW03'!A46,"") -> 2012-02-14 | B46: =IF('Als-Ob-Allokation KW03'!B46<>"",'Als-Ob-Allokation KW03'!B46,"") -> -1.2
A47: =IF('Als-Ob-Allokation KW03'!A47<>"",'Als-Ob-Allokation KW03'!A47,"") -> 2012-02-15 | B47: =IF('Als-Ob-Allokation KW03'!B47<>"",'Als-Ob-Allokation KW03'!B47,"") -> 1.5
A48: =IF('Als-Ob-Allokation KW03'!A48<>"",'Als-Ob-Allokation KW03'!A48,"") -> 2012-02-16 | B48: =IF('Als-Ob-Allokation KW03'!B48<>"",'Als-Ob-Allokation KW03'!B48,"") -> 2
A49: =IF('Als-Ob-Allokation KW03'!A49<>"",'Als-Ob-Allokation KW03'!A49,"") -> 2012-02-17 | B49: =IF('Als-Ob-Allokation KW03'!B49<>"",'Als-Ob-Allokation KW03'!B49,"") -> 3.2
A50: =IF('Als-Ob-Allokation KW03'!A50<>"",'Als-Ob-Allokation KW03'!A50,"") -> 2012-02-18 | B50: =IF('Als-Ob-Allokation KW03'!B50<>"",'Als-Ob-Allokation KW03'!B50,"") -> 5.2
A51: =IF('Als-Ob-Allokation KW03'!A51<>"",'Als-Ob-Allokation KW03'!A51,"") -> 2012-02-19 | B51: =IF('Als-Ob-Allokation KW03'!B51<>"",'Als-Ob-Allokation KW03'!B51,"") -> 2.5
A52: =IF('Als-Ob-Allokation KW03'!A52<>"",'Als-Ob-Allokation KW03'!A52,"") -> 2012-02-20 | B52: =IF('Als-Ob-Allokation KW03'!B52<>"",'Als-Ob-Allokation KW03'!B52,"") -> 0.4
A53: =IF('Als-Ob-Allokation KW03'!A53<>"",'Als-Ob-Allokation KW03'!A53,"") -> 2012-02-21 | B53: =IF('Als-Ob-Allokation KW03'!B53<>"",'Als-Ob-Allokation KW03'!B53,"") -> -0.6
A54: =IF('Als-Ob-Allokation KW03'!A54<>"",'Als-Ob-Allokation KW03'!A54,"") -> 2012-02-22 | B54: =IF('Als-Ob-Allokation KW03'!B54<>"",'Als-Ob-Allokation KW03'!B54,"") -> 1.4
A55: =IF('Als-Ob-Allokation KW03'!A55<>"",'Als-Ob-Allokation KW03'!A55,"") -> 2012-02-23 | B55: =IF('Als-Ob-Allokation KW03'!B55<>"",'Als-Ob-Allokation KW03'!B55,"") -> 5.4
A56: =IF('Als-Ob-Allokation KW03'!A56<>"",'Als-Ob-Allokation KW03'!A56,"") -> 2012-02-24 | B56: =IF('Als-Ob-Allokation KW03'!B56<>"",'Als-Ob-Allokation KW03'!B56,"") -> 7.9
A57: =IF('Als-Ob-Allokation KW03'!A57<>"",'Als-Ob-Allokation KW03'!A57,"") -> 2012-02-25 | B57: =IF('Als-Ob-Allokation KW03'!B57<>"",'Als-Ob-Allokation KW03'!B57,"") -> 7.4
A58: =IF('Als-Ob-Allokation KW03'!A58<>"",'Als-Ob-Allokation KW03'!A58,"") -> 2012-02-26 | B58: =IF('Als-Ob-Allokation KW03'!B58<>"",'Als-Ob-Allokation KW03'!B58,"") -> 4.9
A59: =IF('Als-Ob-Allokation KW03'!A59<>"",'Als-Ob-Allokation KW03'!A59,"") -> 2012-02-27 | B59: =IF('Als-Ob-Allokation KW03'!B59<>"",'Als-Ob-Allokation KW03'!B59,"") -> 4.2
A60: =IF('Als-Ob-Allokation KW03'!A60<>"",'Als-Ob-Allokation KW03'!A60,"") -> 2012-02-28 | B60: =IF('Als-Ob-Allokation KW03'!B60<>"",'Als-Ob-Allokation KW03'!B60,"") -> 6.2
A61: =IF('Als-Ob-Allokation KW03'!A61<>"",'Als-Ob-Allokation KW03'!A61,"") -> 2012-02-29 | B61: =IF('Als-Ob-Allokation KW03'!B61<>"",'Als-Ob-Allokation KW03'!B61,"") -> 7.3
A62: =IF('Als-Ob-Allokation KW03'!A62<>"",'Als-Ob-Allokation KW03'!A62,"") -> 2012-03-01 | B62: =IF('Als-Ob-Allokation KW03'!B62<>"",'Als-Ob-Allokation KW03'!B62,"") -> 7.7
A63: =IF('Als-Ob-Allokation KW03'!A63<>"",'Als-Ob-Allokation KW03'!A63,"") -> 2012-03-02 | B63: =IF('Als-Ob-Allokation KW03'!B63<>"",'Als-Ob-Allokation KW03'!B63,"") -> 6.4
A64: =IF('Als-Ob-Allokation KW03'!A64<>"",'Als-Ob-Allokation KW03'!A64,"") -> 2012-03-03 | B64: =IF('Als-Ob-Allokation KW03'!B64<>"",'Als-Ob-Allokation KW03'!B64,"") -> 7.8
A65: =IF('Als-Ob-Allokation KW03'!A65<>"",'Als-Ob-Allokation KW03'!A65,"") -> 2012-03-04 | B65: =IF('Als-Ob-Allokation KW03'!B65<>"",'Als-Ob-Allokation KW03'!B65,"") -> 6.9
A66: =IF('Als-Ob-Allokation KW03'!A66<>"",'Als-Ob-Allokation KW03'!A66,"") -> 2012-03-05 | B66: =IF('Als-Ob-Allokation KW03'!B66<>"",'Als-Ob-Allokation KW03'!B66,"") -> 3.8
A67: =IF('Als-Ob-Allokation KW03'!A67<>"",'Als-Ob-Allokation KW03'!A67,"") -> 2012-03-06 | B67: =IF('Als-Ob-Allokation KW03'!B67<>"",'Als-Ob-Allokation KW03'!B67,"") -> 3.2
A68: =IF('Als-Ob-Allokation KW03'!A68<>"",'Als-Ob-Allokation KW03'!A68,"") -> 2012-03-07 | B68: =IF('Als-Ob-Allokation KW03'!B68<>"",'Als-Ob-Allokation KW03'!B68,"") -> 4.6
A69: =IF('Als-Ob-Allokation KW03'!A69<>"",'Als-Ob-Allokation KW03'!A69,"") -> 2012-03-08 | B69: =IF('Als-Ob-Allokation KW03'!B69<>"",'Als-Ob-Allokation KW03'!B69,"") -> 4.2
A70: =IF('Als-Ob-Allokation KW03'!A70<>"",'Als-Ob-Allokation KW03'!A70,"") -> 2012-03-09 | B70: =IF('Als-Ob-Allokation KW03'!B70<>"",'Als-Ob-Allokation KW03'!B70,"") -> 3.2
A71: =IF('Als-Ob-Allokation KW03'!A71<>"",'Als-Ob-Allokation KW03'!A71,"") -> 2012-03-10 | B71: =IF('Als-Ob-Allokation KW03'!B71<>"",'Als-Ob-Allokation KW03'!B71,"") -> 5.2
A72: =IF('Als-Ob-Allokation KW03'!A72<>"",'Als-Ob-Allokation KW03'!A72,"") -> 2012-03-11 | B72: =IF('Als-Ob-Allokation KW03'!B72<>"",'Als-Ob-Allokation KW03'!B72,"") -> 7.4
A73: =IF('Als-Ob-Allokation KW03'!A73<>"",'Als-Ob-Allokation KW03'!A73,"") -> 2012-03-12 | B73: =IF('Als-Ob-Allokation KW03'!B73<>"",'Als-Ob-Allokation KW03'!B73,"") -> 8.2
A74: =IF('Als-Ob-Allokation KW03'!A74<>"",'Als-Ob-Allokation KW03'!A74,"") -> 2012-03-13 | B74: =IF('Als-Ob-Allokation KW03'!B74<>"",'Als-Ob-Allokation KW03'!B74,"") -> 8.3
A75: =IF('Als-Ob-Allokation KW03'!A75<>"",'Als-Ob-Allokation KW03'!A75,"") -> 2012-03-14 | B75: =IF('Als-Ob-Allokation KW03'!B75<>"",'Als-Ob-Allokation KW03'!B75,"") -> 7.5
A76: =IF('Als-Ob-Allokation KW03'!A76<>"",'Als-Ob-Allokation KW03'!A76,"") -> 2012-03-15 | B76: =IF('Als-Ob-Allokation KW03'!B76<>"",'Als-Ob-Allokation KW03'!B76,"") -> 7.8
A77: =IF('Als-Ob-Allokation KW03'!A77<>"",'Als-Ob-Allokation KW03'!A77,"") -> 2012-03-16 | B77: =IF('Als-Ob-Allokation KW03'!B77<>"",'Als-Ob-Allokation KW03'!B77,"") -> 10.9
A78: =IF('Als-Ob-Allokation KW03'!A78<>"",'Als-Ob-Allokation KW03'!A78,"") -> 2012-03-17 | B78: =IF('Als-Ob-Allokation KW03'!B78<>"",'Als-Ob-Allokation KW03'!B78,"") -> 11.2
A79: =IF('Als-Ob-Allokation KW03'!A79<>"",'Als-Ob-Allokation KW03'!A79,"") -> 2012-03-18 | B79: =IF('Als-Ob-Allokation KW03'!B79<>"",'Als-Ob-Allokation KW03'!B79,"") -> 7.4
A80: =IF('Als-Ob-Allokation KW03'!A80<>"",'Als-Ob-Allokation KW03'!A80,"") -> 2012-03-19 | B80: =IF('Als-Ob-Allokation KW03'!B80<>"",'Als-Ob-Allokation KW03'!B80,"") -> 6.7
A81: =IF('Als-Ob-Allokation KW03'!A81<>"",'Als-Ob-Allokation KW03'!A81,"") -> 2012-03-20 | B81: =IF('Als-Ob-Allokation KW03'!B81<>"",'Als-Ob-Allokation KW03'!B81,"") -> 6.3
A82: =IF('Als-Ob-Allokation KW03'!A82<>"",'Als-Ob-Allokation KW03'!A82,"") -> 2012-03-21 | B82: =IF('Als-Ob-Allokation KW03'!B82<>"",'Als-Ob-Allokation KW03'!B82,"") -> 8.1
A83: =IF('Als-Ob-Allokation KW03'!A83<>"",'Als-Ob-Allokation KW03'!A83,"") -> 2012-03-22 | B83: =IF('Als-Ob-Allokation KW03'!B83<>"",'Als-Ob-Allokation KW03'!B83,"") -> 10.6
A84: =IF('Als-Ob-Allokation KW03'!A84<>"",'Als-Ob-Allokation KW03'!A84,"") -> 2012-03-23 | B84: =IF('Als-Ob-Allokation KW03'!B84<>"",'Als-Ob-Allokation KW03'!B84,"") -> 11.1
A85: =IF('Als-Ob-Allokation KW03'!A85<>"",'Als-Ob-Allokation KW03'!A85,"") -> 2012-03-24 | B85: =IF('Als-Ob-Allokation KW03'!B85<>"",'Als-Ob-Allokation KW03'!B85,"") -> 10.6
A86: =IF('Als-Ob-Allokation KW03'!A86<>"",'Als-Ob-Allokation KW03'!A86,"") -> 2012-03-25 | B86: =IF('Als-Ob-Allokation KW03'!B86<>"",'Als-Ob-Allokation KW03'!B86,"") -> 11.4
A87: =IF('Als-Ob-Allokation KW03'!A87<>"",'Als-Ob-Allokation KW03'!A87,"") -> 2012-03-26 | B87: =IF('Als-Ob-Allokation KW03'!B87<>"",'Als-Ob-Allokation KW03'!B87,"") -> 11.2
A88: =IF('Als-Ob-Allokation KW03'!A88<>"",'Als-Ob-Allokation KW03'!A88,"") -> 2012-03-27 | B88: =IF('Als-Ob-Allokation KW03'!B88<>"",'Als-Ob-Allokation KW03'!B88,"") -> 10.6
A89: =IF('Als-Ob-Allokation KW03'!A89<>"",'Als-Ob-Allokation KW03'!A89,"") -> 2012-03-28 | B89: =IF('Als-Ob-Allokation KW03'!B89<>"",'Als-Ob-Allokation KW03'!B89,"") -> 11.9
A90: =IF('Als-Ob-Allokation KW03'!A90<>"",'Als-Ob-Allokation KW03'!A90,"") -> 2012-03-29 | B90: =IF('Als-Ob-Allokation KW03'!B90<>"",'Als-Ob-Allokation KW03'!B90,"") -> 10.9
A91: =IF('Als-Ob-Allokation KW03'!A91<>"",'Als-Ob-Allokation KW03'!A91,"") -> 2012-03-30 | B91: =IF('Als-Ob-Allokation KW03'!B91<>"",'Als-Ob-Allokation KW03'!B91,"") -> 9.7
A92: =IF('Als-Ob-Allokation KW03'!A92<>"",'Als-Ob-Allokation KW03'!A92,"") -> 2012-03-31 | B92: =IF('Als-Ob-Allokation KW03'!B92<>"",'Als-Ob-Allokation KW03'!B92,"") -> 9
A93: =IF('Als-Ob-Allokation KW03'!A93<>"",'Als-Ob-Allokation KW03'!A93,"") -> 2012-04-01 | B93: =IF('Als-Ob-Allokation KW03'!B93<>"",'Als-Ob-Allokation KW03'!B93,"") -> 5.2
A94: =IF('Als-Ob-Allokation KW03'!A94<>"",'Als-Ob-Allokation KW03'!A94,"") -> 2012-04-02 | B94: =IF('Als-Ob-Allokation KW03'!B94<>"",'Als-Ob-Allokation KW03'!B94,"") -> 7.2
A95: =IF('Als-Ob-Allokation KW03'!A95<>"",'Als-Ob-Allokation KW03'!A95,"") -> 2012-04-03 | B95: =IF('Als-Ob-Allokation KW03'!B95<>"",'Als-Ob-Allokation KW03'!B95,"") -> 10.3
A96: =IF('Als-Ob-Allokation KW03'!A96<>"",'Als-Ob-Allokation KW03'!A96,"") -> 2012-04-04 | B96: =IF('Als-Ob-Allokation KW03'!B96<>"",'Als-Ob-Allokation KW03'!B96,"") -> 9.5
A97: =IF('Als-Ob-Allokation KW03'!A97<>"",'Als-Ob-Allokation KW03'!A97,"") -> 2012-04-05 | B97: =IF('Als-Ob-Allokation KW03'!B97<>"",'Als-Ob-Allokation KW03'!B97,"") -> 7.3
A98: =IF('Als-Ob-Allokation KW03'!A98<>"",'Als-Ob-Allokation KW03'!A98,"") -> 2012-04-06 | B98: =IF('Als-Ob-Allokation KW03'!B98<>"",'Als-Ob-Allokation KW03'!B98,"") -> 6.7
A99: =IF('Als-Ob-Allokation KW03'!A99<>"",'Als-Ob-Allokation KW03'!A99,"") -> 2012-04-07 | B99: =IF('Als-Ob-Allokation KW03'!B99<>"",'Als-Ob-Allokation KW03'!B99,"") -> 5.6
A100: =IF('Als-Ob-Allokation KW03'!A100<>"",'Als-Ob-Allokation KW03'!A100,"") -> 2012-04-08 | B100: =IF('Als-Ob-Allokation KW03'!B100<>"",'Als-Ob-Allokation KW03'!B100,"") -> 3.2
A101: =IF('Als-Ob-Allokation KW03'!A101<>"",'Als-Ob-Allokation KW03'!A101,"") -> 2012-04-09 | B101: =IF('Als-Ob-Allokation KW03'!B101<>"",'Als-Ob-Allokation KW03'!B101,"") -> 5.7
A102: =IF('Als-Ob-Allokation KW03'!A102<>"",'Als-Ob-Allokation KW03'!A102,"") -> 2012-04-10 | B102: =IF('Als-Ob-Allokation KW03'!B102<>"",'Als-Ob-Allokation KW03'!B102,"") -> 12.5
A103: =IF('Als-Ob-Allokation KW03'!A103<>"",'Als-Ob-Allokation KW03'!A103,"") -> 2012-04-11 | B103: =IF('Als-Ob-Allokation KW03'!B103<>"",'Als-Ob-Allokation KW03'!B103,"") -> 7.9
A104: =IF('Als-Ob-Allokation KW03'!A104<>"",'Als-Ob-Allokation KW03'!A104,"") -> 2012-04-12 | B104: =IF('Als-Ob-Allokation KW03'!B104<>"",'Als-Ob-Allokation KW03'!B104,"") -> 7.2
A105: =IF('Als-Ob-Allokation KW03'!A105<>"",'Als-Ob-Allokation KW03'!A105,"") -> 2012-04-13 | B105: =IF('Als-Ob-Allokation KW03'!B105<>"",'Als-Ob-Allokation KW03'!B105,"") -> 7.6
A106: =IF('Als-Ob-Allokation KW03'!A106<>"",'Als-Ob-Allokation KW03'!A106,"") -> 2012-04-14 | B106: =IF('Als-Ob-Allokation KW03'!B106<>"",'Als-Ob-Allokation KW03'!B106,"") -> 9.5
A107: =IF('Als-Ob-Allokation KW03'!A107<>"",'Als-Ob-Allokation KW03'!A107,"") -> 2012-04-15 | B107: =IF('Als-Ob-Allokation KW03'!B107<>"",'Als-Ob-Allokation KW03'!B107,"") -> 7.4
A108: =IF('Als-Ob-Allokation KW03'!A108<>"",'Als-Ob-Allokation KW03'!A108,"") -> 2012-04-16 | B108: =IF('Als-Ob-Allokation KW03'!B108<>"",'Als-Ob-Allokation KW03'!B108,"") -> 5.5
A109: =IF('Als-Ob-Allokation KW03'!A109<>"",'Als-Ob-Allokation KW03'!A109,"") -> 2012-04-17 | B109: =IF('Als-Ob-Allokation KW03'!B109<>"",'Als-Ob-Allokation KW03'!B109,"") -> 5.8
A110: =IF('Als-Ob-Allokation KW03'!A110<>"",'Als-Ob-Allokation KW03'!A110,"") -> 2012-04-18 | B110: =IF('Als-Ob-Allokation KW03'!B110<>"",'Als-Ob-Allokation KW03'!B110,"") -> 8.1
A111: =IF('Als-Ob-Allokation KW03'!A111<>"",'Als-Ob-Allokation KW03'!A111,"") -> 2012-04-19 | B111: =IF('Als-Ob-Allokation KW03'!B111<>"",'Als-Ob-Allokation KW03'!B111,"") -> 8.5
A112: =IF('Als-Ob-Allokation KW03'!A112<>"",'Als-Ob-Allokation KW03'!A112,"") -> 2012-04-20 | B112: =IF('Als-Ob-Allokation KW03'!B112<>"",'Als-Ob-Allokation KW03'!B112,"") -> 8.6
A113: =IF('Als-Ob-Allokation KW03'!A113<>"",'Als-Ob-Allokation KW03'!A113,"") -> 2012-04-21 | B113: =IF('Als-Ob-Allokation KW03'!B113<>"",'Als-Ob-Allokation KW03'!B113,"") -> 7.4
A114: =IF('Als-Ob-Allokation KW03'!A114<>"",'Als-Ob-Allokation KW03'!A114,"") -> 2012-04-22 | B114: =IF('Als-Ob-Allokation KW03'!B114<>"",'Als-Ob-Allokation KW03'!B114,"") -> 6.5
A115: =IF('Als-Ob-Allokation KW03'!A115<>"",'Als-Ob-Allokation KW03'!A115,"") -> 2012-04-23 | B115: =IF('Als-Ob-Allokation KW03'!B115<>"",'Als-Ob-Allokation KW03'!B115,"") -> 8.2
A116: =IF('Als-Ob-Allokation KW03'!A116<>"",'Als-Ob-Allokation KW03'!A116,"") -> 2012-04-24 | B116: =IF('Als-Ob-Allokation KW03'!B116<>"",'Als-Ob-Allokation KW03'!B116,"") -> 8.3
A117: =IF('Als-Ob-Allokation KW03'!A117<>"",'Als-Ob-Allokation KW03'!A117,"") -> 2012-04-25 | B117: =IF('Als-Ob-Allokation KW03'!B117<>"",'Als-Ob-Allokation KW03'!B117,"") -> 10.9
A118: =IF('Als-Ob-Allokation KW03'!A118<>"",'Als-Ob-Allokation KW03'!A118,"") -> 2012-04-26 | B118: =IF('Als-Ob-Allokation KW03'!B118<>"",'Als-Ob-Allokation KW03'!B118,"") -> 13
A119: =IF('Als-Ob-Allokation KW03'!A119<>"",'Als-Ob-Allokation KW03'!A119,"") -> 2012-04-27 | B119: =IF('Als-Ob-Allokation KW03'!B119<>"",'Als-Ob-Allokation KW03'!B119,"") -> 14.9
A120: =IF('Als-Ob-Allokation KW03'!A120<>"",'Als-Ob-Allokation KW03'!A120,"") -> 2012-04-28 | B120: =IF('Als-Ob-Allokation KW03'!B120<>"",'Als-Ob-Allokation KW03'!B120,"") -> 20.8
A121: =IF('Als-Ob-Allokation KW03'!A121<>"",'Als-Ob-Allokation KW03'!A121,"") -> 2012-04-29 | B121: =IF('Als-Ob-Allokation KW03'!B121<>"",'Als-Ob-Allokation KW03'!B121,"") -> 19
A122: =IF('Als-Ob-Allokation KW03'!A122<>"",'Als-Ob-Allokation KW03'!A122,"") -> 2012-04-30 | B122: =IF('Als-Ob-Allokation KW03'!B122<>"",'Als-Ob-Allokation KW03'!B122,"") -> 17.4
A123: =IF('Als-Ob-Allokation KW03'!A123<>"",'Als-Ob-Allokation KW03'!A123,"") -> 2012-05-01 | B123: =IF('Als-Ob-Allokation KW03'!B123<>"",'Als-Ob-Allokation KW03'!B123,"") -> 16.5
A124: =IF('Als-Ob-Allokation KW03'!A124<>"",'Als-Ob-Allokation KW03'!A124,"") -> 2012-05-02 | B124: =IF('Als-Ob-Allokation KW03'!B124<>"",'Als-Ob-Allokation KW03'!B124,"") -> 16.8
A125: =IF('Als-Ob-Allokation KW03'!A125<>"",'Als-Ob-Allokation KW03'!A125,"") -> 2012-05-03 | B125: =IF('Als-Ob-Allokation KW03'!B125<>"",'Als-Ob-Allokation KW03'!B125,"") -> 14
A126: =IF('Als-Ob-Allokation KW03'!A126<>"",'Als-Ob-Allokation KW03'!A126,"") -> 2012-05-04 | B126: =IF('Als-Ob-Allokation KW03'!B126<>"",'Als-Ob-Allokation KW03'!B126,"") -> 14.7
A127: =IF('Als-Ob-Allokation KW03'!A127<>"",'Als-Ob-Allokation KW03'!A127,"") -> 2012-05-05 | B127: =IF('Als-Ob-Allokation KW03'!B127<>"",'Als-Ob-Allokation KW03'!B127,"") -> 12.5
A128: =IF('Als-Ob-Allokation KW03'!A128<>"",'Als-Ob-Allokation KW03'!A128,"") -> 2012-05-06 | B128: =IF('Als-Ob-Allokation KW03'!B128<>"",'Als-Ob-Allokation KW03'!B128,"") -> 11.9
A129: =IF('Als-Ob-Allokation KW03'!A129<>"",'Als-Ob-Allokation KW03'!A129,"") -> 2012-05-07 | B129: =IF('Als-Ob-Allokation KW03'!B129<>"",'Als-Ob-Allokation KW03'!B129,"") -> 11.3
A130: =IF('Als-Ob-Allokation KW03'!A130<>"",'Als-Ob-Allokation KW03'!A130,"") -> 2012-05-08 | B130: =IF('Als-Ob-Allokation KW03'!B130<>"",'Als-Ob-Allokation KW03'!B130,"") -> 14.7
A131: =IF('Als-Ob-Allokation KW03'!A131<>"",'Als-Ob-Allokation KW03'!A131,"") -> 2012-05-09 | B131: =IF('Als-Ob-Allokation KW03'!B131<>"",'Als-Ob-Allokation KW03'!B131,"") -> 16.9
A132: =IF('Als-Ob-Allokation KW03'!A132<>"",'Als-Ob-Allokation KW03'!A132,"") -> 2012-05-10 | B132: =IF('Als-Ob-Allokation KW03'!B132<>"",'Als-Ob-Allokation KW03'!B132,"") -> 20.1
A133: =IF('Als-Ob-Allokation KW03'!A133<>"",'Als-Ob-Allokation KW03'!A133,"") -> 2012-05-11 | B133: =IF('Als-Ob-Allokation KW03'!B133<>"",'Als-Ob-Allokation KW03'!B133,"") -> 22.7
A134: =IF('Als-Ob-Allokation KW03'!A134<>"",'Als-Ob-Allokation KW03'!A134,"") -> 2012-05-12 | B134: =IF('Als-Ob-Allokation KW03'!B134<>"",'Als-Ob-Allokation KW03'!B134,"") -> 11.6
A135: =IF('Als-Ob-Allokation KW03'!A135<>"",'Als-Ob-Allokation KW03'!A135,"") -> 2012-05-13 | B135: =IF('Als-Ob-Allokation KW03'!B135<>"",'Als-Ob-Allokation KW03'!B135,"") -> 9.3
A136: =IF('Als-Ob-Allokation KW03'!A136<>"",'Als-Ob-Allokation KW03'!A136,"") -> 2012-05-14 | B136: =IF('Als-Ob-Allokation KW03'!B136<>"",'Als-Ob-Allokation KW03'!B136,"") -> 10.3
A137: =IF('Als-Ob-Allokation KW03'!A137<>"",'Als-Ob-Allokation KW03'!A137,"") -> 2012-05-15 | B137: =IF('Als-Ob-Allokation KW03'!B137<>"",'Als-Ob-Allokation KW03'!B137,"") -> 8.9
A138: =IF('Als-Ob-Allokation KW03'!A138<>"",'Als-Ob-Allokation KW03'!A138,"") -> 2012-05-16 | B138: =IF('Als-Ob-Allokation KW03'!B138<>"",'Als-Ob-Allokation KW03'!B138,"") -> 6.4
A139: =IF('Als-Ob-Allokation KW03'!A139<>"",'Als-Ob-Allokation KW03'!A139,"") -> 2012-05-17 | B139: =IF('Als-Ob-Allokation KW03'!B139<>"",'Als-Ob-Allokation KW03'!B139,"") -> 9
A140: =IF('Als-Ob-Allokation KW03'!A140<>"",'Als-Ob-Allokation KW03'!A140,"") -> 2012-05-18 | B140: =IF('Als-Ob-Allokation KW03'!B140<>"",'Als-Ob-Allokation KW03'!B140,"") -> 13.5
A141: =IF('Als-Ob-Allokation KW03'!A141<>"",'Als-Ob-Allokation KW03'!A141,"") -> 2012-05-19 | B141: =IF('Als-Ob-Allokation KW03'!B141<>"",'Als-Ob-Allokation KW03'!B141,"") -> 17.1
A142: =IF('Als-Ob-Allokation KW03'!A142<>"",'Als-Ob-Allokation KW03'!A142,"") -> 2012-05-20 | B142: =IF('Als-Ob-Allokation KW03'!B142<>"",'Als-Ob-Allokation KW03'!B142,"") -> 18.3
A143: =IF('Als-Ob-Allokation KW03'!A143<>"",'Als-Ob-Allokation KW03'!A143,"") -> 2012-05-21 | B143: =IF('Als-Ob-Allokation KW03'!B143<>"",'Als-Ob-Allokation KW03'!B143,"") -> 17.9
A144: =IF('Als-Ob-Allokation KW03'!A144<>"",'Als-Ob-Allokation KW03'!A144,"") -> 2012-05-22 | B144: =IF('Als-Ob-Allokation KW03'!B144<>"",'Als-Ob-Allokation KW03'!B144,"") -> 18.1
A145: =IF('Als-Ob-Allokation KW03'!A145<>"",'Als-Ob-Allokation KW03'!A145,"") -> 2012-05-23 | B145: =IF('Als-Ob-Allokation KW03'!B145<>"",'Als-Ob-Allokation KW03'!B145,"") -> 18.7
A146: =IF('Als-Ob-Allokation KW03'!A146<>"",'Als-Ob-Allokation KW03'!A146,"") -> 2012-05-24 | B146: =IF('Als-Ob-Allokation KW03'!B146<>"",'Als-Ob-Allokation KW03'!B146,"") -> 20.2
A147: =IF('Als-Ob-Allokation KW03'!A147<>"",'Als-Ob-Allokation KW03'!A147,"") -> 2012-05-25 | B147: =IF('Als-Ob-Allokation KW03'!B147<>"",'Als-Ob-Allokation KW03'!B147,"") -> 18.2
A148: =IF('Als-Ob-Allokation KW03'!A148<>"",'Als-Ob-Allokation KW03'!A148,"") -> 2012-05-26 | B148: =IF('Als-Ob-Allokation KW03'!B148<>"",'Als-Ob-Allokation KW03'!B148,"") -> 17.2
A149: =IF('Als-Ob-Allokation KW03'!A149<>"",'Als-Ob-Allokation KW03'!A149,"") -> 2012-05-27 | B149: =IF('Als-Ob-Allokation KW03'!B149<>"",'Als-Ob-Allokation KW03'!B149,"") -> 15.4
A150: =IF('Als-Ob-Allokation KW03'!A150<>"",'Als-Ob-Allokation KW03'!A150,"") -> 2012-05-28 | B150: =IF('Als-Ob-Allokation KW03'!B150<>"",'Als-Ob-Allokation KW03'!B150,"") -> 17.6
A151: =IF('Als-Ob-Allokation KW03'!A151<>"",'Als-Ob-Allokation KW03'!A151,"") -> 2012-05-29 | B151: =IF('Als-Ob-Allokation KW03'!B151<>"",'Als-Ob-Allokation KW03'!B151,"") -> 19.5
A152: =IF('Als-Ob-Allokation KW03'!A152<>"",'Als-Ob-Allokation KW03'!A152,"") -> 2012-05-30 | B152: =IF('Als-Ob-Allokation KW03'!B152<>"",'Als-Ob-Allokation KW03'!B152,"") -> 18.6
A153: =IF('Als-Ob-Allokation KW03'!A153<>"",'Als-Ob-Allokation KW03'!A153,"") -> 2012-05-31 | B153: =IF('Als-Ob-Allokation KW03'!B153<>"",'Als-Ob-Allokation KW03'!B153,"") -> 18.3
A154: =IF('Als-Ob-Allokation KW03'!A154<>"",'Als-Ob-Allokation KW03'!A154,"") -> 2012-06-01 | B154: =IF('Als-Ob-Allokation KW03'!B154<>"",'Als-Ob-Allokation KW03'!B154,"") -> 16.8
A155: =IF('Als-Ob-Allokation KW03'!A155<>"",'Als-Ob-Allokation KW03'!A155,"") -> 2012-06-02 | B155: =IF('Als-Ob-Allokation KW03'!B155<>"",'Als-Ob-Allokation KW03'!B155,"") -> 17.1
A156: =IF('Als-Ob-Allokation KW03'!A156<>"",'Als-Ob-Allokation KW03'!A156,"") -> 2012-06-03 | B156: =IF('Als-Ob-Allokation KW03'!B156<>"",'Als-Ob-Allokation KW03'!B156,"") -> 15.8
A157: =IF('Als-Ob-Allokation KW03'!A157<>"",'Als-Ob-Allokation KW03'!A157,"") -> 2012-06-04 | B157: =IF('Als-Ob-Allokation KW03'!B157<>"",'Als-Ob-Allokation KW03'!B157,"") -> 14.2
A158: =IF('Als-Ob-Allokation KW03'!A158<>"",'Als-Ob-Allokation KW03'!A158,"") -> 2012-06-05 | B158: =IF('Als-Ob-Allokation KW03'!B158<>"",'Als-Ob-Allokation KW03'!B158,"") -> 10.9
A159: =IF('Als-Ob-Allokation KW03'!A159<>"",'Als-Ob-Allokation KW03'!A159,"") -> 2012-06-06 | B159: =IF('Als-Ob-Allokation KW03'!B159<>"",'Als-Ob-Allokation KW03'!B159,"") -> 13.8
A160: =IF('Als-Ob-Allokation KW03'!A160<>"",'Als-Ob-Allokation KW03'!A160,"") -> 2012-06-07 | B160: =IF('Als-Ob-Allokation KW03'!B160<>"",'Als-Ob-Allokation KW03'!B160,"") -> 17.9
A161: =IF('Als-Ob-Allokation KW03'!A161<>"",'Als-Ob-Allokation KW03'!A161,"") -> 2012-06-08 | B161: =IF('Als-Ob-Allokation KW03'!B161<>"",'Als-Ob-Allokation KW03'!B161,"") -> 16.6
A162: =IF('Als-Ob-Allokation KW03'!A162<>"",'Als-Ob-Allokation KW03'!A162,"") -> 2012-06-09 | B162: =IF('Als-Ob-Allokation KW03'!B162<>"",'Als-Ob-Allokation KW03'!B162,"") -> 16.2
A163: =IF('Als-Ob-Allokation KW03'!A163<>"",'Als-Ob-Allokation KW03'!A163,"") -> 2012-06-10 | B163: =IF('Als-Ob-Allokation KW03'!B163<>"",'Als-Ob-Allokation KW03'!B163,"") -> 13.8
A164: =IF('Als-Ob-Allokation KW03'!A164<>"",'Als-Ob-Allokation KW03'!A164,"") -> 2012-06-11 | B164: =IF('Als-Ob-Allokation KW03'!B164<>"",'Als-Ob-Allokation KW03'!B164,"") -> 14.3
A165: =IF('Als-Ob-Allokation KW03'!A165<>"",'Als-Ob-Allokation KW03'!A165,"") -> 2012-06-12 | B165: =IF('Als-Ob-Allokation KW03'!B165<>"",'Als-Ob-Allokation KW03'!B165,"") -> 12.3
A166: =IF('Als-Ob-Allokation KW03'!A166<>"",'Als-Ob-Allokation KW03'!A166,"") -> 2012-06-13 | B166: =IF('Als-Ob-Allokation KW03'!B166<>"",'Als-Ob-Allokation KW03'!B166,"") -> 13.7
A167: =IF('Als-Ob-Allokation KW03'!A167<>"",'Als-Ob-Allokation KW03'!A167,"") -> 2012-06-14 | B167: =IF('Als-Ob-Allokation KW03'!B167<>"",'Als-Ob-Allokation KW03'!B167,"") -> 14.7
A168: =IF('Als-Ob-Allokation KW03'!A168<>"",'Als-Ob-Allokation KW03'!A168,"") -> 2012-06-15 | B168: =IF('Als-Ob-Allokation KW03'!B168<>"",'Als-Ob-Allokation KW03'!B168,"") -> 18.7
A169: =IF('Als-Ob-Allokation KW03'!A169<>"",'Als-Ob-Allokation KW03'!A169,"") -> 2012-06-16 | B169: =IF('Als-Ob-Allokation KW03'!B169<>"",'Als-Ob-Allokation KW03'!B169,"") -> 20.7
A170: =IF('Als-Ob-Allokation KW03'!A170<>"",'Als-Ob-Allokation KW03'!A170,"") -> 2012-06-17 | B170: =IF('Als-Ob-Allokation KW03'!B170<>"",'Als-Ob-Allokation KW03'!B170,"") -> 17.9
A171: =IF('Als-Ob-Allokation KW03'!A171<>"",'Als-Ob-Allokation KW03'!A171,"") -> 2012-06-18 | B171: =IF('Als-Ob-Allokation KW03'!B171<>"",'Als-Ob-Allokation KW03'!B171,"") -> 22.1
A172: =IF('Als-Ob-Allokation KW03'!A172<>"",'Als-Ob-Allokation KW03'!A172,"") -> 2012-06-19 | B172: =IF('Als-Ob-Allokation KW03'!B172<>"",'Als-Ob-Allokation KW03'!B172,"") -> 21.5
A173: =IF('Als-Ob-Allokation KW03'!A173<>"",'Als-Ob-Allokation KW03'!A173,"") -> 2012-06-20 | B173: =IF('Als-Ob-Allokation KW03'!B173<>"",'Als-Ob-Allokation KW03'!B173,"") -> 19.5
A174: =IF('Als-Ob-Allokation KW03'!A174<>"",'Als-Ob-Allokation KW03'!A174,"") -> 2012-06-21 | B174: =IF('Als-Ob-Allokation KW03'!B174<>"",'Als-Ob-Allokation KW03'!B174,"") -> 20.2
A175: =IF('Als-Ob-Allokation KW03'!A175<>"",'Als-Ob-Allokation KW03'!A175,"") -> 2012-06-22 | B175: =IF('Als-Ob-Allokation KW03'!B175<>"",'Als-Ob-Allokation KW03'!B175,"") -> 17.9
A176: =IF('Als-Ob-Allokation KW03'!A176<>"",'Als-Ob-Allokation KW03'!A176,"") -> 2012-06-23 | B176: =IF('Als-Ob-Allokation KW03'!B176<>"",'Als-Ob-Allokation KW03'!B176,"") -> 17.8
A177: =IF('Als-Ob-Allokation KW03'!A177<>"",'Als-Ob-Allokation KW03'!A177,"") -> 2012-06-24 | B177: =IF('Als-Ob-Allokation KW03'!B177<>"",'Als-Ob-Allokation KW03'!B177,"") -> 17.9
A178: =IF('Als-Ob-Allokation KW03'!A178<>"",'Als-Ob-Allokation KW03'!A178,"") -> 2012-06-25 | B178: =IF('Als-Ob-Allokation KW03'!B178<>"",'Als-Ob-Allokation KW03'!B178,"") -> 15.6
A179: =IF('Als-Ob-Allokation KW03'!A179<>"",'Als-Ob-Allokation KW03'!A179,"") -> 2012-06-26 | B179: =IF('Als-Ob-Allokation KW03'!B179<>"",'Als-Ob-Allokation KW03'!B179,"") -> 17
A180: =IF('Als-Ob-Allokation KW03'!A180<>"",'Als-Ob-Allokation KW03'!A180,"") -> 2012-06-27 | B180: =IF('Als-Ob-Allokation KW03'!B180<>"",'Als-Ob-Allokation KW03'!B180,"") -> 19.9
A181: =IF('Als-Ob-Allokation KW03'!A181<>"",'Als-Ob-Allokation KW03'!A181,"") -> 2012-06-28 | B181: =IF('Als-Ob-Allokation KW03'!B181<>"",'Als-Ob-Allokation KW03'!B181,"") -> 22.2
A182: =IF('Als-Ob-Allokation KW03'!A182<>"",'Als-Ob-Allokation KW03'!A182,"") -> 2012-06-29 | B182: =IF('Als-Ob-Allokation KW03'!B182<>"",'Als-Ob-Allokation KW03'!B182,"") -> 24.3
A183: =IF('Als-Ob-Allokation KW03'!A183<>"",'Als-Ob-Allokation KW03'!A183,"") -> 2012-06-30 | B183: =IF('Als-Ob-Allokation KW03'!B183<>"",'Als-Ob-Allokation KW03'!B183,"") -> 24.1
A184: =IF('Als-Ob-Allokation KW03'!A184<>"",'Als-Ob-Allokation KW03'!A184,"") -> 2012-07-01 | B184: =IF('Als-Ob-Allokation KW03'!B184<>"",'Als-Ob-Allokation KW03'!B184,"") -> 16.9
A185: =IF('Als-Ob-Allokation KW03'!A185<>"",'Als-Ob-Allokation KW03'!A185,"") -> 2012-07-02 | B185: =IF('Als-Ob-Allokation KW03'!B185<>"",'Als-Ob-Allokation KW03'!B185,"") -> 16.8
A186: =IF('Als-Ob-Allokation KW03'!A186<>"",'Als-Ob-Allokation KW03'!A186,"") -> 2012-07-03 | B186: =IF('Als-Ob-Allokation KW03'!B186<>"",'Als-Ob-Allokation KW03'!B186,"") -> 17.7
A187: =IF('Als-Ob-Allokation KW03'!A187<>"",'Als-Ob-Allokation KW03'!A187,"") -> 2012-07-04 | B187: =IF('Als-Ob-Allokation KW03'!B187<>"",'Als-Ob-Allokation KW03'!B187,"") -> 20.9
A188: =IF('Als-Ob-Allokation KW03'!A188<>"",'Als-Ob-Allokation KW03'!A188,"") -> 2012-07-05 | B188: =IF('Als-Ob-Allokation KW03'!B188<>"",'Als-Ob-Allokation KW03'!B188,"") -> 21.9
A189: =IF('Als-Ob-Allokation KW03'!A189<>"",'Als-Ob-Allokation KW03'!A189,"") -> 2012-07-06 | B189: =IF('Als-Ob-Allokation KW03'!B189<>"",'Als-Ob-Allokation KW03'!B189,"") -> 18.4
A190: =IF('Als-Ob-Allokation KW03'!A190<>"",'Als-Ob-Allokation KW03'!A190,"") -> 2012-07-07 | B190: =IF('Als-Ob-Allokation KW03'!B190<>"",'Als-Ob-Allokation KW03'!B190,"") -> 19.7
A191: =IF('Als-Ob-Allokation KW03'!A191<>"",'Als-Ob-Allokation KW03'!A191,"") -> 2012-07-08 | B191: =IF('Als-Ob-Allokation KW03'!B191<>"",'Als-Ob-Allokation KW03'!B191,"") -> 19.1
A192: =IF('Als-Ob-Allokation KW03'!A192<>"",'Als-Ob-Allokation KW03'!A192,"") -> 2012-07-09 | B192: =IF('Als-Ob-Allokation KW03'!B192<>"",'Als-Ob-Allokation KW03'!B192,"") -> 19.7
A193: =IF('Als-Ob-Allokation KW03'!A193<>"",'Als-Ob-Allokation KW03'!A193,"") -> 2012-07-10 | B193: =IF('Als-Ob-Allokation KW03'!B193<>"",'Als-Ob-Allokation KW03'!B193,"") -> 19.7
A194: =IF('Als-Ob-Allokation KW03'!A194<>"",'Als-Ob-Allokation KW03'!A194,"") -> 2012-07-11 | B194: =IF('Als-Ob-Allokation KW03'!B194<>"",'Als-Ob-Allokation KW03'!B194,"") -> 17.7
A195: =IF('Als-Ob-Allokation KW03'!A195<>"",'Als-Ob-Allokation KW03'!A195,"") -> 2012-07-12 | B195: =IF('Als-Ob-Allokation KW03'!B195<>"",'Als-Ob-Allokation KW03'!B195,"") -> 15.5
A196: =IF('Als-Ob-Allokation KW03'!A196<>"",'Als-Ob-Allokation KW03'!A196,"") -> 2012-07-13 | B196: =IF('Als-Ob-Allokation KW03'!B196<>"",'Als-Ob-Allokation KW03'!B196,"") -> 15.7
A197: =IF('Als-Ob-Allokation KW03'!A197<>"",'Als-Ob-Allokation KW03'!A197,"") -> 2012-07-14 | B197: =IF('Als-Ob-Allokation KW03'!B197<>"",'Als-Ob-Allokation KW03'!B197,"") -> 17.5
A198: =IF('Als-Ob-Allokation KW03'!A198<>"",'Als-Ob-Allokation KW03'!A198,"") -> 2012-07-15 | B198: =IF('Als-Ob-Allokation KW03'!B198<>"",'Als-Ob-Allokation KW03'!B198,"") -> 14.3
A199: =IF('Als-Ob-Allokation KW03'!A199<>"",'Als-Ob-Allokation KW03'!A199,"") -> 2012-07-16 | B199: =IF('Als-Ob-Allokation KW03'!B199<>"",'Als-Ob-Allokation KW03'!B199,"") -> 15.2
A200: =IF('Als-Ob-Allokation KW03'!A200<>"",'Als-Ob-Allokation KW03'!A200,"") -> 2012-07-17 | B200: =IF('Als-Ob-Allokation KW03'!B200<>"",'Als-Ob-Allokation KW03'!B200,"") -> 17.7
... 167 more rows

Sheet Tagesmengen 03
A1: Lastprofil | D1: Summe Kundenwerte | E1: Tagesmenge | F1: h-Wert Lastprofil
A2: Einfamilienhaus 03 | D2: =Eingabemaske!B16 -> 3327287 | E2: =$D$2*Berechnungsblatt!E4 -> 4647179.573 | F2: =Berechnungsblatt!E4 -> 1.396687323
A3: Einfamilienhaus 04 | D3: =Eingabemaske!B17 -> 0 | E3: =$D$3*Berechnungsblatt!E5 -> 0 | F3: =Berechnungsblatt!E5 -> 1.386000678
A4: Mehrfamilienhaus 03 | D4: =Eingabemaske!B18 -> 1010447 | E4: =$D$4*Berechnungsblatt!I4 -> 1386375.699 | F4: =Berechnungsblatt!I4 -> 1.372041976
A5: Mehrfamilienhaus 04 | D5: =Eingabemaske!B19 -> 0 | E5: =$D$5*Berechnungsblatt!I5 -> 0 | F5: =Berechnungsblatt!I5 -> 1.390176342
A6: BA1 | D6: =Eingabemaske!B20 -> 0 | E6: =D6*Berechnungsblatt!E14*Berechnungsblatt!F14*Berechnungsblatt!G14*Berechnungsblatt!H14*Berechnungsblatt!I14*Berechnungsblatt!J14*Berechnungsblatt!K14 -> 0 | F6: =Berechnungsblatt!E14*Berechnungsblatt!F14*Berechnungsblatt!G14*Berechnungsblatt!H14*Berechnungsblatt!I14*Berechnungsblatt!J14*Berechnungsblatt!K14 -> 1.164562622
A7: BA2 | D7: =Eingabemaske!B21 -> 0 | E7: =D7*Berechnungsblatt!E15*Berechnungsblatt!F15*Berechnungsblatt!G15*Berechnungsblatt!H15*Berechnungsblatt!I15*Berechnungsblatt!J15*Berechnungsblatt!K15 -> 0 | F7: =Berechnungsblatt!E15*Berechnungsblatt!F15*Berechnungsblatt!G15*Berechnungsblatt!H15*Berechnungsblatt!I15*Berechnungsblatt!J15*Berechnungsblatt!K15 -> 1.190296262
A8: BA3 | D8: =Eingabemaske!B22 -> 0 | E8: =D8*Berechnungsblatt!E16*Berechnungsblatt!F16*Berechnungsblatt!G16*Berechnungsblatt!H16*Berechnungsblatt!I16*Berechnungsblatt!J16*Berechnungsblatt!K16 -> 0 | F8: =Berechnungsblatt!E16*Berechnungsblatt!F16*Berechnungsblatt!G16*Berechnungsblatt!H16*Berechnungsblatt!I16*Berechnungsblatt!J16*Berechnungsblatt!K16 -> 1.256493816
A9: BA4 | D9: =Eingabemaske!B23 -> 8278 | E9: =D9*Berechnungsblatt!E17*Berechnungsblatt!F17*Berechnungsblatt!G17*Berechnungsblatt!H17*Berechnungsblatt!I17*Berechnungsblatt!J17*Berechnungsblatt!K17 -> 10834.34919 | F9: =Berechnungsblatt!E17*Berechnungsblatt!F17*Berechnungsblatt!G17*Berechnungsblatt!H17*Berechnungsblatt!I17*Berechnungsblatt!J17*Berechnungsblatt!K17 -> 1.308812418
A10: BA5 | D10: =Eingabemaske!B24 -> 0 | E10: =D10*Berechnungsblatt!E18*Berechnungsblatt!F18*Berechnungsblatt!G18*Berechnungsblatt!H18*Berechnungsblatt!I18*Berechnungsblatt!J18*Berechnungsblatt!K18 -> 0 | F10: =Berechnungsblatt!E18*Berechnungsblatt!F18*Berechnungsblatt!G18*Berechnungsblatt!H18*Berechnungsblatt!I18*Berechnungsblatt!J18*Berechnungsblatt!K18 -> 1.329569704
A11: BH1 | D11: =Eingabemaske!B25 -> 0 | E11: =$D$11*Berechnungsblatt!E$23*Berechnungsblatt!F$23*Berechnungsblatt!G$23*Berechnungsblatt!H$23*Berechnungsblatt!I$23*Berechnungsblatt!J$23*Berechnungsblatt!K$23 -> 0 | F11: =Berechnungsblatt!E23*Berechnungsblatt!F23*Berechnungsblatt!G23*Berechnungsblatt!H23*Berechnungsblatt!I23*Berechnungsblatt!J23*Berechnungsblatt!K23 -> 1.196764251
A12: BH2 | D12: =Eingabemaske!B26 -> 0 | E12: =$D$12*Berechnungsblatt!E$24*Berechnungsblatt!F$24*Berechnungsblatt!G$24*Berechnungsblatt!H$24*Berechnungsblatt!I$24*Berechnungsblatt!J$24*Berechnungsblatt!K$24 -> 0 | F12: =Berechnungsblatt!E24*Berechnungsblatt!F24*Berechnungsblatt!G24*Berechnungsblatt!H24*Berechnungsblatt!I24*Berechnungsblatt!J24*Berechnungsblatt!K24 -> 1.261161094
A13: BH3 | D13: =Eingabemaske!B27 -> 69767 | E13: =$D$13*Berechnungsblatt!E$25*Berechnungsblatt!F$25*Berechnungsblatt!G$25*Berechnungsblatt!H$25*Berechnungsblatt!I$25*Berechnungsblatt!J$25*Berechnungsblatt!K$25 -> 91220.9251 | F13: =Berechnungsblatt!E25*Berechnungsblatt!F25*Berechnungsblatt!G25*Berechnungsblatt!H25*Berechnungsblatt!I25*Berechnungsblatt!J25*Berechnungsblatt!K25 -> 1.307508207
A14: BH4 | D14: =Eingabemaske!B28 -> 0 | E14: =$D$14*Berechnungsblatt!E$26*Berechnungsblatt!F$26*Berechnungsblatt!G$26*Berechnungsblatt!H$26*Berechnungsblatt!I$26*Berechnungsblatt!J$26*Berechnungsblatt!K$26 -> 0 | F14: =Berechnungsblatt!E26*Berechnungsblatt!F26*Berechnungsblatt!G26*Berechnungsblatt!H26*Berechnungsblatt!I26*Berechnungsblatt!J26*Berechnungsblatt!K26 -> 1.36683016
A15: BH5 | D15: =Eingabemaske!B29 -> 0 | E15: =$D$15*Berechnungsblatt!E$27*Berechnungsblatt!F$27*Berechnungsblatt!G$27*Berechnungsblatt!H$27*Berechnungsblatt!I$27*Berechnungsblatt!J$27*Berechnungsblatt!K$27 -> 0 | F15: =Berechnungsblatt!E27*Berechnungsblatt!F27*Berechnungsblatt!G27*Berechnungsblatt!H27*Berechnungsblatt!I27*Berechnungsblatt!J27*Berechnungsblatt!K27 -> 1.397652928
A16: KO1 | D16: =Eingabemaske!B30 -> 0 | E16: =D16*Berechnungsblatt!E41*Berechnungsblatt!F41*Berechnungsblatt!G41*Berechnungsblatt!H41*Berechnungsblatt!I41*Berechnungsblatt!J41*Berechnungsblatt!K41 -> 0 | F16: =Berechnungsblatt!E41*Berechnungsblatt!F41*Berechnungsblatt!G41*Berechnungsblatt!H41*Berechnungsblatt!I41*Berechnungsblatt!J41*Berechnungsblatt!K41 -> 1.324382392
A17: KO2 | D17: =Eingabemaske!B31 -> 0 | E17: =D17*Berechnungsblatt!E42*Berechnungsblatt!F42*Berechnungsblatt!G42*Berechnungsblatt!H42*Berechnungsblatt!I42*Berechnungsblatt!J42*Berechnungsblatt!K42 -> 0 | F17: =Berechnungsblatt!E42*Berechnungsblatt!F42*Berechnungsblatt!G42*Berechnungsblatt!H42*Berechnungsblatt!I42*Berechnungsblatt!J42*Berechnungsblatt!K42 -> 1.483135576
A18: KO3 | D18: =Eingabemaske!B32 -> 345983 | E18: =D18*Berechnungsblatt!E43*Berechnungsblatt!F43*Berechnungsblatt!G43*Berechnungsblatt!H43*Berechnungsblatt!I43*Berechnungsblatt!J43*Berechnungsblatt!K43 -> 545331.473 | F18: =Berechnungsblatt!E43*Berechnungsblatt!F43*Berechnungsblatt!G43*Berechnungsblatt!H43*Berechnungsblatt!I43*Berechnungsblatt!J43*Berechnungsblatt!K43 -> 1.576179965
A19: KO4 | D19: =Eingabemaske!B33 -> 69372 | E19: =D19*Berechnungsblatt!E44*Berechnungsblatt!F44*Berechnungsblatt!G44*Berechnungsblatt!H44*Berechnungsblatt!I44*Berechnungsblatt!J44*Berechnungsblatt!K44 -> 111363.9296 | F19: =Berechnungsblatt!E44*Berechnungsblatt!F44*Berechnungsblatt!G44*Berechnungsblatt!H44*Berechnungsblatt!I44*Berechnungsblatt!J44*Berechnungsblatt!K44 -> 1.605315252
A20: KO5 | D20: =Eingabemaske!B34 -> 0 | E20: =D20*Berechnungsblatt!E45*Berechnungsblatt!F45*Berechnungsblatt!G45*Berechnungsblatt!H45*Berechnungsblatt!I45*Berechnungsblatt!J45*Berechnungsblatt!K45 -> 0 | F20: =Berechnungsblatt!E45*Berechnungsblatt!F45*Berechnungsblatt!G45*Berechnungsblatt!H45*Berechnungsblatt!I45*Berechnungsblatt!J45*Berechnungsblatt!K45 -> 1.5159645
A21: HA1 | D21: =Eingabemaske!B35 -> 0 | E21: =$D21*Berechnungsblatt!E50*Berechnungsblatt!F50*Berechnungsblatt!G50*Berechnungsblatt!H50*Berechnungsblatt!I50*Berechnungsblatt!J50*Berechnungsblatt!K50 -> 0 | F21: =Berechnungsblatt!E50*Berechnungsblatt!F50*Berechnungsblatt!G50*Berechnungsblatt!H50*Berechnungsblatt!I50*Berechnungsblatt!J50*Berechnungsblatt!K50 -> 1.441294219
A22: HA2 | D22: =Eingabemaske!B36 -> 0 | E22: =$D22*Berechnungsblatt!E51*Berechnungsblatt!F51*Berechnungsblatt!G51*Berechnungsblatt!H51*Berechnungsblatt!I51*Berechnungsblatt!J51*Berechnungsblatt!K51 -> 0 | F22: =Berechnungsblatt!E51*Berechnungsblatt!F51*Berechnungsblatt!G51*Berechnungsblatt!H51*Berechnungsblatt!I51*Berechnungsblatt!J51*Berechnungsblatt!K51 -> 1.5508947
A23: HA3 | D23: =Eingabemaske!B37 -> 143866 | E23: =$D23*Berechnungsblatt!E52*Berechnungsblatt!F52*Berechnungsblatt!G52*Berechnungsblatt!H52*Berechnungsblatt!I52*Berechnungsblatt!J52*Berechnungsblatt!K52 -> 229482.0633 | F23: =Berechnungsblatt!E52*Berechnungsblatt!F52*Berechnungsblatt!G52*Berechnungsblatt!H52*Berechnungsblatt!I52*Berechnungsblatt!J52*Berechnungsblatt!K52 -> 1.595109778
A24: HA4 | D24: =Eingabemaske!B38 -> 0 | E24: =$D24*Berechnungsblatt!E53*Berechnungsblatt!F53*Berechnungsblatt!G53*Berechnungsblatt!H53*Berechnungsblatt!I53*Berechnungsblatt!J53*Berechnungsblatt!K53 -> 0 | F24: =Berechnungsblatt!E53*Berechnungsblatt!F53*Berechnungsblatt!G53*Berechnungsblatt!H53*Berechnungsblatt!I53*Berechnungsblatt!J53*Berechnungsblatt!K53 -> 1.558407745
A25: HA5 | D25: =Eingabemaske!B39 -> 0 | E25: =$D25*Berechnungsblatt!E54*Berechnungsblatt!F54*Berechnungsblatt!G54*Berechnungsblatt!H54*Berechnungsblatt!I54*Berechnungsblatt!J54*Berechnungsblatt!K54 -> 0 | F25: =Berechnungsblatt!E54*Berechnungsblatt!F54*Berechnungsblatt!G54*Berechnungsblatt!H54*Berechnungsblatt!I54*Berechnungsblatt!J54*Berechnungsblatt!K54 -> 1.433159237
A26: GA1 | D26: =Eingabemaske!B40 -> 0 | E26: =D26*Berechnungsblatt!E77*Berechnungsblatt!F77*Berechnungsblatt!G77*Berechnungsblatt!H77*Berechnungsblatt!I77*Berechnungsblatt!J77*Berechnungsblatt!K77 -> 0 | F26: =Berechnungsblatt!E77*Berechnungsblatt!F77*Berechnungsblatt!G77*Berechnungsblatt!H77*Berechnungsblatt!I77*Berechnungsblatt!J77*Berechnungsblatt!K77 -> 1.046404495
A27: GA2 | D27: =Eingabemaske!B41 -> 0 | E27: =D27*Berechnungsblatt!E78*Berechnungsblatt!F78*Berechnungsblatt!G78*Berechnungsblatt!H78*Berechnungsblatt!I78*Berechnungsblatt!J78*Berechnungsblatt!K78 -> 0 | F27: =Berechnungsblatt!E78*Berechnungsblatt!F78*Berechnungsblatt!G78*Berechnungsblatt!H78*Berechnungsblatt!I78*Berechnungsblatt!J78*Berechnungsblatt!K78 -> 1.150170882
A28: GA3 | D28: =Eingabemaske!B42 -> 68316 | E28: =D28*Berechnungsblatt!E79*Berechnungsblatt!F79*Berechnungsblatt!G79*Berechnungsblatt!H79*Berechnungsblatt!I79*Berechnungsblatt!J79*Berechnungsblatt!K79 -> 86226.31213 | F28: =Berechnungsblatt!E79*Berechnungsblatt!F79*Berechnungsblatt!G79*Berechnungsblatt!H79*Berechnungsblatt!I79*Berechnungsblatt!J79*Berechnungsblatt!K79 -> 1.26216863
A29: GA4 | D29: =Eingabemaske!B43 -> 0 | E29: =D29*Berechnungsblatt!E80*Berechnungsblatt!F80*Berechnungsblatt!G80*Berechnungsblatt!H80*Berechnungsblatt!I80*Berechnungsblatt!J80*Berechnungsblatt!K80 -> 0 | F29: =Berechnungsblatt!E80*Berechnungsblatt!F80*Berechnungsblatt!G80*Berechnungsblatt!H80*Berechnungsblatt!I80*Berechnungsblatt!J80*Berechnungsblatt!K80 -> 1.361181413
A30: GA5 | D30: =Eingabemaske!B44 -> 0 | E30: =D30*Berechnungsblatt!E81*Berechnungsblatt!F81*Berechnungsblatt!G81*Berechnungsblatt!H81*Berechnungsblatt!I81*Berechnungsblatt!J81*Berechnungsblatt!K81 -> 0 | F30: =Berechnungsblatt!E81*Berechnungsblatt!F81*Berechnungsblatt!G81*Berechnungsblatt!H81*Berechnungsblatt!I81*Berechnungsblatt!J81*Berechnungsblatt!K81 -> 1.415306172
A31: GB1 | D31: =Eingabemaske!B45 -> 0 | E31: =D31*Berechnungsblatt!E32*Berechnungsblatt!F32*Berechnungsblatt!G32*Berechnungsblatt!H32*Berechnungsblatt!I32*Berechnungsblatt!J32*Berechnungsblatt!K32 -> 0 | F31: =Berechnungsblatt!E32*Berechnungsblatt!F32*Berechnungsblatt!G32*Berechnungsblatt!H32*Berechnungsblatt!I32*Berechnungsblatt!J32*Berechnungsblatt!K32 -> 1.309014092
A32: GB2 | D32: =Eingabemaske!B46 -> 0 | E32: =D32*Berechnungsblatt!E33*Berechnungsblatt!F33*Berechnungsblatt!G33*Berechnungsblatt!H33*Berechnungsblatt!I33*Berechnungsblatt!J33*Berechnungsblatt!K33 -> 0 | F32: =Berechnungsblatt!E33*Berechnungsblatt!F33*Berechnungsblatt!G33*Berechnungsblatt!H33*Berechnungsblatt!I33*Berechnungsblatt!J33*Berechnungsblatt!K33 -> 1.364807118
A33: GB3 | D33: =Eingabemaske!B47 -> 12099 | E33: =D33*Berechnungsblatt!E34*Berechnungsblatt!F34*Berechnungsblatt!G34*Berechnungsblatt!H34*Berechnungsblatt!I34*Berechnungsblatt!J34*Berechnungsblatt!K34 -> 16843.16142 | F33: =Berechnungsblatt!E34*Berechnungsblatt!F34*Berechnungsblatt!G34*Berechnungsblatt!H34*Berechnungsblatt!I34*Berechnungsblatt!J34*Berechnungsblatt!K34 -> 1.392111862
A34: GB4 | D34: =Eingabemaske!B48 -> 0 | E34: =D34*Berechnungsblatt!E35*Berechnungsblatt!F35*Berechnungsblatt!G35*Berechnungsblatt!H35*Berechnungsblatt!I35*Berechnungsblatt!J35*Berechnungsblatt!K35 -> 0 | F34: =Berechnungsblatt!E35*Berechnungsblatt!F35*Berechnungsblatt!G35*Berechnungsblatt!H35*Berechnungsblatt!I35*Berechnungsblatt!J35*Berechnungsblatt!K35 -> 1.405861949
A35: GB5 | D35: =Eingabemaske!B49 -> 0 | E35: =D35*Berechnungsblatt!E36*Berechnungsblatt!F36*Berechnungsblatt!G36*Berechnungsblatt!H36*Berechnungsblatt!I36*Berechnungsblatt!J36*Berechnungsblatt!K36 -> 0 | F35: =Berechnungsblatt!E36*Berechnungsblatt!F36*Berechnungsblatt!G36*Berechnungsblatt!H36*Berechnungsblatt!I36*Berechnungsblatt!J36*Berechnungsblatt!K36 -> 1.410481672
A36: ME1 | D36: =Eingabemaske!B50 -> 0 | E36: =D36*Berechnungsblatt!E59*Berechnungsblatt!F59*Berechnungsblatt!G59*Berechnungsblatt!H59*Berechnungsblatt!I59*Berechnungsblatt!J59*Berechnungsblatt!K59 -> 0 | F36: =Berechnungsblatt!E59*Berechnungsblatt!F59*Berechnungsblatt!G59*Berechnungsblatt!H59*Berechnungsblatt!I59*Berechnungsblatt!J59*Berechnungsblatt!K59 -> 1.530682962
A37: ME2 | D37: =Eingabemaske!B51 -> 0 | E37: =D37*Berechnungsblatt!E60*Berechnungsblatt!F60*Berechnungsblatt!G60*Berechnungsblatt!H60*Berechnungsblatt!I60*Berechnungsblatt!J60*Berechnungsblatt!K60 -> 0 | F37: =Berechnungsblatt!E60*Berechnungsblatt!F60*Berechnungsblatt!G60*Berechnungsblatt!H60*Berechnungsblatt!I60*Berechnungsblatt!J60*Berechnungsblatt!K60 -> 1.554504447
A38: ME3 | D38: =Eingabemaske!B52 -> 155033 | E38: =D38*Berechnungsblatt!E61*Berechnungsblatt!F61*Berechnungsblatt!G61*Berechnungsblatt!H61*Berechnungsblatt!I61*Berechnungsblatt!J61*Berechnungsblatt!K61 -> 249314.0965 | F38: =Berechnungsblatt!E61*Berechnungsblatt!F61*Berechnungsblatt!G61*Berechnungsblatt!H61*Berechnungsblatt!I61*Berechnungsblatt!J61*Berechnungsblatt!K61 -> 1.608135665
A39: ME4 | D39: =Eingabemaske!B53 -> 0 | E39: =D39*Berechnungsblatt!E62*Berechnungsblatt!F62*Berechnungsblatt!G62*Berechnungsblatt!H62*Berechnungsblatt!I62*Berechnungsblatt!J62*Berechnungsblatt!K62 -> 0 | F39: =Berechnungsblatt!E62*Berechnungsblatt!F62*Berechnungsblatt!G62*Berechnungsblatt!H62*Berechnungsblatt!I62*Berechnungsblatt!J62*Berechnungsblatt!K62 -> 1.603981758
A40: ME5 | D40: =Eingabemaske!B54 -> 0 | E40: =D40*Berechnungsblatt!E63*Berechnungsblatt!F63*Berechnungsblatt!G63*Berechnungsblatt!H63*Berechnungsblatt!I63*Berechnungsblatt!J63*Berechnungsblatt!K63 -> 0 | F40: =Berechnungsblatt!E63*Berechnungsblatt!F63*Berechnungsblatt!G63*Berechnungsblatt!H63*Berechnungsblatt!I63*Berechnungsblatt!J63*Berechnungsblatt!K63 -> 1.550324506
A41: PD1 | D41: =Eingabemaske!B55 -> 0 | E41: =$D41*Berechnungsblatt!E95*Berechnungsblatt!F95*Berechnungsblatt!G95*Berechnungsblatt!H95*Berechnungsblatt!I95*Berechnungsblatt!J95*Berechnungsblatt!K95 -> 0 | F41: =Berechnungsblatt!E95*Berechnungsblatt!F95*Berechnungsblatt!G95*Berechnungsblatt!H95*Berechnungsblatt!I95*Berechnungsblatt!J95*Berechnungsblatt!K95 -> 1.413523151
A42: PD2 | D42: =Eingabemaske!B56 -> 0 | E42: =$D42*Berechnungsblatt!E96*Berechnungsblatt!F96*Berechnungsblatt!G96*Berechnungsblatt!H96*Berechnungsblatt!I96*Berechnungsblatt!J96*Berechnungsblatt!K96 -> 0 | F42: =Berechnungsblatt!E96*Berechnungsblatt!F96*Berechnungsblatt!G96*Berechnungsblatt!H96*Berechnungsblatt!I96*Berechnungsblatt!J96*Berechnungsblatt!K96 -> 1.52971726
A43: PD3 | D43: =Eingabemaske!B57 -> 17748 | E43: =$D43*Berechnungsblatt!E97*Berechnungsblatt!F97*Berechnungsblatt!G97*Berechnungsblatt!H97*Berechnungsblatt!I97*Berechnungsblatt!J97*Berechnungsblatt!K97 -> 28994.37746 | F43: =Berechnungsblatt!E97*Berechnungsblatt!F97*Berechnungsblatt!G97*Berechnungsblatt!H97*Berechnungsblatt!I97*Berechnungsblatt!J97*Berechnungsblatt!K97 -> 1.63367013
A44: PD4 | D44: =Eingabemaske!B58 -> 0 | E44: =$D44*Berechnungsblatt!E98*Berechnungsblatt!F98*Berechnungsblatt!G98*Berechnungsblatt!H98*Berechnungsblatt!I98*Berechnungsblatt!J98*Berechnungsblatt!K98 -> 0 | F44: =Berechnungsblatt!E98*Berechnungsblatt!F98*Berechnungsblatt!G98*Berechnungsblatt!H98*Berechnungsblatt!I98*Berechnungsblatt!J98*Berechnungsblatt!K98 -> 1.549550399
A45: PD5 | D45: =Eingabemaske!B59 -> 0 | E45: =$D45*Berechnungsblatt!E99*Berechnungsblatt!F99*Berechnungsblatt!G99*Berechnungsblatt!H99*Berechnungsblatt!I99*Berechnungsblatt!J99*Berechnungsblatt!K99 -> 0 | F45: =Berechnungsblatt!E99*Berechnungsblatt!F99*Berechnungsblatt!G99*Berechnungsblatt!H99*Berechnungsblatt!I99*Berechnungsblatt!J99*Berechnungsblatt!K99 -> 1.343948155
A46: BD1 | D46: =Eingabemaske!B60 -> 0 | E46: =D46*Berechnungsblatt!E68*Berechnungsblatt!F68*Berechnungsblatt!G68*Berechnungsblatt!H68*Berechnungsblatt!I68*Berechnungsblatt!J68*Berechnungsblatt!K68 -> 0 | F46: =Berechnungsblatt!E68*Berechnungsblatt!F68*Berechnungsblatt!G68*Berechnungsblatt!H68*Berechnungsblatt!I68*Berechnungsblatt!J68*Berechnungsblatt!K68 -> 1.218099699
A47: BD2 | D47: =Eingabemaske!B61 -> 0 | E47: =D47*Berechnungsblatt!E69*Berechnungsblatt!F69*Berechnungsblatt!G69*Berechnungsblatt!H69*Berechnungsblatt!I69*Berechnungsblatt!J69*Berechnungsblatt!K69 -> 0 | F47: =Berechnungsblatt!E69*Berechnungsblatt!F69*Berechnungsblatt!G69*Berechnungsblatt!H69*Berechnungsblatt!I69*Berechnungsblatt!J69*Berechnungsblatt!K69 -> 1.434741956
A48: BD3 | D48: =Eingabemaske!B62 -> 666992 | E48: =D48*Berechnungsblatt!E70*Berechnungsblatt!F70*Berechnungsblatt!G70*Berechnungsblatt!H70*Berechnungsblatt!I70*Berechnungsblatt!J70*Berechnungsblatt!K70 -> 1082043.096 | F48: =Berechnungsblatt!E70*Berechnungsblatt!F70*Berechnungsblatt!G70*Berechnungsblatt!H70*Berechnungsblatt!I70*Berechnungsblatt!J70*Berechnungsblatt!K70 -> 1.622272974
A49: BD4 | D49: =Eingabemaske!B63 -> 0 | E49: =D49*Berechnungsblatt!E71*Berechnungsblatt!F71*Berechnungsblatt!G71*Berechnungsblatt!H71*Berechnungsblatt!I71*Berechnungsblatt!J71*Berechnungsblatt!K71 -> 0 | F49: =Berechnungsblatt!E71*Berechnungsblatt!F71*Berechnungsblatt!G71*Berechnungsblatt!H71*Berechnungsblatt!I71*Berechnungsblatt!J71*Berechnungsblatt!K71 -> 1.719503289
A50: BD5 | D50: =Eingabemaske!B64 -> 0 | E50: =D50*Berechnungsblatt!E72*Berechnungsblatt!F72*Berechnungsblatt!G72*Berechnungsblatt!H72*Berechnungsblatt!I72*Berechnungsblatt!J72*Berechnungsblatt!K72 -> 0 | F50: =Berechnungsblatt!E72*Berechnungsblatt!F72*Berechnungsblatt!G72*Berechnungsblatt!H72*Berechnungsblatt!I72*Berechnungsblatt!J72*Berechnungsblatt!K72 -> 1.721206793
A51: WA1 | D51: =Eingabemaske!B65 -> 0 | E51: =D51*Berechnungsblatt!E104*Berechnungsblatt!F104*Berechnungsblatt!G104*Berechnungsblatt!H104*Berechnungsblatt!I104*Berechnungsblatt!J104*Berechnungsblatt!K104 -> 0 | F51: =Berechnungsblatt!E104*Berechnungsblatt!F104*Berechnungsblatt!G104*Berechnungsblatt!H104*Berechnungsblatt!I104*Berechnungsblatt!J104*Berechnungsblatt!K104 -> 1.365295015
A52: WA2 | D52: =Eingabemaske!B66 -> 0 | E52: =D52*Berechnungsblatt!E105*Berechnungsblatt!F105*Berechnungsblatt!G105*Berechnungsblatt!H105*Berechnungsblatt!I105*Berechnungsblatt!J105*Berechnungsblatt!K105 -> 0 | F52: =Berechnungsblatt!E105*Berechnungsblatt!F105*Berechnungsblatt!G105*Berechnungsblatt!H105*Berechnungsblatt!I105*Berechnungsblatt!J105*Berechnungsblatt!K105 -> 1.405837325
A53: WA3 | D53: =Eingabemaske!B67 -> 1750 | E53: =D53*Berechnungsblatt!E106*Berechnungsblatt!F106*Berechnungsblatt!G106*Berechnungsblatt!H106*Berechnungsblatt!I106*Berechnungsblatt!J106*Berechnungsblatt!K106 -> 2548.204997 | F53: =Berechnungsblatt!E106*Berechnungsblatt!F106*Berechnungsblatt!G106*Berechnungsblatt!H106*Berechnungsblatt!I106*Berechnungsblatt!J106*Berechnungsblatt!K106 -> 1.456117141
A54: WA4 | D54: =Eingabemaske!B68 -> 0 | E54: =D54*Berechnungsblatt!E107*Berechnungsblatt!F107*Berechnungsblatt!G107*Berechnungsblatt!H107*Berechnungsblatt!I107*Berechnungsblatt!J107*Berechnungsblatt!K107 -> 0 | F54: =Berechnungsblatt!E107*Berechnungsblatt!F107*Berechnungsblatt!G107*Berechnungsblatt!H107*Berechnungsblatt!I107*Berechnungsblatt!J107*Berechnungsblatt!K107 -> 1.504678501
A55: WA5 | D55: =Eingabemaske!B69 -> 0 | E55: =D55*Berechnungsblatt!E108*Berechnungsblatt!F108*Berechnungsblatt!G108*Berechnungsblatt!H108*Berechnungsblatt!I108*Berechnungsblatt!J108*Berechnungsblatt!K108 -> 0 | F55: =Berechnungsblatt!E108*Berechnungsblatt!F108*Berechnungsblatt!G108*Berechnungsblatt!H108*Berechnungsblatt!I108*Berechnungsblatt!J108*Berechnungsblatt!K108 -> 1.549004314
A56: HK3 | D56: =Eingabemaske!B70 -> 2172 | E56: =$D$56*Berechnungsblatt!E9 -> 2349.575143 | F56: =Berechnungsblatt!E9 -> 1.081756511
A57: MF1 | D57: =Eingabemaske!B71 -> 0 | E57: =D57*Berechnungsblatt!E86*Berechnungsblatt!F86*Berechnungsblatt!G86*Berechnungsblatt!H86*Berechnungsblatt!I86*Berechnungsblatt!J86*Berechnungsblatt!K86 -> 0 | F57: =Berechnungsblatt!E86*Berechnungsblatt!F86*Berechnungsblatt!G86*Berechnungsblatt!H86*Berechnungsblatt!I86*Berechnungsblatt!J86*Berechnungsblatt!K86 -> 1.346415314
A58: MF2 | D58: =Eingabemaske!B72 -> 0 | E58: =D58*Berechnungsblatt!E87*Berechnungsblatt!F87*Berechnungsblatt!G87*Berechnungsblatt!H87*Berechnungsblatt!I87*Berechnungsblatt!J87*Berechnungsblatt!K87 -> 0 | F58: =Berechnungsblatt!E87*Berechnungsblatt!F87*Berechnungsblatt!G87*Berechnungsblatt!H87*Berechnungsblatt!I87*Berechnungsblatt!J87*Berechnungsblatt!K87 -> 1.379941022
A59: MF3 | D59: =Eingabemaske!B73 -> 0 | E59: =D59*Berechnungsblatt!E88*Berechnungsblatt!F88*Berechnungsblatt!G88*Berechnungsblatt!H88*Berechnungsblatt!I88*Berechnungsblatt!J88*Berechnungsblatt!K88 -> 0 | F59: =Berechnungsblatt!E88*Berechnungsblatt!F88*Berechnungsblatt!G88*Berechnungsblatt!H88*Berechnungsblatt!I88*Berechnungsblatt!J88*Berechnungsblatt!K88 -> 1.420612302
A60: MF4 | D60: =Eingabemaske!B74 -> 0 | E60: =D60*Berechnungsblatt!E89*Berechnungsblatt!F89*Berechnungsblatt!G89*Berechnungsblatt!H89*Berechnungsblatt!I89*Berechnungsblatt!J89*Berechnungsblatt!K89 -> 0 | F60: =Berechnungsblatt!E89*Berechnungsblatt!F89*Berechnungsblatt!G89*Berechnungsblatt!H89*Berechnungsblatt!I89*Berechnungsblatt!J89*Berechnungsblatt!K89 -> 1.439388606
A61: MF5 | D61: =Eingabemaske!B75 -> 0 | E61: =D61*Berechnungsblatt!E90*Berechnungsblatt!F90*Berechnungsblatt!G90*Berechnungsblatt!H90*Berechnungsblatt!I90*Berechnungsblatt!J90*Berechnungsblatt!K90 -> 0 | F61: =Berechnungsblatt!E90*Berechnungsblatt!F90*Berechnungsblatt!G90*Berechnungsblatt!H90*Berechnungsblatt!I90*Berechnungsblatt!J90*Berechnungsblatt!K90 -> 1.465457689
A62: GHD03 | D62: =Eingabemaske!B76 -> 0 | E62: =D62*Berechnungsblatt!E113*Berechnungsblatt!F113*Berechnungsblatt!G113*Berechnungsblatt!H113*Berechnungsblatt!I113*Berechnungsblatt!J113*Berechnungsblatt!K113 -> 0 | F62: =Berechnungsblatt!E113*Berechnungsblatt!F113*Berechnungsblatt!G113*Berechnungsblatt!H113*Berechnungsblatt!I113*Berechnungsblatt!J113*Berechnungsblatt!K113 -> 1.486129526
A63: GHD04 | D63: =Eingabemaske!B77 -> 0 | E63: =D63*Berechnungsblatt!E114*Berechnungsblatt!F114*Berechnungsblatt!G114*Berechnungsblatt!H114*Berechnungsblatt!I114*Berechnungsblatt!J114*Berechnungsblatt!K114 -> 0 | F63: =Berechnungsblatt!E114*Berechnungsblatt!F114*Berechnungsblatt!G114*Berechnungsblatt!H114*Berechnungsblatt!I114*Berechnungsblatt!J114*Berechnungsblatt!K114 -> 1.503842327
D64: =SUM(D2:D63) -> 5899110 | E64: =SUM(E2:E63) -> 8490106.835 | F64: =SUM(F2:F63) -> 87.96424817

Sheet Tagesmengen 04
A1: Lastprofil | D1: Summe Kundenwerte | E1: Tagesmenge | F1: h-Wert Lastprofil
A2: Einfamilienhaus 03 | D2: =Eingabemaske!F16 -> 0 | E2: =$D$2*Berechnungsblatt!E4 -> 0 | F2: =Berechnungsblatt!E4 -> 1.396687323
A3: Einfamilienhaus 04 | D3: =Eingabemaske!F17 -> 3428265.608 | E3: =$D$3*Berechnungsblatt!E5 -> 4751578.455 | F3: =Berechnungsblatt!E5 -> 1.386000678
A4: Mehrfamilienhaus 03 | D4: =Eingabemaske!F18 -> 0 | E4: =$D$4*Berechnungsblatt!I4 -> 0 | F4: =Berechnungsblatt!I4 -> 1.372041976
A5: Mehrfamilienhaus 04 | D5: =Eingabemaske!F19 -> 1022633.181 | E5: =$D$5*Berechnungsblatt!I5 -> 1421640.455 | F5: =Berechnungsblatt!I5 -> 1.390176342
A6: BA1 | D6: =Eingabemaske!F20 -> 0 | E6: =D6*Berechnungsblatt!E14*Berechnungsblatt!F14*Berechnungsblatt!G14*Berechnungsblatt!H14*Berechnungsblatt!I14*Berechnungsblatt!J14*Berechnungsblatt!K14 -> 0 | F6: =Berechnungsblatt!E14*Berechnungsblatt!F14*Berechnungsblatt!G14*Berechnungsblatt!H14*Berechnungsblatt!I14*Berechnungsblatt!J14*Berechnungsblatt!K14 -> 1.164562622
A7: BA2 | D7: =Eingabemaske!F21 -> 0 | E7: =D7*Berechnungsblatt!E15*Berechnungsblatt!F15*Berechnungsblatt!G15*Berechnungsblatt!H15*Berechnungsblatt!I15*Berechnungsblatt!J15*Berechnungsblatt!K15 -> 0 | F7: =Berechnungsblatt!E15*Berechnungsblatt!F15*Berechnungsblatt!G15*Berechnungsblatt!H15*Berechnungsblatt!I15*Berechnungsblatt!J15*Berechnungsblatt!K15 -> 1.190296262
A8: BA3 | D8: =Eingabemaske!F22 -> 0 | E8: =D8*Berechnungsblatt!E16*Berechnungsblatt!F16*Berechnungsblatt!G16*Berechnungsblatt!H16*Berechnungsblatt!I16*Berechnungsblatt!J16*Berechnungsblatt!K16 -> 0 | F8: =Berechnungsblatt!E16*Berechnungsblatt!F16*Berechnungsblatt!G16*Berechnungsblatt!H16*Berechnungsblatt!I16*Berechnungsblatt!J16*Berechnungsblatt!K16 -> 1.256493816
A9: BA4 | D9: =Eingabemaske!F23 -> 8278 | E9: =D9*Berechnungsblatt!E17*Berechnungsblatt!F17*Berechnungsblatt!G17*Berechnungsblatt!H17*Berechnungsblatt!I17*Berechnungsblatt!J17*Berechnungsblatt!K17 -> 10834.34919 | F9: =Berechnungsblatt!E17*Berechnungsblatt!F17*Berechnungsblatt!G17*Berechnungsblatt!H17*Berechnungsblatt!I17*Berechnungsblatt!J17*Berechnungsblatt!K17 -> 1.308812418
A10: BA5 | D10: =Eingabemaske!F24 -> 0 | E10: =D10*Berechnungsblatt!E18*Berechnungsblatt!F18*Berechnungsblatt!G18*Berechnungsblatt!H18*Berechnungsblatt!I18*Berechnungsblatt!J18*Berechnungsblatt!K18 -> 0 | F10: =Berechnungsblatt!E18*Berechnungsblatt!F18*Berechnungsblatt!G18*Berechnungsblatt!H18*Berechnungsblatt!I18*Berechnungsblatt!J18*Berechnungsblatt!K18 -> 1.329569704
A11: BH1 | D11: =Eingabemaske!F25 -> 0 | E11: =$D$11*Berechnungsblatt!E$23*Berechnungsblatt!F$23*Berechnungsblatt!G$23*Berechnungsblatt!H$23*Berechnungsblatt!I$23*Berechnungsblatt!J$23*Berechnungsblatt!K$23 -> 0 | F11: =Berechnungsblatt!E23*Berechnungsblatt!F23*Berechnungsblatt!G23*Berechnungsblatt!H23*Berechnungsblatt!I23*Berechnungsblatt!J23*Berechnungsblatt!K23 -> 1.196764251
A12: BH2 | D12: =Eingabemaske!F26 -> 0 | E12: =$D$12*Berechnungsblatt!E$24*Berechnungsblatt!F$24*Berechnungsblatt!G$24*Berechnungsblatt!H$24*Berechnungsblatt!I$24*Berechnungsblatt!J$24*Berechnungsblatt!K$24 -> 0 | F12: =Berechnungsblatt!E24*Berechnungsblatt!F24*Berechnungsblatt!G24*Berechnungsblatt!H24*Berechnungsblatt!I24*Berechnungsblatt!J24*Berechnungsblatt!K24 -> 1.261161094
A13: BH3 | D13: =Eingabemaske!F27 -> 69767 | E13: =$D$13*Berechnungsblatt!E$25*Berechnungsblatt!F$25*Berechnungsblatt!G$25*Berechnungsblatt!H$25*Berechnungsblatt!I$25*Berechnungsblatt!J$25*Berechnungsblatt!K$25 -> 91220.9251 | F13: =Berechnungsblatt!E25*Berechnungsblatt!F25*Berechnungsblatt!G25*Berechnungsblatt!H25*Berechnungsblatt!I25*Berechnungsblatt!J25*Berechnungsblatt!K25 -> 1.307508207
A14: BH4 | D14: =Eingabemaske!F28 -> 0 | E14: =$D$14*Berechnungsblatt!E$26*Berechnungsblatt!F$26*Berechnungsblatt!G$26*Berechnungsblatt!H$26*Berechnungsblatt!I$26*Berechnungsblatt!J$26*Berechnungsblatt!K$26 -> 0 | F14: =Berechnungsblatt!E26*Berechnungsblatt!F26*Berechnungsblatt!G26*Berechnungsblatt!H26*Berechnungsblatt!I26*Berechnungsblatt!J26*Berechnungsblatt!K26 -> 1.36683016
A15: BH5 | D15: =Eingabemaske!F29 -> 0 | E15: =$D$15*Berechnungsblatt!E$27*Berechnungsblatt!F$27*Berechnungsblatt!G$27*Berechnungsblatt!H$27*Berechnungsblatt!I$27*Berechnungsblatt!J$27*Berechnungsblatt!K$27 -> 0 | F15: =Berechnungsblatt!E27*Berechnungsblatt!F27*Berechnungsblatt!G27*Berechnungsblatt!H27*Berechnungsblatt!I27*Berechnungsblatt!J27*Berechnungsblatt!K27 -> 1.397652928
A16: KO1 | D16: =Eingabemaske!F30 -> 0 | E16: =D16*Berechnungsblatt!E41*Berechnungsblatt!F41*Berechnungsblatt!G41*Berechnungsblatt!H41*Berechnungsblatt!I41*Berechnungsblatt!J41*Berechnungsblatt!K41 -> 0 | F16: =Berechnungsblatt!E41*Berechnungsblatt!F41*Berechnungsblatt!G41*Berechnungsblatt!H41*Berechnungsblatt!I41*Berechnungsblatt!J41*Berechnungsblatt!K41 -> 1.324382392
A17: KO2 | D17: =Eingabemaske!F31 -> 0 | E17: =D17*Berechnungsblatt!E42*Berechnungsblatt!F42*Berechnungsblatt!G42*Berechnungsblatt!H42*Berechnungsblatt!I42*Berechnungsblatt!J42*Berechnungsblatt!K42 -> 0 | F17: =Berechnungsblatt!E42*Berechnungsblatt!F42*Berechnungsblatt!G42*Berechnungsblatt!H42*Berechnungsblatt!I42*Berechnungsblatt!J42*Berechnungsblatt!K42 -> 1.483135576
A18: KO3 | D18: =Eingabemaske!F32 -> 345983 | E18: =D18*Berechnungsblatt!E43*Berechnungsblatt!F43*Berechnungsblatt!G43*Berechnungsblatt!H43*Berechnungsblatt!I43*Berechnungsblatt!J43*Berechnungsblatt!K43 -> 545331.473 | F18: =Berechnungsblatt!E43*Berechnungsblatt!F43*Berechnungsblatt!G43*Berechnungsblatt!H43*Berechnungsblatt!I43*Berechnungsblatt!J43*Berechnungsblatt!K43 -> 1.576179965
A19: KO4 | D19: =Eingabemaske!F33 -> 69372 | E19: =D19*Berechnungsblatt!E44*Berechnungsblatt!F44*Berechnungsblatt!G44*Berechnungsblatt!H44*Berechnungsblatt!I44*Berechnungsblatt!J44*Berechnungsblatt!K44 -> 111363.9296 | F19: =Berechnungsblatt!E44*Berechnungsblatt!F44*Berechnungsblatt!G44*Berechnungsblatt!H44*Berechnungsblatt!I44*Berechnungsblatt!J44*Berechnungsblatt!K44 -> 1.605315252
A20: KO5 | D20: =Eingabemaske!F34 -> 0 | E20: =D20*Berechnungsblatt!E45*Berechnungsblatt!F45*Berechnungsblatt!G45*Berechnungsblatt!H45*Berechnungsblatt!I45*Berechnungsblatt!J45*Berechnungsblatt!K45 -> 0 | F20: =Berechnungsblatt!E45*Berechnungsblatt!F45*Berechnungsblatt!G45*Berechnungsblatt!H45*Berechnungsblatt!I45*Berechnungsblatt!J45*Berechnungsblatt!K45 -> 1.5159645
A21: HA1 | D21: =Eingabemaske!F35 -> 0 | E21: =$D21*Berechnungsblatt!E50*Berechnungsblatt!F50*Berechnungsblatt!G50*Berechnungsblatt!H50*Berechnungsblatt!I50*Berechnungsblatt!J50*Berechnungsblatt!K50 -> 0 | F21: =Berechnungsblatt!E50*Berechnungsblatt!F50*Berechnungsblatt!G50*Berechnungsblatt!H50*Berechnungsblatt!I50*Berechnungsblatt!J50*Berechnungsblatt!K50 -> 1.441294219
A22: HA2 | D22: =Eingabemaske!F36 -> 0 | E22: =$D22*Berechnungsblatt!E51*Berechnungsblatt!F51*Berechnungsblatt!G51*Berechnungsblatt!H51*Berechnungsblatt!I51*Berechnungsblatt!J51*Berechnungsblatt!K51 -> 0 | F22: =Berechnungsblatt!E51*Berechnungsblatt!F51*Berechnungsblatt!G51*Berechnungsblatt!H51*Berechnungsblatt!I51*Berechnungsblatt!J51*Berechnungsblatt!K51 -> 1.5508947
A23: HA3 | D23: =Eingabemaske!F37 -> 143866 | E23: =$D23*Berechnungsblatt!E52*Berechnungsblatt!F52*Berechnungsblatt!G52*Berechnungsblatt!H52*Berechnungsblatt!I52*Berechnungsblatt!J52*Berechnungsblatt!K52 -> 229482.0633 | F23: =Berechnungsblatt!E52*Berechnungsblatt!F52*Berechnungsblatt!G52*Berechnungsblatt!H52*Berechnungsblatt!I52*Berechnungsblatt!J52*Berechnungsblatt!K52 -> 1.595109778
A24: HA4 | D24: =Eingabemaske!F38 -> 0 | E24: =$D24*Berechnungsblatt!E53*Berechnungsblatt!F53*Berechnungsblatt!G53*Berechnungsblatt!H53*Berechnungsblatt!I53*Berechnungsblatt!J53*Berechnungsblatt!K53 -> 0 | F24: =Berechnungsblatt!E53*Berechnungsblatt!F53*Berechnungsblatt!G53*Berechnungsblatt!H53*Berechnungsblatt!I53*Berechnungsblatt!J53*Berechnungsblatt!K53 -> 1.558407745
A25: HA5 | D25: =Eingabemaske!F39 -> 0 | E25: =$D25*Berechnungsblatt!E54*Berechnungsblatt!F54*Berechnungsblatt!G54*Berechnungsblatt!H54*Berechnungsblatt!I54*Berechnungsblatt!J54*Berechnungsblatt!K54 -> 0 | F25: =Berechnungsblatt!E54*Berechnungsblatt!F54*Berechnungsblatt!G54*Berechnungsblatt!H54*Berechnungsblatt!I54*Berechnungsblatt!J54*Berechnungsblatt!K54 -> 1.433159237
A26: GA1 | D26: =Eingabemaske!F40 -> 0 | E26: =D26*Berechnungsblatt!E77*Berechnungsblatt!F77*Berechnungsblatt!G77*Berechnungsblatt!H77*Berechnungsblatt!I77*Berechnungsblatt!J77*Berechnungsblatt!K77 -> 0 | F26: =Berechnungsblatt!E77*Berechnungsblatt!F77*Berechnungsblatt!G77*Berechnungsblatt!H77*Berechnungsblatt!I77*Berechnungsblatt!J77*Berechnungsblatt!K77 -> 1.046404495
A27: GA2 | D27: =Eingabemaske!F41 -> 0 | E27: =D27*Berechnungsblatt!E78*Berechnungsblatt!F78*Berechnungsblatt!G78*Berechnungsblatt!H78*Berechnungsblatt!I78*Berechnungsblatt!J78*Berechnungsblatt!K78 -> 0 | F27: =Berechnungsblatt!E78*Berechnungsblatt!F78*Berechnungsblatt!G78*Berechnungsblatt!H78*Berechnungsblatt!I78*Berechnungsblatt!J78*Berechnungsblatt!K78 -> 1.150170882
A28: GA3 | D28: =Eingabemaske!F42 -> 68316 | E28: =D28*Berechnungsblatt!E79*Berechnungsblatt!F79*Berechnungsblatt!G79*Berechnungsblatt!H79*Berechnungsblatt!I79*Berechnungsblatt!J79*Berechnungsblatt!K79 -> 86226.31213 | F28: =Berechnungsblatt!E79*Berechnungsblatt!F79*Berechnungsblatt!G79*Berechnungsblatt!H79*Berechnungsblatt!I79*Berechnungsblatt!J79*Berechnungsblatt!K79 -> 1.26216863
A29: GA4 | D29: =Eingabemaske!F43 -> 0 | E29: =D29*Berechnungsblatt!E80*Berechnungsblatt!F80*Berechnungsblatt!G80*Berechnungsblatt!H80*Berechnungsblatt!I80*Berechnungsblatt!J80*Berechnungsblatt!K80 -> 0 | F29: =Berechnungsblatt!E80*Berechnungsblatt!F80*Berechnungsblatt!G80*Berechnungsblatt!H80*Berechnungsblatt!I80*Berechnungsblatt!J80*Berechnungsblatt!K80 -> 1.361181413
A30: GA5 | D30: =Eingabemaske!F44 -> 0 | E30: =D30*Berechnungsblatt!E81*Berechnungsblatt!F81*Berechnungsblatt!G81*Berechnungsblatt!H81*Berechnungsblatt!I81*Berechnungsblatt!J81*Berechnungsblatt!K81 -> 0 | F30: =Berechnungsblatt!E81*Berechnungsblatt!F81*Berechnungsblatt!G81*Berechnungsblatt!H81*Berechnungsblatt!I81*Berechnungsblatt!J81*Berechnungsblatt!K81 -> 1.415306172
A31: GB1 | D31: =Eingabemaske!F45 -> 0 | E31: =D31*Berechnungsblatt!E32*Berechnungsblatt!F32*Berechnungsblatt!G32*Berechnungsblatt!H32*Berechnungsblatt!I32*Berechnungsblatt!J32*Berechnungsblatt!K32 -> 0 | F31: =Berechnungsblatt!E32*Berechnungsblatt!F32*Berechnungsblatt!G32*Berechnungsblatt!H32*Berechnungsblatt!I32*Berechnungsblatt!J32*Berechnungsblatt!K32 -> 1.309014092
A32: GB2 | D32: =Eingabemaske!F46 -> 0 | E32: =D32*Berechnungsblatt!E33*Berechnungsblatt!F33*Berechnungsblatt!G33*Berechnungsblatt!H33*Berechnungsblatt!I33*Berechnungsblatt!J33*Berechnungsblatt!K33 -> 0 | F32: =Berechnungsblatt!E33*Berechnungsblatt!F33*Berechnungsblatt!G33*Berechnungsblatt!H33*Berechnungsblatt!I33*Berechnungsblatt!J33*Berechnungsblatt!K33 -> 1.364807118
A33: GB3 | D33: =Eingabemaske!F47 -> 12099 | E33: =D33*Berechnungsblatt!E34*Berechnungsblatt!F34*Berechnungsblatt!G34*Berechnungsblatt!H34*Berechnungsblatt!I34*Berechnungsblatt!J34*Berechnungsblatt!K34 -> 16843.16142 | F33: =Berechnungsblatt!E34*Berechnungsblatt!F34*Berechnungsblatt!G34*Berechnungsblatt!H34*Berechnungsblatt!I34*Berechnungsblatt!J34*Berechnungsblatt!K34 -> 1.392111862
A34: GB4 | D34: =Eingabemaske!F48 -> 0 | E34: =D34*Berechnungsblatt!E35*Berechnungsblatt!F35*Berechnungsblatt!G35*Berechnungsblatt!H35*Berechnungsblatt!I35*Berechnungsblatt!J35*Berechnungsblatt!K35 -> 0 | F34: =Berechnungsblatt!E35*Berechnungsblatt!F35*Berechnungsblatt!G35*Berechnungsblatt!H35*Berechnungsblatt!I35*Berechnungsblatt!J35*Berechnungsblatt!K35 -> 1.405861949
A35: GB5 | D35: =Eingabemaske!F49 -> 0 | E35: =D35*Berechnungsblatt!E36*Berechnungsblatt!F36*Berechnungsblatt!G36*Berechnungsblatt!H36*Berechnungsblatt!I36*Berechnungsblatt!J36*Berechnungsblatt!K36 -> 0 | F35: =Berechnungsblatt!E36*Berechnungsblatt!F36*Berechnungsblatt!G36*Berechnungsblatt!H36*Berechnungsblatt!I36*Berechnungsblatt!J36*Berechnungsblatt!K36 -> 1.410481672
A36: ME1 | D36: =Eingabemaske!F50 -> 0 | E36: =D36*Berechnungsblatt!E59*Berechnungsblatt!F59*Berechnungsblatt!G59*Berechnungsblatt!H59*Berechnungsblatt!I59*Berechnungsblatt!J59*Berechnungsblatt!K59 -> 0 | F36: =Berechnungsblatt!E59*Berechnungsblatt!F59*Berechnungsblatt!G59*Berechnungsblatt!H59*Berechnungsblatt!I59*Berechnungsblatt!J59*Berechnungsblatt!K59 -> 1.530682962
A37: ME2 | D37: =Eingabemaske!F51 -> 0 | E37: =D37*Berechnungsblatt!E60*Berechnungsblatt!F60*Berechnungsblatt!G60*Berechnungsblatt!H60*Berechnungsblatt!I60*Berechnungsblatt!J60*Berechnungsblatt!K60 -> 0 | F37: =Berechnungsblatt!E60*Berechnungsblatt!F60*Berechnungsblatt!G60*Berechnungsblatt!H60*Berechnungsblatt!I60*Berechnungsblatt!J60*Berechnungsblatt!K60 -> 1.554504447
A38: ME3 | D38: =Eingabemaske!F52 -> 155033 | E38: =D38*Berechnungsblatt!E61*Berechnungsblatt!F61*Berechnungsblatt!G61*Berechnungsblatt!H61*Berechnungsblatt!I61*Berechnungsblatt!J61*Berechnungsblatt!K61 -> 249314.0965 | F38: =Berechnungsblatt!E61*Berechnungsblatt!F61*Berechnungsblatt!G61*Berechnungsblatt!H61*Berechnungsblatt!I61*Berechnungsblatt!J61*Berechnungsblatt!K61 -> 1.608135665
A39: ME4 | D39: =Eingabemaske!F53 -> 0 | E39: =D39*Berechnungsblatt!E62*Berechnungsblatt!F62*Berechnungsblatt!G62*Berechnungsblatt!H62*Berechnungsblatt!I62*Berechnungsblatt!J62*Berechnungsblatt!K62 -> 0 | F39: =Berechnungsblatt!E62*Berechnungsblatt!F62*Berechnungsblatt!G62*Berechnungsblatt!H62*Berechnungsblatt!I62*Berechnungsblatt!J62*Berechnungsblatt!K62 -> 1.603981758
A40: ME5 | D40: =Eingabemaske!F54 -> 0 | E40: =D40*Berechnungsblatt!E63*Berechnungsblatt!F63*Berechnungsblatt!G63*Berechnungsblatt!H63*Berechnungsblatt!I63*Berechnungsblatt!J63*Berechnungsblatt!K63 -> 0 | F40: =Berechnungsblatt!E63*Berechnungsblatt!F63*Berechnungsblatt!G63*Berechnungsblatt!H63*Berechnungsblatt!I63*Berechnungsblatt!J63*Berechnungsblatt!K63 -> 1.550324506
A41: PD1 | D41: =Eingabemaske!F55 -> 0 | E41: =$D41*Berechnungsblatt!E95*Berechnungsblatt!F95*Berechnungsblatt!G95*Berechnungsblatt!H95*Berechnungsblatt!I95*Berechnungsblatt!J95*Berechnungsblatt!K95 -> 0 | F41: =Berechnungsblatt!E95*Berechnungsblatt!F95*Berechnungsblatt!G95*Berechnungsblatt!H95*Berechnungsblatt!I95*Berechnungsblatt!J95*Berechnungsblatt!K95 -> 1.413523151
A42: PD2 | D42: =Eingabemaske!F56 -> 0 | E42: =$D42*Berechnungsblatt!E96*Berechnungsblatt!F96*Berechnungsblatt!G96*Berechnungsblatt!H96*Berechnungsblatt!I96*Berechnungsblatt!J96*Berechnungsblatt!K96 -> 0 | F42: =Berechnungsblatt!E96*Berechnungsblatt!F96*Berechnungsblatt!G96*Berechnungsblatt!H96*Berechnungsblatt!I96*Berechnungsblatt!J96*Berechnungsblatt!K96 -> 1.52971726
A43: PD3 | D43: =Eingabemaske!F57 -> 17748 | E43: =$D43*Berechnungsblatt!E97*Berechnungsblatt!F97*Berechnungsblatt!G97*Berechnungsblatt!H97*Berechnungsblatt!I97*Berechnungsblatt!J97*Berechnungsblatt!K97 -> 28994.37746 | F43: =Berechnungsblatt!E97*Berechnungsblatt!F97*Berechnungsblatt!G97*Berechnungsblatt!H97*Berechnungsblatt!I97*Berechnungsblatt!J97*Berechnungsblatt!K97 -> 1.63367013
A44: PD4 | D44: =Eingabemaske!F58 -> 0 | E44: =$D44*Berechnungsblatt!E98*Berechnungsblatt!F98*Berechnungsblatt!G98*Berechnungsblatt!H98*Berechnungsblatt!I98*Berechnungsblatt!J98*Berechnungsblatt!K98 -> 0 | F44: =Berechnungsblatt!E98*Berechnungsblatt!F98*Berechnungsblatt!G98*Berechnungsblatt!H98*Berechnungsblatt!I98*Berechnungsblatt!J98*Berechnungsblatt!K98 -> 1.549550399
A45: PD5 | D45: =Eingabemaske!F59 -> 0 | E45: =$D45*Berechnungsblatt!E99*Berechnungsblatt!F99*Berechnungsblatt!G99*Berechnungsblatt!H99*Berechnungsblatt!I99*Berechnungsblatt!J99*Berechnungsblatt!K99 -> 0 | F45: =Berechnungsblatt!E99*Berechnungsblatt!F99*Berechnungsblatt!G99*Berechnungsblatt!H99*Berechnungsblatt!I99*Berechnungsblatt!J99*Berechnungsblatt!K99 -> 1.343948155
A46: BD1 | D46: =Eingabemaske!F60 -> 0 | E46: =D46*Berechnungsblatt!E68*Berechnungsblatt!F68*Berechnungsblatt!G68*Berechnungsblatt!H68*Berechnungsblatt!I68*Berechnungsblatt!J68*Berechnungsblatt!K68 -> 0 | F46: =Berechnungsblatt!E68*Berechnungsblatt!F68*Berechnungsblatt!G68*Berechnungsblatt!H68*Berechnungsblatt!I68*Berechnungsblatt!J68*Berechnungsblatt!K68 -> 1.218099699
A47: BD2 | D47: =Eingabemaske!F61 -> 0 | E47: =D47*Berechnungsblatt!E69*Berechnungsblatt!F69*Berechnungsblatt!G69*Berechnungsblatt!H69*Berechnungsblatt!I69*Berechnungsblatt!J69*Berechnungsblatt!K69 -> 0 | F47: =Berechnungsblatt!E69*Berechnungsblatt!F69*Berechnungsblatt!G69*Berechnungsblatt!H69*Berechnungsblatt!I69*Berechnungsblatt!J69*Berechnungsblatt!K69 -> 1.434741956
A48: BD3 | D48: =Eingabemaske!F62 -> 666992 | E48: =D48*Berechnungsblatt!E70*Berechnungsblatt!F70*Berechnungsblatt!G70*Berechnungsblatt!H70*Berechnungsblatt!I70*Berechnungsblatt!J70*Berechnungsblatt!K70 -> 1082043.096 | F48: =Berechnungsblatt!E70*Berechnungsblatt!F70*Berechnungsblatt!G70*Berechnungsblatt!H70*Berechnungsblatt!I70*Berechnungsblatt!J70*Berechnungsblatt!K70 -> 1.622272974
A49: BD4 | D49: =Eingabemaske!F63 -> 0 | E49: =D49*Berechnungsblatt!E71*Berechnungsblatt!F71*Berechnungsblatt!G71*Berechnungsblatt!H71*Berechnungsblatt!I71*Berechnungsblatt!J71*Berechnungsblatt!K71 -> 0 | F49: =Berechnungsblatt!E71*Berechnungsblatt!F71*Berechnungsblatt!G71*Berechnungsblatt!H71*Berechnungsblatt!I71*Berechnungsblatt!J71*Berechnungsblatt!K71 -> 1.719503289
A50: BD5 | D50: =Eingabemaske!F64 -> 0 | E50: =D50*Berechnungsblatt!E72*Berechnungsblatt!F72*Berechnungsblatt!G72*Berechnungsblatt!H72*Berechnungsblatt!I72*Berechnungsblatt!J72*Berechnungsblatt!K72 -> 0 | F50: =Berechnungsblatt!E72*Berechnungsblatt!F72*Berechnungsblatt!G72*Berechnungsblatt!H72*Berechnungsblatt!I72*Berechnungsblatt!J72*Berechnungsblatt!K72 -> 1.721206793
A51: WA1 | D51: =Eingabemaske!F65 -> 0 | E51: =D51*Berechnungsblatt!E104*Berechnungsblatt!F104*Berechnungsblatt!G104*Berechnungsblatt!H104*Berechnungsblatt!I104*Berechnungsblatt!J104*Berechnungsblatt!K104 -> 0 | F51: =Berechnungsblatt!E104*Berechnungsblatt!F104*Berechnungsblatt!G104*Berechnungsblatt!H104*Berechnungsblatt!I104*Berechnungsblatt!J104*Berechnungsblatt!K104 -> 1.365295015
A52: WA2 | D52: =Eingabemaske!F66 -> 0 | E52: =D52*Berechnungsblatt!E105*Berechnungsblatt!F105*Berechnungsblatt!G105*Berechnungsblatt!H105*Berechnungsblatt!I105*Berechnungsblatt!J105*Berechnungsblatt!K105 -> 0 | F52: =Berechnungsblatt!E105*Berechnungsblatt!F105*Berechnungsblatt!G105*Berechnungsblatt!H105*Berechnungsblatt!I105*Berechnungsblatt!J105*Berechnungsblatt!K105 -> 1.405837325
A53: WA3 | D53: =Eingabemaske!F67 -> 1750 | E53: =D53*Berechnungsblatt!E106*Berechnungsblatt!F106*Berechnungsblatt!G106*Berechnungsblatt!H106*Berechnungsblatt!I106*Berechnungsblatt!J106*Berechnungsblatt!K106 -> 2548.204997 | F53: =Berechnungsblatt!E106*Berechnungsblatt!F106*Berechnungsblatt!G106*Berechnungsblatt!H106*Berechnungsblatt!I106*Berechnungsblatt!J106*Berechnungsblatt!K106 -> 1.456117141
A54: WA4 | D54: =Eingabemaske!F68 -> 0 | E54: =D54*Berechnungsblatt!E107*Berechnungsblatt!F107*Berechnungsblatt!G107*Berechnungsblatt!H107*Berechnungsblatt!I107*Berechnungsblatt!J107*Berechnungsblatt!K107 -> 0 | F54: =Berechnungsblatt!E107*Berechnungsblatt!F107*Berechnungsblatt!G107*Berechnungsblatt!H107*Berechnungsblatt!I107*Berechnungsblatt!J107*Berechnungsblatt!K107 -> 1.504678501
A55: WA5 | D55: =Eingabemaske!F69 -> 0 | E55: =D55*Berechnungsblatt!E108*Berechnungsblatt!F108*Berechnungsblatt!G108*Berechnungsblatt!H108*Berechnungsblatt!I108*Berechnungsblatt!J108*Berechnungsblatt!K108 -> 0 | F55: =Berechnungsblatt!E108*Berechnungsblatt!F108*Berechnungsblatt!G108*Berechnungsblatt!H108*Berechnungsblatt!I108*Berechnungsblatt!J108*Berechnungsblatt!K108 -> 1.549004314
A56: HK3 | D56: =Eingabemaske!F70 -> 2172 | E56: =$D$56*Berechnungsblatt!E9 -> 2349.575143 | F56: =Berechnungsblatt!E9 -> 1.081756511
A57: MF1 | D57: =Eingabemaske!F71 -> 0 | E57: =D57*Berechnungsblatt!E86*Berechnungsblatt!F86*Berechnungsblatt!G86*Berechnungsblatt!H86*Berechnungsblatt!I86*Berechnungsblatt!J86*Berechnungsblatt!K86 -> 0 | F57: =Berechnungsblatt!E86*Berechnungsblatt!F86*Berechnungsblatt!G86*Berechnungsblatt!H86*Berechnungsblatt!I86*Berechnungsblatt!J86*Berechnungsblatt!K86 -> 1.346415314
A58: MF2 | D58: =Eingabemaske!F72 -> 0 | E58: =D58*Berechnungsblatt!E87*Berechnungsblatt!F87*Berechnungsblatt!G87*Berechnungsblatt!H87*Berechnungsblatt!I87*Berechnungsblatt!J87*Berechnungsblatt!K87 -> 0 | F58: =Berechnungsblatt!E87*Berechnungsblatt!F87*Berechnungsblatt!G87*Berechnungsblatt!H87*Berechnungsblatt!I87*Berechnungsblatt!J87*Berechnungsblatt!K87 -> 1.379941022
A59: MF3 | D59: =Eingabemaske!F73 -> 0 | E59: =D59*Berechnungsblatt!E88*Berechnungsblatt!F88*Berechnungsblatt!G88*Berechnungsblatt!H88*Berechnungsblatt!I88*Berechnungsblatt!J88*Berechnungsblatt!K88 -> 0 | F59: =Berechnungsblatt!E88*Berechnungsblatt!F88*Berechnungsblatt!G88*Berechnungsblatt!H88*Berechnungsblatt!I88*Berechnungsblatt!J88*Berechnungsblatt!K88 -> 1.420612302
A60: MF4 | D60: =Eingabemaske!F74 -> 0 | E60: =D60*Berechnungsblatt!E89*Berechnungsblatt!F89*Berechnungsblatt!G89*Berechnungsblatt!H89*Berechnungsblatt!I89*Berechnungsblatt!J89*Berechnungsblatt!K89 -> 0 | F60: =Berechnungsblatt!E89*Berechnungsblatt!F89*Berechnungsblatt!G89*Berechnungsblatt!H89*Berechnungsblatt!I89*Berechnungsblatt!J89*Berechnungsblatt!K89 -> 1.439388606
A61: MF5 | D61: =Eingabemaske!F75 -> 0 | E61: =D61*Berechnungsblatt!E90*Berechnungsblatt!F90*Berechnungsblatt!G90*Berechnungsblatt!H90*Berechnungsblatt!I90*Berechnungsblatt!J90*Berechnungsblatt!K90 -> 0 | F61: =Berechnungsblatt!E90*Berechnungsblatt!F90*Berechnungsblatt!G90*Berechnungsblatt!H90*Berechnungsblatt!I90*Berechnungsblatt!J90*Berechnungsblatt!K90 -> 1.465457689
A62: GHD03 | D62: =Eingabemaske!F76 -> 0 | E62: =D62*Berechnungsblatt!E113*Berechnungsblatt!F113*Berechnungsblatt!G113*Berechnungsblatt!H113*Berechnungsblatt!I113*Berechnungsblatt!J113*Berechnungsblatt!K113 -> 0 | F62: =Berechnungsblatt!E113*Berechnungsblatt!F113*Berechnungsblatt!G113*Berechnungsblatt!H113*Berechnungsblatt!I113*Berechnungsblatt!J113*Berechnungsblatt!K113 -> 1.486129526
A63: GHD04 | D63: =Eingabemaske!F77 -> 0 | E63: =D63*Berechnungsblatt!E114*Berechnungsblatt!F114*Berechnungsblatt!G114*Berechnungsblatt!H114*Berechnungsblatt!I114*Berechnungsblatt!J114*Berechnungsblatt!K114 -> 0 | F63: =Berechnungsblatt!E114*Berechnungsblatt!F114*Berechnungsblatt!G114*Berechnungsblatt!H114*Berechnungsblatt!I114*Berechnungsblatt!J114*Berechnungsblatt!K114 -> 1.503842327
D64: =SUM(D2:D63) -> 6012274.789 | E64: =SUM(E2:E63) -> 8629770.474 | F64: =SUM(F2:F63) -> 87.96424817

Sheet Tagesmengenallokation 03
A1: Datum | B1: Temperatur in °C | C1: Tagesmenge
A2: 2012-01-01 | B2: 10.2 | C2: 4530224.629
A3: 2012-01-02 | B3: 9 | C3: 5461083.584
A4: 2012-01-03 | B4: 5.9 | C4: 7621532.49
A5: 2012-01-04 | B5: 5.5 | C5: 7851012.83
A6: 2012-01-05 | B6: 4.5 | C6: 8593911.816
A7: 2012-01-06 | B7: 2.9 | C7: 9640733.59
A8: 2012-01-07 | B8: 3.7 | C8: 8684003.752
A9: 2012-01-08 | B9: 3.9 | C9: 8723694.384
A10: 2012-01-09 | B10: 4.2 | C10: 8846779.665
A11: 2012-01-10 | B11: 4.8 | C11: 8412449.851
A12: 2012-01-11 | B12: 2.5 | C12: 9945796.364
A13: 2012-01-12 | B13: 3.5 | C13: 9297534.42
A14: 2012-01-13 | B14: 2.6 | C14: 9842548.389
A15: 2012-01-14 | B15: 0.8 | C15: 10504410.48
A16: 2012-01-15 | B16: -1.8 | C16: 12140602.62
A17: 2012-01-16 | B17: -2.6 | C17: 13011617.34
A18: 2012-01-17 | B18: -3 | C18: 13192260.2
A19: 2012-01-18 | B19: -1.4 | C19: 12300085.85
A20: 2012-01-19 | B20: 6.5 | C20: 7163108.77
A21: 2012-01-20 | B21: 3.2 | C21: 9436730.34
A22: 2012-01-21 | B22: 4.5 | C22: 8149509.685
A23: 2012-01-22 | B23: 5.2 | C23: 7831727.608
A24: 2012-01-23 | B24: 4.2 | C24: 8846779.665
A25: 2012-01-24 | B25: 1.9 | C25: 10418521.06
A26: 2012-01-25 | B26: -0.3 | C26: 11692921.92
A27: 2012-01-26 | B27: -0.4 | C27: 11791808.83
A28: 2012-01-27 | B28: 1.5 | C28: 10560983.31
A29: 2012-01-28 | B29: 1.7 | C29: 9964441.086
A30: 2012-01-29 | B30: -0.6 | C30: 11513765.4
A31: 2012-01-30 | B31: -1.3 | C31: 12346163.75
A32: 2012-01-31 | B32: -3.2 | C32: 13285237.55
A33: 2012-02-01 | B33: -6.2 | C33: 14391058.09
A34: 2012-02-02 | B34: -8.5 | C34: 15155636
A35: 2012-02-03 | B35: -11 | C35: 15650050.56
A36: 2012-02-04 | B36: -11.5 | C36: 15060841.71
A37: 2012-02-05 | B37: -11.9 | C37: 15429704.64
A38: 2012-02-06 | B38: -12.3 | C38: 16091481.86
A39: 2012-02-07 | B39: -12.4 | C39: 16096186.87
A40: 2012-02-08 | B40: -8 | C40: 14961801.62
A41: 2012-02-09 | B41: -9.7 | C41: 15466441.05
A42: 2012-02-10 | B42: -8.9 | C42: 15154828.94
A43: 2012-02-11 | B43: -10.7 | C43: 14900440.71
A44: 2012-02-12 | B44: -11 | C44: 15252758.4
A45: 2012-02-13 | B45: -6.5 | C45: 14610256.21
A46: 2012-02-14 | B46: -1.2 | C46: 12282726.14
A47: 2012-02-15 | B47: 1.5 | C47: 10600120.68
A48: 2012-02-16 | B48: 2 | C48: 10313358.7
A49: 2012-02-17 | B49: 3.2 | C49: 9436730.34
A50: 2012-02-18 | B50: 5.2 | C50: 7676216.184
A51: 2012-02-19 | B51: 2.5 | C51: 9653993.509
A52: 2012-02-20 | B52: 0.4 | C52: 11373667.42
A53: 2012-02-21 | B53: -0.6 | C53: 11950429.83
A54: 2012-02-22 | B54: 1.4 | C54: 10663835.8
A55: 2012-02-23 | B55: 5.4 | C55: 7950846.783
A56: 2012-02-24 | B56: 7.9 | C56: 6135648.839
A57: 2012-02-25 | B57: 7.4 | C57: 6191661.517
A58: 2012-02-26 | B58: 4.9 | C58: 8038945.071
A59: 2012-02-27 | B59: 4.2 | C59: 8846779.665
A60: 2012-02-28 | B60: 6.2 | C60: 7405840.482
A61: 2012-02-29 | B61: 7.3 | C61: 6572841.16
A62: 2012-03-01 | B62: 7.7 | C62: 6317058.31
A63: 2012-03-02 | B63: 6.4 | C63: 7183444.234
A64: 2012-03-03 | B64: 7.8 | C64: 5927898.106
A65: 2012-03-04 | B65: 6.9 | C65: 6658283.081
A66: 2012-03-05 | B66: 3.8 | C66: 9129637.48
A67: 2012-03-06 | B67: 3.2 | C67: 9541538.145
A68: 2012-03-07 | B68: 4.6 | C68: 8492391.333
A69: 2012-03-08 | B69: 4.2 | C69: 8806592.138
A70: 2012-03-09 | B70: 3.2 | C70: 9436730.34
A71: 2012-03-10 | B71: 5.2 | C71: 7676216.184
A72: 2012-03-11 | B72: 7.4 | C72: 6318055.71
A73: 2012-03-12 | B73: 8.2 | C73: 5999802.535
A74: 2012-03-13 | B74: 8.3 | C74: 5927475.669
A75: 2012-03-14 | B75: 7.5 | C75: 6433241.552
A76: 2012-03-15 | B76: 7.8 | C76: 6247735.124
A77: 2012-03-16 | B77: 10.9 | C77: 4230990.98
A78: 2012-03-17 | B78: 11.2 | C78: 3882888.501
A79: 2012-03-18 | B79: 7.4 | C79: 6318055.71
A80: 2012-03-19 | B80: 6.7 | C80: 7052589.151
A81: 2012-03-20 | B81: 6.3 | C81: 7334049.899
A82: 2012-03-21 | B82: 8.1 | C82: 6019544.299
A83: 2012-03-22 | B83: 10.6 | C83: 4435097.642
A84: 2012-03-23 | B84: 11.1 | C84: 4117352.041
A85: 2012-03-24 | B85: 10.6 | C85: 4211059.416
A86: 2012-03-25 | B86: 11.4 | C86: 3855449.702
A87: 2012-03-26 | B87: 11.2 | C87: 4106602.859
A88: 2012-03-27 | B88: 10.6 | C88: 4451996.64
A89: 2012-03-28 | B89: 11.9 | C89: 3694273.777
A90: 2012-03-29 | B90: 10.9 | C90: 4259782.692
A91: 2012-03-30 | B91: 9.7 | C91: 4951521.87
A92: 2012-03-31 | B92: 9 | C92: 5159899.626
A93: 2012-04-01 | B93: 5.2 | C93: 7831727.608
A94: 2012-04-02 | B94: 7.2 | C94: 6697019.661
A95: 2012-04-03 | B95: 10.3 | C95: 4632232.636
A96: 2012-04-04 | B96: 9.5 | C96: 5094222.973
A97: 2012-04-05 | B97: 7.3 | C97: 6596449.741
A98: 2012-04-06 | B98: 6.7 | C98: 6971279.144
A99: 2012-04-07 | B99: 5.6 | C99: 7404677.08
A100: 2012-04-08 | B100: 3.2 | C100: 9194073.137
A101: 2012-04-09 | B101: 5.7 | C101: 7770959.729
A102: 2012-04-10 | B102: 12.5 | C102: 3414301.229
A103: 2012-04-11 | B103: 7.9 | C103: 6156510.579
A104: 2012-04-12 | B104: 7.2 | C104: 6666769.835
A105: 2012-04-13 | B105: 7.6 | C105: 6342033.511
A106: 2012-04-14 | B106: 9.5 | C106: 4852907.749
A107: 2012-04-15 | B107: 7.4 | C107: 6318055.71
A108: 2012-04-16 | B108: 5.5 | C108: 7915061.843
A109: 2012-04-17 | B109: 5.8 | C109: 7693500.97
A110: 2012-04-18 | B110: 8.1 | C110: 6019544.299
A111: 2012-04-19 | B111: 8.5 | C111: 5769498.073
A112: 2012-04-20 | B112: 8.6 | C112: 5662894.542
A113: 2012-04-21 | B113: 7.4 | C113: 6191661.517
A114: 2012-04-22 | B114: 6.5 | C114: 6932869.16
A115: 2012-04-23 | B115: 8.2 | C115: 5999802.535
A116: 2012-04-24 | B116: 8.3 | C116: 5927475.669
A117: 2012-04-25 | B117: 10.9 | C117: 4244439.399
A118: 2012-04-26 | B118: 13 | C118: 3161304.709
A119: 2012-04-27 | B119: 14.9 | C119: 2358517.728
A120: 2012-04-28 | B120: 20.8 | C120: 988604.5064
A121: 2012-04-29 | B121: 19 | C121: 1261923.724
A122: 2012-04-30 | B122: 17.4 | C122: 1633813.107
A123: 2012-05-01 | B123: 16.5 | C123: 1868344.523
A124: 2012-05-02 | B124: 16.8 | C124: 1773072.95
A125: 2012-05-03 | B125: 14 | C125: 2722330.86
A126: 2012-05-04 | B126: 14.7 | C126: 2431558.729
A127: 2012-05-05 | B127: 12.5 | C127: 3231150.681
A128: 2012-05-06 | B128: 11.9 | C128: 3594613.627
A129: 2012-05-07 | B129: 11.3 | C129: 4050335.591
A130: 2012-05-08 | B130: 14.7 | C130: 2456900.978
A131: 2012-05-09 | B131: 16.9 | C131: 1746817.846
A132: 2012-05-10 | B132: 20.1 | C132: 1131026.412
A133: 2012-05-11 | B133: 22.7 | C133: 860869.2372
A134: 2012-05-12 | B134: 11.6 | C134: 3673472.122
A135: 2012-05-13 | B135: 9.3 | C135: 5076874.46
A136: 2012-05-14 | B136: 10.3 | C136: 4634990.675
A137: 2012-05-15 | B137: 8.9 | C137: 5523724.818
A138: 2012-05-16 | B138: 6.4 | C138: 7208610.992
A139: 2012-05-17 | B139: 9 | C139: 5436709.413
A140: 2012-05-18 | B140: 13.5 | C140: 2915354.025
A141: 2012-05-19 | B141: 17.1 | C141: 1616799.293
A142: 2012-05-20 | B142: 18.3 | C142: 1388905.139
A143: 2012-05-21 | B143: 17.9 | C143: 1519515.514
A144: 2012-05-22 | B144: 18.1 | C144: 1477588.746
A145: 2012-05-23 | B145: 18.7 | C145: 1349334.52
A146: 2012-05-24 | B146: 20.2 | C146: 1117552.44
A147: 2012-05-25 | B147: 18.2 | C147: 1441596.438
A148: 2012-05-26 | B148: 17.2 | C148: 1593043.272
A149: 2012-05-27 | B149: 15.4 | C149: 2134639.977
A150: 2012-05-28 | B150: 17.6 | C150: 1586787.539
A151: 2012-05-29 | B151: 19.5 | C151: 1222835.384
A152: 2012-05-30 | B152: 18.6 | C152: 1367927.229
A153: 2012-05-31 | B153: 18.3 | C153: 1431490.106
A154: 2012-06-01 | B154: 16.8 | C154: 1767637.175
A155: 2012-06-02 | B155: 17.1 | C155: 1616799.293
A156: 2012-06-03 | B156: 15.8 | C156: 2008468.427
A157: 2012-06-04 | B157: 14.2 | C157: 2651642.97
A158: 2012-06-05 | B158: 10.9 | C158: 4275986.868
A159: 2012-06-06 | B159: 13.8 | C159: 2795475.018
A160: 2012-06-07 | B160: 17.9 | C160: 1514859.64
A161: 2012-06-08 | B161: 16.6 | C161: 1821415.512
A162: 2012-06-09 | B162: 16.2 | C162: 1850630.176
A163: 2012-06-10 | B163: 13.8 | C163: 2721638.846
A164: 2012-06-11 | B164: 14.3 | C164: 2611685.706
A165: 2012-06-12 | B165: 12.3 | C165: 3514599.497
A166: 2012-06-13 | B166: 13.7 | C166: 2837838.306
A167: 2012-06-14 | B167: 14.7 | C167: 2447871.308
A168: 2012-06-15 | B168: 18.7 | C168: 1344974.037
A169: 2012-06-16 | B169: 20.7 | C169: 999787.0686
A170: 2012-06-17 | B170: 17.9 | C170: 1469893.811
A171: 2012-06-18 | B171: 22.1 | C171: 915708.1647
A172: 2012-06-19 | B172: 21.5 | C172: 971786.219
A173: 2012-06-20 | B173: 19.5 | C173: 1213827.253
A174: 2012-06-21 | B174: 20.2 | C174: 1117552.44
A175: 2012-06-22 | B175: 17.9 | C175: 1504365.402
A176: 2012-06-23 | B176: 17.8 | C176: 1459381.349
A177: 2012-06-24 | B177: 17.9 | C177: 1469893.811
A178: 2012-06-25 | B178: 15.6 | C178: 2141680.519
A179: 2012-06-26 | B179: 17 | C179: 1733717.094
A180: 2012-06-27 | B180: 19.9 | C180: 1154374.708
A181: 2012-06-28 | B181: 22.2 | C181: 905915.9407
A182: 2012-06-29 | B182: 24.3 | C182: 769428.1071
A183: 2012-06-30 | B183: 24.1 | C183: 742177.2008
A184: 2012-07-01 | B184: 16.9 | C184: 1701481.928
A185: 2012-07-02 | B185: 16.8 | C185: 1785756.145
A186: 2012-07-03 | B186: 17.7 | C186: 1564614.716
A187: 2012-07-04 | B187: 20.9 | C187: 1027408.942
A188: 2012-07-05 | B188: 21.9 | C188: 931345.4974
A189: 2012-07-06 | B189: 18.4 | C189: 1401773.239
A190: 2012-07-07 | B190: 19.7 | C190: 1127089.033
A191: 2012-07-08 | B191: 19.1 | C191: 1245238.818
A192: 2012-07-09 | B192: 19.7 | C192: 1191033.028
A193: 2012-07-10 | B193: 19.7 | C193: 1192233.317
A194: 2012-07-11 | B194: 17.7 | C194: 1553153.047
A195: 2012-07-12 | B195: 15.5 | C195: 2166603.386
A196: 2012-07-13 | B196: 15.7 | C196: 2087459.174
A197: 2012-07-14 | B197: 17.5 | C197: 1524337.009
A198: 2012-07-15 | B198: 14.3 | C198: 2523768.952
A199: 2012-07-16 | B199: 15.2 | C199: 2276651.765
A200: 2012-07-17 | B200: 17.7 | C200: 1564614.716
... 167 more rows

Sheet Tagesmengenallokation 04
A1: Datum | B1: Temperatur in °C | C1: Tagesmenge
A2: 2012-01-01 | B2: 10.2 | C2: 4356578.181
A3: 2012-01-02 | B3: 9 | C3: 5337439.532
A4: 2012-01-03 | B4: 5.9 | C4: 7692926.43
A5: 2012-01-04 | B5: 5.5 | C5: 7952895.473
A6: 2012-01-05 | B6: 4.5 | C6: 8775157.244
A7: 2012-01-06 | B7: 2.9 | C7: 9953421.109
A8: 2012-01-07 | B8: 3.7 | C8: 8930729.901
A9: 2012-01-08 | B9: 3.9 | C9: 8953959.691
A10: 2012-01-09 | B10: 4.2 | C10: 9052449.561
A11: 2012-01-10 | B11: 4.8 | C11: 8569505.327
A12: 2012-01-11 | B12: 2.5 | C12: 10291291.59
A13: 2012-01-12 | B13: 3.5 | C13: 9560751.097
A14: 2012-01-13 | B14: 2.6 | C14: 10179864
A15: 2012-01-14 | B15: 0.8 | C15: 10984698.18
A16: 2012-01-15 | B16: -1.8 | C16: 12800089.29
A17: 2012-01-16 | B17: -2.6 | C17: 13717694.1
A18: 2012-01-17 | B18: -3 | C18: 13920019.24
A19: 2012-01-18 | B19: -1.4 | C19: 12934684.62
A20: 2012-01-19 | B20: 6.5 | C20: 7190570.741
A21: 2012-01-20 | B21: 3.2 | C21: 9724699.061
A22: 2012-01-21 | B22: 4.5 | C22: 8330755.113
A23: 2012-01-22 | B23: 5.2 | C23: 7957004.99
A24: 2012-01-23 | B24: 4.2 | C24: 9052449.561
A25: 2012-01-24 | B25: 1.9 | C25: 10812644.82
A26: 2012-01-25 | B26: -0.3 | C26: 12253842.13
A27: 2012-01-26 | B27: -0.4 | C27: 12359731.06
A28: 2012-01-27 | B28: 1.5 | C28: 10986964.21
A29: 2012-01-28 | B29: 1.7 | C29: 10374558.91
A30: 2012-01-29 | B30: -0.6 | C30: 12095514.8
A31: 2012-01-30 | B31: -1.3 | C31: 12974377.76
A32: 2012-01-31 | B32: -3.2 | C32: 14023433.83
A33: 2012-02-01 | B33: -6.2 | C33: 15254772.74
A34: 2012-02-02 | B34: -8.5 | C34: 16080926.92
A35: 2012-02-03 | B35: -11 | C35: 16616580.19
A36: 2012-02-04 | B36: -11.5 | C36: 16033122.02
A37: 2012-02-05 | B37: -11.9 | C37: 16406085.97
A38: 2012-02-06 | B38: -12.3 | C38: 17071551.04
A39: 2012-02-07 | B39: -12.4 | C39: 17077116.67
A40: 2012-02-08 | B40: -8 | C40: 15875885.68
A41: 2012-02-09 | B41: -9.7 | C41: 16414363.5
A42: 2012-02-10 | B42: -8.9 | C42: 16088305.86
A43: 2012-02-11 | B43: -10.7 | C43: 15863164.62
A44: 2012-02-12 | B44: -11 | C44: 16219288.03
A45: 2012-02-13 | B45: -6.5 | C45: 15483540.3
A46: 2012-02-14 | B46: -1.2 | C46: 12904491.1
A47: 2012-02-15 | B47: 1.5 | C47: 11026101.57
A48: 2012-02-16 | B48: 2 | C48: 10699440.54
A49: 2012-02-17 | B49: 3.2 | C49: 9724699.061
A50: 2012-02-18 | B50: 5.2 | C50: 7801493.566
A51: 2012-02-19 | B51: 2.5 | C51: 9999488.732
A52: 2012-02-20 | B52: 0.4 | C52: 11884003.97
A53: 2012-02-21 | B53: -0.6 | C53: 12532179.23
A54: 2012-02-22 | B54: 1.4 | C54: 11097695.01
A55: 2012-02-23 | B55: 5.4 | C55: 8060481.202
A56: 2012-02-24 | B56: 7.9 | C56: 6071293.765
A57: 2012-02-25 | B57: 7.4 | C57: 6158171.139
A58: 2012-02-26 | B58: 4.9 | C58: 8188000.383
A59: 2012-02-27 | B59: 4.2 | C59: 9052449.561
A60: 2012-02-28 | B60: 6.2 | C60: 7454975.318
A61: 2012-02-29 | B61: 7.3 | C61: 6545794.262
A62: 2012-03-01 | B62: 7.7 | C62: 6264772.389
A63: 2012-03-02 | B63: 6.4 | C63: 7218061.819
A64: 2012-03-03 | B64: 7.8 | C64: 5869530.502
A65: 2012-03-04 | B65: 6.9 | C65: 6657856.884
A66: 2012-03-05 | B66: 3.8 | C66: 9368128.356
A67: 2012-03-06 | B67: 3.2 | C67: 9829506.867
A68: 2012-03-07 | B68: 4.6 | C68: 8665544.234
A69: 2012-03-08 | B69: 4.2 | C69: 9012262.033
A70: 2012-03-09 | B70: 3.2 | C70: 9724699.061
A71: 2012-03-10 | B71: 5.2 | C71: 7801493.566
A72: 2012-03-11 | B72: 7.4 | C72: 6284565.332
A73: 2012-03-12 | B73: 8.2 | C73: 5918063.952
A74: 2012-03-13 | B74: 8.3 | C74: 5840139.8
A75: 2012-03-14 | B75: 7.5 | C75: 6393395.777
A76: 2012-03-15 | B76: 7.8 | C76: 6189367.521
A77: 2012-03-16 | B77: 10.9 | C77: 4035470.434
A78: 2012-03-17 | B78: 11.2 | C78: 3679615.915
A79: 2012-03-18 | B79: 7.4 | C79: 6284565.332
A80: 2012-03-19 | B80: 6.7 | C80: 7065956.198
A81: 2012-03-20 | B81: 6.3 | C81: 7375892.469
A82: 2012-03-21 | B82: 8.1 | C82: 5943502.431
A83: 2012-03-22 | B83: 10.6 | C83: 4248297.184
A84: 2012-03-23 | B84: 11.1 | C84: 3916556.893
A85: 2012-03-24 | B85: 10.6 | C85: 4024258.959
A86: 2012-03-25 | B86: 11.4 | C86: 3647538.441
A87: 2012-03-26 | B87: 11.2 | C87: 3903330.273
A88: 2012-03-27 | B88: 10.6 | C88: 4265196.183
A89: 2012-03-28 | B89: 11.9 | C89: 3476571.196
A90: 2012-03-29 | B90: 10.9 | C90: 4064262.145
A91: 2012-03-30 | B91: 9.7 | C91: 4796792.698
A92: 2012-03-31 | B92: 9 | C92: 5036255.575
A93: 2012-04-01 | B93: 5.2 | C93: 7957004.99
A94: 2012-04-02 | B94: 7.2 | C94: 6676502.66
A95: 2012-04-03 | B95: 10.3 | C95: 4455133.093
A96: 2012-04-04 | B96: 9.5 | C96: 4947830.631
A97: 2012-04-05 | B97: 7.3 | C97: 6569402.843
A98: 2012-04-06 | B98: 6.7 | C98: 6984646.192
A99: 2012-04-07 | B99: 5.6 | C99: 7498857.502
A100: 2012-04-08 | B100: 3.2 | C100: 9482041.858
A101: 2012-04-09 | B101: 5.7 | C101: 7857489.78
A102: 2012-04-10 | B102: 12.5 | C102: 3188109.029
A103: 2012-04-11 | B103: 7.9 | C103: 6092155.505
A104: 2012-04-12 | B104: 7.2 | C104: 6646252.835
A105: 2012-04-13 | B105: 7.6 | C105: 6295922.035
A106: 2012-04-14 | B106: 9.5 | C106: 4706515.407
A107: 2012-04-15 | B107: 7.4 | C107: 6284565.332
A108: 2012-04-16 | B108: 5.5 | C108: 8016944.486
A109: 2012-04-17 | B109: 5.8 | C109: 7772434.775
A110: 2012-04-18 | B110: 8.1 | C110: 5943502.431
A111: 2012-04-19 | B111: 8.5 | C111: 5671270.46
A112: 2012-04-20 | B112: 8.6 | C112: 5559374.59
A113: 2012-04-21 | B113: 7.4 | C113: 6158171.139
A114: 2012-04-22 | B114: 6.5 | C114: 6960331.132
A115: 2012-04-23 | B115: 8.2 | C115: 5918063.952
A116: 2012-04-24 | B116: 8.3 | C116: 5840139.8
A117: 2012-04-25 | B117: 10.9 | C117: 4048918.852
A118: 2012-04-26 | B118: 13 | C118: 2930577.825
A119: 2012-04-27 | B119: 14.9 | C119: 2128255.565
A120: 2012-04-28 | B120: 20.8 | C120: 840028.08
A121: 2012-04-29 | B121: 19 | C121: 1085431.829
A122: 2012-04-30 | B122: 17.4 | C122: 1432193.842
A123: 2012-05-01 | B123: 16.5 | C123: 1654097.853
A124: 2012-05-02 | B124: 16.8 | C124: 1562831.067
A125: 2012-05-03 | B125: 14 | C125: 2488713.731
A126: 2012-05-04 | B126: 14.7 | C126: 2200129.251
A127: 2012-05-05 | B127: 12.5 | C127: 3004958.481
A128: 2012-05-06 | B128: 11.9 | C128: 3376911.047
A129: 2012-05-07 | B129: 11.3 | C129: 3844691.22
A130: 2012-05-08 | B130: 14.7 | C130: 2225471.5
A131: 2012-05-09 | B131: 16.9 | C131: 1537960.955
A132: 2012-05-10 | B132: 20.1 | C132: 971909.6321
A133: 2012-05-11 | B133: 22.7 | C133: 737449.232
A134: 2012-05-12 | B134: 11.6 | C134: 3461338.455
A135: 2012-05-13 | B135: 9.3 | C135: 4939256.319
A136: 2012-05-14 | B136: 10.3 | C136: 4457891.132
A137: 2012-05-15 | B137: 8.9 | C137: 5404953.337
A138: 2012-05-16 | B138: 6.4 | C138: 7243228.577
A139: 2012-05-17 | B139: 9 | C139: 5313065.361
A140: 2012-05-18 | B140: 13.5 | C140: 2682216.013
A141: 2012-05-19 | B141: 17.1 | C141: 1410779.006
A142: 2012-05-20 | B142: 18.3 | C142: 1201220.492
A143: 2012-05-21 | B143: 17.9 | C143: 1325534.491
A144: 2012-05-22 | B144: 18.1 | C144: 1286740.617
A145: 2012-05-23 | B145: 18.7 | C145: 1168034.636
A146: 2012-05-24 | B146: 20.2 | C146: 959973.3114
A147: 2012-05-25 | B147: 18.2 | C147: 1252326.774
A148: 2012-05-26 | B148: 17.2 | C148: 1388471.849
A149: 2012-05-27 | B149: 15.4 | C149: 1908213.112
A150: 2012-05-28 | B150: 17.6 | C150: 1388184.36
A151: 2012-05-29 | B151: 19.5 | C151: 1054322.015
A152: 2012-05-30 | B152: 18.6 | C152: 1185026.468
A153: 2012-05-31 | B153: 18.3 | C153: 1243805.459
A154: 2012-06-01 | B154: 16.8 | C154: 1557395.292
A155: 2012-06-02 | B155: 17.1 | C155: 1410779.006
A156: 2012-06-03 | B156: 15.8 | C156: 1785943.231
A157: 2012-06-04 | B157: 14.2 | C157: 2418329.994
A158: 2012-06-05 | B158: 10.9 | C158: 4080466.321
A159: 2012-06-06 | B159: 13.8 | C159: 2561830.482
A160: 2012-06-07 | B160: 17.9 | C160: 1320878.617
A161: 2012-06-08 | B161: 16.6 | C161: 1608477.3
A162: 2012-06-09 | B162: 16.2 | C162: 1632634.666
A163: 2012-06-10 | B163: 13.8 | C163: 2487994.31
A164: 2012-06-11 | B164: 14.3 | C164: 2378624.429
A165: 2012-06-12 | B165: 12.3 | C165: 3290855.642
A166: 2012-06-13 | B166: 13.7 | C166: 2604287.967
A167: 2012-06-14 | B167: 14.7 | C167: 2216441.83
A168: 2012-06-15 | B168: 18.7 | C168: 1163674.153
A169: 2012-06-16 | B169: 20.7 | C169: 849739.301
A170: 2012-06-17 | B170: 17.9 | C170: 1275912.788
A171: 2012-06-18 | B171: 22.1 | C171: 784969.1077
A172: 2012-06-19 | B172: 21.5 | C172: 833130.9067
A173: 2012-06-20 | B173: 19.5 | C173: 1045313.884
A174: 2012-06-21 | B174: 20.2 | C174: 959973.3114
A175: 2012-06-22 | B175: 17.9 | C175: 1310384.38
A176: 2012-06-23 | B176: 17.8 | C176: 1263848.151
A177: 2012-06-24 | B177: 17.9 | C177: 1275912.788
A178: 2012-06-25 | B178: 15.6 | C178: 1917119.56
A179: 2012-06-26 | B179: 17 | C179: 1526267.864
A180: 2012-06-27 | B180: 19.9 | C180: 992155.7209
A181: 2012-06-28 | B181: 22.2 | C181: 776439.2462
A182: 2012-06-29 | B182: 24.3 | C182: 662436.9455
A183: 2012-06-30 | B183: 24.1 | C183: 633379.7324
A184: 2012-07-01 | B184: 16.9 | C184: 1492625.038
A185: 2012-07-02 | B185: 16.8 | C185: 1575514.262
A186: 2012-07-03 | B186: 17.7 | C186: 1367540.402
A187: 2012-07-04 | B187: 20.9 | C187: 880291.1337
A188: 2012-07-05 | B188: 21.9 | C188: 798031.9958
A189: 2012-07-06 | B189: 18.4 | C189: 1215679.101
A190: 2012-07-07 | B190: 19.7 | C190: 961736.086
A191: 2012-07-08 | B191: 19.1 | C191: 1070348.36
A192: 2012-07-09 | B192: 19.7 | C192: 1025680.082
A193: 2012-07-10 | B193: 19.7 | C193: 1026880.37
A194: 2012-07-11 | B194: 17.7 | C194: 1356078.733
A195: 2012-07-12 | B195: 15.5 | C195: 1941087.428
A196: 2012-07-13 | B196: 15.7 | C196: 1863895.676
A197: 2012-07-14 | B197: 17.5 | C197: 1324218.433
A198: 2012-07-15 | B198: 14.3 | C198: 2290707.674
A199: 2012-07-16 | B199: 15.2 | C199: 2048541.951
A200: 2012-07-17 | B200: 17.7 | C200: 1367540.402
... 167 more rows

Sheet h-Wertberechnung (hidden)
A1: Datum | B1: Temperatur-Ist | D1: S-Funktion | G1: S-Funktion | J1: S-Funktion | M1: S-Funktion | P1: S-Funktion | S1: S-Funktion | W1: S-Funktion | Z1: S-Funktion | AC1: S-Funktion | AF1: S-Funktion | AI1: S-Funktion | AM1: S-Funktion | AP1: S-Funktion | AS1: S-Funktion | AV1: S-Funktion | AY1: S-Funktion | BC1: S-Funktion | BF1: S-Funktion | BI1: S-Funktion | BL1: S-Funktion | BO1: S-Funktion | BS1: S-Funktion | BV1: S-Funktion | BY1: S-Funktion | CB1: S-Funktion | CE1: S-Funktion | CI1: S-Funktion | CL1: S-Funktion | CO1: S-Funktion | CR1: S-Funktion | CU1: S-Funktion | CY1: S-Funktion | DB1: S-Funktion | DE1: S-Funktion | DH1: S-Funktion | DK1: S-Funktion | DO1: S-Funktion | DR1: S-Funktion | DU1: S-Funktion | DX1: S-Funktion | EA1: S-Funktion | EE1: S-Funktion | EH1: S-Funktion | EK1: S-Funktion | EN1: S-Funktion | EQ1: S-Funktion | EU1: S-Funktion | EX1: S-Funktion | FA1: S-Funktion | FD1: S-Funktion | FG1: S-Funktion | FK1: S-Funktion | FN1: S-Funktion | FQ1: S-Funktion | FT1: S-Funktion | FW1: S-Funktion | GA1: S-Funktion | GD1: S-Funktion | GG1: S-Funktion | GJ1: S-Funktion | GM1: S-Funktion | GQ1: S-Funktion
C2: WT | D2: h-Wert | E2: Koeffizienten der S-Funktion | G2: h-Wert | H2: Koeffizienten der S-Funktion | J2: h-Wert | K2: Koeffizienten der S-Funktion | M2: h-Wert | N2: Koeffizienten der S-Funktion | P2: h-Wert | Q2: Koeffizienten der S-Funktion | S2: h-Wert | U2: Koeffizienten der S-Funktion | W2: h-Wert | X2: Koeffizienten der S-Funktion | Z2: h-Wert | AA2: Koeffizienten der S-Funktion | AC2: h-Wert | AD2: Koeffizienten der S-Funktion | AF2: h-Wert | AG2: Koeffizienten der S-Funktion | AI2: h-Wert | AK2: Koeffizienten der S-Funktion | AM2: h-Wert | AN2: Koeffizienten der S-Funktion | AP2: h-Wert | AQ2: Koeffizienten der S-Funktion | AS2: h-Wert | AT2: Koeffizienten der S-Funktion | AV2: h-Wert | AW2: Koeffizienten der S-Funktion | AY2: h-Wert | BA2: Koeffizienten der S-Funktion | BC2: h-Wert | BD2: Koeffizienten der S-Funktion | BF2: h-Wert | BG2: Koeffizienten der S-Funktion | BI2: h-Wert | BJ2: Koeffizienten der S-Funktion | BL2: h-Wert | BM2: Koeffizienten der S-Funktion | BO2: h-Wert | BQ2: Koeffizienten der S-Funktion | BS2: h-Wert | BT2: Koeffizienten der S-Funktion | BV2: h-Wert | BW2: Koeffizienten der S-Funktion | BY2: h-Wert | BZ2: Koeffizienten der S-Funktion | CB2: h-Wert | CC2: Koeffizienten der S-Funktion | CE2: h-Wert | CG2: Koeffizienten der S-Funktion | CI2: h-Wert | CJ2: Koeffizienten der S-Funktion | CL2: h-Wert | CM2: Koeffizienten der S-Funktion | CO2: h-Wert | CP2: Koeffizienten der S-Funktion | CR2: h-Wert | CS2: Koeffizienten der S-Funktion | CU2: h-Wert | CW2: Koeffizienten der S-Funktion | CY2: h-Wert | CZ2: Koeffizienten der S-Funktion | DB2: h-Wert | DC2: Koeffizienten der S-Funktion | DE2: h-Wert | DF2: Koeffizienten der S-Funktion | DH2: h-Wert | DI2: Koeffizienten der S-Funktion | DK2: h-Wert | DM2: Koeffizienten der S-Funktion | DO2: h-Wert | DP2: Koeffizienten der S-Funktion | DR2: h-Wert | DS2: Koeffizienten der S-Funktion | DU2: h-Wert | DV2: Koeffizienten der S-Funktion | DX2: h-Wert | DY2: Koeffizienten der S-Funktion | EA2: h-Wert | EC2: Koeffizienten der S-Funktion | EE2: h-Wert | EF2: Koeffizienten der S-Funktion | EH2: h-Wert | EI2: Koeffizienten der S-Funktion | EK2: h-Wert | EL2: Koeffizienten der S-Funktion | EN2: h-Wert | EO2: Koeffizienten der S-Funktion | EQ2: h-Wert | ES2: Koeffizienten der S-Funktion | EU2: h-Wert | EV2: Koeffizienten der S-Funktion | EX2: h-Wert | EY2: Koeffizienten der S-Funktion | FA2: h-Wert | FB2: Koeffizienten der S-Funktion | FD2: h-Wert | FE2: Koeffizienten der S-Funktion | FG2: h-Wert | FI2: Koeffizienten der S-Funktion | FK2: h-Wert | FL2: Koeffizienten der S-Funktion | FN2: h-Wert | FO2: Koeffizienten der S-Funktion | FQ2: h-Wert | FR2: Koeffizienten der S-Funktion | FT2: h-Wert | FU2: Koeffizienten der S-Funktion | FW2: h-Wert | FY2: Koeffizienten der S-Funktion | GA2: h-Wert | GB2: Koeffizienten der S-Funktion | GD2: h-Wert | GE2: Koeffizienten der S-Funktion | GG2: h-Wert | GH2: Koeffizienten der S-Funktion | GJ2: h-Wert | GK2: Koeffizienten der S-Funktion | GM2: h-Wert | GO2: Koeffizienten der S-Funktion | GQ2: h-Wert | GR2: Koeffizienten der S-Funktion
A3: ='Als-Ob-Allokation KW03'!A2 -> 2012-01-01 | B3: ='Als-Ob-Allokation KW03'!B2 -> 10.2 | C3: =WEEKDAY(A3,2) -> 7 | D3: =($F$3/(1+($F$4/(B3-40))^$F$5)+$F$6) -> 0.7717620694 | E3: A | F3: =Berechnungsblatt!P4 -> 3.04696946 | G3: =($I$3/(1+($I$4/(B3-40))^$I$5)+$I$6) -> 0.7040544615 | H3: A | I3: =Berechnungsblatt!P5 -> 3.18501913 | J3: =($L$3/(1+($L$4/(B3-40))^$L$5)+$L$6) -> 0.8164022591 | K3: A | L3: =Berechnungsblatt!P6 -> 2.387761791 | M3: =($O$3/(1+($O$4/(B3-40))^$O$5)+$O$6) -> 0.7750165798 | N3: A | O3: =Berechnungsblatt!P7 -> 2.518777519 | P3: =($R$3/(1+($R$4/(B3-40))^$R$5)+$R$6) -> 1.028545626 | Q3: A | R3: =Berechnungsblatt!P9 -> 0.4040932149 | S3: =($V$3/(1+($V$4/(B3-40))^$V$5)+$V$6)*VLOOKUP(C3,$T$9:$V$15,3) -> 0.8903832594 | U3: A | V3: =Berechnungsblatt!$P$18 -> 1.2779567 | W3: =($Y$3/(1+($Y$4/(B3-40))^$Y$5)+$Y$6)*VLOOKUP(C3,$T$9:$V$15,3) -> 0.9435413875 | X3: A | Y3: =Berechnungsblatt!$P$17 -> 0.9315889 | Z3: =($AB$3/(1+($AB$4/(B3-40))^$AB$5)+$AB$6)*VLOOKUP(C3,$T$9:$V$15,3) -> 0.9658879774 | AA3: A | AB3: =Berechnungsblatt!$P$16 -> 0.6261962 | AC3: =($AE$3/(1+($AE$4/(B3-40))^$AE$5)+$AE$6)*VLOOKUP(C3,$T$9:$V$15,3) -> 0.9892021994 | AD3: A | AE3: =Berechnungsblatt!$P$15 -> 0.3879191 | AF3: =($AH$3/(1+($AH$4/(B3-40))^$AH$5)+$AH$6)*VLOOKUP(C3,$T$9:$V$15,3) -> 1.014837548 | AG3: A | AH3: =Berechnungsblatt!$P$14 -> 0.15 | AI3: =($AL$3/(1+($AL$4/(B3-40))^$AL$5)+$AL$6)*VLOOKUP(C3,$AJ$9:$AL$15,3) -> 0.5281088486 | AK3: A | AL3: =Berechnungsblatt!$P$72 -> 4.5699506 | AM3: =($AO$3/(1+($AO$4/(B3-40))^$AO$5)+$AO$6)*VLOOKUP(C3,$AJ$9:$AL$15,3) -> 0.6534199207 | AN3: A | AO3: =Berechnungsblatt!$P$71 -> 3.75 | AP3: =($AR$3/(1+($AR$4/(B3-40))^$AR$5)+$AR$6)*VLOOKUP(C3,$AJ$9:$AL$15,3) -> 0.7513689361 | AQ3: A | AR3: =Berechnungsblatt!$P$70 -> 2.917702722 | AS3: =($AU$3/(1+($AU$4/(B3-40))^$AU$5)+$AU$6)*VLOOKUP(C3,$AJ$9:$AL$15,3) -> 0.7984048512 | AT3: A | AU3: =Berechnungsblatt!$P$69 -> 2.109587843 | AV3: =($AX$3/(1+($AX$4/(B3-40))^$AX$5)+$AX$6)*VLOOKUP(C3,$AJ$9:$AL$15,3) -> 0.9087753114 | AW3: A | AX3: =Berechnungsblatt!$P$68 -> 1.290350459 | AY3: =($BB$3/(1+($BB$4/(B3-40))^$BB$5)+$BB$6)*VLOOKUP(C3,$AZ$9:$BB$15,3) -> 0.7190951639 | BA3: A | BB3: =Berechnungsblatt!$P$27 -> 2.98 | BC3: =($BE$3/(1+($BE$4/(B3-40))^$BE$5)+$BE$6)*VLOOKUP(C3,$AZ$9:$BB$15,3) -> 0.7517375881 | BD3: A | BE3: =Berechnungsblatt!$P$26 -> 2.459518061 | BF3: =($BH$3/(1+($BH$4/(B3-40))^$BH$5)+$BH$6)*VLOOKUP(C3,$AZ$9:$BB$15,3) -> 0.7878086286 | BG3: A | BH3: =Berechnungsblatt!$P$25 -> 2.010247172 | BI3: =($BK$3/(1+($BK$4/(B3-40))^$BK$5)+$BK$6)*VLOOKUP(C3,$AZ$9:$BB$15,3) -> 0.810433617 | BJ3: A | BK3: =Berechnungsblatt!$P$24 -> 1.70052794 | BL3: =($BN$3/(1+($BN$4/(B3-40))^$BN$5)+$BN$6)*VLOOKUP(C3,$AZ$9:$BB$15,3) -> 0.8335805552 | BM3: A | BN3: =Berechnungsblatt!$P$23 -> 1.477178569 | BO3: =($BR$3/(1+($BR$4/(B3-40))^$BR$5)+$BR$6)*VLOOKUP(C3,$BP$9:$BR$15,3) -> 0.5359675817 | BQ3: A | BR3: =Berechnungsblatt!$P$81 -> 3.329557482 | BS3: =($BU$3/(1+($BU$4/(B3-40))^$BU$5)+$BU$6)*VLOOKUP(C3,$BP$9:$BR$15,3) -> 0.6949550194 | BT3: A | BU3: =Berechnungsblatt!$P$80 -> 2.819565615 | BV3: =($BX$3/(1+($BX$4/(B3-40))^$BX$5)+$BX$6)*VLOOKUP(C3,$BP$9:$BR$15,3) -> 0.8138178381 | BW3: A | BX3: =Berechnungsblatt!$P$79 -> 2.285016474 | BY3: =($CA$3/(1+($CA$4/(B3-40))^$CA$5)+$CA$6)*VLOOKUP(C3,$BP$9:$BR$15,3) -> 0.8659607337 | BZ3: A | CA3: =Berechnungsblatt!$P$78 -> 1.648762294 | CB3: =($CD$3/(1+($CD$4/(B3-40))^$CD$5)+$CD$6)*VLOOKUP(C3,$BP$9:$BR$15,3) -> 0.9536921209 | CC3: A | CD3: =Berechnungsblatt!$P$77 -> 1.177034538 | CE3: =($CH$3/(1+($CH$4/(B3-40))^$CH$5)+$CH$6)*VLOOKUP(C3,$CF$9:$CH$15,3) -> 0.5081703239 | CG3: A | CH3: =Berechnungsblatt!$P$36 -> 3.932053248 | CI3: =($CK$3/(1+($CK$4/(B3-40))^$CK$5)+$CK$6)*VLOOKUP(C3,$CF$9:$CH$15,3) -> 0.5823066267 | CJ3: A | CK3: =Berechnungsblatt!$P$35 -> 3.601773562 | CL3: =($CN$3/(1+($CN$4/(B3-40))^$CN$5)+$CN$6)*VLOOKUP(C3,$CF$9:$CH$15,3) -> 0.6558574295 | CM3: A | CN3: =Berechnungsblatt!$P$34 -> 3.257274213 | CO3: =($CQ$3/(1+($CQ$4/(B3-40))^$CQ$5)+$CQ$6)*VLOOKUP(C3,$CF$9:$CH$15,3) -> 0.7891309079 | CP3: A | CQ3: =Berechnungsblatt!$P$33 -> 3.390464506 | CR3: =($CT$3/(1+($CT$4/(B3-40))^$CT$5)+$CT$6)*VLOOKUP(C3,$CF$9:$CH$15,3) -> 0.8500334819 | CS3: A | CT3: =Berechnungsblatt!$P$32 -> 3.176194476 | CU3: =($CX$3/(1+($CX$4/(B3-40))^$CX$5)+$CX$6)*VLOOKUP(C3,$CV$9:$CX$15,3) -> 0.3734548583 | CW3: A | CX3: =Berechnungsblatt!$P$54 -> 4.8252376 | CY3: =($DA$3/(1+($DA$4/(B3-40))^$DA$5)+$DA$6)*VLOOKUP(C3,$CV$9:$CX$15,3) -> 0.491012622 | CZ3: A | DA3: =Berechnungsblatt!$P$53 -> 4.0196902 | DB3: =($DD$3/(1+($DD$4/(B3-40))^$DD$5)+$DD$6)*VLOOKUP(C3,$CV$9:$CX$15,3) -> 0.5971263404 | DC3: A | DD3: =Berechnungsblatt!$P$52 -> 3.5811214 | DE3: =($DG$3/(1+($DG$4/(B3-40))^$DG$5)+$DG$6)*VLOOKUP(C3,$CV$9:$CX$15,3) -> 0.6713196836 | DF3: A | DG3: =Berechnungsblatt!$P$51 -> 2.8544749 | DH3: =($DJ$3/(1+($DJ$4/(B3-40))^$DJ$5)+$DJ$6)*VLOOKUP(C3,$CV$9:$CX$15,3) -> 0.7365399901 | DI3: A | DJ3: =Berechnungsblatt!$P$50 -> 2.3742828 | DK3: =($DN$3/(1+($DN$4/(B3-40))^$DN$5)+$DN$6)*VLOOKUP(C3,$DL$9:$DN$15,3) -> 0.5079658189 | DM3: A | DN3: =Berechnungsblatt!$P$45 -> 4.3624833 | DO3: =($DQ$3/(1+($DQ$4/(B3-40))^$DQ$5)+$DQ$6)*VLOOKUP(C3,$DL$9:$DN$15,3) -> 0.6270786071 | DP3: A | DQ3: =Berechnungsblatt!$P$44 -> 3.4428943 | DR3: =($DT$3/(1+($DT$4/(B3-40))^$DT$5)+$DT$6)*VLOOKUP(C3,$DL$9:$DN$15,3) -> 0.7384861074 | DS3: A | DT3: =Berechnungsblatt!$P$43 -> 2.7172288 | DU3: =($DW$3/(1+($DW$4/(B3-40))^$DW$5)+$DW$6)*VLOOKUP(C3,$DL$9:$DN$15,3) -> 0.8215834412 | DV3: A | DW3: =Berechnungsblatt!$P$42 -> 2.0660501 | DX3: =($DZ$3/(1+($DZ$4/(B3-40))^$DZ$5)+$DZ$6)*VLOOKUP(C3,$DL$9:$DN$15,3) -> 0.8613396857 | DY3: A | DZ3: =Berechnungsblatt!$P$41 -> 1.4159571 | EA3: =($ED$3/(1+($ED$4/(B3-40))^$ED$5)+$ED$6)*VLOOKUP(C3,$EB$9:$ED$15,3) -> 0.4721580534 | EC3: A | ED3: =Berechnungsblatt!$P$63 -> 3.5862355 | EE3: =($EG$3/(1+($EG$4/(B3-40))^$EG$5)+$EG$6)*VLOOKUP(C3,$EB$9:$ED$15,3) -> 0.590758399 | EF3: A | EG3: =Berechnungsblatt!$P$62 -> 3.1177248 | EH3: =($EJ$3/(1+($EJ$4/(B3-40))^$EJ$5)+$EJ$6)*VLOOKUP(C3,$EB$9:$ED$15,3) -> 0.7074826702 | EI3: A | EJ3: =Berechnungsblatt!$P$61 -> 2.7882424 | EK3: =($EM$3/(1+($EM$4/(B3-40))^$EM$5)+$EM$6)*VLOOKUP(C3,$EB$9:$ED$15,3) -> 0.7698474313 | EL3: A | EM3: =Berechnungsblatt!$P$60 -> 2.2908184 | EN3: =($EP$3/(1+($EP$4/(B3-40))^$EP$5)+$EP$6)*VLOOKUP(C3,$EB$9:$ED$15,3) -> 0.8555282057 | EO3: A | EP3: =Berechnungsblatt!$P$59 -> 1.8644534 | EQ3: =($ET$3/(1+($ET$4/(B3-40))^$ET$5)+$ET$6)*VLOOKUP(C3,$ER$9:$ET$15,3) -> 0.704856642 | ES3: A | ET3: =Berechnungsblatt!$P$90 -> 2.6564406 | EU3: =($EW$3/(1+($EW$4/(B3-40))^$EW$5)+$EW$6)*VLOOKUP(C3,$ER$9:$ET$15,3) -> 0.7312281663 | EV3: A | EW3: =Berechnungsblatt!$P$89 -> 2.5187775 | EX3: =($EZ$3/(1+($EZ$4/(B3-40))^$EZ$5)+$EZ$6)*VLOOKUP(C3,$ER$9:$ET$15,3) -> 0.7702755653 | EY3: A | EZ3: =Berechnungsblatt!$P$88 -> 2.3877618 | FA3: =($FC$3/(1+($FC$4/(B3-40))^$FC$5)+$FC$6)*VLOOKUP(C3,$ER$9:$ET$15,3) -> 0.781407747 | FB3: A | FC3: =Berechnungsblatt!$P$87 -> 2.2486333 | FD3: =($FF$3/(1+($FF$4/(B3-40))^$FF$5)+$FF$6)*VLOOKUP(C3,$ER$9:$ET$15,3) -> 0.8042990442 | FE3: A | FF3: =Berechnungsblatt!$P$86 -> 2.1163531 | FG3: =($FJ$3/(1+($FJ$4/(B3-40))^$FJ$5)+$FJ$6)*VLOOKUP(C3,$FH$9:$FJ$15,3) -> 0.2551265232 | FI3: A | FJ3: =Berechnungsblatt!$P$99 -> 4.7462814 | FK3: =($FM$3/(1+($FM$4/(B3-40))^$FM$5)+$FM$6)*VLOOKUP(C3,$FH$9:$FJ$15,3) -> 0.3626695196 | FL3: A | FM3: =Berechnungsblatt!$P$98 -> 3.85 | FN3: =($FP$3/(1+($FP$4/(B3-40))^$FP$5)+$FP$6)*VLOOKUP(C3,$FH$9:$FJ$15,3) -> 0.5612406083 | FO3: A | FP3: =Berechnungsblatt!$P$97 -> 3.2 | FQ3: =($FS$3/(1+($FS$4/(B3-40))^$FS$5)+$FS$6)*VLOOKUP(C3,$FH$9:$FJ$15,3) -> 0.7144020661 | FR3: A | FS3: =Berechnungsblatt!$P$96 -> 2.578417254 | FT3: =($FV$3/(1+($FV$4/(B3-40))^$FV$5)+$FV$6)*VLOOKUP(C3,$FH$9:$FJ$15,3) -> 0.7570939222 | FU3: A | FV3: =Berechnungsblatt!$P$95 -> 1.4894022 | FW3: =($FZ$3/(1+($FZ$4/(B3-40))^$FZ$5)+$FZ$6)*VLOOKUP(C3,$FX$9:$FZ$15,3) -> 0.4454398647 | FY3: A | FZ3: =Berechnungsblatt!$P$108 -> 1.276885372 | GA3: =($GC$3/(1+($GC$4/(B3-40))^$GC$5)+$GC$6)*VLOOKUP(C3,$FX$9:$FZ$15,3) -> 0.4648710379 | GB3: A | GC3: =Berechnungsblatt!$P$107 -> 1.053587472 | GD3: =($GF$3/(1+($GF$4/(B3-40))^$GF$5)+$GF$6)*VLOOKUP(C3,$FX$9:$FZ$15,3) -> 0.4743173454 | GE3: A | GF3: =Berechnungsblatt!$P$106 -> 0.7657290119 | GG3: =($GI$3/(1+($GI$4/(B3-40))^$GI$5)+$GI$6)*VLOOKUP(C3,$FX$9:$FZ$15,3) -> 0.4814840963 | GH3: A | GI3: =Berechnungsblatt!$P$105 -> 0.6166228927 | GJ3: =($GL$3/(1+($GL$4/(B3-40))^$GL$5)+$GL$6)*VLOOKUP(C3,$FX$9:$FZ$15,3) -> 0.4879768362 | GK3: A | GL3: =Berechnungsblatt!$P$104 -> 0.4 | GM3: =($GP$3/(1+($GP$4/(B3-40))^$GP$5)+$GP$6)*VLOOKUP(C3,$GN$9:$GP$15,3) -> 0.754887996 | GO3: A | GP3: =Berechnungsblatt!P113 -> 2.579251 | GQ3: =($GS$3/(1+($GS$4/(B3-40))^$GS$5)+$GS$6)*VLOOKUP(C3,$GN$9:$GP$15,3) -> 0.6658846008 | GR3: A | GS3: =Berechnungsblatt!P114 -> 3.0084346
A4: ='Als-Ob-Allokation KW03'!A3 -> 2012-01-02 | B4: ='Als-Ob-Allokation KW03'!B3 -> 9 | C4: 1 | D4: 0.8967832095 | E4: B | F4: =Berechnungsblatt!Q4 -> -37.18331413 | G4: =($I$3/(1+($I$4/(B4-40))^$I$5)+$I$6) -> 0.835985413 | H4: B | I4: =Berechnungsblatt!Q5 -> -37.41241549 | J4: =($L$3/(1+($L$4/(B4-40))^$L$5)+$L$6) -> 0.9347482222 | K4: B | L4: =Berechnungsblatt!Q6 -> -34.72136051 | M4: =($O$3/(1+($O$4/(B4-40))^$O$5)+$O$6) -> 0.9029719452 | N4: B | O4: =Berechnungsblatt!Q7 -> -35.03337542 | P4: =($R$3/(1+($R$4/(B4-40))^$R$5)+$R$6) -> 1.044853814 | Q4: B | R4: =Berechnungsblatt!Q9 -> -24.43929682 | S4: 1.078533755 | U4: B | V4: =Berechnungsblatt!$Q$18 -> -34.517392 | W4: 1.123282191 | X4: B | Y4: =Berechnungsblatt!$Q$17 -> -33.35 | Z4: 1.131724696 | AA4: B | AB4: =Berechnungsblatt!$Q$16 -> -33 | AC4: 1.13699152 | AD4: B | AE4: =Berechnungsblatt!$Q$15 -> -35.5 | AF4: 1.15408397 | AG4: B | AH4: =Berechnungsblatt!$Q$14 -> -36 | AI4: =($AL$3/(1+($AL$4/(B4-40))^$AL$5)+$AL$6)*VLOOKUP(C4,$AJ$9:$AL$15,3) -> 0.8188804617 | AK4: B | AL4: =Berechnungsblatt!$Q$72 -> -38.53533924 | AM4: =($AO$3/(1+($AO$4/(B4-40))^$AO$5)+$AO$6)*VLOOKUP(C4,$AJ$9:$AL$15,3) -> 0.9588346186 | AN4: B | AO4: =Berechnungsblatt!$Q$71 -> -37.5 | AP4: =($AR$3/(1+($AR$4/(B4-40))^$AR$5)+$AR$6)*VLOOKUP(C4,$AJ$9:$AL$15,3) -> 1.049048545 | AQ4: B | AR4: =Berechnungsblatt!$Q$70 -> -36.17941165 | AS4: =($AU$3/(1+($AU$4/(B4-40))^$AU$5)+$AU$6)*VLOOKUP(C4,$AJ$9:$AL$15,3) -> 1.059787932 | AT4: B | AU4: =Berechnungsblatt!$Q$69 -> -35.84445084 | AV4: =($AX$3/(1+($AX$4/(B4-40))^$AX$5)+$AX$6)*VLOOKUP(C4,$AJ$9:$AL$15,3) -> 1.121128048 | AW4: B | AX4: =Berechnungsblatt!$Q$68 -> -35.23498683 | AY4: =($BB$3/(1+($BB$4/(B4-40))^$BB$5)+$BB$6)*VLOOKUP(C4,$AZ$9:$BB$15,3) -> 1.013276283 | BA4: B | BB4: =Berechnungsblatt!$Q$27 -> -35.8 | BC4: =($BE$3/(1+($BE$4/(B4-40))^$BE$5)+$BE$6)*VLOOKUP(C4,$AZ$9:$BB$15,3) -> 1.037077565 | BD4: B | BE4: =Berechnungsblatt!$Q$26 -> -35.25321235 | BF4: =($BH$3/(1+($BH$4/(B4-40))^$BH$5)+$BH$6)*VLOOKUP(C4,$AZ$9:$BB$15,3) -> 1.057080602 | BG4: B | BH4: =Berechnungsblatt!$Q$25 -> -35.25321235 | BI4: =($BK$3/(1+($BK$4/(B4-40))^$BK$5)+$BK$6)*VLOOKUP(C4,$AZ$9:$BB$15,3) -> 1.0680799 | BJ4: B | BK4: =Berechnungsblatt!$Q$24 -> -35.15 | BL4: =($BN$3/(1+($BN$4/(B4-40))^$BN$5)+$BN$6)*VLOOKUP(C4,$AZ$9:$BB$15,3) -> 1.077055387 | BM4: B | BN4: =Berechnungsblatt!$Q$23 -> -35.08344471 | BO4: =($BR$3/(1+($BR$4/(B4-40))^$BR$5)+$BR$6)*VLOOKUP(C4,$BP$9:$BR$15,3) -> 0.6559679771 | BQ4: B | BR4: =Berechnungsblatt!$Q$81 -> -36.01462112 | BS4: =($BU$3/(1+($BU$4/(B4-40))^$BU$5)+$BU$6)*VLOOKUP(C4,$BP$9:$BR$15,3) -> 0.7754096135 | BT4: B | BU4: =Berechnungsblatt!$Q$80 -> -36 | BV4: =($BX$3/(1+($BX$4/(B4-40))^$BX$5)+$BX$6)*VLOOKUP(C4,$BP$9:$BR$15,3) -> 0.8509269855 | BW4: B | BX4: =Berechnungsblatt!$Q$79 -> -36.28785839 | BY4: =($CA$3/(1+($CA$4/(B4-40))^$CA$5)+$CA$6)*VLOOKUP(C4,$BP$9:$BR$15,3) -> 0.8686917376 | BZ4: B | CA4: =Berechnungsblatt!$Q$78 -> -36.39927357 | CB4: =($CD$3/(1+($CD$4/(B4-40))^$CD$5)+$CD$6)*VLOOKUP(C4,$BP$9:$BR$15,3) -> 0.9144262162 | CC4: B | CD4: =Berechnungsblatt!$Q$77 -> -39.1599914 | CE4: =($CH$3/(1+($CH$4/(B4-40))^$CH$5)+$CH$6)*VLOOKUP(C4,$CF$9:$CH$15,3) -> 0.6875528548 | CG4: B | CH4: =Berechnungsblatt!$Q$36 -> -38.14332482 | CI4: 0.7592791093 | CJ4: B | CK4: =Berechnungsblatt!$Q$35 -> -37.88253684 | CL4: =($CN$3/(1+($CN$4/(B4-40))^$CN$5)+$CN$6)*VLOOKUP(C4,$CF$9:$CH$15,3) -> 0.8273500664 | CM4: B | CN4: =Berechnungsblatt!$Q$34 -> -37.5 | CO4: =($CQ$3/(1+($CQ$4/(B4-40))^$CQ$5)+$CQ$6)*VLOOKUP(C4,$CF$9:$CH$15,3) -> 0.9435292251 | CP4: B | CQ4: =Berechnungsblatt!$Q$33 -> -39.28752164 | CR4: =($CT$3/(1+($CT$4/(B4-40))^$CT$5)+$CT$6)*VLOOKUP(C4,$CF$9:$CH$15,3) -> 0.9855824438 | CS4: B | CT4: =Berechnungsblatt!$Q$32 -> -40.83666086 | CU4: =($CX$3/(1+($CX$4/(B4-40))^$CX$5)+$CX$6)*VLOOKUP(C4,$CV$9:$CX$15,3) -> 0.5846367703 | CW4: B | CX4: =Berechnungsblatt!$Q$54 -> -39.2802564 | CY4: =($DA$3/(1+($DA$4/(B4-40))^$DA$5)+$DA$6)*VLOOKUP(C4,$CV$9:$CX$15,3) -> 0.7343803469 | CZ4: B | DA4: =Berechnungsblatt!$Q$53 -> -37.8282037 | DB4: =($DD$3/(1+($DD$4/(B4-40))^$DD$5)+$DD$6)*VLOOKUP(C4,$CV$9:$CX$15,3) -> 0.8587214809 | DC4: B | DD4: =Berechnungsblatt!$Q$52 -> -36.9650065 | DE4: =($DG$3/(1+($DG$4/(B4-40))^$DG$5)+$DG$6)*VLOOKUP(C4,$CV$9:$CX$15,3) -> 0.9303727803 | DF4: B | DG4: =Berechnungsblatt!$Q$51 -> -35.6294231 | DH4: =($DJ$3/(1+($DJ$4/(B4-40))^$DJ$5)+$DJ$6)*VLOOKUP(C4,$CV$9:$CX$15,3) -> 0.978103909 | DI4: B | DJ4: =Berechnungsblatt!$Q$50 -> -34.7595501 | DK4: =($DN$3/(1+($DN$4/(B4-40))^$DN$5)+$DN$6)*VLOOKUP(C4,$DL$9:$DN$15,3) -> 0.7192089802 | DM4: B | DN4: =Berechnungsblatt!$Q$45 -> -38.6634022 | DO4: =($DQ$3/(1+($DQ$4/(B4-40))^$DQ$5)+$DQ$6)*VLOOKUP(C4,$DL$9:$DN$15,3) -> 0.8554515085 | DP4: B | DQ4: =Berechnungsblatt!$Q$44 -> -36.6590504 | DR4: =($DT$3/(1+($DT$4/(B4-40))^$DT$5)+$DT$6)*VLOOKUP(C4,$DL$9:$DN$15,3) -> 0.9635251999 | DS4: B | DT4: =Berechnungsblatt!$Q$43 -> -35.1412563 | DU4: =($DW$3/(1+($DW$4/(B4-40))^$DW$5)+$DW$6)*VLOOKUP(C4,$DL$9:$DN$15,3) -> 1.027727697 | DV4: B | DW4: =Berechnungsblatt!$Q$42 -> -33.601652 | DX4: =($DZ$3/(1+($DZ$4/(B4-40))^$DZ$5)+$DZ$6)*VLOOKUP(C4,$DL$9:$DN$15,3) -> 1.037649275 | DY4: B | DZ4: =Berechnungsblatt!$Q$41 -> -30.8425192 | EA4: =($ED$3/(1+($ED$4/(B4-40))^$ED$5)+$ED$6)*VLOOKUP(C4,$EB$9:$ED$15,3) -> 0.7293295277 | EC4: B | ED4: =Berechnungsblatt!$Q$63 -> -37.0802993 | EE4: =($EG$3/(1+($EG$4/(B4-40))^$EG$5)+$EG$6)*VLOOKUP(C4,$EB$9:$ED$15,3) -> 0.8714032433 | EF4: B | EG4: =Berechnungsblatt!$Q$62 -> -35.8715062 | EH4: =($EJ$3/(1+($EJ$4/(B4-40))^$EJ$5)+$EJ$6)*VLOOKUP(C4,$EB$9:$ED$15,3) -> 0.9968447746 | EI4: B | EJ4: =Berechnungsblatt!$Q$61 -> -34.880613 | EK4: =($EM$3/(1+($EM$4/(B4-40))^$EM$5)+$EM$6)*VLOOKUP(C4,$EB$9:$ED$15,3) -> 1.054521612 | EL4: B | EM4: =Berechnungsblatt!$Q$60 -> -33.1476867 | EN4: =($EP$3/(1+($EP$4/(B4-40))^$EP$5)+$EP$6)*VLOOKUP(C4,$EB$9:$ED$15,3) -> 1.140130996 | EO4: B | EP4: =Berechnungsblatt!$Q$59 -> -30.7071632 | EQ4: =($ET$3/(1+($ET$4/(B4-40))^$ET$5)+$ET$6)*VLOOKUP(C4,$ER$9:$ET$15,3) -> 0.9147385784 | ES4: B | ET4: =Berechnungsblatt!$Q$90 -> -35.2516927 | EU4: =($EW$3/(1+($EW$4/(B4-40))^$EW$5)+$EW$6)*VLOOKUP(C4,$ER$9:$ET$15,3) -> 0.9349371769 | EV4: B | EW4: =Berechnungsblatt!$Q$89 -> -35.0333754 | EX4: =($EZ$3/(1+($EZ$4/(B4-40))^$EZ$5)+$EZ$6)*VLOOKUP(C4,$ER$9:$ET$15,3) -> 0.9678383469 | EY4: B | EZ4: =Berechnungsblatt!$Q$88 -> -34.7213605 | FA4: =($FC$3/(1+($FC$4/(B4-40))^$FC$5)+$FC$6)*VLOOKUP(C4,$ER$9:$ET$15,3) -> 0.970231135 | FB4: B | FC4: =Berechnungsblatt!$Q$87 -> -34.5428431 | FD4: =($FF$3/(1+($FF$4/(B4-40))^$FF$5)+$FF$6)*VLOOKUP(C4,$ER$9:$ET$15,3) -> 0.9844154126 | FE4: B | FF4: =Berechnungsblatt!$Q$86 -> -34.2628623 | FG4: =($FJ$3/(1+($FJ$4/(B4-40))^$FJ$5)+$FJ$6)*VLOOKUP(C4,$FH$9:$FJ$15,3) -> 0.4445738912 | FI4: B | FJ4: =Berechnungsblatt!$Q$99 -> -38.7504294 | FK4: =($FM$3/(1+($FM$4/(B4-40))^$FM$5)+$FM$6)*VLOOKUP(C4,$FH$9:$FJ$15,3) -> 0.6000893789 | FL4: B | FM4: =Berechnungsblatt!$Q$98 -> -37 | FN4: =($FP$3/(1+($FP$4/(B4-40))^$FP$5)+$FP$6)*VLOOKUP(C4,$FH$9:$FJ$15,3) -> 0.8470526393 | FO4: B | FP4: =Berechnungsblatt!$Q$97 -> -35.8 | FQ4: =($FS$3/(1+($FS$4/(B4-40))^$FS$5)+$FS$6)*VLOOKUP(C4,$FH$9:$FJ$15,3) -> 0.9963550651 | FR4: B | FS4: =Berechnungsblatt!$Q$96 -> -34.7321261 | FT4: =($FV$3/(1+($FV$4/(B4-40))^$FV$5)+$FV$6)*VLOOKUP(C4,$FH$9:$FJ$15,3) -> 1.021418913 | FU4: B | FV4: =Berechnungsblatt!$Q$95 -> -32.4252678 | FW4: =($FZ$3/(1+($FZ$4/(B4-40))^$FZ$5)+$FZ$6)*VLOOKUP(C4,$FX$9:$FZ$15,3) -> 1.273097341 | FY4: B | FZ4: =Berechnungsblatt!$Q$108 -> -34.34243707 | GA4: =($GC$3/(1+($GC$4/(B4-40))^$GC$5)+$GC$6)*VLOOKUP(C4,$FX$9:$FZ$15,3) -> 1.303915849 | GB4: B | GC4: =Berechnungsblatt!$Q$107 -> -35.3 | GD4: =($GF$3/(1+($GF$4/(B4-40))^$GF$5)+$GF$6)*VLOOKUP(C4,$FX$9:$FZ$15,3) -> 1.312726268 | GE4: B | GF4: =Berechnungsblatt!$Q$106 -> -36.02379115 | GG4: =($GI$3/(1+($GI$4/(B4-40))^$GI$5)+$GI$6)*VLOOKUP(C4,$FX$9:$FZ$15,3) -> 1.317261096 | GH4: B | GI4: =Berechnungsblatt!$Q$105 -> -38.4 | GJ4: =($GL$3/(1+($GL$4/(B4-40))^$GL$5)+$GL$6)*VLOOKUP(C4,$FX$9:$FZ$15,3) -> 1.322608721 | GK4: B | GL4: =Berechnungsblatt!$Q$104 -> -40.51494818 | GM4: =($GP$3/(1+($GP$4/(B4-40))^$GP$5)+$GP$6)*VLOOKUP(C4,$GN$9:$GP$15,3) -> 0.9516027175 | GO4: B | GP4: =Berechnungsblatt!Q113 -> -35.6816144 | GQ4: =($GS$3/(1+($GS$4/(B4-40))^$GS$5)+$GS$6)*VLOOKUP(C4,$GN$9:$GP$15,3) -> 0.8673742186 | GR4: B | GS4: =Berechnungsblatt!Q114 -> -36.6078453
A5: ='Als-Ob-Allokation KW03'!A4 -> 2012-01-03 | B5: ='Als-Ob-Allokation KW03'!B4 -> 5.9 | C5: 2 | D5: 1.252962331 | E5: C | F5: =Berechnungsblatt!R4 -> 5.672784662 | G5: =($I$3/(1+($I$4/(B5-40))^$I$5)+$I$6) -> 1.225034931 | H5: C | I5: =Berechnungsblatt!R5 -> 6.172317872 | J5: 1.252060408 | K5: C | L5: =Berechnungsblatt!R6 -> 5.816430401 | M5: 1.254880494 | N5: C | O5: =Berechnungsblatt!R7 -> 6.224063396 | P5: 1.074158697 | Q5: C | R5: =Berechnungsblatt!R9 -> 6.571817517 | S5: 1.30325955 | U5: C | V5: =Berechnungsblatt!$R$18 -> 5.7212303 | W5: 1.301638916 | X5: C | Y5: =Berechnungsblatt!$R$17 -> 5.7212303 | Z5: 1.264540351 | AA5: C | AB5: =Berechnungsblatt!$R$16 -> 5.7212303 | AC5: 1.215122853 | AD5: C | AE5: =Berechnungsblatt!$R$15 -> 4 | AF5: 1.200627879 | AG5: C | AH5: =Berechnungsblatt!$R$14 -> 2 | AI5: 1.411930172 | AK5: C | AL5: =Berechnungsblatt!$R$72 -> 7.597699099 | AM5: 1.465970568 | AN5: C | AO5: =Berechnungsblatt!$R$71 -> 6.8 | AP5: 1.433935069 | AQ5: C | AR5: =Berechnungsblatt!$R$70 -> 5.926516165 | AS5: 1.306953676 | AT5: C | AU5: =Berechnungsblatt!$R$69 -> 5.215467228 | AV5: 1.171102111 | AW5: C | AX5: =Berechnungsblatt!$R$68 -> 2.106424688 | AY5: =($BB$3/(1+($BB$4/(B5-40))^$BB$5)+$BB$6)*VLOOKUP(C5,$AZ$9:$BB$15,3) -> 1.397366061 | BA5: C | BB5: =Berechnungsblatt!$R$27 -> 5.634058062 | BC5: 1.379936139 | BD5: C | BE5: =Berechnungsblatt!$R$26 -> 6.058700072 | BF5: 1.337674555 | BG5: C | BH5: =Berechnungsblatt!$R$25 -> 6.154440641 | BI5: 1.303770485 | BJ5: C | BK5: =Berechnungsblatt!$R$24 -> 6.163273851 | BL5: 1.255394028 | BM5: C | BN5: =Berechnungsblatt!$R$23 -> 5.412342465 | BO5: 1.259178871 | BQ5: C | BR5: =Berechnungsblatt!$R$81 -> 8.776746471 | BS5: 1.262098977 | BT5: C | BU5: =Berechnungsblatt!$R$80 -> 7.736851768 | BV5: 1.213728704 | BW5: C | BX5: =Berechnungsblatt!$R$79 -> 6.588512639 | BY5: 1.135081314 | BZ5: C | CA5: =Berechnungsblatt!$R$78 -> 6.214917209 | CB5: 1.070892754 | CC5: C | CD5: =Berechnungsblatt!$R$77 -> 4.207610964 | CE5: 1.152713409 | CG5: C | CH5: =Berechnungsblatt!$R$36 -> 7.618587098 | CI5: 1.17685354 | CJ5: C | CK5: =Berechnungsblatt!$R$35 -> 6.983607029 | CL5: 1.192263896 | CM5: C | CN5: =Berechnungsblatt!$R$34 -> 6.346214795 | CO5: 1.210270271 | CP5: C | CQ5: =Berechnungsblatt!$R$33 -> 4.490574046 | CR5: 1.184312057 | CS5: C | CT5: =Berechnungsblatt!$R$32 -> 3.678589174 | CU5: 1.13589532 | CW5: C | CX5: =Berechnungsblatt!$R$54 -> 8.6240217 | CY5: 1.282874519 | CZ5: C | DA5: =Berechnungsblatt!$R$53 -> 8.1593369 | DB5: 1.35861634 | DC5: C | DD5: =Berechnungsblatt!$R$52 -> 7.2256947 | DE5: 1.356840872 | DF5: C | DG5: =Berechnungsblatt!$R$51 -> 7.0058264 | DH5: 1.29787405 | DI5: C | DJ5: =Berechnungsblatt!$R$50 -> 5.9987037 | DK5: 1.285137233 | DM5: C | DN5: =Berechnungsblatt!$R$45 -> 7.5974644 | DO5: 1.403631026 | DP5: C | DQ5: =Berechnungsblatt!$R$44 -> 7.6083226 | DR5: 1.426210369 | DS5: C | DT5: =Berechnungsblatt!$R$43 -> 7.1303395 | DU5: 1.383413934 | DV5: C | DW5: =Berechnungsblatt!$R$42 -> 6.675361 | DX5: 1.274189409 | DY5: C | DZ5: =Berechnungsblatt!$R$41 -> 6.409122891 | EA5: 1.256292113 | EC5: C | ED5: =Berechnungsblatt!$R$63 -> 8.2420572 | EE5: 1.347375027 | EF5: C | EG5: =Berechnungsblatt!$R$62 -> 7.5186829 | EH5: 1.393360489 | EI5: C | EJ5: =Berechnungsblatt!$R$61 -> 6.5951899 | EK5: 1.378013365 | EL5: C | EM5: =Berechnungsblatt!$R$60 -> 6.3714765 | EN5: 1.390174049 | EO5: C | EP5: =Berechnungsblatt!$R$59 -> 6.4626937 | EQ5: 1.332419737 | ES5: C | ET5: =Berechnungsblatt!$R$90 -> 6.5182659 | EU5: 1.320510767 | EV5: C | EW5: =Berechnungsblatt!$R$89 -> 6.2240634 | EX5: 1.317543207 | EY5: C | EZ5: =Berechnungsblatt!$R$88 -> 5.8164304 | FA5: 1.28892648 | FB5: C | FC5: =Berechnungsblatt!$R$87 -> 5.5545245 | FD5: 1.26888696 | FE5: C | FF5: =Berechnungsblatt!$R$86 -> 5.1763874 | FG5: 1.092718574 | FI5: C | FJ5: =Berechnungsblatt!$R$99 -> 10.27533341 | FK5: 1.316104116 | FL5: C | FM5: =Berechnungsblatt!$R$98 -> 10.2405021 | FN5: 1.490155019 | FO5: C | FP5: =Berechnungsblatt!$R$97 -> 8.4 | FQ5: 1.470543055 | FR5: C | FS5: =Berechnungsblatt!$R$96 -> 6.480503514 | FT5: 1.397836795 | FU5: C | FV5: =Berechnungsblatt!$R$95 -> 8.1732612 | FW5: 1.492834825 | FY5: C | FZ5: =Berechnungsblatt!$R$108 -> 5.451882242 | GA5: 1.46797204 | GB5: C | GC5: =Berechnungsblatt!$R$107 -> 4.866274683 | GD5: 1.434303492 | GE5: C | GF5: =Berechnungsblatt!$R$106 -> 4.866274683 | GG5: 1.398622965 | GH5: C | GI5: =Berechnungsblatt!$R$105 -> 3.870535189 | GJ5: 1.370674535 | GK5: C | GL5: =Berechnungsblatt!$R$104 -> 2.874795695 | GM5: 1.334061927 | GO5: C | GP5: =Berechnungsblatt!R113 -> 6.6857976 | GQ5: 1.315294104 | GR5: C | GS5: =Berechnungsblatt!R114 -> 7.321187
A6: ='Als-Ob-Allokation KW03'!A5 -> 2012-01-04 | B6: ='Als-Ob-Allokation KW03'!B5 -> 5.5 | C6: 3 | D6: 1.30079952 | E6: D | F6: =Berechnungsblatt!S4 -> 0.0961930604 | G6: =($I$3/(1+($I$4/(B6-40))^$I$5)+$I$6) -> 1.278415478 | H6: D | I6: =Berechnungsblatt!S5 -> 0.0761095935 | J6: 1.292496379 | K6: D | L6: =Berechnungsblatt!S6 -> 0.1208193679 | M6: 1.300383849 | N6: D | O6: =Berechnungsblatt!S7 -> 0.1010781719 | P6: 1.076879533 | Q6: D | R6: =Berechnungsblatt!S9 -> 0.7107710452 | S6: 1.274823907 | U6: D | V6: =Berechnungsblatt!$S$18 -> 0.5457333 | W6: 1.266946123 | X6: D | Y6: =Berechnungsblatt!$S$17 -> 0.6656494 | Z6: 1.225796236 | AA6: D | AB6: =Berechnungsblatt!$S$16 -> 0.7855655 | AC6: 1.172064515 | AD6: D | AE6: =Berechnungsblatt!$S$15 -> 0.9054815 | AF6: 1.15423214 | AG6: D | AH6: =Berechnungsblatt!$S$14 -> 1 | AI6: 1.436539863 | AK6: D | AL6: =Berechnungsblatt!$S$72 -> 0.006631353713 | AM6: 1.471756793 | AN6: D | AO6: =Berechnungsblatt!$S$71 -> 0.06091126459 | AP6: 1.421699576 | AQ6: D | AR6: =Berechnungsblatt!$S$70 -> 0.1151911755 | AS6: 1.282144227 | AT6: D | AU6: =Berechnungsblatt!$S$69 -> 0.2854582543 | AV6: 1.127651454 | AW6: D | AX6: =Berechnungsblatt!$S$68 -> 0.4557253331 | AY6: 1.385779131 | BA6: D | BB6: =Berechnungsblatt!$S$27 -> 0 | BC6: 1.363827591 | BD6: D | BE6: =Berechnungsblatt!$S$26 -> 0.1647370487 | BF6: 1.315822054 | BG6: D | BH6: =Berechnungsblatt!$S$25 -> 0.3294740974 | BI6: 1.277777785 | BJ6: D | BK6: =Berechnungsblatt!$S$24 -> 0.4298260851 | BL6: 1.224105435 | BM6: D | BN6: =Berechnungsblatt!$S$23 -> 0.4744264076 | BO6: 1.358530092 | BQ6: D | BR6: =Berechnungsblatt!$S$81 -> -0.0004915745542 | BS6: 1.341445815 | BT6: D | BU6: =Berechnungsblatt!$S$80 -> 0.1572809795 | BV6: 1.273329107 | BW6: D | BX6: =Berechnungsblatt!$S$79 -> 0.3150535336 | BY6: 1.179999321 | BZ6: D | CA6: =Berechnungsblatt!$S$78 -> 0.4877637327 | CB6: 1.099353474 | CC6: D | CD6: =Berechnungsblatt!$S$77 -> 0.6604739318 | CE6: 1.336316762 | CG6: D | CH6: =Berechnungsblatt!$S$36 -> 0.023029723 | CI6: 1.352896584 | CJ6: D | CK6: =Berechnungsblatt!$S$35 -> 0.05482618627 | CL6: 1.359750588 | CM6: D | CN6: =Berechnungsblatt!$S$34 -> 0.08662264954 | CO6: 1.363458327 | CP6: D | CQ6: =Berechnungsblatt!$S$33 -> 0.08347831668 | CR6: 1.324913948 | CS6: D | CT6: =Berechnungsblatt!$S$32 -> 0.1502155761 | CU6: 1.228071082 | CW6: D | CX6: =Berechnungsblatt!$S$54 -> 0.0099945 | CY6: 1.369284235 | CZ6: D | DA6: =Berechnungsblatt!$S$53 -> 0.0472845 | DB6: 1.433215772 | DC6: D | DD6: =Berechnungsblatt!$S$52 -> 0.0448416 | DE6: 1.418209215 | DF6: D | DG6: =Berechnungsblatt!$S$51 -> 0.1164772 | DH6: 1.342909243 | DI6: D | DJ6: =Berechnungsblatt!$S$50 -> 0.1494411 | DK6: 1.358742345 | DM6: D | DN6: =Berechnungsblatt!$S$45 -> 0.0083264 | DO6: 1.468648298 | DP6: D | DQ6: =Berechnungsblatt!$S$44 -> 0.074685 | DR6: 1.474756902 | DS6: D | DT6: =Berechnungsblatt!$S$43 -> 0.1418472 | DU6: 1.415497853 | DV6: D | DW6: =Berechnungsblatt!$S$42 -> 0.2309125 | DX6: 1.289901386 | DY6: D | DZ6: =Berechnungsblatt!$S$41 -> 0.2826401117 | EA6: 1.281258737 | EC6: D | ED6: =Berechnungsblatt!$S$63 -> 0.0146008 | EE6: 1.35720206 | EF6: D | EG6: =Berechnungsblatt!$S$62 -> 0.0343301 | EH6: 1.388370966 | EI6: D | EJ6: =Berechnungsblatt!$S$61 -> 0.0540329 | EK6: 1.362347362 | EL6: D | EM6: =Berechnungsblatt!$S$60 -> 0.0810023 | EN6: 1.363020095 | EO6: D | EP6: =Berechnungsblatt!$S$59 -> 0.1048339 | EQ6: 1.375375173 | ES6: D | ET6: =Berechnungsblatt!$S$90 -> 0.0812059 | EU6: 1.358771106 | EV6: D | EW6: =Berechnungsblatt!$S$89 -> 0.1010782 | EX6: 1.350529506 | EY6: D | EZ6: =Berechnungsblatt!$S$88 -> 0.1208194 | FA6: 1.317894161 | FB6: D | FC6: =Berechnungsblatt!$S$87 -> 0.140822 | FD6: 1.293334485 | FE6: D | FF6: =Berechnungsblatt!$S$86 -> 0.1606945 | FG6: 1.18335744 | FI6: D | FJ6: =Berechnungsblatt!$S$99 -> 0 | FK6: 1.404782942 | FL6: D | FM6: =Berechnungsblatt!$S$98 -> 0.04692430397 | FN6: 1.55146908 | FO6: D | FP6: =Berechnungsblatt!$S$97 -> 0.09384860795 | FQ6: 1.502915672 | FR6: D | FS6: =Berechnungsblatt!$S$96 -> 0.1407729119 | FT6: 1.415157751 | FU6: D | FV6: =Berechnungsblatt!$S$95 -> 0.3905987 | FW6: 1.529509507 | FY6: D | FZ6: =Berechnungsblatt!$S$108 -> 0.5572659896 | GA6: 1.4975781 | GB6: D | GC6: =Berechnungsblatt!$S$107 -> 0.6811042337 | GD6: 1.45837273 | GE6: D | GF6: =Berechnungsblatt!$S$106 -> 0.8049424777 | GG6: 1.417255335 | GH6: D | GI6: =Berechnungsblatt!$S$105 -> 0.8700250309 | GJ6: 1.384695666 | GK6: D | GL6: =Berechnungsblatt!$S$104 -> 0.9351075841 | GM6: 1.371500821 | GO6: D | GP6: =Berechnungsblatt!S113 -> 0.1995541 | GQ6: 1.364428335 | GR6: D | GS6: =Berechnungsblatt!S114 -> 0.154966
A7: ='Als-Ob-Allokation KW03'!A6 -> 2012-01-05 | B7: ='Als-Ob-Allokation KW03'!B6 -> 4.5 | C7: 4 | D7: 1.420632031 | E7: Lastprofil: | F7: HEF03 | G7: 1.41297385 | H7: Lastprofil: | I7: HEF04 | J7: 1.391595759 | K7: Lastprofil: | L7: HMF03 | M7: 1.412295324 | N7: Lastprofil: | O7: HMF04 | P7: 1.082867679 | Q7: Lastprofil: | R7: HK3 | S7: 1.403127356 | U7: Lastprofil: | V7: BA5 | W7: 1.378043042 | X7: Lastprofil: | Y7: BA4 | Z7: 1.320505724 | AA7: Lastprofil: | AB7: BA3 | AC7: 1.248195424 | AD7: Lastprofil: | AE7: BA2 | AF7: 1.219256684 | AG7: Lastprofil: | AH7: BA1 | AI7: 1.701269888 | AK7: Lastprofil: | AL7: BD5 | AM7: 1.68942672 | AN7: Lastprofil: | AO7: BD4 | AP7: 1.584989515 | AQ7: Lastprofil: | AR7: BD3 | AS7: 1.395409583 | AT7: Lastprofil: | AU7: BD2 | AV7: 1.17478482 | AW7: Lastprofil: | AX7: BD1 | AY7: 1.545166293 | BA7: Lastprofil: | BB7: BH5 | BC7: 1.508834439 | BD7: Lastprofil: | BE7: BH4 | BF7: 1.440525019 | BG7: Lastprofil: | BH7: BH3 | BI7: 1.387279071 | BJ7: Lastprofil: | BK7: BH2 | BL7: 1.313516077 | BM7: Lastprofil: | BN7: BH1 | BO7: 1.576277505 | BQ7: Lastprofil: | BR7: GA5 | BS7: 1.507112593 | BT7: Lastprofil: | BU7: GA4 | BV7: 1.390078484 | BW7: Lastprofil: | BX7: GA3 | BY7: 1.261794361 | BZ7: Lastprofil: | CA7: GA2 | CB7: 1.141507759 | CC7: Lastprofil: | CD7: GA1 | CE7: 1.545052285 | CG7: Lastprofil: | CH7: GB5 | CI7: 1.534367795 | CJ7: Lastprofil: | CK7: GB4 | CL7: 1.514044211 | CM7: Lastprofil: | CN7: GB3 | CO7: 1.476625536 | CP7: Lastprofil: | CQ7: GB2 | CR7: 1.41191117 | CS7: Lastprofil: | CT7: GB1 | CU7: 1.474242508 | CW7: Lastprofil: | CX7: HA5 | CY7: 1.593288873 | CZ7: Lastprofil: | DA7: HA4 | DB7: 1.622128649 | DC7: Lastprofil: | DD7: HA3 | DE7: 1.570524937 | DF7: Lastprofil: | DG7: HA2 | DH7: 1.453175648 | DI7: Lastprofil: | DJ7: HA1 | DK7: 1.580461933 | DM7: Lastprofil: | DN7: KO5 | DO7: 1.665167364 | DP7: Lastprofil: | DQ7: KO4 | DR7: 1.626188873 | DS7: Lastprofil: | DT7: KO3 | DU7: 1.523024447 | DV7: Lastprofil: | DW7: KO2 | DX7: 1.353424196 | DY7: Lastprofil: | DZ7: KO1 | EA7: 1.48155087 | EC7: Lastprofil: | ED7: ME5 | EE7: 1.524247006 | EF7: Lastprofil: | EG7: ME4 | EH7: 1.521031196 | EI7: Lastprofil: | EJ7: ME3 | EK7: 1.465022708 | EL7: Lastprofil: | EM7: ME2 | EN7: 1.437043133 | EO7: Lastprofil: | EP7: ME1 | EQ7: 1.51093212 | ES7: Lastprofil: | ET7: MF5 | EU7: 1.482062735 | EV7: Lastprofil: | EW7: MF4 | EX7: 1.460340629 | EY7: Lastprofil: | EZ7: MF3 | FA7: 1.417026708 | FB7: Lastprofil: | FC7: MF2 | FD7: 1.38074268 | FE7: Lastprofil: | FF7: MF1 | FG7: 1.448111218 | FI7: Lastprofil: | FJ7: PD5 | FK7: 1.6574589 | FL7: Lastprofil: | FM7: PD4 | FN7: 1.728520857 | FO7: Lastprofil: | FP7: PD3 | FQ7: 1.605907482 | FR7: Lastprofil: | FS7: PD2 | FT7: 1.476993698 | FU7: Lastprofil: | FV7: PD1 | FW7: 1.5577854 | FY7: Lastprofil: | FZ7: WA5 | GA7: 1.51041793 | GB7: Lastprofil: | GC7: WA4 | GD7: 1.459491163 | GE7: Lastprofil: | GF7: WA3 | GG7: 1.406878186 | GH7: Lastprofil: | GI7: WA2 | GJ7: 1.364280536 | GK7: Lastprofil: | GL7: WA1 | GM7: 1.511198357 | GO7: Lastprofil: | GP7: GHD03 | GQ7: 1.535405198 | GR7: Lastprofil: | GS7: GHD04
